{"text_format":"1","workbook":"xlsx","n_sheets":15,"sheets":["SankeyParameters","Sankey","Dropdonws","Anleitung","Titelblatt","Formular A","Formular B","Formular C","Energieflussdiagramm","Formular D","Massnahmenplanung","Beschreibung Massnahmen","Formular E","Vereinbarung","Bemerkungen"],"not_rendered":{"charts":1,"images":7,"macros":1,"external_links":0,"defined_names":51,"comments":0,"pivot_tables":0},"unopened":[],"bounds":{"document_bytes":16777216,"sheet_cells":100000,"rows_first":2000,"rows_last":500,"rows_between":2000,"halvings":0,"cell_chars":16384,"cell_head_chars":4096},"cells_cut":0,"cells_raw":0,"read":"whole","date_system":"1900"}

{"sheet":"SankeyParameters","index":0,"n_rows":17,"n_cols":4,"rows_kept":17,"cut":false,"hidden":true,"merged":[]}
["Item","Value","Comments"]
["titles","<!DOCTYPE html>\n<meta charset=\"utf-8\">\n<title>Energieflussdiagramm KZV</title>","Probably dont need to touch"]
["defaultStyles","<style>\n \nhtml {\n  min-width: 1040px;\n}\n\nbody {\n  position: relative;\n  font-family: \"Helvetica Neue\", Helvetica, sans-serif;\n  margin: 1em auto 4em auto;\n  width: 960px;\n}\n\nh1 {\n  font-size: 64px;\n  font-weight: 300;\n  letter-spacing: -2px;\n  margin: .3em 0 .1em 0;\n}\n\nh2 {\n  margin-top: 2em;\n}\n\nh1, h2 {\n  text-rendering: optimizeLegibility;\n}\n\nh2 a {\n  color: #ccc;\n  left: -20px;\n  position: absolute;\n  width: 740px;\n}\n\nfooter {\n  font-size: small;\n  margin-top: 8em;\n}\n\nheader aside {\n  margin-top: 82px;\n}\n\nheader aside,\nfooter aside {\n  color: #636363;\n  text-align: right;\n}\n\naside {\n  font-size: small;\n  left: 780px;\n  position: absolute;\n  width: 180px;\n}\n\n.attribution {\n  font-size: small;\n  margin-bottom: 2em;\n}\n\nbody > p, li > p {\n  line-height: 1.5em;\n}\n\nbody > p {\n  width: 720px;\n}\n\nbody > blockquote {\n  width: 640px;\n}\n\nli {\n  width: 680px;\n}\n\na {\n  color: steelblue;\n}\n\na:not(:hover) {\n  text-decoration: none;\n}\n\npre, code, textarea {\n  font-family: \"Menlo\", monospace;\n}\n\ncode {\n  line-height: 1em;\n}\n\ntextarea {\n  font-size: 100%;\n}\n\nbody > pre {\n  border-left: solid 2px #ccc;\n  padding-left: 18px;\n  margin: 2em 0 2em -20px;\n}\n\n.html .value,\n.javascript .string,\n.javascript .regexp {\n  color: #756bb1;\n}\n\n.html .tag,\n.css .tag,\n.javascript .keyword {\n  color: #3182bd;\n}\n\n.comment {\n  color: #636363;\n}\n\n.html .doctype,\n.javascript .number {\n  color: #31a354;\n}\n\n.html .attribute,\n.css .attribute,\n.javascript .class,\n.javascript .special {\n  color: #e6550d;\n}\n\nsvg {\n  font: 12px sans-serif;\n}\n\n.axis path, .axis line {\n  fill: none;\n  stroke: #000;\n  shape-rendering: crispEdges;\n}\n\nsup, sub {\n  line-height: 0;\n}\n\nq:before,\nblockquote:before {\n  content: \"â€œ\";\n}\n\nq:after,\nblockquote:after {\n  content: \"â€\u009d\";\n}\n\nblockquote:before {\n  position: absolute;\n  left: 2em;\n}\n\nblockquote:after {\n  position: absolute;\n}\n\n</style>","Default Style - change general layout here"]
["sankeyStyles","<style>\n  #chart {\n\n }\n .node rect {\n  cursor: move;\n  fill-opacity: .9;\n  shape-rendering: crispEdges;\n }\n .node text {\n  pointer-events: none;\n  text-shadow: 0 1px 0 #fff;\n }\n .link {\n  fill: none;\n  stroke: #000;\n  stroke-opacity: .2;\n }\n .link:hover {\n  stroke-opacity: .5;\n }\n</style>","Sankey Style - change chart specific styles here"]
["header","<body>\n\n <h3>Energieflussdiagramm KZV\n</h3>  <div id=\"chart\"></div>","Change report header here"]
["sankeyCode"," <script src=\"http://d3js.org/d3.v3.min.js\"></script>\n\n  <script>\n  d3.sankey = function() {\n    var sankey = {},\n        nodeWidth = 24,\n        nodePadding = 8,\n        size = [1, 1],\n        nodes = [],\n        links = [];\n\n    sankey.nodeWidth = function(_) {\n      if (!arguments.length) return nodeWidth;\n      nodeWidth = +_;\n      return sankey;\n    };\n\n    sankey.nodePadding = function(_) {\n      if (!arguments.length) return nodePadding;\n      nodePadding = +_;\n      return sankey;\n    };\n  \n    sankey.nodes = function(_) {\n      if (!arguments.length) return nodes;\n      nodes = _;\n      return sankey;\n    };\n\n    sankey.links = function(_) {\n      if (!arguments.length) return links;\n      links = _;\n      return sankey;\n    };\n  \n    sankey.size = function(_) {\n      if (!arguments.length) return size;\n      size = _;\n      return sankey;\n    };\n  \n    sankey.layout = function(iterations) {\n      computeNodeLinks();\n      computeNodeValues();\n      computeNodeBreadths();\n      computeNodeDepths(iterations);\n      computeLinkDepths();\n      return sankey;\n    };\n  \n    sankey.relayout = function() {\n      computeLinkDepths();\n      return sankey;\n    };\n  \n    sankey.link = function() {\n      var curvature = .5;\n  \n      function link(d) {\n        var x0 = d.source.x + d.source.dx,\n            x1 = d.target.x,\n            xi = d3.interpolateNumber(x0, x1),\n            x2 = xi(curvature),\n            x3 = xi(1 - curvature),\n            y0 = d.source.y + d.sy + d.dy / 2,\n            y1 = d.target.y + d.ty + d.dy / 2;\n        return \"M\" + x0 + \",\" + y0\n             + \"C\" + x2 + \",\" + y0\n             + \" \" + x3 + \",\" + y1\n             + \" \" + x1 + \",\" + y1;\n      }\n  \n      link.curvature = function(_) {\n        if (!arguments.length) return curvature;\n        curvature = +_;\n        return link;\n      };\n  \n      return link;\n    };\n\n    // Populate the sourceLinks and targetLinks for each node.\n    // Also, if the source and target are not objects, assume they are indices.\n    function computeNodeLinks() {\n      nodes.forEach(function(node) {\n        node.sourceLinks = [];\n        node.targetLinks = [];\n      });\n      links.forEach(function(link) {\n        var source = link.source,\n            target = link.target;\n        if (typeof source === \"number\") source = link.source = nodes[link.source];\n        if (typeof target === \"number\") target = link.target = nodes[link.target];\n        source.sourceLinks.push(link);\n        target.targetLinks.push(link);\n      });\n    }\n  \n    // Compute the value (size) of each node by summing the associated links.\n    function computeNodeValues() {\n      nodes.forEach(function(node) {\n        node.value = Math.max(\n          d3.sum(node.sourceLinks, value),\n          d3.sum(node.targetLinks, value)\n        );\n      });\n    }\n\n    // Iteratively assign the breadth (x-position) for each node.\n    // Nodes are assigned the maximum breadth of incoming neighbors plus one;\n    // nodes with no incoming links are assigned breadth zero, while\n    // nodes with no outgoing links are assigned the maximum breadth.\n    function computeNodeBreadths() {\n      var remainingNodes = nodes,\n          nextNodes,\n          x = 0;\n  \n      while (remainingNodes.length) {\n        nextNodes = [];\n        remainingNodes.forEach(function(node) {\n          node.x = x;\n          node.dx = nodeWidth;\n          node.sourceLinks.forEach(function(link) {\n            nextNodes.push(link.target);\n          });\n        });\n        remainingNodes = nextNodes;\n        ++x;\n      }\n  \n      //\n      moveSinksRight(x);\n      scaleNodeBreadths((width - nodeWidth) / (x - 1));\n    }\n  \n    function moveSourcesRight() {\n      nodes.forEach(function(node) {\n        if (!node.targetLinks.length) {\n          node.x = d3.min(node.sourceLinks, function(d) { return d.target.x; }) - 1;\n        }\n      });\n    }\n  \n    function moveSinksRight(x) {\n      nodes.forEach(function(node) {\n        if (!node.sourceLinks.length) {\n          node.x = x - 1;\n        }\n      });\n    }\n  \n    function scaleNodeBreadths(kx) {\n      nodes.forEach(function(node) {\n        node.x *= kx;\n      });\n    }\n  \n    function computeNodeDepths(iterations) {\n      var nodesByBreadth = d3.nest()\n          .key(function(d) { return d.x; })\n          .sortKeys(d3.ascending)\n          .entries(nodes)\n          .map(function(d) { return d.values; });\n  \n      //\n      initializeNodeDepth();\n      resolveCollisions();\n      for (var alpha = 1; iterations > 0; --iterations) {\n        relaxRightToLeft(alpha *= .99);\n        resolveCollisions();\n        relaxLeftToRight(alpha);\n        resolveCollisions();\n      }\n  \n      function initializeNodeDepth() {\n        var ky = d3.min(nodesByBreadth, function(nodes) {\n          return (size[1] - (nodes.length - 1) * nodePadding) / d3.sum(nodes, value);\n        });\n  \n        nodesByBreadth.forEach(function(nodes) {\n          nodes.forEach(function(node, i) {\n            node.y = i;\n            node.dy = node.value * ky;\n          });\n        });\n  \n        links.forEach(function(link) {\n          link.dy = link.value * ky;\n        });\n      }\n  \n      function relaxLeftToRight(alpha) {\n        nodesByBreadth.forEach(function(nodes, breadth) {\n          nodes.forEach(function(node) {\n            if (node.targetLinks.length) {\n              var y = d3.sum(node.targetLinks, weightedSource) / d3.sum(node.targetLinks, value);\n              node.y += (y - center(node)) * alpha;\n            }\n          });\n        });\n  \n        function weightedSource(link) {\n          return center(link.source) * link.value;\n        }\n      }\n  \n      function relaxRightToLeft(alpha) {\n        nodesByBreadth.slice().reverse().forEach(function(nodes) {\n          nodes.forEach(function(node) {\n            if (node.sourceLinks.length) {\n              var y = d3.sum(node.sourceLinks, weightedTarget) / d3.sum(node.sourceLinks, value);\n              node.y += (y - center(node)) * alpha;\n            }\n          });\n        });\n  \n        function weightedTarget(link) {\n          return center(link.target) * link.value;\n        }\n      }\n  \n      function resolveCollisions() {\n        nodesByBreadth.forEach(function(nodes) {\n          var node,\n              dy,\n              y0 = 0,\n              n = nodes.length,\n              i;\n  \n          // Push any overlapping nodes down.\n          nodes.sort(ascendingDepth);\n          for (i = 0; i < n; ++i) {\n            node = nodes[i];\n            dy = y0 - node.y;\n            if (dy > 0) node.y += dy;\n            y0 = node.y + node.dy + nodePadding;\n          }\n  \n          // If the bottommost node goes outside the bounds, push it back up.\n          dy = y0 - nodePadding - size[1];\n          if (dy > 0) {\n            y0 = node.y -= dy;\n  \n            // Push any overlapping nodes back up.\n            for (i = n - 2; i >= 0; --i) {\n              node = nodes[i];\n              dy = node.y + node.dy + nodePadding - y0;\n              if (dy > 0) node.y -= dy;\n              y0 = node.y;\n            }\n          }\n        });\n      }\n  \n      function ascendingDepth(a, b) {\n        return a.y - b.y;\n      }\n    }\n  \n    function computeLinkDepths() {\n      nodes.forEach(function(node) {\n        node.sourceLinks.sort(ascendingTargetDepth);\n        node.targetLinks.sort(ascendingSourceDepth);\n      });\n      nodes.forEach(function(node) {\n        var sy = 0, ty = 0;\n        node.sourceLinks.forEach(function(link) {\n          link.sy = sy;\n          sy += link.dy;\n        });\n        node.targetLinks.forEach(function(link) {\n          link.ty = ty;\n          ty += link.dy;\n        });\n      });\n  \n      function ascendingSourceDepth(a, b) {\n        return a.source.y - b.source.y;\n      }\n  \n      function ascendingTargetDepth(a, b) {\n        return a.target.y - b.target.y;\n      }\n    }\n  \n    function center(node) {\n      return node.y + node.dy / 2;\n    }\n  \n    function value(link) {\n      return link.value;\n    }\n  \n    return sankey;\n  };\n</script>\n","Dont touch"]
["chartCode","<script>var margin = {\n    top : 1,\n    right : 1,\n    bottom : 6,\n    left : 1\n   }, \n   width = (mcpherSankeyData.options.width ?  mcpherSankeyData.options.width : 900) - margin.left - margin.right, \n   height = (mcpherSankeyData.options.height ?  mcpherSankeyData.options.height : 500) - margin.top - margin.bottom;\n   var formatNumber = d3.format(\",.0f\"), format = function(d) {\n    return formatNumber(d) ;\n   }, \n   color = d3.scale.category20();\n   \n   var svg = d3.select(\"#chart\")\n    .append(\"svg\")\n    .attr(\"width\", width + margin.left + margin.right)\n    .attr(\"height\", height + margin.top + margin.bottom)\n    .append(\"g\")\n    .attr(\"transform\", \"translate(\" + margin.left + \",\" + margin.top + \")\");\n    \n   var sankey = d3.sankey()\n    .nodeWidth(15)\n    .nodePadding(10)\n    .size([width, height]);\n    \n   var path = sankey.link();\n   \n   sankey.nodes(mcpherSankeyData.nodes)\n    .links(mcpherSankeyData.links)\n    .layout(32);\n    \n\n   var linkEnter = svg.append(\"g\")\n      .selectAll(\".link\")\n      .data(mcpherSankeyData.links)\n      .enter();\n\n    var link = linkEnter.append(\"path\")\n      .attr(\"class\", \"link\")\n      .attr(\"d\", path)\n      .style(\"stroke-width\", \n       function(d) {\n        return Math.max(1, d.dy);\n       })\n      .style(\"stroke\", \n       function(d) {\n        return d.color = d.color ? d.color : \"#000\";\n       })\n      .style(\"stroke-opacity\", \n       function(d) {\n        return d.opacity = d.opacity ? d.opacity : null;\n       })\n      .sort(function(a, b) {\n       return b.dy - a.dy;\n       })\n      .on('click', function(d) {\n          if (d.linkurl)window.open(d.linkurl);\n       });\n\n    \n   link.append(\"title\")\n     .text(function(d) {\n        return d.source.name + \" > \" + d.target.name + \"(\" + format(d.value) + \")\" + \n            (d.linkurl ? '\\nclick to go to ' + d.linkurl : '') ;\n      });\n      \n   var node = svg.append(\"g\")\n      .selectAll(\".node\")\n      .data(mcpherSankeyData.nodes)\n      .enter()\n      .append(\"g\")\n      .attr(\"class\", \"node\")\n      .attr(\"transform\", \n       function(d) {\n         return \"translate(\" + d.x + \",\" + d.y + \")\";\n        }\n       )\n      .call(d3.behavior.drag()\n      .origin(function(d) {\n         return d;\n        }\n       )\n      .on(\"dragstart\", function() {\n        this.parentNode.appendChild(this);\n        }\n       )\n      .on(\"drag\", dragmove));\n      \n      var nodeurl = node.append(\"a\")\n        .attr(\"xlink:href\", function(d) {return d.nodeurl ? d.nodeurl : null; });\n        \n      var rect = nodeurl.append(\"rect\")\n       .attr(\"height\", \n         function(d) {\n          return d.dy;\n         }\n        )\n       .attr(\"width\", sankey.nodeWidth())\n       .style(\"fill\", function(d) {\n          return d.color = d.color ? d.color : color(d.name.replace(/ .*/, \"\"));\n         }\n        )\n       .style(\"stroke\", function(d) {\n           return d3.rgb(d.color).darker(2);\n        });\n\n      rect.append(\"title\")\n       .text(function(d) {\n        return d.name +  \"(\" + format(d.value) + \")\" + \n            (d.nodeurl ? '\\nclick to go to ' + d.nodeurl : '') ;\n         }\n        );\n        \n      node.append(\"text\")\n      .attr(\"x\", -6)\n      .attr(\"y\", function(d) {\n          return d.dy / 2;\n         }\n        )\n      .attr(\"dy\", \".35em\")\n      .attr(\"text-anchor\", \"end\")\n      .attr(\"transform\", null)\n      .text(function(d) {\n         return d.name;\n        }\n       )\n      .filter(function(d) {\n         return d.x < width / 2;\n       }\n      )\n      .attr(\"x\", 6 + sankey.nodeWidth())\n      .attr(\"text-anchor\", \"start\");\n    \n     function dragmove(d) {\n      d3.select(this)\n       .attr(\"transform\", \"translate(\" + d.x + \",\" + (d.y = Math.max(0, Math.min(height - d.dy, d3.event.y))) + \")\");\n       sankey.relayout();\n      link.attr(\"d\", path);\n     }\n\n  </script></body>","code for the chart - touch if you know what you are doing"]
["htmlName","\\sankey.html","where to generate the executable","(davor wird %userprofile% gehängt)"]
["inheritNodeColor","yes","inherits cell color from source/target id"]
["inheritLinkColor","yes","inherits link color from value cell"]
["linkOpacity",0.5,"note if this is anything other than blank hover wont work ( 0.0-1.0 are valid range)"]
["linkurl",null,"column name for clickable urls on each link"]
["nodeurl",null,"column name for clickable urls on each node"]
[]
["sankey options","Value","Comments"]
["height",500]
["width ",900]

{"sheet":"Sankey","index":1,"n_rows":101,"n_cols":11,"rows_kept":101,"cut":false,"hidden":true,"merged":[]}
["SourceID","TargetID","SourceLabel","TargetLabel","Value","linkurl","nodeurl",null,"Namensdefinition","Original","ohne ÄÖÜ (für Sankey)"]
["1-ET1","2-Bezug-Waerme",{"$f":"K2","v":""},{"$f":"K12","v":"Bezug Thermisch"},null,null,null,null,"1-ET1",null,{"$f":"SUBSTITUTE(SUBSTITUTE(SUBSTITUTE(SUBSTITUTE(SUBSTITUTE(SUBSTITUTE(SUBSTITUTE(SUBSTITUTE(SUBSTITUTE(SUBSTITUTE(SUBSTITUTE(SUBSTITUTE(SUBSTITUTE(SUBSTITUTE(J2,\"ß\",\"ss\"),\"ä\",\"ae\"),\"ö\",\"oe\"),\"ü\",\"ue\"),\"Ü\",\"Ue\"),\"Ö\",\"Oe\"),\"Ä\",\"Ae\"),\"é\",\"e\"),\"É\",\"E\"),\"à\",\"a\"),\"À\",\"A\"),\"ï\",\"i\"),\"â\",\"a\"),\"è\",\"e\")","v":""}]
["1-ET2","2-Bezug-Waerme",{"$f":"K3","v":"Fossile Brennstoffe"},{"$f":"K12","v":"Bezug Thermisch"},{"$f":"'Formular C'!E31","v":0},null,null,null,"1-ET2","Fossile Brennstoffe",{"$f":"SUBSTITUTE(SUBSTITUTE(SUBSTITUTE(SUBSTITUTE(SUBSTITUTE(SUBSTITUTE(SUBSTITUTE(SUBSTITUTE(SUBSTITUTE(SUBSTITUTE(SUBSTITUTE(SUBSTITUTE(SUBSTITUTE(SUBSTITUTE(J3,\"ß\",\"ss\"),\"ä\",\"ae\"),\"ö\",\"oe\"),\"ü\",\"ue\"),\"Ü\",\"Ue\"),\"Ö\",\"Oe\"),\"Ä\",\"Ae\"),\"é\",\"e\"),\"É\",\"E\"),\"à\",\"a\"),\"À\",\"A\"),\"ï\",\"i\"),\"â\",\"a\"),\"è\",\"e\")","v":"Fossile Brennstoffe"}]
["1-ET3","2-Bezug-Waerme","Fernwaerme",{"$f":"K12","v":"Bezug Thermisch"},{"$f":"'Formular C'!E32","v":0},null,null,null,"1-ET3","Fernwärme","Fernwaerme"]
["1-ET4","2-Bezug-Waerme","Holz, Biomasse usw.",{"$f":"K12","v":"Bezug Thermisch"},{"$f":"'Formular C'!E33","v":0},null,null,null,"1-ET4","Holz, Biomasse usw.","Holz, Biomasse usw."]
["1-ET5","2-Bezug-Waerme",{"$f":"K6","v":"Weitere Brennstoffe"},{"$f":"K12","v":"Bezug Thermisch"},{"$f":"'Formular C'!E34","v":0},null,null,null,"1-ET5","Weitere Brennstoffe","Weitere Brennstoffe"]
["1-AWN","3-AWN-Direktnutzung",{"$f":"K7","v":"Abwaermenutzung"},{"$f":"K15","v":"Direktnutzung Abwaerme"},{"$f":"Energieflussdiagramm!D12","v":0},null,null,null,"1-AWN","Abwärmenutzung","Abwaermenutzung"]
["1-AWN","3-WP-Nutzung",{"$f":"K7","v":"Abwaermenutzung"},{"$f":"K14","v":"WP/KM"},{"$f":"(1-Energieflussdiagramm!M11)*(Energieflussdiagramm!D11+Energieflussdiagramm!F11)","v":0},null,null,null,"1-S-Waerme","Solarwaerme","Solarwaerme"]
["1-UE","3-WP-Nutzung",{"$f":"K9","v":"Umweltenergie"},{"$f":"K14","v":"WP/KM"},{"$f":"Energieflussdiagramm!M11*(Energieflussdiagramm!D11+Energieflussdiagramm!F11)","v":0},null,null,null,"1-U-Waerme","Umweltenergie","Umweltenergie"]
["1-UE","3-UE-Direktnutzung",{"$f":"K9","v":"Umweltenergie"},{"$f":"K16","v":"Direktnutzung Umweltenergie"},{"$f":"Energieflussdiagramm!D13","v":0},null,null,null,"1-Strombezug","Strombezug Werk","Strombezug Werk"]
["1-Strombezug","2-Bezug-Strom",{"$f":"K10","v":"Strombezug Werk"},{"$f":"K13","v":"Bezug Elektrisch"},{"$f":"'Formular C'!E36","v":0},null,null,null,"1-SE-Strom","Stromproduktion Erneuerbar","Stromproduktion Erneuerbar"]
["1-SE-Strom","4-Strombedarf",{"$f":"K11","v":"Stromproduktion Erneuerbar"},{"$f":"K19","v":"Bedarf Elektrisch"},{"$f":"Energieflussdiagramm!F15","v":0},null,null,null,"2-Bezug-Waerme","Bezug Thermisch","Bezug Thermisch"]
["2-Bezug-Waerme","3-BHWK-Umwandlung",{"$f":"K12","v":"Bezug Thermisch"},{"$f":"K17","v":"BHKW"},{"$f":"(-1)*Energieflussdiagramm!D14","v":0},null,null,null,"2-Bezug-Strom","Bezug Elektrisch","Bezug Elektrisch"]
["2-Bezug-Waerme","4-Wärmebedarf",{"$f":"K12","v":"Bezug Thermisch"},{"$f":"K18","v":"Bedarf Thermisch"},{"$f":"SUM(E2:E6)-E13-E15","v":0},null,null,null,"3-WP-Nutzung","WP/KM","WP/KM"]
["2-Bezug-Waerme","5-Verluste",{"$f":"K12","v":"Bezug Thermisch"},{"$f":"K59","v":"Verluste (Erzeugung/Verteilung)"},{"$f":"(-1)*Energieflussdiagramm!D17","v":0},null,null,null,"3-AWN-Direktnutzung","Direktnutzung Abwärme","Direktnutzung Abwaerme"]
["2-Bezug-Strom","3-WP-Nutzung",{"$f":"K13","v":"Bezug Elektrisch"},{"$f":"K14","v":"WP/KM"},{"$f":"(-1)*Energieflussdiagramm!F11","v":0},null,null,null,"3-UE-Direktnutzung","Direktnutzung Umweltenergie","Direktnutzung Umweltenergie"]
["2-Bezug-Strom","4-Strombedarf",{"$f":"K13","v":"Bezug Elektrisch"},{"$f":"K19","v":"Bedarf Elektrisch"},{"$f":"E11-E16-E18","v":0},null,null,null,"3-BHWK-Umwandlung","BHKW","BHKW"]
["2-Bezug-Strom","5-Verluste",{"$f":"K13","v":"Bezug Elektrisch"},{"$f":"K59","v":"Verluste (Erzeugung/Verteilung)"},{"$f":"(-1)*Energieflussdiagramm!F17","v":0},null,null,null,"4-Waermebedarf","Bedarf Thermisch","Bedarf Thermisch"]
["3-WP-Nutzung","4-Wärmebedarf",{"$f":"K14","v":"WP/KM"},{"$f":"K18","v":"Bedarf Thermisch"},{"$f":"1*Energieflussdiagramm!D11","v":0},null,null,null,"4-Strombedarf","Bedarf Elektrisch","Bedarf Elektrisch"]
["3-AWN-Direktnutzung","4-Wärmebedarf",{"$f":"K15","v":"Direktnutzung Abwaerme"},{"$f":"K18","v":"Bedarf Thermisch"},{"$f":"Energieflussdiagramm!D12","v":0},null,null,null,"5-HTH1",{"$f":"IF(Energieflussdiagramm!B25=\"\",\"-\",Energieflussdiagramm!B25)","v":"-"},"-"]
["3-UE-Direktnutzung","4-Wärmebedarf",{"$f":"K16","v":"Direktnutzung Umweltenergie"},{"$f":"K18","v":"Bedarf Thermisch"},{"$f":"Energieflussdiagramm!D13","v":0},null,null,null,"5-HTH2",{"$f":"IF(Energieflussdiagramm!B26=\"\",\"-\",Energieflussdiagramm!B26)","v":"-"},"-"]
["3-BHWK-Umwandlung","4-Strombedarf",{"$f":"K17","v":"BHKW"},{"$f":"K19","v":"Bedarf Elektrisch"},{"$f":"Energieflussdiagramm!F14","v":0},null,null,null,"5-HTH3",{"$f":"IF(Energieflussdiagramm!B27=\"\",\"-\",Energieflussdiagramm!B27)","v":"-"},"-"]
["3-BHWK-Umwandlung","5-Verluste",{"$f":"K17","v":"BHKW"},{"$f":"K59","v":"Verluste (Erzeugung/Verteilung)"},{"$f":"E13-E22","v":0},null,null,null,"5-HTH4",{"$f":"IF(Energieflussdiagramm!B28=\"\",\"-\",Energieflussdiagramm!B28)","v":"-"},"-"]
["4-Wärmebedarf","5-HTH1",{"$f":"K18","v":"Bedarf Thermisch"},{"$f":"K20","v":"-"},{"$f":"Energieflussdiagramm!D25","v":0},null,null,null,"5-HTH5",{"$f":"IF(Energieflussdiagramm!B29=\"\",\"-\",Energieflussdiagramm!B29)","v":"-"},"-"]
["4-Wärmebedarf","5-HTH2",{"$f":"K18","v":"Bedarf Thermisch"},{"$f":"K21","v":"-"},{"$f":"Energieflussdiagramm!D26","v":0},null,null,null,"5-HTW1",{"$f":"IF(Energieflussdiagramm!B30=\"\",\"-\",Energieflussdiagramm!B30)","v":"-"},"-"]
["4-Wärmebedarf","5-HTH3",{"$f":"K18","v":"Bedarf Thermisch"},"-",{"$f":"Energieflussdiagramm!D27","v":0},null,null,null,"5-HTW2",{"$f":"IF(Energieflussdiagramm!B31=\"\",\"-\",Energieflussdiagramm!B31)","v":"-"},"-"]
["4-Wärmebedarf","5-HTH4",{"$f":"K18","v":"Bedarf Thermisch"},"-",{"$f":"Energieflussdiagramm!D28","v":0},null,null,null,"5-HTW3",{"$f":"IF(Energieflussdiagramm!B32=\"\",\"-\",Energieflussdiagramm!B32)","v":"-"},"-"]
["4-Wärmebedarf","5-HTH5",{"$f":"K18","v":"Bedarf Thermisch"},"-",{"$f":"Energieflussdiagramm!D29","v":0},null,null,null,"5-HTW4",{"$f":"IF(Energieflussdiagramm!B33=\"\",\"-\",Energieflussdiagramm!B33)","v":"-"},"-"]
["4-Wärmebedarf","5-HTW1",{"$f":"K18","v":"Bedarf Thermisch"},"-",{"$f":"Energieflussdiagramm!D30","v":0},null,null,null,"5-HTW5",{"$f":"IF(Energieflussdiagramm!B34=\"\",\"-\",Energieflussdiagramm!B34)","v":"-"},"-"]
["4-Wärmebedarf","5-HTW2",{"$f":"K18","v":"Bedarf Thermisch"},"-",{"$f":"Energieflussdiagramm!D31","v":0},null,null,null,"5-HTL1",{"$f":"IF(Energieflussdiagramm!B35=\"\",\"-\",Energieflussdiagramm!B35)","v":"-"},"-"]
["4-Wärmebedarf","5-HTW3",{"$f":"K18","v":"Bedarf Thermisch"},"-",{"$f":"Energieflussdiagramm!D32","v":0},null,null,null,"5-HTL2",{"$f":"IF(Energieflussdiagramm!B36=\"\",\"-\",Energieflussdiagramm!B36)","v":"-"},"-"]
["4-Wärmebedarf","5-HTW4",{"$f":"K18","v":"Bedarf Thermisch"},"-",{"$f":"Energieflussdiagramm!D33","v":0},null,null,null,"5-HTL3",{"$f":"IF(Energieflussdiagramm!B37=\"\",\"-\",Energieflussdiagramm!B37)","v":"-"},"-"]
["4-Wärmebedarf","5-HTW5",{"$f":"K18","v":"Bedarf Thermisch"},"-",{"$f":"Energieflussdiagramm!D34","v":0},null,null,null,"5-HTL4",{"$f":"IF(Energieflussdiagramm!B38=\"\",\"-\",Energieflussdiagramm!B38)","v":"-"},"-"]
["4-Wärmebedarf","5-HTL1",{"$f":"K18","v":"Bedarf Thermisch"},"-",{"$f":"Energieflussdiagramm!D35","v":0},null,null,null,"5-HTL5",{"$f":"IF(Energieflussdiagramm!B39=\"\",\"-\",Energieflussdiagramm!B39)","v":"-"},"-"]
["4-Wärmebedarf","5-HTL2",{"$f":"K18","v":"Bedarf Thermisch"},"-",{"$f":"Energieflussdiagramm!D36","v":0},null,null,null,"5-HTB1",{"$f":"IF(Energieflussdiagramm!B40=\"\",\"-\",Energieflussdiagramm!B40)","v":"-"},"-"]
["4-Wärmebedarf","5-HTL3",{"$f":"K18","v":"Bedarf Thermisch"},"-",{"$f":"Energieflussdiagramm!D37","v":0},null,null,null,"5-HTB2",{"$f":"IF(Energieflussdiagramm!B41=\"\",\"-\",Energieflussdiagramm!B41)","v":"-"},"-"]
["4-Wärmebedarf","5-HTL4",{"$f":"K18","v":"Bedarf Thermisch"},"-",{"$f":"Energieflussdiagramm!D38","v":0},null,null,null,"5-HTB3",{"$f":"IF(Energieflussdiagramm!B42=\"\",\"-\",Energieflussdiagramm!B42)","v":"-"},"-"]
["4-Wärmebedarf","5-HTL5",{"$f":"K18","v":"Bedarf Thermisch"},"-",{"$f":"Energieflussdiagramm!D39","v":0},null,null,null,"5-HTB4",{"$f":"IF(Energieflussdiagramm!B43=\"\",\"-\",Energieflussdiagramm!B43)","v":"-"},"-"]
["4-Wärmebedarf","5-HTB1",{"$f":"K18","v":"Bedarf Thermisch"},"-",{"$f":"Energieflussdiagramm!D40","v":0},null,null,null,"5-HTB5",{"$f":"IF(Energieflussdiagramm!B44=\"\",\"-\",Energieflussdiagramm!B44)","v":"-"},"-"]
["4-Wärmebedarf","5-HTB2",{"$f":"K18","v":"Bedarf Thermisch"},"-",{"$f":"Energieflussdiagramm!D41","v":0},null,null,null,"5-HTD1",{"$f":"IF(Energieflussdiagramm!I25=\"\",\"-\",Energieflussdiagramm!I25)","v":"-"},"-"]
["4-Wärmebedarf","5-HTB3",{"$f":"K18","v":"Bedarf Thermisch"},"-",{"$f":"Energieflussdiagramm!D42","v":0},null,null,null,"5-HTD2",{"$f":"IF(Energieflussdiagramm!I26=\"\",\"-\",Energieflussdiagramm!I26)","v":"-"},"-"]
["4-Wärmebedarf","5-HTB4",{"$f":"K18","v":"Bedarf Thermisch"},"-",{"$f":"Energieflussdiagramm!D43","v":0},null,null,null,"5-HTD3",{"$f":"IF(Energieflussdiagramm!I27=\"\",\"-\",Energieflussdiagramm!I27)","v":"-"},"-"]
["4-Wärmebedarf","5-HTB5",{"$f":"K18","v":"Bedarf Thermisch"},"-",{"$f":"Energieflussdiagramm!D44","v":0},null,null,null,"5-HTD4",{"$f":"IF(Energieflussdiagramm!I28=\"\",\"-\",Energieflussdiagramm!I28)","v":"-"},"-"]
["4-Wärmebedarf","5-HTD1",{"$f":"K18","v":"Bedarf Thermisch"},"-",{"$f":"Energieflussdiagramm!J25","v":0},null,null,null,"5-HTD5",{"$f":"IF(Energieflussdiagramm!I29=\"\",\"-\",Energieflussdiagramm!I29)","v":"-"},"-"]
["4-Wärmebedarf","5-HTD2",{"$f":"K18","v":"Bedarf Thermisch"},"-",{"$f":"Energieflussdiagramm!J26","v":0},null,null,null,"5-HTA1",{"$f":"IF(Energieflussdiagramm!I30=\"\",\"-\",Energieflussdiagramm!I30)","v":"-"},"-"]
["4-Wärmebedarf","5-HTD3",{"$f":"K18","v":"Bedarf Thermisch"},"-",{"$f":"Energieflussdiagramm!J27","v":0},null,null,null,"5-HTA2",{"$f":"IF(Energieflussdiagramm!I31=\"\",\"-\",Energieflussdiagramm!I31)","v":"-"},"-"]
["4-Wärmebedarf","5-HTD4",{"$f":"K18","v":"Bedarf Thermisch"},"-",{"$f":"Energieflussdiagramm!J28","v":0},null,null,null,"5-HTA3",{"$f":"IF(Energieflussdiagramm!I32=\"\",\"-\",Energieflussdiagramm!I32)","v":"-"},"-"]
["4-Wärmebedarf","5-HTD5",{"$f":"K18","v":"Bedarf Thermisch"},"-",{"$f":"Energieflussdiagramm!J29","v":0},null,null,null,"5-HTA4",{"$f":"IF(Energieflussdiagramm!I33=\"\",\"-\",Energieflussdiagramm!I33)","v":"-"},"-"]
["4-Wärmebedarf","5-HTA1",{"$f":"K18","v":"Bedarf Thermisch"},"-",{"$f":"Energieflussdiagramm!J30","v":0},null,null,null,"5-HTA5",{"$f":"LEFT(Energieflussdiagramm!I34,LEN(Energieflussdiagramm!I34)-3)","v":"Diverse Verbraucher"},"Diverse Verbraucher"]
["4-Wärmebedarf","5-HTA2",{"$f":"K18","v":"Bedarf Thermisch"},"-",{"$f":"Energieflussdiagramm!J31","v":0},null,null,null,"5-PP1",{"$f":"IF(Energieflussdiagramm!I36=\"\",\"-\",Energieflussdiagramm!I36)","v":"-"},"-"]
["4-Wärmebedarf","5-HTA3",{"$f":"K18","v":"Bedarf Thermisch"},"-",{"$f":"Energieflussdiagramm!J32","v":0},null,null,null,"5-PP2",{"$f":"IF(Energieflussdiagramm!I37=\"\",\"-\",Energieflussdiagramm!I37)","v":"-"},"-"]
["4-Wärmebedarf","5-HTA4",{"$f":"K18","v":"Bedarf Thermisch"},"-",{"$f":"Energieflussdiagramm!J33","v":0},null,null,null,"5-PP3",{"$f":"IF(Energieflussdiagramm!I38=\"\",\"-\",Energieflussdiagramm!I38)","v":"-"},"-"]
["4-Wärmebedarf","5-HTA5",{"$f":"K18","v":"Bedarf Thermisch"},"Diverse Verbraucher",{"$f":"Energieflussdiagramm!J34","v":0},null,null,null,"5-PP4",{"$f":"IF(Energieflussdiagramm!I39=\"\",\"-\",Energieflussdiagramm!I39)","v":"-"},"-"]
["4-Wärmebedarf","5-PP1",{"$f":"K18","v":"Bedarf Thermisch"},{"$f":"K50","v":"-"},{"$f":"Energieflussdiagramm!J36","v":0},null,null,null,"5-PP5",{"$f":"IF(Energieflussdiagramm!I40=\"\",\"-\",Energieflussdiagramm!I40)","v":"-"},"-"]
["4-Wärmebedarf","5-PP2",{"$f":"K18","v":"Bedarf Thermisch"},{"$f":"K51","v":"-"},{"$f":"Energieflussdiagramm!J37","v":0},null,null,null,"5-PP6",{"$f":"IF(Energieflussdiagramm!I41=\"\",\"-\",Energieflussdiagramm!I41)","v":"-"},"-"]
["4-Wärmebedarf","5-PP3",{"$f":"K18","v":"Bedarf Thermisch"},{"$f":"K52","v":"-"},{"$f":"Energieflussdiagramm!J38","v":0},null,null,null,"5-PP7",{"$f":"IF(Energieflussdiagramm!I42=\"\",\"-\",Energieflussdiagramm!I42)","v":"-"},"-"]
["4-Wärmebedarf","5-PP4",{"$f":"K18","v":"Bedarf Thermisch"},{"$f":"K53","v":"-"},{"$f":"Energieflussdiagramm!J39","v":0},null,null,null,"5-PP8",{"$f":"IF(Energieflussdiagramm!I43=\"\",\"-\",Energieflussdiagramm!I43)","v":"-"},"-"]
["4-Wärmebedarf","5-PP5",{"$f":"K18","v":"Bedarf Thermisch"},{"$f":"K54","v":"-"},{"$f":"Energieflussdiagramm!J40","v":0},null,null,null,"5-PP9",{"$f":"IF(Energieflussdiagramm!I44=\"\",\"-\",Energieflussdiagramm!I44)","v":"-"},"-"]
["4-Wärmebedarf","5-PP6",{"$f":"K18","v":"Bedarf Thermisch"},{"$f":"K55","v":"-"},{"$f":"Energieflussdiagramm!J41","v":0},null,null,null,"5-Verluste","Verluste (Erzeugung/Verteilung)","Verluste (Erzeugung/Verteilung)"]
["4-Wärmebedarf","5-PP7",{"$f":"K18","v":"Bedarf Thermisch"},"-",{"$f":"Energieflussdiagramm!J42","v":0}]
["4-Wärmebedarf","5-PP8",{"$f":"K18","v":"Bedarf Thermisch"},"-",{"$f":"Energieflussdiagramm!J43","v":0}]
["4-Wärmebedarf","5-PP9",{"$f":"K18","v":"Bedarf Thermisch"},{"$f":"K58","v":"-"},{"$f":"Energieflussdiagramm!J44","v":0}]
["4-Strombedarf","5-HTH1",{"$f":"K19","v":"Bedarf Elektrisch"},{"$f":"K20","v":"-"},{"$f":"Energieflussdiagramm!F25","v":0}]
["4-Strombedarf","5-HTH2",{"$f":"K19","v":"Bedarf Elektrisch"},{"$f":"K21","v":"-"},{"$f":"Energieflussdiagramm!F26","v":0}]
["4-Strombedarf","5-HTH3",{"$f":"K19","v":"Bedarf Elektrisch"},"-",{"$f":"Energieflussdiagramm!F27","v":0}]
["4-Strombedarf","5-HTH4",{"$f":"K19","v":"Bedarf Elektrisch"},"-",{"$f":"Energieflussdiagramm!F28","v":0}]
["4-Strombedarf","5-HTH5",{"$f":"K19","v":"Bedarf Elektrisch"},"-",{"$f":"Energieflussdiagramm!F29","v":0}]
["4-Strombedarf","5-HTW1",{"$f":"K19","v":"Bedarf Elektrisch"},{"$f":"K25","v":"-"},{"$f":"Energieflussdiagramm!F30","v":0}]
["4-Strombedarf","5-HTW2",{"$f":"K19","v":"Bedarf Elektrisch"},{"$f":"K26","v":"-"},{"$f":"Energieflussdiagramm!F31","v":0}]
["4-Strombedarf","5-HTW3",{"$f":"K19","v":"Bedarf Elektrisch"},"-",{"$f":"Energieflussdiagramm!F32","v":0}]
["4-Strombedarf","5-HTW4",{"$f":"K19","v":"Bedarf Elektrisch"},"-",{"$f":"Energieflussdiagramm!F33","v":0}]
["4-Strombedarf","5-HTW5",{"$f":"K19","v":"Bedarf Elektrisch"},"-",{"$f":"Energieflussdiagramm!F34","v":0}]
["4-Strombedarf","5-HTL1",{"$f":"K19","v":"Bedarf Elektrisch"},{"$f":"K30","v":"-"},{"$f":"Energieflussdiagramm!F35","v":0}]
["4-Strombedarf","5-HTL2",{"$f":"K19","v":"Bedarf Elektrisch"},{"$f":"K31","v":"-"},{"$f":"Energieflussdiagramm!F36","v":0}]
["4-Strombedarf","5-HTL3",{"$f":"K19","v":"Bedarf Elektrisch"},"-",{"$f":"Energieflussdiagramm!F37","v":0}]
["4-Strombedarf","5-HTL4",{"$f":"K19","v":"Bedarf Elektrisch"},"-",{"$f":"Energieflussdiagramm!F38","v":0}]
["4-Strombedarf","5-HTL5",{"$f":"K19","v":"Bedarf Elektrisch"},"-",{"$f":"Energieflussdiagramm!F39","v":0}]
["4-Strombedarf","5-HTB1",{"$f":"K19","v":"Bedarf Elektrisch"},{"$f":"K35","v":"-"},{"$f":"Energieflussdiagramm!F40","v":0}]
["4-Strombedarf","5-HTB2",{"$f":"K19","v":"Bedarf Elektrisch"},{"$f":"K36","v":"-"},{"$f":"Energieflussdiagramm!F41","v":0}]
["4-Strombedarf","5-HTB3",{"$f":"K19","v":"Bedarf Elektrisch"},"-",{"$f":"Energieflussdiagramm!F42","v":0}]
["4-Strombedarf","5-HTB4",{"$f":"K19","v":"Bedarf Elektrisch"},"-",{"$f":"Energieflussdiagramm!F43","v":0}]
["4-Strombedarf","5-HTB5",{"$f":"K19","v":"Bedarf Elektrisch"},"-",{"$f":"Energieflussdiagramm!F44","v":0}]
["4-Strombedarf","5-HTD1",{"$f":"K19","v":"Bedarf Elektrisch"},{"$f":"K40","v":"-"},{"$f":"Energieflussdiagramm!L25","v":0}]
["4-Strombedarf","5-HTD2",{"$f":"K19","v":"Bedarf Elektrisch"},{"$f":"K41","v":"-"},{"$f":"Energieflussdiagramm!L26","v":0}]
["4-Strombedarf","5-HTD3",{"$f":"K19","v":"Bedarf Elektrisch"},"-",{"$f":"Energieflussdiagramm!L27","v":0}]
["4-Strombedarf","5-HTD4",{"$f":"K19","v":"Bedarf Elektrisch"},"-",{"$f":"Energieflussdiagramm!L28","v":0}]
["4-Strombedarf","5-HTD5",{"$f":"K19","v":"Bedarf Elektrisch"},"-",{"$f":"Energieflussdiagramm!L29","v":0}]
["4-Strombedarf","5-HTA1",{"$f":"K19","v":"Bedarf Elektrisch"},{"$f":"K45","v":"-"},{"$f":"Energieflussdiagramm!L30","v":0}]
["4-Strombedarf","5-HTA2",{"$f":"K19","v":"Bedarf Elektrisch"},{"$f":"K46","v":"-"},{"$f":"Energieflussdiagramm!L31","v":0}]
["4-Strombedarf","5-HTA3",{"$f":"K19","v":"Bedarf Elektrisch"},"-",{"$f":"Energieflussdiagramm!L32","v":0}]
["4-Strombedarf","5-HTA4",{"$f":"K19","v":"Bedarf Elektrisch"},"-",{"$f":"Energieflussdiagramm!L33","v":0}]
["4-Strombedarf","5-HTA5",{"$f":"K19","v":"Bedarf Elektrisch"},"Diverse Verbraucher",{"$f":"Energieflussdiagramm!L34","v":0}]
["4-Strombedarf","5-PP1",{"$f":"K19","v":"Bedarf Elektrisch"},{"$f":"K50","v":"-"},{"$f":"Energieflussdiagramm!L36","v":0}]
["4-Strombedarf","5-PP2",{"$f":"K19","v":"Bedarf Elektrisch"},{"$f":"K51","v":"-"},{"$f":"Energieflussdiagramm!L37","v":0}]
["4-Strombedarf","5-PP3",{"$f":"K19","v":"Bedarf Elektrisch"},{"$f":"K52","v":"-"},{"$f":"Energieflussdiagramm!L38","v":0}]
["4-Strombedarf","5-PP4",{"$f":"K19","v":"Bedarf Elektrisch"},{"$f":"K53","v":"-"},{"$f":"Energieflussdiagramm!L39","v":0}]
["4-Strombedarf","5-PP5",{"$f":"K19","v":"Bedarf Elektrisch"},{"$f":"K54","v":"-"},{"$f":"Energieflussdiagramm!L40","v":0}]
["4-Strombedarf","5-PP6",{"$f":"K19","v":"Bedarf Elektrisch"},{"$f":"K55","v":"-"},{"$f":"Energieflussdiagramm!L41","v":0}]
["4-Strombedarf","5-PP7",{"$f":"K19","v":"Bedarf Elektrisch"},"-",{"$f":"Energieflussdiagramm!L42","v":0}]
["4-Strombedarf","5-PP8",{"$f":"K19","v":"Bedarf Elektrisch"},"-",{"$f":"Energieflussdiagramm!L43","v":0}]
["4-Strombedarf","5-PP9",{"$f":"K19","v":"Bedarf Elektrisch"},{"$f":"K58","v":"-"},{"$f":"Energieflussdiagramm!L44","v":0}]

{"sheet":"Dropdonws","index":2,"n_rows":11,"n_cols":4,"rows_kept":11,"cut":false,"hidden":true,"merged":[]}
[]
[]
[null,"Dropdowns"]
[]
[null,"Liste Energieträger",null,"Liste Bezugsgrössen"]
[null,"Ö",null,"BG"]
[null,"G",null,"EBF"]
[null,"F"]
[null,"H"]
[null,"W"]
[null,"E"]

{"sheet":"Anleitung","index":3,"n_rows":60,"n_cols":13,"rows_kept":60,"cut":false,"hidden":false,"merged":[[53,1,53,13],[19,1,19,13],[0,12,1,13],[3,1,3,3],[3,4,3,13],[57,1,57,13],[42,1,42,13],[43,1,43,13],[44,1,44,13],[45,1,45,13],[46,1,46,13],[47,1,47,13],[48,1,48,13],[49,1,49,13],[50,1,50,13],[51,1,51,13],[52,1,52,13]]}
["Kurzanleitung",null,null,null,null,null,null,null,null,null,null,"Kantonale Zielvereinbarung (KZV) für Grossverbraucher im Kanton Zürich","KZV SE"]
[null,null,null,null,null,null,null,null,null,null,null,"Reduktion des spezifischen Energieverbrauchs"]
[]
[]
[null,"Bedienung"]
[]
[null,"Die Blätter dieser Arbeitsmappe sind geschützt, um zu verhindern, dass versehentlich Formeln überschrieben werden."]
[]
[]
[null,"Füllen Sie die Arbeitsmappe in folgender Reihenfolge aus:"]
[null,"- Titelblatt"]
[null,"- Formular A"]
[null,"- Formular B"]
[null,"- Formular C"]
[null,"- Massnahmenplanung (fakultativ, kann als Grundlage für die Zielsetzung in Formular E genutzt werden)"]
[null,"- Beschreibung Massnahmen (fakultativ, als Ergänzung und zum besseren Verständnis der Massnahmenplanung)"]
[null,"- Formular E"]
[null,"- Bemerkungen"]
[]
[null,"Das Ausfüllen vom Blatt Energieflussdiagramm ist fakultativ. Es kann dazu verwendet werden, ein einfaches Energieflussdiagramm zu erzeugen, das den eigenen Energieverbrauch visualisiert."]
[]
[null,null,null,"Zwingende Eingaben"]
[]
[null,null,null,"Fakultative Eingaben"]
[]
[null,null,null,"Wichtige Hinweise"]
[]
[null,null,null,"Zielgrösse der Zielvereinbarung"]
[]
[]
[null,"Ziel"]
[]
[null,"Die Zielgrösse dieser Zielvereinbarung ist die Energieeffizienz. Sie ist auf Formular E dargestellt. Sie resultiert aus der Reduktion der spezifischen"]
[null,"Energieverbräuche der Vebrauchskategorien W (Wärme) und E (Produktion / Dienstleistung). Alle für die Zielvereinbarung relevanten Angaben"]
[null,"finden sich auf dem Formular Vereinbarung. Dieses Formular ist zu unterschreiben."]
[]
[null,"Ausgangsjahr"]
[]
[null,"Das Ausgangsjahr wird auf dem Formular C festgelegt Die Verbesserung der Energieeffizienz bezieht sich immer auf dieses Ausgangsjahr."]
[]
[null,"Erklärung der Rechenvorgänge"]
[]
[null,"Der Energieverbrauch wird auf die drei Bereiche \"Heizung\", \"Warmwasser\" und \"Produktion / Dienstleistungen\" aufgeteilt. \"Heizung\" und \"Warmwasser\" werden zur Berechnung des Richtwerts W verwendet, aus dem Anteil \"Produktion / Dienstleistungen\" wird der Richtwert E gebildet."]
[null,"Richtwert E"]
[null,"Für den Richtwert E wird der entsprechende Anteil des Energieverbrauchs mit den in der Zielvereinbarung (ZV) definierten Gewichtungsfaktoren gewichtet. Als Bezugsgrösse für die Berechnung des spezifischen Verbrauchs dient die eigentliche Bezugsgrösse aus der ZV, erweitert mit einer oder mehreren Hilfsgrössen."]
[null,"Richtwert W"]
[null,"Der Richtwert W wird aus den Anteilen für Heizung und Warmwasser gebildet. Die entsprechenden Energieverbräuche werden mit den in der ZV definierten Gewichtungsfaktoren gewichtet. Der Heizungsanteil wird zusätzlich HGT-normiert. Als Norm-HGT-Wert wird 3'717 verwendet. "]
[null,"Energieeffizienz"]
[null,"Der Zielwert für die Energieeffizienz wird berechnet, indem in der Zielvereinbarung für beide Richtwerte eine jährliche Verbesserung (z.B. 2%) vorgegeben wird. Daraus ergibt sich über die Laufzeit der Zielvereinbarung (z.B. 10 Jahre) je ein spezifischer Energieverbrauch für die Richtwerte E und W im Zieljahr (ZJ). Diese spezifischen Energieverbräuche im Zieljahr werden mit den spezifischen Energieverbräuchen im Ausgangsjahr (AJ) ins Verhältnis gesetzt:"]
[]
[null,"Aus diesen prozentualen, spezifischen Energieverbräuchen im Zieljahr wird das Energieeffizienz-Ziel berechnet:"]
[]
[null,"Dabei werden die Zahlen der Richtwerte E und W mit den entsprechenden Energieverbräuchen gewichtet.\n\n"]
[null,"Für das jährliche Reporting nach Abschluss der Zielvereinbarung werden die gleichen Berechnungen basierend auf den effektiven Energieverbräuchen und Bezugsgrössen des Unternehms durchgeführt. Das Unternehmen hat das Ziel erreicht, wenn die effektive Energieeffizienz grösser oder gleich ist wie die Vorgabe aus der Zielvereinbarung (Zielpfad Energieeffizienz). Die Vorgaben für die Verbesserung in den beiden Richtwerten E und W müssen nicht einzeln erreicht werden."]
[]
[null,"Disclaimer"]
[]
[null,"Diese Arbeitsmappe wurde ursprünglich im Auftrag von UGZ                                                              und ewz                    durch Weisskopf Partner GmbH, 8047 Zürich, erstellt. Das AWEL des Kantons Zürich durfte sie übernehmen und zusammen mit dem Ersteller weiterentwickeln.\nWeder die Auftraggeber noch der Ersteller haften für die Richtigkeit der Resultate oder Schlussfolgerungen, welche aus dieser Arbeitsmappe gezogen werden. Für die Richtigkeit der Angaben haftet der Benutzer dieser Arbeitsmappe."]
[]
[null,"Version:","v3.1 / Feb. 2020"]

{"sheet":"Titelblatt","index":4,"n_rows":33,"n_cols":14,"rows_kept":33,"cut":false,"hidden":false,"merged":[[31,1,31,3],[31,5,31,13],[16,5,16,7],[16,10,16,13],[17,5,17,7],[17,10,17,13],[27,5,27,13],[30,1,30,3],[28,5,28,13],[29,1,29,3],[29,5,29,13],[28,1,28,3],[25,6,25,8],[25,10,25,13],[26,1,26,3],[26,6,26,13],[14,5,14,7],[14,10,14,13],[15,5,15,7],[15,10,15,13],[12,5,12,7],[12,10,12,13],[13,5,13,7],[13,10,13,13],[12,8,12,9],[25,1,25,3],[27,1,27,3],[20,5,20,13],[19,5,19,13],[24,1,24,3],[24,6,24,13],[21,5,21,13],[22,5,22,13],[23,5,23,13],[19,1,19,3],[20,1,20,3],[8,1,8,3],[10,6,10,13],[3,1,3,3],[3,5,3,13],[7,1,7,3],[6,1,6,3],[5,5,5,13],[6,5,6,13],[7,5,7,13],[5,1,5,3],[4,1,4,3],[4,5,4,13],[0,12,1,13],[30,5,30,6],[30,8,30,13],[23,1,23,3],[22,1,22,3],[21,1,21,3],[18,1,18,3],[12,1,12,3],[11,5,11,13],[18,5,18,13],[11,1,11,3],[9,1,9,3],[9,6,9,8],[10,1,10,3],[8,6,8,13],[9,10,9,13]]}
[null,null,null,null,null,null,null,null,null,null,null,"Kantonale Zielvereinbarung (KZV) für Grossverbraucher im Kanton Zürich","KZV SE"]
[null,null,null,null,null,null,null,null,null,null,null,"Reduktion des spezifischen Energieverbrauchs"]
[]
[]
[]
[null,"Firma / Organisation:"]
[null,"Adresse:"]
[]
[null,"Kontaktperson:",null,null,null,"Name:"]
[null,null,null,null,null,"Tel.:",null,null,null,"  Fax:"]
[null,null,null,null,null,"E-Mail:"]
[]
[null,"Verbrauchsstätten:",null,null,null,null,null,null,"Elektrozähler:"]
[]
[]
[]
[]
[]
[]
[]
[]
[null,"Technische Begleitung:"]
[null,"Adresse:"]
[]
[null,"Kontaktperson:",null,null,null,"Name:"]
[null,null,null,null,null,"Tel.:",null,null,null,"  Fax:"]
[null,null,null,null,null,"E-Mail:"]
[]
[]
[]
[null,"Erstellungsdatum:",null,null,null,null,null,"ZV-Version:"]
[]
[null,null,null,null,null,null,null,null,null,null,null,null,null,{"$f":"\"SE KZV Tool \" & Version","v":"SE KZV Tool v3.1 / Feb. 2020"}]

{"sheet":"Formular A","index":5,"n_rows":15,"n_cols":29,"rows_kept":15,"cut":false,"hidden":false,"merged":[[1,26,1,28],[8,1,8,3],[8,17,8,27],[8,11,8,16],[6,17,6,27],[6,7,6,16],[7,5,7,6],[7,7,7,16],[7,17,7,27],[15,6,15,14],[4,1,4,3],[5,1,5,3],[5,5,5,27],[4,5,4,27],[10,1,10,3],[15,16,15,27],[10,5,10,27],[6,1,6,3],[6,5,6,6],[14,6,14,14],[7,1,7,3],[9,1,9,3],[9,17,9,27],[9,6,9,10],[9,12,9,16],[16,16,16,27],[19,6,19,14],[19,16,19,27],[17,6,17,14],[17,16,17,27],[18,6,18,14],[18,16,18,27],[16,6,16,14]]}
["KZV SE, Formular A / Allgemeine Angaben zur Verbrauchsstätte",null,null,null,null,null,null,null,null,null,null,null,null,null,null,null,null,null,null,null,null,null,null,null,null,null,null,null,{"$f":"Titelblatt!F6","v":"00:00:00"}]
[null,null,null,null,null,null,null,null,null,null,null,null,null,null,null,null,null,null,null,null,null,null,null,null,null,null,{"$f":"Titelblatt!F31","v":"00:00:00"}]
[]
[]
["A.1","Branche:"]
[null,"Geschäftstätigkeit:"]
["A.2","Anzahl Mitarbeiter Total:",null,null,null,null,null,"Personen"]
[null,"Anzahl Mitarbeiter auf Vollzeitstellen umgerechnet:",null,null,null,null,null,"Personen"]
["A.3","Betriebsorganisation:",null,null,null,null,"1",null,"2",null,"3","- schichtig"]
[null,"Produktionszeit / Arbeitszeit:",null,null,null,null,"Stunden pro Tag",null,null,null,null,null,"Tage pro Woche"]
["A.4","Absatz, Umsatz oder Ausgaben pro Jahr:"]
[]
[]
[null,null,null,null,"A.5","Beilagen:"]
[null,null,null,null,null,null," Firmenbroschüre",null,null,null,null,null,null,null,null,null,"Genaue  Bezeichnung:"]

{"sheet":"Formular B","index":6,"n_rows":36,"n_cols":42,"rows_kept":36,"cut":false,"hidden":false,"merged":[[21,1,21,11],[7,22,7,26],[7,27,7,31],[7,32,7,36],[14,1,14,6],[22,1,22,11],[19,17,20,21],[21,17,21,21],[22,17,22,21],[19,12,20,16],[21,12,21,16],[22,12,22,16],[19,1,20,11],[13,12,13,16],[13,17,13,21],[8,12,8,16],[9,12,9,16],[10,1,10,6],[14,22,14,26],[10,12,10,16],[14,32,14,36],[13,1,13,6],[13,7,13,11],[15,1,15,6],[14,7,14,11],[15,7,15,11],[15,12,15,16],[8,17,8,21],[9,17,9,21],[14,12,14,16],[10,17,10,21],[14,17,14,21],[15,17,15,21],[11,7,11,11],[12,7,12,11],[11,12,11,16],[12,12,12,16],[1,5,1,6],[7,1,7,6],[7,7,7,11],[7,12,7,16],[7,17,7,21],[4,0,4,41],[5,1,6,6],[5,7,6,11],[5,12,6,16],[7,37,7,41],[5,0,6,0],[5,17,6,21],[5,22,6,26],[5,27,6,31],[5,32,6,36],[1,38,1,41],[8,1,8,6],[9,1,9,6],[11,1,11,6],[12,1,12,6],[5,37,6,41],[8,22,8,26],[9,22,9,26],[10,22,10,26],[11,27,11,31],[8,27,8,31],[9,27,9,31],[10,27,10,31],[12,22,12,26],[8,7,8,11],[9,7,9,11],[10,7,10,11],[15,22,15,26],[12,17,12,21],[11,22,11,26],[13,22,13,26],[8,37,8,41],[9,37,9,41],[10,37,10,41],[14,37,14,41],[15,37,15,41],[8,32,8,36],[9,32,9,36],[10,32,10,36],[13,32,13,36],[13,37,13,41],[15,32,15,36],[12,27,12,31],[11,17,11,21],[13,27,13,31],[14,27,14,31],[15,27,15,31],[23,1,23,11],[23,12,23,16],[23,17,23,21],[24,1,24,11],[24,12,24,16],[24,17,24,21],[31,1,31,11],[31,12,31,16],[31,17,31,21],[28,1,29,11],[28,12,29,16],[28,17,29,21],[30,1,30,11],[30,12,30,16],[30,17,30,21],[35,22,35,26],[32,22,32,26],[30,27,30,31],[31,27,31,31],[35,27,35,31],[32,27,32,31],[35,1,35,11],[35,12,35,16],[35,17,35,21],[32,1,32,11],[32,12,32,16],[32,17,32,21],[33,1,33,11],[34,27,34,31],[28,22,29,26],[30,22,30,26],[31,22,31,26],[33,12,33,16],[33,17,33,21],[33,22,33,26],[33,27,33,31],[28,27,29,31],[34,1,34,11],[34,12,34,16],[34,17,34,21],[34,22,34,26]]}
["KZV SE, Formular B / Angaben Gebäude und Produktion / Dienstleistungen",null,null,null,null,null,null,null,null,null,null,null,null,null,null,null,null,null,null,null,null,null,null,null,null,null,null,null,null,null,null,null,null,null,null,null,null,null,null,null,null,{"$f":"Titelblatt!F6","v":"00:00:00"}]
[null,null,null,null,null,null,null,null,null,null,null,null,null,null,null,null,null,null,null,null,null,null,null,null,null,null,null,null,null,null,null,null,null,null,null,null,null,null,{"$f":"Titelblatt!F31","v":"00:00:00"}]
[]
[]
["B.1  Gebäudedaten Ausgangsjahr ¹⁾"]
[null,"Gebäudebez.",null,null,null,null,null,"Baujahr",null,null,null,null,"1. Sanierung",null,null,null,null,"2. Sanierung",null,null,null,null,"Bruttogeschoss-Fläche",null,null,null,null,"Energiebezugs-Fläche ²⁾"]
[]
[null,null,null,null,null,null,null,"Jahr",null,null,null,null,"Jahr",null,null,null,null,"Jahr",null,null,null,null,"[m²]",null,null,null,null,"[m²]"]
[]
[]
[]
[]
[]
[]
[]
[]
["1)  Nur die Daten jener Gebäude aufführen, die Gegenstand dieser Zielvereinbarung sind",null,null,null,null,null,null,null,null,null,null,null,null,null,null,null,null,null,null,null,null,null,null,null,null,null,null,"2)  EBF gemäss SIA 380/1"]
[]
["B.2  Bezugsgrösse Produktion / Dienstleistungen Ausgangsjahr ³⁾"]
[null,"Bezugsgrösse (BG)",null,null,null,null,null,null,null,null,null,null,"Einheit \n(jährlich)",null,null,null,null,"Menge \n(jährlich)"]
[]
[null,null,null,null,null,null,null,null,null,null,null,null,null,null,null,null,null,"[BG/a]"]
[]
[null,"Bezugsgrösse-Äquivalent (siehe unten)",null,null,null,null,null,null,null,null,null,null,{"$f":"M23","v":0},null,null,null,null,{"$f":"SUM(AB32:AF36)","v":0}]
[null,"Total",null,null,null,null,null,null,null,null,null,null,{"$f":"M23","v":0},null,null,null,null,{"$f":"SUM(R23:V24)","v":0}]
["3)  Für den Energieverbrauch massgebende Bezugsgrösse für die Produktion / Dienstleistungen"]
[]
["B.3  Hilfsgrössen Produktion / Dienstleistungen Ausgangsjahr"]
[null,"Hilfsgrössen (HG) für Bezugsgrösse",null,null,null,null,null,null,null,null,null,null,"Einheit \n(jährlich)",null,null,null,null,"Menge \n(jährlich)",null,null,null,null,"Äquivalentsfaktor",null,null,null,null,"Bezugsgrösse-Äquivalent"]
[]
[null,null,null,null,null,null,null,null,null,null,null,null,null,null,null,null,null,"[HG/a]",null,null,null,null,"[HG/BG]",null,null,null,null,"[BG/a]"]
[null,null,null,null,null,null,null,null,null,null,null,null,null,null,null,null,null,null,null,null,null,null,null,null,null,null,null,{"$f":"IF(R32=0,\" \",R32/W32)","v":" "}]
[null,null,null,null,null,null,null,null,null,null,null,null,null,null,null,null,null,null,null,null,null,null,null,null,null,null,null,{"$f":"IF(R33=0,\" \",R33/W33)","v":" "}]
[null,null,null,null,null,null,null,null,null,null,null,null,null,null,null,null,null,null,null,null,null,null,null,null,null,null,null,{"$f":"IF(R34=0,\" \",R34/W34)","v":" "}]
[null,null,null,null,null,null,null,null,null,null,null,null,null,null,null,null,null,null,null,null,null,null,null,null,null,null,null,{"$f":"IF(R35=0,\" \",R35/W35)","v":" "}]
[null,null,null,null,null,null,null,null,null,null,null,null,null,null,null,null,null,null,null,null,null,null,null,null,null,null,null,{"$f":"IF(R36=0,\" \",R36/W36)","v":" "}]

{"sheet":"Formular C","index":7,"n_rows":39,"n_cols":11,"rows_kept":39,"cut":false,"hidden":false,"merged":[[38,9,38,10],[31,4,31,5],[32,4,32,5],[33,4,33,5],[34,0,34,2],[35,0,35,2],[37,0,37,2],[33,6,33,7],[34,6,34,7],[35,6,35,7],[35,4,35,5],[37,6,37,7],[36,6,36,7],[36,4,36,5],[37,4,37,5],[34,4,34,5],[27,0,27,2],[28,0,28,2],[30,4,30,5],[32,0,32,2],[30,0,30,2],[31,0,31,2],[29,0,29,2],[28,4,28,5],[29,4,29,5],[27,4,27,5],[5,9,6,10],[10,0,10,2],[17,0,17,2],[18,0,18,2],[6,0,6,2],[14,9,21,10],[7,0,7,2],[8,0,8,2],[9,0,9,2],[17,6,17,7],[31,6,31,7],[32,6,32,7],[29,6,29,7],[25,6,25,7],[26,6,26,7],[28,6,28,7],[30,6,30,7],[27,6,27,7],[38,0,38,7],[25,9,26,10],[14,0,14,2],[14,4,14,5],[14,6,14,7],[15,4,16,4],[15,5,16,5],[15,6,16,7],[15,0,16,2],[21,6,21,7],[25,4,25,5],[19,6,19,7],[20,6,20,7],[18,6,18,7],[26,4,26,5],[26,0,26,2]]}
["KZV SE, Formular C / Energie",null,null,null,null,null,null,null,null,null,{"$f":"Titelblatt!F6","v":0}]
[null,null,null,null,null,null,null,null,null,null,{"$f":"Titelblatt!F31","v":"00:00:00"}]
[]
[]
["C.1  Energiegewichtungsfaktoren"]
[]
["Faktor fossile Brennstoffe",null,null,"[-]",1]
["Faktor für Fernwärme",null,null,"[-]"]
["Faktor für Holz, Biomasse usw.",null,null,"[-]",0.5]
["Faktor für weitere Brennstoffe",null,null,"[-]"]
["Faktor für elektrische Energie",null,null,"[-]",2]
[]
["C.2  Geschätzte Anteile auf Energieträger"]
[]
[null,null,null,null,"Richtwert W",null,"Richtwert E",null,null,"Pro Energieträger werden 100% verteilt.\nAlle Verbräuche werden für die Berechnung der Energiekennzahl gemäss Abschnitt C.1 gewichtet. Der \"Anteil Heizung\" wird zusätzlich HGT-normiert."]
["Energieträger",null,null,null,"Anteil \nHeizung","Anteil\nWarmw.","Anteil Produktion / \nDienstleistungen"]
[]
["Anteile auf fossile Brennstoffe",null,null,"[%]",null,null,{"$f":"100-(E18+F18)","v":100},null,{"$f":"IF(G18<0,\"Anteile bei Richtwerte W sind zu gross\",\"\")","v":""}]
["Anteile auf Fernwärme",null,null,"[%]",null,null,{"$f":"100-(E19+F19)","v":100},null,{"$f":"IF(G19<0,\"Anteile bei Richtwerte W sind zu gross\",\"\")","v":""}]
["Anteile auf Holz, Biomasse usw.",null,null,"[%]",null,null,{"$f":"100-(E20+F20)","v":100},null,{"$f":"IF(G20<0,\"Anteile bei Richtwerte W sind zu gross\",\"\")","v":""}]
["Anteile auf weitere Brennstoffe",null,null,"[%]",null,null,{"$f":"100-(E21+F21)","v":100},null,{"$f":"IF(G21<0,\"Anteile bei Richtwerte W sind zu gross\",\"\")","v":""}]
["Anteile auf elektrische Energie",null,null,"[%]",null,null,{"$f":"100-(E22+F22)","v":100},null,{"$f":"IF(G22<0,\"Anteile bei Richtwerte W sind zu gross\",\"\")","v":""}]
[]
["C.3  Angabe der absoluten Energieverbräuche des Ausgangsjahres mit den entsprechenden Heizgradtagen"]
[]
["Endenergieverbrauch ",null,null,null,"ohne HGT-Korrektur",null,"mit HGT-Korrektur ¹⁾",null,null,"Heizgradtage Kanton Zürich"]
[null,null,null,null,"Ausgangsjahr",null,"Normjahr"]
["Ausgangsjahr",null,null,"Jahr",null,null,null,null,null,"Jahr 2010:",3663]
["Anzahl HGT",null,null,null,null,null,3237,null,null,"Jahr 2011:",2951]
["Thermische Energie:",null,null,null,null,null,null,null,null,"Jahr 2012:",3321]
["Fossile Brennstoffe",null,null,"[kWh/a]",null,null,{"$f":"E31*(E18/100)*(NormHGT/$E$29)+E31*(1-(E18/100))","v":{"$error":"#DIV/0!"}},null,null,"Jahr 2013:",3586]
["Fernwärme",null,null,"[kWh/a]",null,null,{"$f":"E32*(E19/100)*(NormHGT/$E$29)+E32*(1-(E19/100))","v":{"$error":"#DIV/0!"}},null,null,"Jahr 2014:",2784]
["Holz, Biomasse usw.",null,null,"[kWh/a]",null,null,{"$f":"E33*(E20/100)*(NormHGT/$E$29)+E33*(1-(E20/100))","v":{"$error":"#DIV/0!"}},null,null,"Jahr 2015:",3060]
["Weitere Brennstoffe",null,"Propan","[kWh/a]",null,null,{"$f":"E34*(E21/100)*(NormHGT/$E$29)+E34*(1-(E21/100))","v":{"$error":"#DIV/0!"}},null,null,"Jahr 2016:",3335]
["Thermische Energie Total",null,null,"[kWh/a]",{"$f":"SUM(E31:E34)","v":0},null,{"$f":"SUM(G31:G34)","v":{"$error":"#DIV/0!"}},null,null,"Jahr 2017:",3233]
["Elektrische Energie Total (Netzbezug)",null,null,"[kWh/a]",null,null,{"$f":"E36*(E22/100)*(NormHGT/$E$29)+E36*(1-(E22/100))","v":{"$error":"#DIV/0!"}},null,null,"Jahr 2018:",2935]
[null,null,null,null,null,null,null,null,null,"Jahr 2019:",3112]
["Endenergieverbrauch pro Jahr",null,null,"[kWh/a]",{"$f":"SUM(E35,E36)","v":0},null,{"$f":"SUM(G35,G36)","v":{"$error":"#DIV/0!"}},null,null,"Jahr 2020:"]
["1) Das Ausgangsjahr wird auf ein Normjahr (= 10-Jahres Mittelwert 2007 - 2016, HGT = 3'237) korrigiert",null,null,null,null,null,null,null,null,"Heizgradtage Zürich"]

{"sheet":"Energieflussdiagramm","index":8,"n_rows":69,"n_cols":17,"rows_kept":69,"cut":false,"hidden":false,"merged":[[12,0,12,2],[12,7,12,12],[5,0,6,2],[5,3,5,4],[5,5,5,6],[7,0,7,2],[7,7,7,12],[9,0,9,12],[10,0,10,2],[10,7,10,8],[10,10,10,11],[11,0,11,2],[11,7,11,12],[13,0,13,2],[13,7,13,12],[14,0,14,2],[14,7,14,12],[16,0,16,2],[16,7,16,12],[18,0,18,2],[18,7,18,12],[21,0,22,2],[21,3,21,4],[21,5,21,6],[21,9,21,10],[21,11,21,12],[23,0,23,2],[23,7,23,8],[24,0,28,0],[24,1,24,2],[24,7,28,7],[25,1,25,2],[26,1,26,2],[27,1,27,2],[28,1,28,2],[29,0,33,0],[29,1,29,2],[29,7,33,7],[30,1,30,2],[31,1,31,2],[32,1,32,2],[33,1,33,2],[34,0,38,0],[34,1,34,2],[35,1,35,2],[36,1,36,2],[37,1,37,2],[38,1,38,2],[57,1,57,9],[39,0,43,0],[39,1,39,2],[40,1,40,2],[41,1,41,2],[42,1,42,2],[43,1,43,2],[45,7,45,8],[53,8,53,9],[54,8,54,9],[55,1,55,7],[56,1,56,9],[70,2,70,8],[58,1,58,9],[59,1,59,9],[60,0,60,9],[61,0,61,9],[62,1,62,9],[63,1,63,8],[64,1,64,9],[65,1,65,9],[66,1,66,9],[67,1,67,9],[68,1,68,9]]}
[null,null,null,null,null,null,null,null,null,null,null,null,"","Eingabemeldung","Eingabemeldung"]
["Fakultativ: Angaben zum Energiebedarf der Hauptverbraucher 1 / 2",null,null,null,null,null,null,null,null,null,null,null,""]
[]
[]
["1. Ermittlung des Energiebedarfs des aktuellen Jahres:"]
[null,null,null,"Thermische Energie",null,"Elektrische Energie"]
[null,null,null,"[kWh/a]","(Vorzeichen)","[kWh/a]","(Vorzeichen)"]
["Aktueller Endenergieverbrauch, ungewichtet:",{"$error":"#REF!"},0,{"$f":"'Formular C'!E35","v":0},null,{"$f":"'Formular C'!E36","v":0},null,"Gemäss Angaben von Formular C, Ziffer C.3"]
[]
["Hinweis: Die nachfolgenden fünf Eingabezeilen sind nur bei einer aktuellen Verwendung von WP-, AWN-, UE-, BHKW- oder SE-Anlagen (siehe nachfolgend) auszufüllen.  Beachten Sie auch die Eingabemeldungen."]
["Wärmepumpen/Kältemaschinen (WP/KM):",{"$error":"#REF!"},{"$error":"#REF!"},{"$f":"IF(AND(F11<>\"\",J11<>\"\",M11<>\"\"),(-1)*F11*J11,IF(AND(F11<>\"\",F11<>0,J11=\"\"),\"JAZ?\",IF(AND(F11<>\"\",F11<>0,J11<>\"\",M11=\"\"),\"Anteil UE?\",\"0\")))","v":"0"},"        (+)",null,"(-)","(durchschn.) Jahresarbeitszahl (JAZ):",null,null,"Anteil Umweltenergie:",null,1,"","","",""]
["Direktnutzung interner Abwärme (AWN):",{"$error":"#REF!"},0,null,"(+)",null,null,"Direkt genutzte Abwärme von externen Arealen ist als Fernwärme zu erfassen (Formular C, Ziffer C.3).",null,null,null,null,null,""]
["Thermische Nutzung Umweltenergie (UE):",{"$error":"#REF!"},0,null,"(+)",null,null,"Z.B. Free-Cooling oder solarthermisch erzeugte Wärme- oder Kälteenergie für den Eigengebrauch.",null,null,null,null,null,""]
["Stromeigenprod. Blockheizkraftwerk (BHKW):",{"$error":"#REF!"},0,{"$f":"(-1)*45/35*F14","v":0},"1)      (-)",null,"(+)","1) Die benötigte thermische Energie wird vereinfacht mit einem Wirkungsgrad von 90% berechnet.",null,null,null,null,null,""]
["Stromeigenproduktion Erneuerbar (SE):",{"$error":"#REF!"},0,null,null,null,"(+)","Stromeigenproduktion Erneuerbar (PV, Kleinwasser, etc.) für den Eigenverbrauch; ohne Zukäufe von Zertifikaten.",null,null,null,null,null,""]
[]
["Energieverluste (Erzeugung/Verteilung):",{"$error":"#REF!"},0,null,"(-)",null,"(-)","Eine Abschätzung der Energieverluste aller Energieerzeugungsanlagen und Verteilsysteme ist hier anzugeben."]
[]
["Total Energiebedarf:",{"$error":"#REF!"},0,{"$f":"D8+D13+D11+D12+D14+D17","v":0},1,{"$f":"F8+F15+F11+F14+F17","v":0},1,"Dieser Energiebedarf muss nachfolgend den Haustechnik- und Prozessanlagen zugeordnet werden."]
[]
["2. Aufteilung des Nutzenergiebedarfs des aktuellen Jahres, nach (Haupt-)Verbrauchern:"]
[null,null,null,"Thermische Energie",null,"Elektrische Energie",null,null,null,"Thermische Energie",null,"Elektrische Energie"]
[null,null,null,"Energie","Anteil","Energie","Anteil",null,null,"Energie","Anteil","Energie","Anteil"]
["Haustechnikanlagen:",{"$error":"#REF!"},0,"[kWh/a]","[-]","[kWh/a]","[-]","Haustechnikanlagen:",null,"[kWh/a]","[-]","[kWh/a]","[-]"]
["Heizung",null,null,null,{"$f":"IF($D$19=0,\"\",D25/$D$19)","v":""},null,{"$f":"IF($F$19=0,\"\",F25/$F$19)","v":""},"Druckluft",null,null,{"$f":"IF($D$19=0,\"\",J25/$D$19)","v":""},null,{"$f":"IF($F$19=0,\"\",L25/$F$19)","v":""}]
[{"$error":"#REF!"},null,null,null,{"$f":"IF($D$19=0,\"\",D26/$D$19)","v":""},null,{"$f":"IF($F$19=0,\"\",F26/$F$19)","v":""},{"$error":"#REF!"},null,null,"",null,""]
[{"$error":"#REF!"},null,null,null,"",null,"",{"$error":"#REF!"},null,null,"",null,""]
[{"$error":"#REF!"},null,null,null,"",null,"",{"$error":"#REF!"},null,null,"",null,""]
[{"$error":"#REF!"},null,null,null,"",null,"",{"$error":"#REF!"},null,null,"",null,""]
["Warmwasser",null,null,null,"",null,"","Andere",null,null,"",null,""]
[{"$error":"#REF!"},null,null,null,"",null,"",null,null,null,"",null,""]
[{"$error":"#REF!"},null,null,null,"",null,"",null,null,null,"",null,""]
[{"$error":"#REF!"},null,null,null,"",null,"",null,null,null,"",null,""]
[{"$error":"#REF!"},null,null,null,"",null,"",null,"Diverse Verbraucher ²⁾",null,"",null,""]
["Lüftung/Klima",null,null,null,"",null,"","Prozess- und Produktionsanlagen:"]
[{"$error":"#REF!"},null,null,null,"",null,"",null,null,null,{"$f":"IF($D$19=0,\"\",J36/$D$19)","v":""},null,{"$f":"IF($F$19=0,\"\",L36/$F$19)","v":""}]
[{"$error":"#REF!"},null,null,null,"",null,"",null,null,null,"",null,""]
[{"$error":"#REF!"},null,null,null,"",null,"",null,null,null,"",null,""]
[{"$error":"#REF!"},null,null,null,"",null,"",null,null,null,"",null,""]
["Beleuchtung",null,null,null,"",null,"",null,null,null,"",null,""]
[{"$error":"#REF!"},null,null,null,"",null,"",null,null,null,"",null,""]
[{"$error":"#REF!"},null,null,null,"",null,"",null,null,null,"",null,""]
[{"$error":"#REF!"},null,null,null,"",null,"",null,null,null,"",null,""]
[{"$error":"#REF!"},null,null,null,"",null,"",null,null,null,"",null,""]
[]
["2) Max. 20% Diverse. Gesamthaft muss der Energiebedarf zu 100% einzelnen Verbrauchern zugeordnet werden.",null,null,null,null,null,null,"Total zugeordneter Nutzenergiebedarf:",null,{"$f":"SUM(D25:D44,J25:J34,J36:J44)","v":0},{"$f":"IF($D$19=0,\"\",J46/D19)","v":""},{"$f":"SUM(F25:F44,L25:L34,L36:L44)","v":0},{"$f":"IF($F$19=0,\"\",L46/F19)","v":""}]
["Hinweis: Im nachfolgenden Punkt 3. ist ein Energieflussdiagramm zu erstellen. Beachten Sie bitte dazu die Anleitung \"In fünf Schritten zum Energieflussdiagramm\"."]
[null,null,null,null,null,null,null,null,null,null,null,null,""]
["Angaben zum Energiebedarf der Hauptverbraucher 2 / 2",null,null,null,null,null,null,null,null,null,null,null,""]
[]
[]
["3. Energieflussdiagramm"]
["In fünf Schritten zum Energieflussdiagramm:"]
["1.","Drücken Sie den Button \"Energieflussdiagramm erzeugen\":"]
["->","Bei einer allfälligen Sicherheitswarnung des Internet-Browsers: Lassen Sie geblockte Inhalte zu."]
["->","das Energieflussdiagramm öffnet sich in Ihrem Internet-Browser."]
["2.","Passen Sie das Energieflussdiagramm bei Bedarf an (fakultativ).",{"$error":"#REF!"},0,0,0,0,0,0,0]
["->","mit der Maus können die Balken vertikal verschoben werden.",{"$error":"#REF!"},0,0,0,0,0,0,0]
["->","dadurch kann die Darstellung verbessert und die Reihenfolge der Energieträger und Anlagen bei Bedarf verändert werden.",{"$error":"#REF!"},0,0,0,0,0,0,0]
["3.","Kopieren Sie das Energieflussdiagramm.",{"$error":"#REF!"},0,0,0,0,0,0,0]
["Internet Explorer: drücken Sie mir der rechten Maustaste auf die Grafik und wählen sie \"Kopieren\"."]
["Firefox oder Chrome: Kopieren Sie das Energieflussdiagramm mit Hilfe eines Screenshot-Programmes:"]
["->","auf  Computern mit dem Betriebssystem Windows Vista (oder neuer) ist standardmässig das Screenshot-Programm \"Snipping-Tool\" installiert.",{"$error":"#REF!"},0,0,0,0,0,0,0]
["->","klicken Sie auf folgenden Button, damit sich das Programm automatisch öffnet: ",{"$error":"#REF!"},0,0,0,0,0,0]
["->","oder starten Sie das SnippingTool manuell, indem Sie in der Schaltfläche \"Start\" (Taskleiste) im Suchfeld den Begriff \"SnippingTool\" eingeben.",{"$error":"#REF!"},0,0,0,0,0,0,0]
["->","schneiden Sie das Energieflussdiagramm mit dem Screenshot-Programm aus. Es befindet sich nun automatisch in der Zwischenablage.",{"$error":"#REF!"},0,0,0,0,0,0,0]
["4.","Fügen Sie das Energieflussdiagramm innerhalb des weissen Rahmens ein.",{"$error":"#REF!"},0,0,0,0,0,0,0]
["->","drücken Sie mit der rechten Maustaste auf die weisse Fläche und wählen Sie \"Einfügen\".",{"$error":"#REF!"},0,0,0,0,0,0,0]
["->","passen Sie das Energieflussdiagramm falls nötig der Grösse der weissen Fläche an.",{"$error":"#REF!"},0,0,0,0,0,0,0]

{"sheet":"Formular D","index":9,"n_rows":28,"n_cols":12,"rows_kept":28,"cut":false,"hidden":false,"merged":[[1,10,1,11],[7,1,7,2],[6,1,6,2],[8,1,8,2],[6,5,6,6],[7,5,7,6],[8,5,8,6],[6,3,6,4],[6,7,6,9],[7,7,7,9],[7,3,7,4],[8,3,8,4],[8,7,8,9],[16,10,16,11],[17,1,17,2],[17,5,17,6],[17,10,17,11],[17,3,17,4],[16,7,16,9],[17,7,17,9],[16,3,16,4],[16,1,16,2],[16,5,16,6],[26,1,26,2],[26,3,26,4],[26,5,26,6],[26,7,26,9],[15,7,15,9],[15,3,15,4],[15,1,15,2],[15,5,15,6],[24,1,24,2],[24,3,24,4],[24,5,24,6],[24,7,24,9],[25,1,25,2],[25,3,25,4],[25,5,25,6],[25,7,25,9]]}
["KZV SE, Formular D / Richtwert E und Richtwert W im Ausgangsjahr",null,null,null,null,null,null,null,null,null,null,{"$f":"Titelblatt!F6","v":0}]
[null,null,null,null,null,null,null,null,null,null,{"$f":"Titelblatt!F31","v":"00:00:00"}]
[]
[]
["D.1  Richtwert E"]
[]
[null,"Energieverbrauch korrigiert ¹⁾",null,"Bezugsgrösse",null,"Spez. Energieverbrauch\nRichtwert E",null,"Bemerkungen"]
[null,"[kWh/a]",null,"[BG/a]",null,"[kWh/BG]"]
[null,{"$f":" ('Formular C'!E31*('Formular C'!G18/100))*GFÖG + ('Formular C'!E32*('Formular C'!G19/100))*GFF + ('Formular C'!E33*('Formular C'!G20/100))*GFH+ ('Formular C'!E34*('Formular C'!G21/100))*GFW + ('Formular C'!E36*('Formular C'!G22/100))*GFE","v":0},null,{"$f":"'Formular B'!R25","v":0},null,{"$f":"B9/D9","v":{"$error":"#DIV/0!"}}]
["1)  Die Energieträger sind jeweils mit dem Energiegewichtungsfaktor korrigiert"]
[]
[]
[]
["D.2  Richtwert W"]
[]
[null,"Energieverbrauch korrigiert ²⁾",null,"Energiebezugsfläche",null,"Energiekennzahl\nRichtwert W",null,"Bemerkungen"]
[null,"[kWh/a]",null,"[m²]",null,"[MJ/m²*a]"]
[null,{"$f":"('Formular C'!E31*('Formular C'!E18/100)*(NormHGT/'Formular C'!$E$29)+'Formular C'!E31*('Formular C'!F18/100))*GFÖG +\n('Formular C'!E32*('Formular C'!E19/100)*(NormHGT/'Formular C'!$E$29)+'Formular C'!E32*('Formular C'!F19/100))*GFF +\n('Formular C'!E33*('Formular C'!E20/100)*(NormHGT/'Formular C'!$E$29)+'Formular C'!E33*('Formular C'!F20/100))*GFH+\n('Formular C'!E34*('Formular C'!E21/100)*(NormHGT/'Formular C'!$E$29)+'Formular C'!E34*('Formular C'!F21/100))*GFW +\n('Formular C'!E36*('Formular C'!E22/100)*(NormHGT/'Formular C'!$E$29)+'Formular C'!E36*('Formular C'!F22/100))*GFE","v":{"$error":"#DIV/0!"}},null,{"$f":"SUM('Formular B'!AB9:AB16)","v":0},null,{"$f":"B18/D18*3.6","v":{"$error":"#DIV/0!"}}]
["2)  Die Energieträger sind jeweils mit dem Energiegewichtungsfaktor korrigiert und der Anteil für Heizung ist HGT-normiert"]
[]
[]
[]
["D.3  Gewichtung der Richtwerte ³⁾"]
[]
[null,"Energieverbrauch korrigiert total",null,"Gewichtung Richtwert E",null,"Gewichtung Richtwert W",null,"Bemerkungen"]
[null,"[kWh/a]",null,"[-]",null,"[-]"]
[null,{"$f":"B9+B18","v":{"$error":"#DIV/0!"}},null,{"$f":"B9/B27","v":{"$error":"#DIV/0!"}},null,{"$f":"B18/B27","v":{"$error":"#DIV/0!"}}]
["3)  Richtwerte werden proportional zu den Verbräuchen gewichtet"]

{"sheet":"Massnahmenplanung","index":10,"n_rows":231,"n_cols":36,"rows_kept":231,"cut":false,"hidden":false,"merged":[[229,1,229,27],[231,1,231,27],[218,2,218,3],[219,2,219,3],[220,2,220,3],[221,2,221,3],[222,2,222,3],[223,2,223,3],[212,2,212,3],[213,2,213,3],[214,2,214,3],[215,2,215,3],[216,2,216,3],[217,2,217,3],[206,2,206,3],[207,2,207,3],[208,2,208,3],[209,2,209,3],[210,2,210,3],[211,2,211,3],[200,2,200,3],[201,2,201,3],[202,2,202,3],[203,2,203,3],[204,2,204,3],[205,2,205,3],[194,2,194,3],[195,2,195,3],[196,2,196,3],[197,2,197,3],[198,2,198,3],[199,2,199,3],[188,2,188,3],[189,2,189,3],[190,2,190,3],[191,2,191,3],[192,2,192,3],[193,2,193,3],[182,2,182,3],[183,2,183,3],[184,2,184,3],[185,2,185,3],[186,2,186,3],[187,2,187,3],[176,2,176,3],[177,2,177,3],[178,2,178,3],[179,2,179,3],[180,2,180,3],[181,2,181,3],[170,2,170,3],[171,2,171,3],[172,2,172,3],[173,2,173,3],[174,2,174,3],[175,2,175,3],[164,2,164,3],[165,2,165,3],[166,2,166,3],[167,2,167,3],[168,2,168,3],[169,2,169,3],[158,2,158,3],[159,2,159,3],[160,2,160,3],[161,2,161,3],[162,2,162,3],[163,2,163,3],[152,2,152,3],[153,2,153,3],[154,2,154,3],[155,2,155,3],[156,2,156,3],[157,2,157,3],[146,2,146,3],[147,2,147,3],[148,2,148,3],[149,2,149,3],[150,2,150,3],[151,2,151,3],[140,2,140,3],[141,2,141,3],[142,2,142,3],[143,2,143,3],[144,2,144,3],[145,2,145,3],[134,2,134,3],[135,2,135,3],[136,2,136,3],[137,2,137,3],[138,2,138,3],[139,2,139,3],[128,2,128,3],[129,2,129,3],[130,2,130,3],[131,2,131,3],[132,2,132,3],[133,2,133,3],[121,2,121,3],[123,2,123,3],[124,2,124,3],[125,2,125,3],[126,2,126,3],[127,2,127,3],[115,2,115,3],[116,2,116,3],[117,2,117,3],[118,2,118,3],[119,2,119,3],[120,2,120,3],[109,2,109,3],[110,2,110,3],[111,2,111,3],[112,2,112,3],[113,2,113,3],[114,2,114,3],[103,2,103,3],[104,2,104,3],[105,2,105,3],[106,2,106,3],[107,2,107,3],[108,2,108,3],[97,2,97,3],[98,2,98,3],[99,2,99,3],[100,2,100,3],[101,2,101,3],[102,2,102,3],[91,2,91,3],[92,2,92,3],[93,2,93,3],[94,2,94,3],[95,2,95,3],[96,2,96,3],[85,2,85,3],[86,2,86,3],[87,2,87,3],[88,2,88,3],[89,2,89,3],[90,2,90,3],[79,2,79,3],[80,2,80,3],[81,2,81,3],[82,2,82,3],[83,2,83,3],[84,2,84,3],[73,2,73,3],[74,2,74,3],[75,2,75,3],[76,2,76,3],[77,2,77,3],[78,2,78,3],[67,2,67,3],[68,2,68,3],[69,2,69,3],[70,2,70,3],[71,2,71,3],[72,2,72,3],[61,2,61,3],[62,2,62,3],[63,2,63,3],[64,2,64,3],[65,2,65,3],[66,2,66,3],[55,2,55,3],[56,2,56,3],[57,2,57,3],[58,2,58,3],[59,2,59,3],[60,2,60,3],[49,2,49,3],[50,2,50,3],[51,2,51,3],[52,2,52,3],[53,2,53,3],[54,2,54,3],[43,2,43,3],[44,2,44,3],[45,2,45,3],[46,2,46,3],[47,2,47,3],[48,2,48,3],[38,2,38,3],[39,2,39,3],[40,2,40,3],[41,2,41,3],[42,2,42,3],[31,2,31,3],[32,2,32,3],[33,2,33,3],[34,2,34,3],[35,2,35,3],[36,2,36,3],[29,2,29,3],[30,2,30,3],[17,12,18,12],[20,1,20,3],[21,2,21,3],[22,2,22,3],[23,2,23,3],[24,2,24,3],[37,2,37,3],[25,2,25,3],[26,2,26,3],[27,2,27,3],[28,2,28,3],[1,26,1,27],[7,1,7,27],[8,1,8,27],[10,1,10,27],[11,1,11,27],[15,4,15,15],[15,20,16,20],[15,21,15,22],[15,23,16,23],[15,24,16,25],[15,26,16,26],[15,27,16,27],[16,2,16,3],[16,4,16,13],[16,14,16,15],[16,21,16,22],[15,16,16,17],[17,16,17,17],[9,1,9,27],[17,18,18,18],[17,19,18,19],[17,1,19,3],[17,4,17,5],[17,6,17,7],[17,8,18,8],[17,9,18,9],[17,10,18,10],[17,11,18,11]]}
[null,"Fakultativ: KZV SE / Neue Massnahmen und Wirtschaftlichkeit",null,null,null,null,null,null,null,null,null,null,null,null,null,null,null,null,null,null,null,null,null,null,null,null,null,{"$f":"IF(Titelblatt!$F$6=\"\",\"\",Titelblatt!$F$6)","v":""}]
[null,null,null,null,null,null,null,null,null,null,null,null,null,null,null,null,null,null,null,null,null,null,null,null,null,null,{"$f":"IF(Titelblatt!$F$31=\"\",\"\",Titelblatt!$F$31)","v":""}]
[]
[]
[]
[null,null,null,null,null,null,null,null,null,null,null,null,null,null,null,null,null,null,null,null,null,null,null,null,null,null,null,null,null,null,null,"Pfad auf Beschreibungsblatt"]
[]
[null,{"$f":"\"Gemäss Kanton Zürich gelten Massnahmen mit einem statischen Payback von unter \" & Payback_Infrastr & \" Jahren (Haustechnik oder Gebäudehülle) beziehungsweise unter \" & Payback_Prozess & \" Jahren (Produktion oder Dienstleistungen) als wirtschaftlich.\"","v":"Gemäss Kanton Zürich gelten Massnahmen mit einem statischen Payback von unter 8 Jahren (Haustechnik oder Gebäudehülle) beziehungsweise unter 4 Jahren (Produktion oder Dienstleistungen) als wirtschaftlich."},null,null,null,null,null,null,null,null,null,null,null,null,null,null,null,null,null,null,null,null,null,null,null,null,null,null,null,null,null,{"$f":"MID(CELL(\"filename\",A1),FIND(\"[\",CELL(\"filename\",A1)),FIND(\"]\",CELL(\"filename\",A1))-FIND(\"[\",CELL(\"filename\",A1))+1)&\"'\"&blattname_beschreibung_massnahmen&\"'!D\"","v":"[tb-kzv_zh_se_v3.1.xlsm]'Beschreibung Massnahmen'!D"}]
[null,"1) Falls die Umsetzung einer Massnahme Auswirkungen auf die Bezugsgrössen hat, hier die Veränderung der Energiebezugsfläche oder Bezugsgrösse angeben (+/-). Je Zeile kann nur eine Bezugsgrösse angepasst werden."]
[null,"2) als geplantes Jahr für die Umsetzung sind alle Jahre nach dem Ausgangsjahr bis zum Zieljahr zulässig.",null,null,null,null,null,null,null,null,null,null,null,null,null,null,null,null,null,null,null,null,null,null,null,null,null,null,null,null,null,"Blattname:"]
[null,"3) Nur der Kostenanteil Energie (KE) der Investition wird für die Berechnung des Paybacks berücksichtigt.",null,null,null,null,null,null,null,null,null,null,null,null,null,null,null,null,null,null,null,null,null,null,null,null,null,null,null,null,null,{"$f":"MID(CELL(\"Dateiname\",A95),FIND(\"]\",CELL(\"Dateiname\",A95),1)+1,100)","v":"Massnahmenplanung"}]
[null,"4)  Wirtschaftliche Massnahmen werden automatisch in die ZV einbezogen und mit \"X\" markiert. Die Felder können aber überschrieben werden, sodass auch unwirtschaftliche Massnahmen einbezogen werden können oder wirtschaftliche Massnahmen nicht einbezogen werden können (für letzteres ist eine Begründung notwendig)."]
[]
[null,"C.1 Liste von Massnahmen ab dem Ausgangsjahr, welche zur Zielbildung dienen (es müssen nicht genau diese Massnahmen realisiert werden)"]
[]
[null,"Nr.","Kurzbeschreibung",null,"Energieeinsparung (Endenergie)",0,0,0,0,0,0,0,0,0,0,0,"Bezugs-grössen",null,null,null,"geplante Umsetzung","Energiepreis",0,"Kosten-Einspar.","Investitionen",0,"Pay-back","In ZV",null,null,null,null,null,null,null,"Wirtschaftlicher Payback von Haustechnik / Gebäudehülle:"]
[null,null,null,null,"Ungewichtet",0,0,0,0,0,0,0,0,0,"Gewichtet",0,null,null,null,null,0,"(Endenergie)",0,null,0,0,0,0,null,null,null,null,null,null,null,8]
[null,"Bedienung: Durch Eingabe eines Textes in der untersten Zeile pro Kategorie, wird jeweils eine neue Zeile eingefügt.",0,0,"Einsparung 1",0,"Einsparung 2",0,"Fossile\nBrennst.","Fern-\nwärme","Holz, Bio-\nmasse","Weitere\nBrennst.","Elektr.\nEnergie","Total","Total E","Total W","Veränderung 1)",0,"Bezugs-grösse","Energie-bezugsfl.","Jahr 2)","Einspar.1","Einspar.2",{"$f":"N18","v":"Total"},{"$f":"N18","v":"Total"},"KE 3)",null,"aufn.⁴⁾",null,null,null,null,null,null,null,"Wirtschaftlicher Payback von Produktionsanlagen / Dienstleistungen:"]
[null,{"$error":"#REF!"},0,0,"Art","[kWh/a]","Art","[kWh/a]",null,null,null,null,null,"[kWh/a]","[kWh/a]","[kWh/a]","Art","[-]",null,null,"[a]","[Fr./kWh]","[Fr./kWh]","[Fr./a]","[Fr.]","[-]","[a]","[-]",null,null,null,null,null,null,null,4]
[null,{"$error":"#REF!"},0,0,null,"c",null,"d",null,null,null,null,null,"c+d",null,null,null,null,null,null,null,"f","g","h=c*f+d*g","i","k","i*k/h"]
[null,"Haustechnikanlagen / Gebäudehülle",0,0,null,null,null,null,null,null,null,null,null,null,null,null,null,null,null,null,null,null,null,null,null,null,null,null,null,null,"Zeile Beschreibung","Eingabemeldung",null,"Jahr?","in ZV?","Wirtschaftlich?"]
[null,null,null,null,null,null,null,null,{"$f":"IF(OR(E22=INDEX(liste_energieträger,1),E22=INDEX(liste_energieträger,2)),F22,0)+IF(OR(G22=INDEX(liste_energieträger,1),G22=INDEX(liste_energieträger,2)),H22,0)","v":0},{"$f":"IF(E22=INDEX(liste_energieträger,3),F22,0)+IF(G22=INDEX(liste_energieträger,3),H22,0)","v":0},{"$f":"IF(E22=INDEX(liste_energieträger,4),F22,0)+IF(G22=INDEX(liste_energieträger,4),H22,0)","v":0},{"$f":"IF(E22=INDEX(liste_energieträger,5),F22,0)+IF(G22=INDEX(liste_energieträger,5),H22,0)","v":0},{"$f":"IF(E22=INDEX(liste_energieträger,6),F22,0)+IF(G22=INDEX(liste_energieträger,6),H22,0)","v":0},{"$f":"F22+H22","v":0},{"$f":"GFÖG*I22*'Formular C'!$G$18/100 +\nGFF*J22*'Formular C'!$G$19/100 +\nGFH*K22*'Formular C'!$G$20/100 +\nGFW*L22*'Formular C'!$G$21/100 +\nGFE*M22*'Formular C'!$G$22/100","v":0},{"$f":"GFÖG*I22*('Formular C'!$E$18+'Formular C'!$F$18)/100 +\nGFF*J22*('Formular C'!$E$19+'Formular C'!$F$19)/100 +\nGFH*K22*('Formular C'!$E$20+'Formular C'!$F$20)/100 +\nGFW*L22*('Formular C'!$E$21+'Formular C'!$F$21)/100 +\nGFE*M22*('Formular C'!$E$22+'Formular C'!$F$22)/100","v":0},null,null,{"$f":"IF(Q22=INDEX(liste_bezugsgrössen,1),R22,0)","v":0},{"$f":"IF(Q22=INDEX(liste_bezugsgrössen,2),R22,0)","v":0},null,null,null,{"$f":"(F22*V22)+(H22*W22)","v":0},null,null,{"$f":"IF(X22=0, \"\",Y22*Z22/X22)","v":""},null,{"$f":"IF(B22<>\"\",HYPERLINK($AF$8&AE22,\"Beschreibung \"&B22),\"\")","v":""},null,{"$f":"ROW(beschreibung_massnahmen_erste_zeile)","v":14},"nur eine Sprache",null,{"$f":"ISNUMBER(U22)","v":false},{"$f":"IF(AB22=\"X\",1,0)","v":0},{"$f":"IF(AA22<Payback_Infrastr,1,0)","v":0}]
[null,null,null,null,null,null,null,null,0,0,0,0,0,{"$f":"F23+H23","v":0},{"$f":"GFÖG*I23*'Formular C'!$G$18/100 + GFF*J23*'Formular C'!$G$19/100 + GFH*K23*'Formular C'!$G$20/100 + GFW*L23*'Formular C'!$G$21/100 + GFE*M23*'Formular C'!$G$22/100","v":0},{"$f":"GFÖG*I23*('Formular C'!$E$18+'Formular C'!$F$18)/100 +\nGFF*J23*('Formular C'!$E$19+'Formular C'!$F$19)/100 +\nGFH*K23*('Formular C'!$E$20+'Formular C'!$F$20)/100 +\nGFW*L23*('Formular C'!$E$21+'Formular C'!$F$21)/100 +\nGFE*M23*('Formular C'!$E$22+'Formular C'!$F$22)/100","v":0},null,null,0,0,null,null,null,0,null,null,{"$f":"IF(X23=0, \"\",Y23*Z23/X23)","v":""},null,{"$f":"IF(B23<>\"\",HYPERLINK($AF$8&AE23,\"Beschreibung \"&B23),\"\")","v":""},null,{"$f":"AE22+1","v":15},null,null,{"$f":"ISNUMBER(U23)","v":false},{"$f":"IF(AB23=\"X\",1,0)","v":0},0]
[null,null,null,null,null,null,null,null,0,0,0,0,0,0,{"$f":"GFÖG*I24*'Formular C'!$G$18/100 + GFF*J24*'Formular C'!$G$19/100 + GFH*K24*'Formular C'!$G$20/100 + GFW*L24*'Formular C'!$G$21/100 + GFE*M24*'Formular C'!$G$22/100","v":0},{"$f":"GFÖG*I24*('Formular C'!$E$18+'Formular C'!$F$18)/100 +\nGFF*J24*('Formular C'!$E$19+'Formular C'!$F$19)/100 +\nGFH*K24*('Formular C'!$E$20+'Formular C'!$F$20)/100 +\nGFW*L24*('Formular C'!$E$21+'Formular C'!$F$21)/100 +\nGFE*M24*('Formular C'!$E$22+'Formular C'!$F$22)/100","v":0},null,null,0,0,null,null,null,0,null,null,"",null,"",null,{"$f":"AE23+1","v":16},null,null,false,0,0]
[null,null,null,null,null,null,null,null,0,0,0,0,0,0,{"$f":"GFÖG*I25*'Formular C'!$G$18/100 + GFF*J25*'Formular C'!$G$19/100 + GFH*K25*'Formular C'!$G$20/100 + GFW*L25*'Formular C'!$G$21/100 + GFE*M25*'Formular C'!$G$22/100","v":0},{"$f":"GFÖG*I25*('Formular C'!$E$18+'Formular C'!$F$18)/100 +\nGFF*J25*('Formular C'!$E$19+'Formular C'!$F$19)/100 +\nGFH*K25*('Formular C'!$E$20+'Formular C'!$F$20)/100 +\nGFW*L25*('Formular C'!$E$21+'Formular C'!$F$21)/100 +\nGFE*M25*('Formular C'!$E$22+'Formular C'!$F$22)/100","v":0},null,null,0,0,null,null,null,0,null,null,{"$f":"IF(X25=0, \"\",Y25*Z25/X25)","v":""},null,"",null,17,null,null,false,0,0]
[null,null,null,null,null,null,null,null,0,0,0,0,0,0,{"$f":"GFÖG*I26*'Formular C'!$G$18/100 + GFF*J26*'Formular C'!$G$19/100 + GFH*K26*'Formular C'!$G$20/100 + GFW*L26*'Formular C'!$G$21/100 + GFE*M26*'Formular C'!$G$22/100","v":0},{"$f":"GFÖG*I26*('Formular C'!$E$18+'Formular C'!$F$18)/100 +\nGFF*J26*('Formular C'!$E$19+'Formular C'!$F$19)/100 +\nGFH*K26*('Formular C'!$E$20+'Formular C'!$F$20)/100 +\nGFW*L26*('Formular C'!$E$21+'Formular C'!$F$21)/100 +\nGFE*M26*('Formular C'!$E$22+'Formular C'!$F$22)/100","v":0},null,null,0,0,null,null,null,0,null,null,"",null,"",null,{"$f":"AE25+1","v":18},null,null,false,0,0]
[null,null,null,null,null,null,null,null,0,0,0,0,0,0,{"$f":"GFÖG*I27*'Formular C'!$G$18/100 + GFF*J27*'Formular C'!$G$19/100 + GFH*K27*'Formular C'!$G$20/100 + GFW*L27*'Formular C'!$G$21/100 + GFE*M27*'Formular C'!$G$22/100","v":0},{"$f":"GFÖG*I27*('Formular C'!$E$18+'Formular C'!$F$18)/100 +\nGFF*J27*('Formular C'!$E$19+'Formular C'!$F$19)/100 +\nGFH*K27*('Formular C'!$E$20+'Formular C'!$F$20)/100 +\nGFW*L27*('Formular C'!$E$21+'Formular C'!$F$21)/100 +\nGFE*M27*('Formular C'!$E$22+'Formular C'!$F$22)/100","v":0},null,null,0,0,null,null,null,0,null,null,"",{"$f":"IF(AJ27,\"X\",\"\")","v":""},"",null,19,null,null,false,0,0]
[null,null,null,null,null,null,null,null,0,0,0,0,0,0,{"$f":"GFÖG*I28*'Formular C'!$G$18/100 + GFF*J28*'Formular C'!$G$19/100 + GFH*K28*'Formular C'!$G$20/100 + GFW*L28*'Formular C'!$G$21/100 + GFE*M28*'Formular C'!$G$22/100","v":0},{"$f":"GFÖG*I28*('Formular C'!$E$18+'Formular C'!$F$18)/100 +\nGFF*J28*('Formular C'!$E$19+'Formular C'!$F$19)/100 +\nGFH*K28*('Formular C'!$E$20+'Formular C'!$F$20)/100 +\nGFW*L28*('Formular C'!$E$21+'Formular C'!$F$21)/100 +\nGFE*M28*('Formular C'!$E$22+'Formular C'!$F$22)/100","v":0},null,null,0,0,null,null,null,0,null,null,"","","",null,20,null,null,false,0,0]
[null,null,null,null,null,null,null,null,0,0,0,0,0,0,{"$f":"GFÖG*I29*'Formular C'!$G$18/100 + GFF*J29*'Formular C'!$G$19/100 + GFH*K29*'Formular C'!$G$20/100 + GFW*L29*'Formular C'!$G$21/100 + GFE*M29*'Formular C'!$G$22/100","v":0},{"$f":"GFÖG*I29*('Formular C'!$E$18+'Formular C'!$F$18)/100 +\nGFF*J29*('Formular C'!$E$19+'Formular C'!$F$19)/100 +\nGFH*K29*('Formular C'!$E$20+'Formular C'!$F$20)/100 +\nGFW*L29*('Formular C'!$E$21+'Formular C'!$F$21)/100 +\nGFE*M29*('Formular C'!$E$22+'Formular C'!$F$22)/100","v":0},null,null,0,0,null,null,null,0,null,null,"","","",null,21,null,null,false,0,0]
[null,null,null,null,null,null,null,null,0,0,0,0,0,0,{"$f":"GFÖG*I30*'Formular C'!$G$18/100 + GFF*J30*'Formular C'!$G$19/100 + GFH*K30*'Formular C'!$G$20/100 + GFW*L30*'Formular C'!$G$21/100 + GFE*M30*'Formular C'!$G$22/100","v":0},{"$f":"GFÖG*I30*('Formular C'!$E$18+'Formular C'!$F$18)/100 +\nGFF*J30*('Formular C'!$E$19+'Formular C'!$F$19)/100 +\nGFH*K30*('Formular C'!$E$20+'Formular C'!$F$20)/100 +\nGFW*L30*('Formular C'!$E$21+'Formular C'!$F$21)/100 +\nGFE*M30*('Formular C'!$E$22+'Formular C'!$F$22)/100","v":0},null,null,0,0,null,null,null,0,null,null,"","","",null,22,null,null,false,0,0]
[null,null,null,null,null,null,null,null,0,0,0,0,0,0,{"$f":"GFÖG*I31*'Formular C'!$G$18/100 + GFF*J31*'Formular C'!$G$19/100 + GFH*K31*'Formular C'!$G$20/100 + GFW*L31*'Formular C'!$G$21/100 + GFE*M31*'Formular C'!$G$22/100","v":0},{"$f":"GFÖG*I31*('Formular C'!$E$18+'Formular C'!$F$18)/100 +\nGFF*J31*('Formular C'!$E$19+'Formular C'!$F$19)/100 +\nGFH*K31*('Formular C'!$E$20+'Formular C'!$F$20)/100 +\nGFW*L31*('Formular C'!$E$21+'Formular C'!$F$21)/100 +\nGFE*M31*('Formular C'!$E$22+'Formular C'!$F$22)/100","v":0},null,null,0,0,null,null,null,0,null,null,"","","",null,23,null,null,false,0,0]
[null,null,null,null,null,null,null,null,0,0,0,0,0,0,{"$f":"GFÖG*I32*'Formular C'!$G$18/100 + GFF*J32*'Formular C'!$G$19/100 + GFH*K32*'Formular C'!$G$20/100 + GFW*L32*'Formular C'!$G$21/100 + GFE*M32*'Formular C'!$G$22/100","v":0},{"$f":"GFÖG*I32*('Formular C'!$E$18+'Formular C'!$F$18)/100 +\nGFF*J32*('Formular C'!$E$19+'Formular C'!$F$19)/100 +\nGFH*K32*('Formular C'!$E$20+'Formular C'!$F$20)/100 +\nGFW*L32*('Formular C'!$E$21+'Formular C'!$F$21)/100 +\nGFE*M32*('Formular C'!$E$22+'Formular C'!$F$22)/100","v":0},null,null,0,0,null,null,null,0,null,null,"","","",null,24,null,null,false,0,0]
[null,null,null,null,null,null,null,null,0,0,0,0,0,0,{"$f":"GFÖG*I33*'Formular C'!$G$18/100 + GFF*J33*'Formular C'!$G$19/100 + GFH*K33*'Formular C'!$G$20/100 + GFW*L33*'Formular C'!$G$21/100 + GFE*M33*'Formular C'!$G$22/100","v":0},{"$f":"GFÖG*I33*('Formular C'!$E$18+'Formular C'!$F$18)/100 +\nGFF*J33*('Formular C'!$E$19+'Formular C'!$F$19)/100 +\nGFH*K33*('Formular C'!$E$20+'Formular C'!$F$20)/100 +\nGFW*L33*('Formular C'!$E$21+'Formular C'!$F$21)/100 +\nGFE*M33*('Formular C'!$E$22+'Formular C'!$F$22)/100","v":0},null,null,0,0,null,null,null,0,null,null,"","","",null,25,null,null,false,0,0]
[null,null,null,null,null,null,null,null,0,0,0,0,0,0,{"$f":"GFÖG*I34*'Formular C'!$G$18/100 + GFF*J34*'Formular C'!$G$19/100 + GFH*K34*'Formular C'!$G$20/100 + GFW*L34*'Formular C'!$G$21/100 + GFE*M34*'Formular C'!$G$22/100","v":0},{"$f":"GFÖG*I34*('Formular C'!$E$18+'Formular C'!$F$18)/100 +\nGFF*J34*('Formular C'!$E$19+'Formular C'!$F$19)/100 +\nGFH*K34*('Formular C'!$E$20+'Formular C'!$F$20)/100 +\nGFW*L34*('Formular C'!$E$21+'Formular C'!$F$21)/100 +\nGFE*M34*('Formular C'!$E$22+'Formular C'!$F$22)/100","v":0},null,null,0,0,null,null,null,0,null,null,"","","",null,26,null,null,false,0,0]
[null,null,null,null,null,null,null,null,0,0,0,0,0,0,{"$f":"GFÖG*I35*'Formular C'!$G$18/100 + GFF*J35*'Formular C'!$G$19/100 + GFH*K35*'Formular C'!$G$20/100 + GFW*L35*'Formular C'!$G$21/100 + GFE*M35*'Formular C'!$G$22/100","v":0},{"$f":"GFÖG*I35*('Formular C'!$E$18+'Formular C'!$F$18)/100 +\nGFF*J35*('Formular C'!$E$19+'Formular C'!$F$19)/100 +\nGFH*K35*('Formular C'!$E$20+'Formular C'!$F$20)/100 +\nGFW*L35*('Formular C'!$E$21+'Formular C'!$F$21)/100 +\nGFE*M35*('Formular C'!$E$22+'Formular C'!$F$22)/100","v":0},null,null,0,0,null,null,null,0,null,null,"","","",null,27,null,null,false,0,0]
[null,null,null,null,null,null,null,null,0,0,0,0,0,0,{"$f":"GFÖG*I36*'Formular C'!$G$18/100 + GFF*J36*'Formular C'!$G$19/100 + GFH*K36*'Formular C'!$G$20/100 + GFW*L36*'Formular C'!$G$21/100 + GFE*M36*'Formular C'!$G$22/100","v":0},{"$f":"GFÖG*I36*('Formular C'!$E$18+'Formular C'!$F$18)/100 +\nGFF*J36*('Formular C'!$E$19+'Formular C'!$F$19)/100 +\nGFH*K36*('Formular C'!$E$20+'Formular C'!$F$20)/100 +\nGFW*L36*('Formular C'!$E$21+'Formular C'!$F$21)/100 +\nGFE*M36*('Formular C'!$E$22+'Formular C'!$F$22)/100","v":0},null,null,0,0,null,null,null,0,null,null,"","","",null,28,null,null,false,0,0]
[null,null,null,null,null,null,null,null,0,0,0,0,0,0,{"$f":"GFÖG*I37*'Formular C'!$G$18/100 + GFF*J37*'Formular C'!$G$19/100 + GFH*K37*'Formular C'!$G$20/100 + GFW*L37*'Formular C'!$G$21/100 + GFE*M37*'Formular C'!$G$22/100","v":0},{"$f":"GFÖG*I37*('Formular C'!$E$18+'Formular C'!$F$18)/100 +\nGFF*J37*('Formular C'!$E$19+'Formular C'!$F$19)/100 +\nGFH*K37*('Formular C'!$E$20+'Formular C'!$F$20)/100 +\nGFW*L37*('Formular C'!$E$21+'Formular C'!$F$21)/100 +\nGFE*M37*('Formular C'!$E$22+'Formular C'!$F$22)/100","v":0},null,null,0,0,null,null,null,0,null,null,"","","",null,29,null,null,false,0,0]
[null,null,null,null,null,null,null,null,0,0,0,0,0,0,{"$f":"GFÖG*I38*'Formular C'!$G$18/100 + GFF*J38*'Formular C'!$G$19/100 + GFH*K38*'Formular C'!$G$20/100 + GFW*L38*'Formular C'!$G$21/100 + GFE*M38*'Formular C'!$G$22/100","v":0},{"$f":"GFÖG*I38*('Formular C'!$E$18+'Formular C'!$F$18)/100 +\nGFF*J38*('Formular C'!$E$19+'Formular C'!$F$19)/100 +\nGFH*K38*('Formular C'!$E$20+'Formular C'!$F$20)/100 +\nGFW*L38*('Formular C'!$E$21+'Formular C'!$F$21)/100 +\nGFE*M38*('Formular C'!$E$22+'Formular C'!$F$22)/100","v":0},null,null,0,0,null,null,null,0,null,null,"","","",null,30,null,null,false,0,0]
[null,null,null,null,null,null,null,null,0,0,0,0,0,0,{"$f":"GFÖG*I39*'Formular C'!$G$18/100 + GFF*J39*'Formular C'!$G$19/100 + GFH*K39*'Formular C'!$G$20/100 + GFW*L39*'Formular C'!$G$21/100 + GFE*M39*'Formular C'!$G$22/100","v":0},{"$f":"GFÖG*I39*('Formular C'!$E$18+'Formular C'!$F$18)/100 +\nGFF*J39*('Formular C'!$E$19+'Formular C'!$F$19)/100 +\nGFH*K39*('Formular C'!$E$20+'Formular C'!$F$20)/100 +\nGFW*L39*('Formular C'!$E$21+'Formular C'!$F$21)/100 +\nGFE*M39*('Formular C'!$E$22+'Formular C'!$F$22)/100","v":0},null,null,0,0,null,null,null,0,null,null,"","","",null,31,null,null,false,0,0]
[null,null,null,null,null,null,null,null,0,0,0,0,0,0,{"$f":"GFÖG*I40*'Formular C'!$G$18/100 + GFF*J40*'Formular C'!$G$19/100 + GFH*K40*'Formular C'!$G$20/100 + GFW*L40*'Formular C'!$G$21/100 + GFE*M40*'Formular C'!$G$22/100","v":0},{"$f":"GFÖG*I40*('Formular C'!$E$18+'Formular C'!$F$18)/100 +\nGFF*J40*('Formular C'!$E$19+'Formular C'!$F$19)/100 +\nGFH*K40*('Formular C'!$E$20+'Formular C'!$F$20)/100 +\nGFW*L40*('Formular C'!$E$21+'Formular C'!$F$21)/100 +\nGFE*M40*('Formular C'!$E$22+'Formular C'!$F$22)/100","v":0},null,null,0,0,null,null,null,0,null,null,"","","",null,32,null,null,false,0,0]
[null,null,null,null,null,null,null,null,0,0,0,0,0,0,{"$f":"GFÖG*I41*'Formular C'!$G$18/100 + GFF*J41*'Formular C'!$G$19/100 + GFH*K41*'Formular C'!$G$20/100 + GFW*L41*'Formular C'!$G$21/100 + GFE*M41*'Formular C'!$G$22/100","v":0},{"$f":"GFÖG*I41*('Formular C'!$E$18+'Formular C'!$F$18)/100 +\nGFF*J41*('Formular C'!$E$19+'Formular C'!$F$19)/100 +\nGFH*K41*('Formular C'!$E$20+'Formular C'!$F$20)/100 +\nGFW*L41*('Formular C'!$E$21+'Formular C'!$F$21)/100 +\nGFE*M41*('Formular C'!$E$22+'Formular C'!$F$22)/100","v":0},null,null,0,0,null,null,null,0,null,null,"","","",null,33,null,null,false,0,0]
[null,null,null,null,null,null,null,null,0,0,0,0,0,0,{"$f":"GFÖG*I42*'Formular C'!$G$18/100 + GFF*J42*'Formular C'!$G$19/100 + GFH*K42*'Formular C'!$G$20/100 + GFW*L42*'Formular C'!$G$21/100 + GFE*M42*'Formular C'!$G$22/100","v":0},{"$f":"GFÖG*I42*('Formular C'!$E$18+'Formular C'!$F$18)/100 +\nGFF*J42*('Formular C'!$E$19+'Formular C'!$F$19)/100 +\nGFH*K42*('Formular C'!$E$20+'Formular C'!$F$20)/100 +\nGFW*L42*('Formular C'!$E$21+'Formular C'!$F$21)/100 +\nGFE*M42*('Formular C'!$E$22+'Formular C'!$F$22)/100","v":0},null,null,0,0,null,null,null,0,null,null,"","","",null,34,null,null,false,0,0]
[null,null,null,null,null,null,null,null,0,0,0,0,0,0,{"$f":"GFÖG*I43*'Formular C'!$G$18/100 + GFF*J43*'Formular C'!$G$19/100 + GFH*K43*'Formular C'!$G$20/100 + GFW*L43*'Formular C'!$G$21/100 + GFE*M43*'Formular C'!$G$22/100","v":0},{"$f":"GFÖG*I43*('Formular C'!$E$18+'Formular C'!$F$18)/100 +\nGFF*J43*('Formular C'!$E$19+'Formular C'!$F$19)/100 +\nGFH*K43*('Formular C'!$E$20+'Formular C'!$F$20)/100 +\nGFW*L43*('Formular C'!$E$21+'Formular C'!$F$21)/100 +\nGFE*M43*('Formular C'!$E$22+'Formular C'!$F$22)/100","v":0},null,null,0,0,null,null,null,0,null,null,"","","",null,35,null,null,false,0,0]
[null,null,null,null,null,null,null,null,0,0,0,0,0,0,{"$f":"GFÖG*I44*'Formular C'!$G$18/100 + GFF*J44*'Formular C'!$G$19/100 + GFH*K44*'Formular C'!$G$20/100 + GFW*L44*'Formular C'!$G$21/100 + GFE*M44*'Formular C'!$G$22/100","v":0},{"$f":"GFÖG*I44*('Formular C'!$E$18+'Formular C'!$F$18)/100 +\nGFF*J44*('Formular C'!$E$19+'Formular C'!$F$19)/100 +\nGFH*K44*('Formular C'!$E$20+'Formular C'!$F$20)/100 +\nGFW*L44*('Formular C'!$E$21+'Formular C'!$F$21)/100 +\nGFE*M44*('Formular C'!$E$22+'Formular C'!$F$22)/100","v":0},null,null,0,0,null,null,null,0,null,null,"","","",null,36,null,null,false,0,0]
[null,null,null,null,null,null,null,null,0,0,0,0,0,0,{"$f":"GFÖG*I45*'Formular C'!$G$18/100 + GFF*J45*'Formular C'!$G$19/100 + GFH*K45*'Formular C'!$G$20/100 + GFW*L45*'Formular C'!$G$21/100 + GFE*M45*'Formular C'!$G$22/100","v":0},{"$f":"GFÖG*I45*('Formular C'!$E$18+'Formular C'!$F$18)/100 +\nGFF*J45*('Formular C'!$E$19+'Formular C'!$F$19)/100 +\nGFH*K45*('Formular C'!$E$20+'Formular C'!$F$20)/100 +\nGFW*L45*('Formular C'!$E$21+'Formular C'!$F$21)/100 +\nGFE*M45*('Formular C'!$E$22+'Formular C'!$F$22)/100","v":0},null,null,0,0,null,null,null,0,null,null,"","","",null,37,null,null,false,0,0]
[null,null,null,null,null,null,null,null,0,0,0,0,0,0,{"$f":"GFÖG*I46*'Formular C'!$G$18/100 + GFF*J46*'Formular C'!$G$19/100 + GFH*K46*'Formular C'!$G$20/100 + GFW*L46*'Formular C'!$G$21/100 + GFE*M46*'Formular C'!$G$22/100","v":0},{"$f":"GFÖG*I46*('Formular C'!$E$18+'Formular C'!$F$18)/100 +\nGFF*J46*('Formular C'!$E$19+'Formular C'!$F$19)/100 +\nGFH*K46*('Formular C'!$E$20+'Formular C'!$F$20)/100 +\nGFW*L46*('Formular C'!$E$21+'Formular C'!$F$21)/100 +\nGFE*M46*('Formular C'!$E$22+'Formular C'!$F$22)/100","v":0},null,null,0,0,null,null,null,0,null,null,"","","",null,38,null,null,false,0,0]
[null,null,null,null,null,null,null,null,0,0,0,0,0,0,{"$f":"GFÖG*I47*'Formular C'!$G$18/100 + GFF*J47*'Formular C'!$G$19/100 + GFH*K47*'Formular C'!$G$20/100 + GFW*L47*'Formular C'!$G$21/100 + GFE*M47*'Formular C'!$G$22/100","v":0},{"$f":"GFÖG*I47*('Formular C'!$E$18+'Formular C'!$F$18)/100 +\nGFF*J47*('Formular C'!$E$19+'Formular C'!$F$19)/100 +\nGFH*K47*('Formular C'!$E$20+'Formular C'!$F$20)/100 +\nGFW*L47*('Formular C'!$E$21+'Formular C'!$F$21)/100 +\nGFE*M47*('Formular C'!$E$22+'Formular C'!$F$22)/100","v":0},null,null,0,0,null,null,null,0,null,null,"","","",null,39,null,null,false,0,0]
[null,null,null,null,null,null,null,null,0,0,0,0,0,0,{"$f":"GFÖG*I48*'Formular C'!$G$18/100 + GFF*J48*'Formular C'!$G$19/100 + GFH*K48*'Formular C'!$G$20/100 + GFW*L48*'Formular C'!$G$21/100 + GFE*M48*'Formular C'!$G$22/100","v":0},{"$f":"GFÖG*I48*('Formular C'!$E$18+'Formular C'!$F$18)/100 +\nGFF*J48*('Formular C'!$E$19+'Formular C'!$F$19)/100 +\nGFH*K48*('Formular C'!$E$20+'Formular C'!$F$20)/100 +\nGFW*L48*('Formular C'!$E$21+'Formular C'!$F$21)/100 +\nGFE*M48*('Formular C'!$E$22+'Formular C'!$F$22)/100","v":0},null,null,0,0,null,null,null,0,null,null,"","","",null,40,null,null,false,0,0]
[null,null,null,null,null,null,null,null,0,0,0,0,0,0,{"$f":"GFÖG*I49*'Formular C'!$G$18/100 + GFF*J49*'Formular C'!$G$19/100 + GFH*K49*'Formular C'!$G$20/100 + GFW*L49*'Formular C'!$G$21/100 + GFE*M49*'Formular C'!$G$22/100","v":0},{"$f":"GFÖG*I49*('Formular C'!$E$18+'Formular C'!$F$18)/100 +\nGFF*J49*('Formular C'!$E$19+'Formular C'!$F$19)/100 +\nGFH*K49*('Formular C'!$E$20+'Formular C'!$F$20)/100 +\nGFW*L49*('Formular C'!$E$21+'Formular C'!$F$21)/100 +\nGFE*M49*('Formular C'!$E$22+'Formular C'!$F$22)/100","v":0},null,null,0,0,null,null,null,0,null,null,"","","",null,41,null,null,false,0,0]
[null,null,null,null,null,null,null,null,0,0,0,0,0,0,{"$f":"GFÖG*I50*'Formular C'!$G$18/100 + GFF*J50*'Formular C'!$G$19/100 + GFH*K50*'Formular C'!$G$20/100 + GFW*L50*'Formular C'!$G$21/100 + GFE*M50*'Formular C'!$G$22/100","v":0},{"$f":"GFÖG*I50*('Formular C'!$E$18+'Formular C'!$F$18)/100 +\nGFF*J50*('Formular C'!$E$19+'Formular C'!$F$19)/100 +\nGFH*K50*('Formular C'!$E$20+'Formular C'!$F$20)/100 +\nGFW*L50*('Formular C'!$E$21+'Formular C'!$F$21)/100 +\nGFE*M50*('Formular C'!$E$22+'Formular C'!$F$22)/100","v":0},null,null,0,0,null,null,null,0,null,null,"","","",null,42,null,null,false,0,0]
[null,null,null,null,null,null,null,null,0,0,0,0,0,0,{"$f":"GFÖG*I51*'Formular C'!$G$18/100 + GFF*J51*'Formular C'!$G$19/100 + GFH*K51*'Formular C'!$G$20/100 + GFW*L51*'Formular C'!$G$21/100 + GFE*M51*'Formular C'!$G$22/100","v":0},{"$f":"GFÖG*I51*('Formular C'!$E$18+'Formular C'!$F$18)/100 +\nGFF*J51*('Formular C'!$E$19+'Formular C'!$F$19)/100 +\nGFH*K51*('Formular C'!$E$20+'Formular C'!$F$20)/100 +\nGFW*L51*('Formular C'!$E$21+'Formular C'!$F$21)/100 +\nGFE*M51*('Formular C'!$E$22+'Formular C'!$F$22)/100","v":0},null,null,0,0,null,null,null,0,null,null,"","","",null,43,null,null,false,0,0]
[null,null,null,null,null,null,null,null,0,0,0,0,0,0,{"$f":"GFÖG*I52*'Formular C'!$G$18/100 + GFF*J52*'Formular C'!$G$19/100 + GFH*K52*'Formular C'!$G$20/100 + GFW*L52*'Formular C'!$G$21/100 + GFE*M52*'Formular C'!$G$22/100","v":0},{"$f":"GFÖG*I52*('Formular C'!$E$18+'Formular C'!$F$18)/100 +\nGFF*J52*('Formular C'!$E$19+'Formular C'!$F$19)/100 +\nGFH*K52*('Formular C'!$E$20+'Formular C'!$F$20)/100 +\nGFW*L52*('Formular C'!$E$21+'Formular C'!$F$21)/100 +\nGFE*M52*('Formular C'!$E$22+'Formular C'!$F$22)/100","v":0},null,null,0,0,null,null,null,0,null,null,"","","",null,44,null,null,false,0,0]
[null,null,null,null,null,null,null,null,0,0,0,0,0,0,{"$f":"GFÖG*I53*'Formular C'!$G$18/100 + GFF*J53*'Formular C'!$G$19/100 + GFH*K53*'Formular C'!$G$20/100 + GFW*L53*'Formular C'!$G$21/100 + GFE*M53*'Formular C'!$G$22/100","v":0},{"$f":"GFÖG*I53*('Formular C'!$E$18+'Formular C'!$F$18)/100 +\nGFF*J53*('Formular C'!$E$19+'Formular C'!$F$19)/100 +\nGFH*K53*('Formular C'!$E$20+'Formular C'!$F$20)/100 +\nGFW*L53*('Formular C'!$E$21+'Formular C'!$F$21)/100 +\nGFE*M53*('Formular C'!$E$22+'Formular C'!$F$22)/100","v":0},null,null,0,0,null,null,null,0,null,null,"","","",null,45,null,null,false,0,0]
[null,null,null,null,null,null,null,null,{"$f":"IF(OR(E54=INDEX(liste_energieträger,1),E54=INDEX(liste_energieträger,2)),F54,0)+IF(OR(G54=INDEX(liste_energieträger,1),G54=INDEX(liste_energieträger,2)),H54,0)","v":0},{"$f":"IF(E54=INDEX(liste_energieträger,3),F54,0)+IF(G54=INDEX(liste_energieträger,3),H54,0)","v":0},{"$f":"IF(E54=INDEX(liste_energieträger,4),F54,0)+IF(G54=INDEX(liste_energieträger,4),H54,0)","v":0},{"$f":"IF(E54=INDEX(liste_energieträger,5),F54,0)+IF(G54=INDEX(liste_energieträger,5),H54,0)","v":0},{"$f":"IF(E54=INDEX(liste_energieträger,6),F54,0)+IF(G54=INDEX(liste_energieträger,6),H54,0)","v":0},{"$f":"F54+H54","v":0},{"$f":"GFÖG*I54*'Formular C'!$G$18/100 + GFF*J54*'Formular C'!$G$19/100 + GFH*K54*'Formular C'!$G$20/100 + GFW*L54*'Formular C'!$G$21/100 + GFE*M54*'Formular C'!$G$22/100","v":0},{"$f":"GFÖG*I54*('Formular C'!$E$18+'Formular C'!$F$18)/100 +\nGFF*J54*('Formular C'!$E$19+'Formular C'!$F$19)/100 +\nGFH*K54*('Formular C'!$E$20+'Formular C'!$F$20)/100 +\nGFW*L54*('Formular C'!$E$21+'Formular C'!$F$21)/100 +\nGFE*M54*('Formular C'!$E$22+'Formular C'!$F$22)/100","v":0},null,null,{"$f":"IF(Q54=INDEX(liste_bezugsgrössen,1),R54,0)","v":0},{"$f":"IF(Q54=INDEX(liste_bezugsgrössen,2),R54,0)","v":0},null,null,null,{"$f":"(F54*V54)+(H54*W54)","v":0},null,null,"","","",null,46,null,null,false,0,{"$f":"IF(AA54<Payback_Infrastr,1,0)","v":0}]
[null,null,null,null,null,null,null,null,0,0,0,0,0,0,{"$f":"GFÖG*I55*'Formular C'!$G$18/100 + GFF*J55*'Formular C'!$G$19/100 + GFH*K55*'Formular C'!$G$20/100 + GFW*L55*'Formular C'!$G$21/100 + GFE*M55*'Formular C'!$G$22/100","v":0},{"$f":"GFÖG*I55*('Formular C'!$E$18+'Formular C'!$F$18)/100 +\nGFF*J55*('Formular C'!$E$19+'Formular C'!$F$19)/100 +\nGFH*K55*('Formular C'!$E$20+'Formular C'!$F$20)/100 +\nGFW*L55*('Formular C'!$E$21+'Formular C'!$F$21)/100 +\nGFE*M55*('Formular C'!$E$22+'Formular C'!$F$22)/100","v":0},null,null,0,0,null,null,null,0,null,null,"","","",null,47,null,null,false,0,0]
[null,null,null,null,null,null,null,null,0,0,0,0,0,0,{"$f":"GFÖG*I56*'Formular C'!$G$18/100 + GFF*J56*'Formular C'!$G$19/100 + GFH*K56*'Formular C'!$G$20/100 + GFW*L56*'Formular C'!$G$21/100 + GFE*M56*'Formular C'!$G$22/100","v":0},{"$f":"GFÖG*I56*('Formular C'!$E$18+'Formular C'!$F$18)/100 +\nGFF*J56*('Formular C'!$E$19+'Formular C'!$F$19)/100 +\nGFH*K56*('Formular C'!$E$20+'Formular C'!$F$20)/100 +\nGFW*L56*('Formular C'!$E$21+'Formular C'!$F$21)/100 +\nGFE*M56*('Formular C'!$E$22+'Formular C'!$F$22)/100","v":0},null,null,0,0,null,null,null,0,null,null,"","","",null,48,null,null,false,0,0]
[null,null,null,null,null,null,null,null,0,0,0,0,0,0,{"$f":"GFÖG*I57*'Formular C'!$G$18/100 + GFF*J57*'Formular C'!$G$19/100 + GFH*K57*'Formular C'!$G$20/100 + GFW*L57*'Formular C'!$G$21/100 + GFE*M57*'Formular C'!$G$22/100","v":0},{"$f":"GFÖG*I57*('Formular C'!$E$18+'Formular C'!$F$18)/100 +\nGFF*J57*('Formular C'!$E$19+'Formular C'!$F$19)/100 +\nGFH*K57*('Formular C'!$E$20+'Formular C'!$F$20)/100 +\nGFW*L57*('Formular C'!$E$21+'Formular C'!$F$21)/100 +\nGFE*M57*('Formular C'!$E$22+'Formular C'!$F$22)/100","v":0},null,null,0,0,null,null,null,0,null,null,"","","",null,49,null,null,false,0,0]
[null,null,null,null,null,null,null,null,0,0,0,0,0,0,{"$f":"GFÖG*I58*'Formular C'!$G$18/100 + GFF*J58*'Formular C'!$G$19/100 + GFH*K58*'Formular C'!$G$20/100 + GFW*L58*'Formular C'!$G$21/100 + GFE*M58*'Formular C'!$G$22/100","v":0},{"$f":"GFÖG*I58*('Formular C'!$E$18+'Formular C'!$F$18)/100 +\nGFF*J58*('Formular C'!$E$19+'Formular C'!$F$19)/100 +\nGFH*K58*('Formular C'!$E$20+'Formular C'!$F$20)/100 +\nGFW*L58*('Formular C'!$E$21+'Formular C'!$F$21)/100 +\nGFE*M58*('Formular C'!$E$22+'Formular C'!$F$22)/100","v":0},null,null,0,0,null,null,null,0,null,null,"","","",null,50,null,null,false,0,0]
[null,null,null,null,null,null,null,null,0,0,0,0,0,0,{"$f":"GFÖG*I59*'Formular C'!$G$18/100 + GFF*J59*'Formular C'!$G$19/100 + GFH*K59*'Formular C'!$G$20/100 + GFW*L59*'Formular C'!$G$21/100 + GFE*M59*'Formular C'!$G$22/100","v":0},{"$f":"GFÖG*I59*('Formular C'!$E$18+'Formular C'!$F$18)/100 +\nGFF*J59*('Formular C'!$E$19+'Formular C'!$F$19)/100 +\nGFH*K59*('Formular C'!$E$20+'Formular C'!$F$20)/100 +\nGFW*L59*('Formular C'!$E$21+'Formular C'!$F$21)/100 +\nGFE*M59*('Formular C'!$E$22+'Formular C'!$F$22)/100","v":0},null,null,0,0,null,null,null,0,null,null,"","","",null,51,null,null,false,0,0]
[null,null,null,null,null,null,null,null,0,0,0,0,0,0,{"$f":"GFÖG*I60*'Formular C'!$G$18/100 + GFF*J60*'Formular C'!$G$19/100 + GFH*K60*'Formular C'!$G$20/100 + GFW*L60*'Formular C'!$G$21/100 + GFE*M60*'Formular C'!$G$22/100","v":0},{"$f":"GFÖG*I60*('Formular C'!$E$18+'Formular C'!$F$18)/100 +\nGFF*J60*('Formular C'!$E$19+'Formular C'!$F$19)/100 +\nGFH*K60*('Formular C'!$E$20+'Formular C'!$F$20)/100 +\nGFW*L60*('Formular C'!$E$21+'Formular C'!$F$21)/100 +\nGFE*M60*('Formular C'!$E$22+'Formular C'!$F$22)/100","v":0},null,null,0,0,null,null,null,0,null,null,"","","",null,52,null,null,false,0,0]
[null,null,null,null,null,null,null,null,0,0,0,0,0,0,{"$f":"GFÖG*I61*'Formular C'!$G$18/100 + GFF*J61*'Formular C'!$G$19/100 + GFH*K61*'Formular C'!$G$20/100 + GFW*L61*'Formular C'!$G$21/100 + GFE*M61*'Formular C'!$G$22/100","v":0},{"$f":"GFÖG*I61*('Formular C'!$E$18+'Formular C'!$F$18)/100 +\nGFF*J61*('Formular C'!$E$19+'Formular C'!$F$19)/100 +\nGFH*K61*('Formular C'!$E$20+'Formular C'!$F$20)/100 +\nGFW*L61*('Formular C'!$E$21+'Formular C'!$F$21)/100 +\nGFE*M61*('Formular C'!$E$22+'Formular C'!$F$22)/100","v":0},null,null,0,0,null,null,null,0,null,null,"","","",null,53,null,null,false,0,0]
[null,null,null,null,null,null,null,null,0,0,0,0,0,0,{"$f":"GFÖG*I62*'Formular C'!$G$18/100 + GFF*J62*'Formular C'!$G$19/100 + GFH*K62*'Formular C'!$G$20/100 + GFW*L62*'Formular C'!$G$21/100 + GFE*M62*'Formular C'!$G$22/100","v":0},{"$f":"GFÖG*I62*('Formular C'!$E$18+'Formular C'!$F$18)/100 +\nGFF*J62*('Formular C'!$E$19+'Formular C'!$F$19)/100 +\nGFH*K62*('Formular C'!$E$20+'Formular C'!$F$20)/100 +\nGFW*L62*('Formular C'!$E$21+'Formular C'!$F$21)/100 +\nGFE*M62*('Formular C'!$E$22+'Formular C'!$F$22)/100","v":0},null,null,0,0,null,null,null,0,null,null,"","","",null,54,null,null,false,0,0]
[null,null,null,null,null,null,null,null,0,0,0,0,0,0,{"$f":"GFÖG*I63*'Formular C'!$G$18/100 + GFF*J63*'Formular C'!$G$19/100 + GFH*K63*'Formular C'!$G$20/100 + GFW*L63*'Formular C'!$G$21/100 + GFE*M63*'Formular C'!$G$22/100","v":0},{"$f":"GFÖG*I63*('Formular C'!$E$18+'Formular C'!$F$18)/100 +\nGFF*J63*('Formular C'!$E$19+'Formular C'!$F$19)/100 +\nGFH*K63*('Formular C'!$E$20+'Formular C'!$F$20)/100 +\nGFW*L63*('Formular C'!$E$21+'Formular C'!$F$21)/100 +\nGFE*M63*('Formular C'!$E$22+'Formular C'!$F$22)/100","v":0},null,null,0,0,null,null,null,0,null,null,"","","",null,55,null,null,false,0,0]
[null,null,null,null,null,null,null,null,0,0,0,0,0,0,{"$f":"GFÖG*I64*'Formular C'!$G$18/100 + GFF*J64*'Formular C'!$G$19/100 + GFH*K64*'Formular C'!$G$20/100 + GFW*L64*'Formular C'!$G$21/100 + GFE*M64*'Formular C'!$G$22/100","v":0},{"$f":"GFÖG*I64*('Formular C'!$E$18+'Formular C'!$F$18)/100 +\nGFF*J64*('Formular C'!$E$19+'Formular C'!$F$19)/100 +\nGFH*K64*('Formular C'!$E$20+'Formular C'!$F$20)/100 +\nGFW*L64*('Formular C'!$E$21+'Formular C'!$F$21)/100 +\nGFE*M64*('Formular C'!$E$22+'Formular C'!$F$22)/100","v":0},null,null,0,0,null,null,null,0,null,null,"","","",null,56,null,null,false,0,0]
[null,null,null,null,null,null,null,null,0,0,0,0,0,0,{"$f":"GFÖG*I65*'Formular C'!$G$18/100 + GFF*J65*'Formular C'!$G$19/100 + GFH*K65*'Formular C'!$G$20/100 + GFW*L65*'Formular C'!$G$21/100 + GFE*M65*'Formular C'!$G$22/100","v":0},{"$f":"GFÖG*I65*('Formular C'!$E$18+'Formular C'!$F$18)/100 +\nGFF*J65*('Formular C'!$E$19+'Formular C'!$F$19)/100 +\nGFH*K65*('Formular C'!$E$20+'Formular C'!$F$20)/100 +\nGFW*L65*('Formular C'!$E$21+'Formular C'!$F$21)/100 +\nGFE*M65*('Formular C'!$E$22+'Formular C'!$F$22)/100","v":0},null,null,0,0,null,null,null,0,null,null,"","","",null,57,null,null,false,0,0]
[null,null,null,null,null,null,null,null,0,0,0,0,0,0,{"$f":"GFÖG*I66*'Formular C'!$G$18/100 + GFF*J66*'Formular C'!$G$19/100 + GFH*K66*'Formular C'!$G$20/100 + GFW*L66*'Formular C'!$G$21/100 + GFE*M66*'Formular C'!$G$22/100","v":0},{"$f":"GFÖG*I66*('Formular C'!$E$18+'Formular C'!$F$18)/100 +\nGFF*J66*('Formular C'!$E$19+'Formular C'!$F$19)/100 +\nGFH*K66*('Formular C'!$E$20+'Formular C'!$F$20)/100 +\nGFW*L66*('Formular C'!$E$21+'Formular C'!$F$21)/100 +\nGFE*M66*('Formular C'!$E$22+'Formular C'!$F$22)/100","v":0},null,null,0,0,null,null,null,0,null,null,"","","",null,58,null,null,false,0,0]
[null,null,null,null,null,null,null,null,0,0,0,0,0,0,{"$f":"GFÖG*I67*'Formular C'!$G$18/100 + GFF*J67*'Formular C'!$G$19/100 + GFH*K67*'Formular C'!$G$20/100 + GFW*L67*'Formular C'!$G$21/100 + GFE*M67*'Formular C'!$G$22/100","v":0},{"$f":"GFÖG*I67*('Formular C'!$E$18+'Formular C'!$F$18)/100 +\nGFF*J67*('Formular C'!$E$19+'Formular C'!$F$19)/100 +\nGFH*K67*('Formular C'!$E$20+'Formular C'!$F$20)/100 +\nGFW*L67*('Formular C'!$E$21+'Formular C'!$F$21)/100 +\nGFE*M67*('Formular C'!$E$22+'Formular C'!$F$22)/100","v":0},null,null,0,0,null,null,null,0,null,null,"","","",null,59,null,null,false,0,0]
[null,null,null,null,null,null,null,null,0,0,0,0,0,0,{"$f":"GFÖG*I68*'Formular C'!$G$18/100 + GFF*J68*'Formular C'!$G$19/100 + GFH*K68*'Formular C'!$G$20/100 + GFW*L68*'Formular C'!$G$21/100 + GFE*M68*'Formular C'!$G$22/100","v":0},{"$f":"GFÖG*I68*('Formular C'!$E$18+'Formular C'!$F$18)/100 +\nGFF*J68*('Formular C'!$E$19+'Formular C'!$F$19)/100 +\nGFH*K68*('Formular C'!$E$20+'Formular C'!$F$20)/100 +\nGFW*L68*('Formular C'!$E$21+'Formular C'!$F$21)/100 +\nGFE*M68*('Formular C'!$E$22+'Formular C'!$F$22)/100","v":0},null,null,0,0,null,null,null,0,null,null,"","","",null,60,null,null,false,0,0]
[null,null,null,null,null,null,null,null,0,0,0,0,0,0,{"$f":"GFÖG*I69*'Formular C'!$G$18/100 + GFF*J69*'Formular C'!$G$19/100 + GFH*K69*'Formular C'!$G$20/100 + GFW*L69*'Formular C'!$G$21/100 + GFE*M69*'Formular C'!$G$22/100","v":0},{"$f":"GFÖG*I69*('Formular C'!$E$18+'Formular C'!$F$18)/100 +\nGFF*J69*('Formular C'!$E$19+'Formular C'!$F$19)/100 +\nGFH*K69*('Formular C'!$E$20+'Formular C'!$F$20)/100 +\nGFW*L69*('Formular C'!$E$21+'Formular C'!$F$21)/100 +\nGFE*M69*('Formular C'!$E$22+'Formular C'!$F$22)/100","v":0},null,null,0,0,null,null,null,0,null,null,"","","",null,61,null,null,false,0,0]
[null,null,null,null,null,null,null,null,0,0,0,0,0,0,{"$f":"GFÖG*I70*'Formular C'!$G$18/100 + GFF*J70*'Formular C'!$G$19/100 + GFH*K70*'Formular C'!$G$20/100 + GFW*L70*'Formular C'!$G$21/100 + GFE*M70*'Formular C'!$G$22/100","v":0},{"$f":"GFÖG*I70*('Formular C'!$E$18+'Formular C'!$F$18)/100 +\nGFF*J70*('Formular C'!$E$19+'Formular C'!$F$19)/100 +\nGFH*K70*('Formular C'!$E$20+'Formular C'!$F$20)/100 +\nGFW*L70*('Formular C'!$E$21+'Formular C'!$F$21)/100 +\nGFE*M70*('Formular C'!$E$22+'Formular C'!$F$22)/100","v":0},null,null,0,0,null,null,null,0,null,null,"","","",null,62,null,null,false,0,0]
[null,null,null,null,null,null,null,null,0,0,0,0,0,0,{"$f":"GFÖG*I71*'Formular C'!$G$18/100 + GFF*J71*'Formular C'!$G$19/100 + GFH*K71*'Formular C'!$G$20/100 + GFW*L71*'Formular C'!$G$21/100 + GFE*M71*'Formular C'!$G$22/100","v":0},{"$f":"GFÖG*I71*('Formular C'!$E$18+'Formular C'!$F$18)/100 +\nGFF*J71*('Formular C'!$E$19+'Formular C'!$F$19)/100 +\nGFH*K71*('Formular C'!$E$20+'Formular C'!$F$20)/100 +\nGFW*L71*('Formular C'!$E$21+'Formular C'!$F$21)/100 +\nGFE*M71*('Formular C'!$E$22+'Formular C'!$F$22)/100","v":0},null,null,0,0,null,null,null,0,null,null,"","","",null,63,null,null,false,0,0]
[null,null,null,null,null,null,null,null,0,0,0,0,0,0,{"$f":"GFÖG*I72*'Formular C'!$G$18/100 + GFF*J72*'Formular C'!$G$19/100 + GFH*K72*'Formular C'!$G$20/100 + GFW*L72*'Formular C'!$G$21/100 + GFE*M72*'Formular C'!$G$22/100","v":0},{"$f":"GFÖG*I72*('Formular C'!$E$18+'Formular C'!$F$18)/100 +\nGFF*J72*('Formular C'!$E$19+'Formular C'!$F$19)/100 +\nGFH*K72*('Formular C'!$E$20+'Formular C'!$F$20)/100 +\nGFW*L72*('Formular C'!$E$21+'Formular C'!$F$21)/100 +\nGFE*M72*('Formular C'!$E$22+'Formular C'!$F$22)/100","v":0},null,null,0,0,null,null,null,0,null,null,"","","",null,64,null,null,false,0,0]
[null,null,null,null,null,null,null,null,0,0,0,0,0,0,{"$f":"GFÖG*I73*'Formular C'!$G$18/100 + GFF*J73*'Formular C'!$G$19/100 + GFH*K73*'Formular C'!$G$20/100 + GFW*L73*'Formular C'!$G$21/100 + GFE*M73*'Formular C'!$G$22/100","v":0},{"$f":"GFÖG*I73*('Formular C'!$E$18+'Formular C'!$F$18)/100 +\nGFF*J73*('Formular C'!$E$19+'Formular C'!$F$19)/100 +\nGFH*K73*('Formular C'!$E$20+'Formular C'!$F$20)/100 +\nGFW*L73*('Formular C'!$E$21+'Formular C'!$F$21)/100 +\nGFE*M73*('Formular C'!$E$22+'Formular C'!$F$22)/100","v":0},null,null,0,0,null,null,null,0,null,null,"","","",null,65,null,null,false,0,0]
[null,null,null,null,null,null,null,null,0,0,0,0,0,0,{"$f":"GFÖG*I74*'Formular C'!$G$18/100 + GFF*J74*'Formular C'!$G$19/100 + GFH*K74*'Formular C'!$G$20/100 + GFW*L74*'Formular C'!$G$21/100 + GFE*M74*'Formular C'!$G$22/100","v":0},{"$f":"GFÖG*I74*('Formular C'!$E$18+'Formular C'!$F$18)/100 +\nGFF*J74*('Formular C'!$E$19+'Formular C'!$F$19)/100 +\nGFH*K74*('Formular C'!$E$20+'Formular C'!$F$20)/100 +\nGFW*L74*('Formular C'!$E$21+'Formular C'!$F$21)/100 +\nGFE*M74*('Formular C'!$E$22+'Formular C'!$F$22)/100","v":0},null,null,0,0,null,null,null,0,null,null,"","","",null,66,null,null,false,0,0]
[null,null,null,null,null,null,null,null,0,0,0,0,0,0,{"$f":"GFÖG*I75*'Formular C'!$G$18/100 + GFF*J75*'Formular C'!$G$19/100 + GFH*K75*'Formular C'!$G$20/100 + GFW*L75*'Formular C'!$G$21/100 + GFE*M75*'Formular C'!$G$22/100","v":0},{"$f":"GFÖG*I75*('Formular C'!$E$18+'Formular C'!$F$18)/100 +\nGFF*J75*('Formular C'!$E$19+'Formular C'!$F$19)/100 +\nGFH*K75*('Formular C'!$E$20+'Formular C'!$F$20)/100 +\nGFW*L75*('Formular C'!$E$21+'Formular C'!$F$21)/100 +\nGFE*M75*('Formular C'!$E$22+'Formular C'!$F$22)/100","v":0},null,null,0,0,null,null,null,0,null,null,"","","",null,67,null,null,false,0,0]
[null,null,null,null,null,null,null,null,0,0,0,0,0,0,{"$f":"GFÖG*I76*'Formular C'!$G$18/100 + GFF*J76*'Formular C'!$G$19/100 + GFH*K76*'Formular C'!$G$20/100 + GFW*L76*'Formular C'!$G$21/100 + GFE*M76*'Formular C'!$G$22/100","v":0},{"$f":"GFÖG*I76*('Formular C'!$E$18+'Formular C'!$F$18)/100 +\nGFF*J76*('Formular C'!$E$19+'Formular C'!$F$19)/100 +\nGFH*K76*('Formular C'!$E$20+'Formular C'!$F$20)/100 +\nGFW*L76*('Formular C'!$E$21+'Formular C'!$F$21)/100 +\nGFE*M76*('Formular C'!$E$22+'Formular C'!$F$22)/100","v":0},null,null,0,0,null,null,null,0,null,null,"","","",null,68,null,null,false,0,0]
[null,null,null,null,null,null,null,null,0,0,0,0,0,0,{"$f":"GFÖG*I77*'Formular C'!$G$18/100 + GFF*J77*'Formular C'!$G$19/100 + GFH*K77*'Formular C'!$G$20/100 + GFW*L77*'Formular C'!$G$21/100 + GFE*M77*'Formular C'!$G$22/100","v":0},{"$f":"GFÖG*I77*('Formular C'!$E$18+'Formular C'!$F$18)/100 +\nGFF*J77*('Formular C'!$E$19+'Formular C'!$F$19)/100 +\nGFH*K77*('Formular C'!$E$20+'Formular C'!$F$20)/100 +\nGFW*L77*('Formular C'!$E$21+'Formular C'!$F$21)/100 +\nGFE*M77*('Formular C'!$E$22+'Formular C'!$F$22)/100","v":0},null,null,0,0,null,null,null,0,null,null,"","","",null,69,null,null,false,0,0]
[null,null,null,null,null,null,null,null,0,0,0,0,0,0,{"$f":"GFÖG*I78*'Formular C'!$G$18/100 + GFF*J78*'Formular C'!$G$19/100 + GFH*K78*'Formular C'!$G$20/100 + GFW*L78*'Formular C'!$G$21/100 + GFE*M78*'Formular C'!$G$22/100","v":0},{"$f":"GFÖG*I78*('Formular C'!$E$18+'Formular C'!$F$18)/100 +\nGFF*J78*('Formular C'!$E$19+'Formular C'!$F$19)/100 +\nGFH*K78*('Formular C'!$E$20+'Formular C'!$F$20)/100 +\nGFW*L78*('Formular C'!$E$21+'Formular C'!$F$21)/100 +\nGFE*M78*('Formular C'!$E$22+'Formular C'!$F$22)/100","v":0},null,null,0,0,null,null,null,0,null,null,"","","",null,70,null,null,false,0,0]
[null,null,null,null,null,null,null,null,0,0,0,0,0,0,{"$f":"GFÖG*I79*'Formular C'!$G$18/100 + GFF*J79*'Formular C'!$G$19/100 + GFH*K79*'Formular C'!$G$20/100 + GFW*L79*'Formular C'!$G$21/100 + GFE*M79*'Formular C'!$G$22/100","v":0},{"$f":"GFÖG*I79*('Formular C'!$E$18+'Formular C'!$F$18)/100 +\nGFF*J79*('Formular C'!$E$19+'Formular C'!$F$19)/100 +\nGFH*K79*('Formular C'!$E$20+'Formular C'!$F$20)/100 +\nGFW*L79*('Formular C'!$E$21+'Formular C'!$F$21)/100 +\nGFE*M79*('Formular C'!$E$22+'Formular C'!$F$22)/100","v":0},null,null,0,0,null,null,null,0,null,null,"","","",null,71,null,null,false,0,0]
[null,null,null,null,null,null,null,null,0,0,0,0,0,0,{"$f":"GFÖG*I80*'Formular C'!$G$18/100 + GFF*J80*'Formular C'!$G$19/100 + GFH*K80*'Formular C'!$G$20/100 + GFW*L80*'Formular C'!$G$21/100 + GFE*M80*'Formular C'!$G$22/100","v":0},{"$f":"GFÖG*I80*('Formular C'!$E$18+'Formular C'!$F$18)/100 +\nGFF*J80*('Formular C'!$E$19+'Formular C'!$F$19)/100 +\nGFH*K80*('Formular C'!$E$20+'Formular C'!$F$20)/100 +\nGFW*L80*('Formular C'!$E$21+'Formular C'!$F$21)/100 +\nGFE*M80*('Formular C'!$E$22+'Formular C'!$F$22)/100","v":0},null,null,0,0,null,null,null,0,null,null,"","","",null,72,null,null,false,0,0]
[null,null,null,null,null,null,null,null,0,0,0,0,0,0,{"$f":"GFÖG*I81*'Formular C'!$G$18/100 + GFF*J81*'Formular C'!$G$19/100 + GFH*K81*'Formular C'!$G$20/100 + GFW*L81*'Formular C'!$G$21/100 + GFE*M81*'Formular C'!$G$22/100","v":0},{"$f":"GFÖG*I81*('Formular C'!$E$18+'Formular C'!$F$18)/100 +\nGFF*J81*('Formular C'!$E$19+'Formular C'!$F$19)/100 +\nGFH*K81*('Formular C'!$E$20+'Formular C'!$F$20)/100 +\nGFW*L81*('Formular C'!$E$21+'Formular C'!$F$21)/100 +\nGFE*M81*('Formular C'!$E$22+'Formular C'!$F$22)/100","v":0},null,null,0,0,null,null,null,0,null,null,"","","",null,73,null,null,false,0,0]
[null,null,null,null,null,null,null,null,0,0,0,0,0,0,{"$f":"GFÖG*I82*'Formular C'!$G$18/100 + GFF*J82*'Formular C'!$G$19/100 + GFH*K82*'Formular C'!$G$20/100 + GFW*L82*'Formular C'!$G$21/100 + GFE*M82*'Formular C'!$G$22/100","v":0},{"$f":"GFÖG*I82*('Formular C'!$E$18+'Formular C'!$F$18)/100 +\nGFF*J82*('Formular C'!$E$19+'Formular C'!$F$19)/100 +\nGFH*K82*('Formular C'!$E$20+'Formular C'!$F$20)/100 +\nGFW*L82*('Formular C'!$E$21+'Formular C'!$F$21)/100 +\nGFE*M82*('Formular C'!$E$22+'Formular C'!$F$22)/100","v":0},null,null,0,0,null,null,null,0,null,null,"","","",null,74,null,null,false,0,0]
[null,null,null,null,null,null,null,null,0,0,0,0,0,0,{"$f":"GFÖG*I83*'Formular C'!$G$18/100 + GFF*J83*'Formular C'!$G$19/100 + GFH*K83*'Formular C'!$G$20/100 + GFW*L83*'Formular C'!$G$21/100 + GFE*M83*'Formular C'!$G$22/100","v":0},{"$f":"GFÖG*I83*('Formular C'!$E$18+'Formular C'!$F$18)/100 +\nGFF*J83*('Formular C'!$E$19+'Formular C'!$F$19)/100 +\nGFH*K83*('Formular C'!$E$20+'Formular C'!$F$20)/100 +\nGFW*L83*('Formular C'!$E$21+'Formular C'!$F$21)/100 +\nGFE*M83*('Formular C'!$E$22+'Formular C'!$F$22)/100","v":0},null,null,0,0,null,null,null,0,null,null,"","","",null,75,null,null,false,0,0]
[null,null,null,null,null,null,null,null,0,0,0,0,0,0,{"$f":"GFÖG*I84*'Formular C'!$G$18/100 + GFF*J84*'Formular C'!$G$19/100 + GFH*K84*'Formular C'!$G$20/100 + GFW*L84*'Formular C'!$G$21/100 + GFE*M84*'Formular C'!$G$22/100","v":0},{"$f":"GFÖG*I84*('Formular C'!$E$18+'Formular C'!$F$18)/100 +\nGFF*J84*('Formular C'!$E$19+'Formular C'!$F$19)/100 +\nGFH*K84*('Formular C'!$E$20+'Formular C'!$F$20)/100 +\nGFW*L84*('Formular C'!$E$21+'Formular C'!$F$21)/100 +\nGFE*M84*('Formular C'!$E$22+'Formular C'!$F$22)/100","v":0},null,null,0,0,null,null,null,0,null,null,"","","",null,76,null,null,false,0,0]
[null,null,null,null,null,null,null,null,0,0,0,0,0,0,{"$f":"GFÖG*I85*'Formular C'!$G$18/100 + GFF*J85*'Formular C'!$G$19/100 + GFH*K85*'Formular C'!$G$20/100 + GFW*L85*'Formular C'!$G$21/100 + GFE*M85*'Formular C'!$G$22/100","v":0},{"$f":"GFÖG*I85*('Formular C'!$E$18+'Formular C'!$F$18)/100 +\nGFF*J85*('Formular C'!$E$19+'Formular C'!$F$19)/100 +\nGFH*K85*('Formular C'!$E$20+'Formular C'!$F$20)/100 +\nGFW*L85*('Formular C'!$E$21+'Formular C'!$F$21)/100 +\nGFE*M85*('Formular C'!$E$22+'Formular C'!$F$22)/100","v":0},null,null,0,0,null,null,null,0,null,null,"","","",null,77,null,null,false,0,0]
[null,null,null,null,null,null,null,null,{"$f":"IF(OR(E86=INDEX(liste_energieträger,1),E86=INDEX(liste_energieträger,2)),F86,0)+IF(OR(G86=INDEX(liste_energieträger,1),G86=INDEX(liste_energieträger,2)),H86,0)","v":0},{"$f":"IF(E86=INDEX(liste_energieträger,3),F86,0)+IF(G86=INDEX(liste_energieträger,3),H86,0)","v":0},{"$f":"IF(E86=INDEX(liste_energieträger,4),F86,0)+IF(G86=INDEX(liste_energieträger,4),H86,0)","v":0},{"$f":"IF(E86=INDEX(liste_energieträger,5),F86,0)+IF(G86=INDEX(liste_energieträger,5),H86,0)","v":0},{"$f":"IF(E86=INDEX(liste_energieträger,6),F86,0)+IF(G86=INDEX(liste_energieträger,6),H86,0)","v":0},{"$f":"F86+H86","v":0},{"$f":"GFÖG*I86*'Formular C'!$G$18/100 + GFF*J86*'Formular C'!$G$19/100 + GFH*K86*'Formular C'!$G$20/100 + GFW*L86*'Formular C'!$G$21/100 + GFE*M86*'Formular C'!$G$22/100","v":0},{"$f":"GFÖG*I86*('Formular C'!$E$18+'Formular C'!$F$18)/100 +\nGFF*J86*('Formular C'!$E$19+'Formular C'!$F$19)/100 +\nGFH*K86*('Formular C'!$E$20+'Formular C'!$F$20)/100 +\nGFW*L86*('Formular C'!$E$21+'Formular C'!$F$21)/100 +\nGFE*M86*('Formular C'!$E$22+'Formular C'!$F$22)/100","v":0},null,null,{"$f":"IF(Q86=INDEX(liste_bezugsgrössen,1),R86,0)","v":0},{"$f":"IF(Q86=INDEX(liste_bezugsgrössen,2),R86,0)","v":0},null,null,null,{"$f":"(F86*V86)+(H86*W86)","v":0},null,null,"","","",null,78,null,null,false,0,{"$f":"IF(AA86<Payback_Infrastr,1,0)","v":0}]
[null,null,null,null,null,null,null,null,0,0,0,0,0,0,{"$f":"GFÖG*I87*'Formular C'!$G$18/100 + GFF*J87*'Formular C'!$G$19/100 + GFH*K87*'Formular C'!$G$20/100 + GFW*L87*'Formular C'!$G$21/100 + GFE*M87*'Formular C'!$G$22/100","v":0},{"$f":"GFÖG*I87*('Formular C'!$E$18+'Formular C'!$F$18)/100 +\nGFF*J87*('Formular C'!$E$19+'Formular C'!$F$19)/100 +\nGFH*K87*('Formular C'!$E$20+'Formular C'!$F$20)/100 +\nGFW*L87*('Formular C'!$E$21+'Formular C'!$F$21)/100 +\nGFE*M87*('Formular C'!$E$22+'Formular C'!$F$22)/100","v":0},null,null,0,0,null,null,null,0,null,null,{"$f":"IF(X87=0, \"\",Y87*Z87/X87)","v":""},{"$f":"IF(AJ87,\"X\",\"\")","v":""},{"$f":"IF(B87<>\"\",HYPERLINK($AF$8&AE87,\"Beschreibung \"&B87),\"\")","v":""},null,79,null,null,{"$f":"ISNUMBER(U87)","v":false},{"$f":"IF(AB87=\"X\",1,0)","v":0},0]
[null,null,null,null,null,null,null,null,0,0,0,0,0,0,{"$f":"GFÖG*I88*'Formular C'!$G$18/100 + GFF*J88*'Formular C'!$G$19/100 + GFH*K88*'Formular C'!$G$20/100 + GFW*L88*'Formular C'!$G$21/100 + GFE*M88*'Formular C'!$G$22/100","v":0},{"$f":"GFÖG*I88*('Formular C'!$E$18+'Formular C'!$F$18)/100 +\nGFF*J88*('Formular C'!$E$19+'Formular C'!$F$19)/100 +\nGFH*K88*('Formular C'!$E$20+'Formular C'!$F$20)/100 +\nGFW*L88*('Formular C'!$E$21+'Formular C'!$F$21)/100 +\nGFE*M88*('Formular C'!$E$22+'Formular C'!$F$22)/100","v":0},null,null,0,0,null,null,null,0,null,null,"","","",null,{"$f":"AE87+1","v":80},null,null,false,0,0]
[null,null,null,null,null,null,null,null,0,0,0,0,0,0,{"$f":"GFÖG*I89*'Formular C'!$G$18/100 + GFF*J89*'Formular C'!$G$19/100 + GFH*K89*'Formular C'!$G$20/100 + GFW*L89*'Formular C'!$G$21/100 + GFE*M89*'Formular C'!$G$22/100","v":0},{"$f":"GFÖG*I89*('Formular C'!$E$18+'Formular C'!$F$18)/100 +\nGFF*J89*('Formular C'!$E$19+'Formular C'!$F$19)/100 +\nGFH*K89*('Formular C'!$E$20+'Formular C'!$F$20)/100 +\nGFW*L89*('Formular C'!$E$21+'Formular C'!$F$21)/100 +\nGFE*M89*('Formular C'!$E$22+'Formular C'!$F$22)/100","v":0},null,null,0,0,null,null,null,0,null,null,"","","",null,81,null,null,false,0,0]
[null,null,null,null,null,null,null,null,0,0,0,0,0,0,{"$f":"GFÖG*I90*'Formular C'!$G$18/100 + GFF*J90*'Formular C'!$G$19/100 + GFH*K90*'Formular C'!$G$20/100 + GFW*L90*'Formular C'!$G$21/100 + GFE*M90*'Formular C'!$G$22/100","v":0},{"$f":"GFÖG*I90*('Formular C'!$E$18+'Formular C'!$F$18)/100 +\nGFF*J90*('Formular C'!$E$19+'Formular C'!$F$19)/100 +\nGFH*K90*('Formular C'!$E$20+'Formular C'!$F$20)/100 +\nGFW*L90*('Formular C'!$E$21+'Formular C'!$F$21)/100 +\nGFE*M90*('Formular C'!$E$22+'Formular C'!$F$22)/100","v":0},null,null,0,0,null,null,null,0,null,null,"","","",null,82,null,null,false,0,0]
[null,null,null,null,null,null,null,null,0,0,0,0,0,0,{"$f":"GFÖG*I91*'Formular C'!$G$18/100 + GFF*J91*'Formular C'!$G$19/100 + GFH*K91*'Formular C'!$G$20/100 + GFW*L91*'Formular C'!$G$21/100 + GFE*M91*'Formular C'!$G$22/100","v":0},{"$f":"GFÖG*I91*('Formular C'!$E$18+'Formular C'!$F$18)/100 +\nGFF*J91*('Formular C'!$E$19+'Formular C'!$F$19)/100 +\nGFH*K91*('Formular C'!$E$20+'Formular C'!$F$20)/100 +\nGFW*L91*('Formular C'!$E$21+'Formular C'!$F$21)/100 +\nGFE*M91*('Formular C'!$E$22+'Formular C'!$F$22)/100","v":0},null,null,0,0,null,null,null,0,null,null,"","","",null,83,null,null,false,0,0]
[null,null,null,null,null,null,null,null,0,0,0,0,0,0,{"$f":"GFÖG*I92*'Formular C'!$G$18/100 + GFF*J92*'Formular C'!$G$19/100 + GFH*K92*'Formular C'!$G$20/100 + GFW*L92*'Formular C'!$G$21/100 + GFE*M92*'Formular C'!$G$22/100","v":0},{"$f":"GFÖG*I92*('Formular C'!$E$18+'Formular C'!$F$18)/100 +\nGFF*J92*('Formular C'!$E$19+'Formular C'!$F$19)/100 +\nGFH*K92*('Formular C'!$E$20+'Formular C'!$F$20)/100 +\nGFW*L92*('Formular C'!$E$21+'Formular C'!$F$21)/100 +\nGFE*M92*('Formular C'!$E$22+'Formular C'!$F$22)/100","v":0},null,null,0,0,null,null,null,0,null,null,"","","",null,84,null,null,false,0,0]
[null,null,null,null,null,null,null,null,0,0,0,0,0,0,{"$f":"GFÖG*I93*'Formular C'!$G$18/100 + GFF*J93*'Formular C'!$G$19/100 + GFH*K93*'Formular C'!$G$20/100 + GFW*L93*'Formular C'!$G$21/100 + GFE*M93*'Formular C'!$G$22/100","v":0},{"$f":"GFÖG*I93*('Formular C'!$E$18+'Formular C'!$F$18)/100 +\nGFF*J93*('Formular C'!$E$19+'Formular C'!$F$19)/100 +\nGFH*K93*('Formular C'!$E$20+'Formular C'!$F$20)/100 +\nGFW*L93*('Formular C'!$E$21+'Formular C'!$F$21)/100 +\nGFE*M93*('Formular C'!$E$22+'Formular C'!$F$22)/100","v":0},null,null,0,0,null,null,null,0,null,null,"","","",null,85,null,null,false,0,0]
[null,null,null,null,null,null,null,null,0,0,0,0,0,0,{"$f":"GFÖG*I94*'Formular C'!$G$18/100 + GFF*J94*'Formular C'!$G$19/100 + GFH*K94*'Formular C'!$G$20/100 + GFW*L94*'Formular C'!$G$21/100 + GFE*M94*'Formular C'!$G$22/100","v":0},{"$f":"GFÖG*I94*('Formular C'!$E$18+'Formular C'!$F$18)/100 +\nGFF*J94*('Formular C'!$E$19+'Formular C'!$F$19)/100 +\nGFH*K94*('Formular C'!$E$20+'Formular C'!$F$20)/100 +\nGFW*L94*('Formular C'!$E$21+'Formular C'!$F$21)/100 +\nGFE*M94*('Formular C'!$E$22+'Formular C'!$F$22)/100","v":0},null,null,0,0,null,null,null,0,null,null,"","","",null,86,null,null,false,0,0]
[null,null,null,null,null,null,null,null,0,0,0,0,0,0,{"$f":"GFÖG*I95*'Formular C'!$G$18/100 + GFF*J95*'Formular C'!$G$19/100 + GFH*K95*'Formular C'!$G$20/100 + GFW*L95*'Formular C'!$G$21/100 + GFE*M95*'Formular C'!$G$22/100","v":0},{"$f":"GFÖG*I95*('Formular C'!$E$18+'Formular C'!$F$18)/100 +\nGFF*J95*('Formular C'!$E$19+'Formular C'!$F$19)/100 +\nGFH*K95*('Formular C'!$E$20+'Formular C'!$F$20)/100 +\nGFW*L95*('Formular C'!$E$21+'Formular C'!$F$21)/100 +\nGFE*M95*('Formular C'!$E$22+'Formular C'!$F$22)/100","v":0},null,null,0,0,null,null,null,0,null,null,"","","",null,87,null,null,false,0,0]
[null,null,null,null,null,null,null,null,0,0,0,0,0,0,{"$f":"GFÖG*I96*'Formular C'!$G$18/100 + GFF*J96*'Formular C'!$G$19/100 + GFH*K96*'Formular C'!$G$20/100 + GFW*L96*'Formular C'!$G$21/100 + GFE*M96*'Formular C'!$G$22/100","v":0},{"$f":"GFÖG*I96*('Formular C'!$E$18+'Formular C'!$F$18)/100 +\nGFF*J96*('Formular C'!$E$19+'Formular C'!$F$19)/100 +\nGFH*K96*('Formular C'!$E$20+'Formular C'!$F$20)/100 +\nGFW*L96*('Formular C'!$E$21+'Formular C'!$F$21)/100 +\nGFE*M96*('Formular C'!$E$22+'Formular C'!$F$22)/100","v":0},null,null,0,0,null,null,null,0,null,null,"","","",null,88,null,null,false,0,0]
[null,null,null,null,null,null,null,null,0,0,0,0,0,0,{"$f":"GFÖG*I97*'Formular C'!$G$18/100 + GFF*J97*'Formular C'!$G$19/100 + GFH*K97*'Formular C'!$G$20/100 + GFW*L97*'Formular C'!$G$21/100 + GFE*M97*'Formular C'!$G$22/100","v":0},{"$f":"GFÖG*I97*('Formular C'!$E$18+'Formular C'!$F$18)/100 +\nGFF*J97*('Formular C'!$E$19+'Formular C'!$F$19)/100 +\nGFH*K97*('Formular C'!$E$20+'Formular C'!$F$20)/100 +\nGFW*L97*('Formular C'!$E$21+'Formular C'!$F$21)/100 +\nGFE*M97*('Formular C'!$E$22+'Formular C'!$F$22)/100","v":0},null,null,0,0,null,null,null,0,null,null,"","","",null,89,null,null,false,0,0]
[null,null,null,null,null,null,null,null,0,0,0,0,0,0,{"$f":"GFÖG*I98*'Formular C'!$G$18/100 + GFF*J98*'Formular C'!$G$19/100 + GFH*K98*'Formular C'!$G$20/100 + GFW*L98*'Formular C'!$G$21/100 + GFE*M98*'Formular C'!$G$22/100","v":0},{"$f":"GFÖG*I98*('Formular C'!$E$18+'Formular C'!$F$18)/100 +\nGFF*J98*('Formular C'!$E$19+'Formular C'!$F$19)/100 +\nGFH*K98*('Formular C'!$E$20+'Formular C'!$F$20)/100 +\nGFW*L98*('Formular C'!$E$21+'Formular C'!$F$21)/100 +\nGFE*M98*('Formular C'!$E$22+'Formular C'!$F$22)/100","v":0},null,null,0,0,null,null,null,0,null,null,"","","",null,90,null,null,false,0,0]
[null,null,null,null,null,null,null,null,0,0,0,0,0,0,{"$f":"GFÖG*I99*'Formular C'!$G$18/100 + GFF*J99*'Formular C'!$G$19/100 + GFH*K99*'Formular C'!$G$20/100 + GFW*L99*'Formular C'!$G$21/100 + GFE*M99*'Formular C'!$G$22/100","v":0},{"$f":"GFÖG*I99*('Formular C'!$E$18+'Formular C'!$F$18)/100 +\nGFF*J99*('Formular C'!$E$19+'Formular C'!$F$19)/100 +\nGFH*K99*('Formular C'!$E$20+'Formular C'!$F$20)/100 +\nGFW*L99*('Formular C'!$E$21+'Formular C'!$F$21)/100 +\nGFE*M99*('Formular C'!$E$22+'Formular C'!$F$22)/100","v":0},null,null,0,0,null,null,null,0,null,null,"","","",null,91,null,null,false,0,0]
[null,null,null,null,null,null,null,null,0,0,0,0,0,0,{"$f":"GFÖG*I100*'Formular C'!$G$18/100 + GFF*J100*'Formular C'!$G$19/100 + GFH*K100*'Formular C'!$G$20/100 + GFW*L100*'Formular C'!$G$21/100 + GFE*M100*'Formular C'!$G$22/100","v":0},{"$f":"GFÖG*I100*('Formular C'!$E$18+'Formular C'!$F$18)/100 +\nGFF*J100*('Formular C'!$E$19+'Formular C'!$F$19)/100 +\nGFH*K100*('Formular C'!$E$20+'Formular C'!$F$20)/100 +\nGFW*L100*('Formular C'!$E$21+'Formular C'!$F$21)/100 +\nGFE*M100*('Formular C'!$E$22+'Formular C'!$F$22)/100","v":0},null,null,0,0,null,null,null,0,null,null,"","","",null,92,null,null,false,0,0]
[null,null,null,null,null,null,null,null,0,0,0,0,0,0,{"$f":"GFÖG*I101*'Formular C'!$G$18/100 + GFF*J101*'Formular C'!$G$19/100 + GFH*K101*'Formular C'!$G$20/100 + GFW*L101*'Formular C'!$G$21/100 + GFE*M101*'Formular C'!$G$22/100","v":0},{"$f":"GFÖG*I101*('Formular C'!$E$18+'Formular C'!$F$18)/100 +\nGFF*J101*('Formular C'!$E$19+'Formular C'!$F$19)/100 +\nGFH*K101*('Formular C'!$E$20+'Formular C'!$F$20)/100 +\nGFW*L101*('Formular C'!$E$21+'Formular C'!$F$21)/100 +\nGFE*M101*('Formular C'!$E$22+'Formular C'!$F$22)/100","v":0},null,null,0,0,null,null,null,0,null,null,"","","",null,93,null,null,false,0,0]
[null,null,null,null,null,null,null,null,0,0,0,0,0,0,{"$f":"GFÖG*I102*'Formular C'!$G$18/100 + GFF*J102*'Formular C'!$G$19/100 + GFH*K102*'Formular C'!$G$20/100 + GFW*L102*'Formular C'!$G$21/100 + GFE*M102*'Formular C'!$G$22/100","v":0},{"$f":"GFÖG*I102*('Formular C'!$E$18+'Formular C'!$F$18)/100 +\nGFF*J102*('Formular C'!$E$19+'Formular C'!$F$19)/100 +\nGFH*K102*('Formular C'!$E$20+'Formular C'!$F$20)/100 +\nGFW*L102*('Formular C'!$E$21+'Formular C'!$F$21)/100 +\nGFE*M102*('Formular C'!$E$22+'Formular C'!$F$22)/100","v":0},null,null,0,0,null,null,null,0,null,null,"","","",null,94,null,null,false,0,0]
[null,null,null,null,null,null,null,null,0,0,0,0,0,0,{"$f":"GFÖG*I103*'Formular C'!$G$18/100 + GFF*J103*'Formular C'!$G$19/100 + GFH*K103*'Formular C'!$G$20/100 + GFW*L103*'Formular C'!$G$21/100 + GFE*M103*'Formular C'!$G$22/100","v":0},{"$f":"GFÖG*I103*('Formular C'!$E$18+'Formular C'!$F$18)/100 +\nGFF*J103*('Formular C'!$E$19+'Formular C'!$F$19)/100 +\nGFH*K103*('Formular C'!$E$20+'Formular C'!$F$20)/100 +\nGFW*L103*('Formular C'!$E$21+'Formular C'!$F$21)/100 +\nGFE*M103*('Formular C'!$E$22+'Formular C'!$F$22)/100","v":0},null,null,0,0,null,null,null,0,null,null,"","","",null,95,null,null,false,0,0]
[null,null,null,null,null,null,null,null,0,0,0,0,0,0,{"$f":"GFÖG*I104*'Formular C'!$G$18/100 + GFF*J104*'Formular C'!$G$19/100 + GFH*K104*'Formular C'!$G$20/100 + GFW*L104*'Formular C'!$G$21/100 + GFE*M104*'Formular C'!$G$22/100","v":0},{"$f":"GFÖG*I104*('Formular C'!$E$18+'Formular C'!$F$18)/100 +\nGFF*J104*('Formular C'!$E$19+'Formular C'!$F$19)/100 +\nGFH*K104*('Formular C'!$E$20+'Formular C'!$F$20)/100 +\nGFW*L104*('Formular C'!$E$21+'Formular C'!$F$21)/100 +\nGFE*M104*('Formular C'!$E$22+'Formular C'!$F$22)/100","v":0},null,null,0,0,null,null,null,0,null,null,"","","",null,96,null,null,false,0,0]
[null,null,null,null,null,null,null,null,0,0,0,0,0,0,{"$f":"GFÖG*I105*'Formular C'!$G$18/100 + GFF*J105*'Formular C'!$G$19/100 + GFH*K105*'Formular C'!$G$20/100 + GFW*L105*'Formular C'!$G$21/100 + GFE*M105*'Formular C'!$G$22/100","v":0},{"$f":"GFÖG*I105*('Formular C'!$E$18+'Formular C'!$F$18)/100 +\nGFF*J105*('Formular C'!$E$19+'Formular C'!$F$19)/100 +\nGFH*K105*('Formular C'!$E$20+'Formular C'!$F$20)/100 +\nGFW*L105*('Formular C'!$E$21+'Formular C'!$F$21)/100 +\nGFE*M105*('Formular C'!$E$22+'Formular C'!$F$22)/100","v":0},null,null,0,0,null,null,null,0,null,null,"","","",null,97,null,null,false,0,0]
[null,null,null,null,null,null,null,null,0,0,0,0,0,0,{"$f":"GFÖG*I106*'Formular C'!$G$18/100 + GFF*J106*'Formular C'!$G$19/100 + GFH*K106*'Formular C'!$G$20/100 + GFW*L106*'Formular C'!$G$21/100 + GFE*M106*'Formular C'!$G$22/100","v":0},{"$f":"GFÖG*I106*('Formular C'!$E$18+'Formular C'!$F$18)/100 +\nGFF*J106*('Formular C'!$E$19+'Formular C'!$F$19)/100 +\nGFH*K106*('Formular C'!$E$20+'Formular C'!$F$20)/100 +\nGFW*L106*('Formular C'!$E$21+'Formular C'!$F$21)/100 +\nGFE*M106*('Formular C'!$E$22+'Formular C'!$F$22)/100","v":0},null,null,0,0,null,null,null,0,null,null,"","","",null,98,null,null,false,0,0]
[null,null,null,null,null,null,null,null,0,0,0,0,0,0,{"$f":"GFÖG*I107*'Formular C'!$G$18/100 + GFF*J107*'Formular C'!$G$19/100 + GFH*K107*'Formular C'!$G$20/100 + GFW*L107*'Formular C'!$G$21/100 + GFE*M107*'Formular C'!$G$22/100","v":0},{"$f":"GFÖG*I107*('Formular C'!$E$18+'Formular C'!$F$18)/100 +\nGFF*J107*('Formular C'!$E$19+'Formular C'!$F$19)/100 +\nGFH*K107*('Formular C'!$E$20+'Formular C'!$F$20)/100 +\nGFW*L107*('Formular C'!$E$21+'Formular C'!$F$21)/100 +\nGFE*M107*('Formular C'!$E$22+'Formular C'!$F$22)/100","v":0},null,null,0,0,null,null,null,0,null,null,"","","",null,99,null,null,false,0,0]
[null,null,null,null,null,null,null,null,0,0,0,0,0,0,{"$f":"GFÖG*I108*'Formular C'!$G$18/100 + GFF*J108*'Formular C'!$G$19/100 + GFH*K108*'Formular C'!$G$20/100 + GFW*L108*'Formular C'!$G$21/100 + GFE*M108*'Formular C'!$G$22/100","v":0},{"$f":"GFÖG*I108*('Formular C'!$E$18+'Formular C'!$F$18)/100 +\nGFF*J108*('Formular C'!$E$19+'Formular C'!$F$19)/100 +\nGFH*K108*('Formular C'!$E$20+'Formular C'!$F$20)/100 +\nGFW*L108*('Formular C'!$E$21+'Formular C'!$F$21)/100 +\nGFE*M108*('Formular C'!$E$22+'Formular C'!$F$22)/100","v":0},null,null,0,0,null,null,null,0,null,null,"","","",null,100,null,null,false,0,0]
[null,null,null,null,null,null,null,null,0,0,0,0,0,0,{"$f":"GFÖG*I109*'Formular C'!$G$18/100 + GFF*J109*'Formular C'!$G$19/100 + GFH*K109*'Formular C'!$G$20/100 + GFW*L109*'Formular C'!$G$21/100 + GFE*M109*'Formular C'!$G$22/100","v":0},{"$f":"GFÖG*I109*('Formular C'!$E$18+'Formular C'!$F$18)/100 +\nGFF*J109*('Formular C'!$E$19+'Formular C'!$F$19)/100 +\nGFH*K109*('Formular C'!$E$20+'Formular C'!$F$20)/100 +\nGFW*L109*('Formular C'!$E$21+'Formular C'!$F$21)/100 +\nGFE*M109*('Formular C'!$E$22+'Formular C'!$F$22)/100","v":0},null,null,0,0,null,null,null,0,null,null,"","","",null,101,null,null,false,0,0]
[null,null,null,null,null,null,null,null,0,0,0,0,0,0,{"$f":"GFÖG*I110*'Formular C'!$G$18/100 + GFF*J110*'Formular C'!$G$19/100 + GFH*K110*'Formular C'!$G$20/100 + GFW*L110*'Formular C'!$G$21/100 + GFE*M110*'Formular C'!$G$22/100","v":0},{"$f":"GFÖG*I110*('Formular C'!$E$18+'Formular C'!$F$18)/100 +\nGFF*J110*('Formular C'!$E$19+'Formular C'!$F$19)/100 +\nGFH*K110*('Formular C'!$E$20+'Formular C'!$F$20)/100 +\nGFW*L110*('Formular C'!$E$21+'Formular C'!$F$21)/100 +\nGFE*M110*('Formular C'!$E$22+'Formular C'!$F$22)/100","v":0},null,null,0,0,null,null,null,0,null,null,"","","",null,102,null,null,false,0,0]
[null,null,null,null,null,null,null,null,0,0,0,0,0,0,{"$f":"GFÖG*I111*'Formular C'!$G$18/100 + GFF*J111*'Formular C'!$G$19/100 + GFH*K111*'Formular C'!$G$20/100 + GFW*L111*'Formular C'!$G$21/100 + GFE*M111*'Formular C'!$G$22/100","v":0},{"$f":"GFÖG*I111*('Formular C'!$E$18+'Formular C'!$F$18)/100 +\nGFF*J111*('Formular C'!$E$19+'Formular C'!$F$19)/100 +\nGFH*K111*('Formular C'!$E$20+'Formular C'!$F$20)/100 +\nGFW*L111*('Formular C'!$E$21+'Formular C'!$F$21)/100 +\nGFE*M111*('Formular C'!$E$22+'Formular C'!$F$22)/100","v":0},null,null,0,0,null,null,null,0,null,null,"","","",null,103,null,null,false,0,0]
[null,null,null,null,null,null,null,null,0,0,0,0,0,0,{"$f":"GFÖG*I112*'Formular C'!$G$18/100 + GFF*J112*'Formular C'!$G$19/100 + GFH*K112*'Formular C'!$G$20/100 + GFW*L112*'Formular C'!$G$21/100 + GFE*M112*'Formular C'!$G$22/100","v":0},{"$f":"GFÖG*I112*('Formular C'!$E$18+'Formular C'!$F$18)/100 +\nGFF*J112*('Formular C'!$E$19+'Formular C'!$F$19)/100 +\nGFH*K112*('Formular C'!$E$20+'Formular C'!$F$20)/100 +\nGFW*L112*('Formular C'!$E$21+'Formular C'!$F$21)/100 +\nGFE*M112*('Formular C'!$E$22+'Formular C'!$F$22)/100","v":0},null,null,0,0,null,null,null,0,null,null,"","","",null,104,null,null,false,0,0]
[null,null,null,null,null,null,null,null,0,0,0,0,0,0,{"$f":"GFÖG*I113*'Formular C'!$G$18/100 + GFF*J113*'Formular C'!$G$19/100 + GFH*K113*'Formular C'!$G$20/100 + GFW*L113*'Formular C'!$G$21/100 + GFE*M113*'Formular C'!$G$22/100","v":0},{"$f":"GFÖG*I113*('Formular C'!$E$18+'Formular C'!$F$18)/100 +\nGFF*J113*('Formular C'!$E$19+'Formular C'!$F$19)/100 +\nGFH*K113*('Formular C'!$E$20+'Formular C'!$F$20)/100 +\nGFW*L113*('Formular C'!$E$21+'Formular C'!$F$21)/100 +\nGFE*M113*('Formular C'!$E$22+'Formular C'!$F$22)/100","v":0},null,null,0,0,null,null,null,0,null,null,"","","",null,105,null,null,false,0,0]
[null,null,null,null,null,null,null,null,0,0,0,0,0,0,{"$f":"GFÖG*I114*'Formular C'!$G$18/100 + GFF*J114*'Formular C'!$G$19/100 + GFH*K114*'Formular C'!$G$20/100 + GFW*L114*'Formular C'!$G$21/100 + GFE*M114*'Formular C'!$G$22/100","v":0},{"$f":"GFÖG*I114*('Formular C'!$E$18+'Formular C'!$F$18)/100 +\nGFF*J114*('Formular C'!$E$19+'Formular C'!$F$19)/100 +\nGFH*K114*('Formular C'!$E$20+'Formular C'!$F$20)/100 +\nGFW*L114*('Formular C'!$E$21+'Formular C'!$F$21)/100 +\nGFE*M114*('Formular C'!$E$22+'Formular C'!$F$22)/100","v":0},null,null,0,0,null,null,null,0,null,null,"","","",null,106,null,null,false,0,0]
[null,null,null,null,null,null,null,null,0,0,0,0,0,0,{"$f":"GFÖG*I115*'Formular C'!$G$18/100 + GFF*J115*'Formular C'!$G$19/100 + GFH*K115*'Formular C'!$G$20/100 + GFW*L115*'Formular C'!$G$21/100 + GFE*M115*'Formular C'!$G$22/100","v":0},{"$f":"GFÖG*I115*('Formular C'!$E$18+'Formular C'!$F$18)/100 +\nGFF*J115*('Formular C'!$E$19+'Formular C'!$F$19)/100 +\nGFH*K115*('Formular C'!$E$20+'Formular C'!$F$20)/100 +\nGFW*L115*('Formular C'!$E$21+'Formular C'!$F$21)/100 +\nGFE*M115*('Formular C'!$E$22+'Formular C'!$F$22)/100","v":0},null,null,0,0,null,null,null,0,null,null,"","","",null,107,null,null,false,0,0]
[null,null,null,null,null,null,null,null,0,0,0,0,0,0,{"$f":"GFÖG*I116*'Formular C'!$G$18/100 + GFF*J116*'Formular C'!$G$19/100 + GFH*K116*'Formular C'!$G$20/100 + GFW*L116*'Formular C'!$G$21/100 + GFE*M116*'Formular C'!$G$22/100","v":0},{"$f":"GFÖG*I116*('Formular C'!$E$18+'Formular C'!$F$18)/100 +\nGFF*J116*('Formular C'!$E$19+'Formular C'!$F$19)/100 +\nGFH*K116*('Formular C'!$E$20+'Formular C'!$F$20)/100 +\nGFW*L116*('Formular C'!$E$21+'Formular C'!$F$21)/100 +\nGFE*M116*('Formular C'!$E$22+'Formular C'!$F$22)/100","v":0},null,null,0,0,null,null,null,0,null,null,"","","",null,108,null,null,false,0,0]
[null,null,null,null,null,null,null,null,0,0,0,0,0,0,{"$f":"GFÖG*I117*'Formular C'!$G$18/100 + GFF*J117*'Formular C'!$G$19/100 + GFH*K117*'Formular C'!$G$20/100 + GFW*L117*'Formular C'!$G$21/100 + GFE*M117*'Formular C'!$G$22/100","v":0},{"$f":"GFÖG*I117*('Formular C'!$E$18+'Formular C'!$F$18)/100 +\nGFF*J117*('Formular C'!$E$19+'Formular C'!$F$19)/100 +\nGFH*K117*('Formular C'!$E$20+'Formular C'!$F$20)/100 +\nGFW*L117*('Formular C'!$E$21+'Formular C'!$F$21)/100 +\nGFE*M117*('Formular C'!$E$22+'Formular C'!$F$22)/100","v":0},null,null,0,0,null,null,null,0,null,null,"","","",null,109,null,null,false,0,0]
[null,null,null,null,null,null,null,null,{"$f":"IF(OR(E118=INDEX(liste_energieträger,1),E118=INDEX(liste_energieträger,2)),F118,0)+IF(OR(G118=INDEX(liste_energieträger,1),G118=INDEX(liste_energieträger,2)),H118,0)","v":0},0,0,0,0,0,{"$f":"GFÖG*I118*'Formular C'!$G$18/100 + GFF*J118*'Formular C'!$G$19/100 + GFH*K118*'Formular C'!$G$20/100 + GFW*L118*'Formular C'!$G$21/100 + GFE*M118*'Formular C'!$G$22/100","v":0},{"$f":"GFÖG*I118*('Formular C'!$E$18+'Formular C'!$F$18)/100 +\nGFF*J118*('Formular C'!$E$19+'Formular C'!$F$19)/100 +\nGFH*K118*('Formular C'!$E$20+'Formular C'!$F$20)/100 +\nGFW*L118*('Formular C'!$E$21+'Formular C'!$F$21)/100 +\nGFE*M118*('Formular C'!$E$22+'Formular C'!$F$22)/100","v":0},null,null,{"$f":"IF(Q118=INDEX(liste_bezugsgrössen,1),R118,0)","v":0},0,null,null,null,{"$f":"(F118*V118)+(H118*W118)","v":0},null,null,"","","",null,110,null,null,false,0,0]
[null,null,null,null,null,null,null,null,0,0,0,0,0,0,{"$f":"GFÖG*I119*'Formular C'!$G$18/100 + GFF*J119*'Formular C'!$G$19/100 + GFH*K119*'Formular C'!$G$20/100 + GFW*L119*'Formular C'!$G$21/100 + GFE*M119*'Formular C'!$G$22/100","v":0},{"$f":"GFÖG*I119*('Formular C'!$E$18+'Formular C'!$F$18)/100 +\nGFF*J119*('Formular C'!$E$19+'Formular C'!$F$19)/100 +\nGFH*K119*('Formular C'!$E$20+'Formular C'!$F$20)/100 +\nGFW*L119*('Formular C'!$E$21+'Formular C'!$F$21)/100 +\nGFE*M119*('Formular C'!$E$22+'Formular C'!$F$22)/100","v":0},null,null,0,0,null,null,null,0,null,null,"","","",null,111,null,null,false,0,0]
[null,null,null,null,null,null,null,null,0,0,0,0,0,0,{"$f":"GFÖG*I120*'Formular C'!$G$18/100 + GFF*J120*'Formular C'!$G$19/100 + GFH*K120*'Formular C'!$G$20/100 + GFW*L120*'Formular C'!$G$21/100 + GFE*M120*'Formular C'!$G$22/100","v":0},{"$f":"GFÖG*I120*('Formular C'!$E$18+'Formular C'!$F$18)/100 +\nGFF*J120*('Formular C'!$E$19+'Formular C'!$F$19)/100 +\nGFH*K120*('Formular C'!$E$20+'Formular C'!$F$20)/100 +\nGFW*L120*('Formular C'!$E$21+'Formular C'!$F$21)/100 +\nGFE*M120*('Formular C'!$E$22+'Formular C'!$F$22)/100","v":0},null,null,0,0,null,null,null,0,null,null,"","","",null,112,null,null,false,0,0]
[null,null,null,null,null,null,null,null,0,0,0,0,0,0,{"$f":"GFÖG*I121*'Formular C'!$G$18/100 + GFF*J121*'Formular C'!$G$19/100 + GFH*K121*'Formular C'!$G$20/100 + GFW*L121*'Formular C'!$G$21/100 + GFE*M121*'Formular C'!$G$22/100","v":0},{"$f":"GFÖG*I121*('Formular C'!$E$18+'Formular C'!$F$18)/100 +\nGFF*J121*('Formular C'!$E$19+'Formular C'!$F$19)/100 +\nGFH*K121*('Formular C'!$E$20+'Formular C'!$F$20)/100 +\nGFW*L121*('Formular C'!$E$21+'Formular C'!$F$21)/100 +\nGFE*M121*('Formular C'!$E$22+'Formular C'!$F$22)/100","v":0},null,null,0,0,null,null,null,0,null,null,"","","",null,113,null,null,false,0,0]
[null,null,null,null,null,null,null,null,0,0,0,0,0,0,{"$f":"GFÖG*I122*'Formular C'!$G$18/100 + GFF*J122*'Formular C'!$G$19/100 + GFH*K122*'Formular C'!$G$20/100 + GFW*L122*'Formular C'!$G$21/100 + GFE*M122*'Formular C'!$G$22/100","v":0},{"$f":"GFÖG*I122*('Formular C'!$E$18+'Formular C'!$F$18)/100 +\nGFF*J122*('Formular C'!$E$19+'Formular C'!$F$19)/100 +\nGFH*K122*('Formular C'!$E$20+'Formular C'!$F$20)/100 +\nGFW*L122*('Formular C'!$E$21+'Formular C'!$F$21)/100 +\nGFE*M122*('Formular C'!$E$22+'Formular C'!$F$22)/100","v":0},null,null,0,0,null,null,null,0,null,null,"","","",null,114,null,null,false,0,0]
[null,"Produktionsanlagen / Dienstleistungen",null,null,null,null,null,null,null,null,null,null,null,null,null,null,null,null,null,null,null,null,null,null,null,null,null,null,null,null,115]
[null,null,null,null,null,null,null,null,{"$f":"IF(OR(E124=INDEX(liste_energieträger,1),E124=INDEX(liste_energieträger,2)),F124,0)+IF(OR(G124=INDEX(liste_energieträger,1),G124=INDEX(liste_energieträger,2)),H124,0)","v":0},{"$f":"IF(E124=INDEX(liste_energieträger,3),F124,0)+IF(G124=INDEX(liste_energieträger,3),H124,0)","v":0},{"$f":"IF(E124=INDEX(liste_energieträger,4),F124,0)+IF(G124=INDEX(liste_energieträger,4),H124,0)","v":0},{"$f":"IF(E124=INDEX(liste_energieträger,5),F124,0)+IF(G124=INDEX(liste_energieträger,5),H124,0)","v":0},{"$f":"IF(E124=INDEX(liste_energieträger,6),F124,0)+IF(G124=INDEX(liste_energieträger,6),H124,0)","v":0},{"$f":"F124+H124","v":0},{"$f":"GFÖG*I124*'Formular C'!$G$18/100 + GFF*J124*'Formular C'!$G$19/100 + GFH*K124*'Formular C'!$G$20/100 + GFW*L124*'Formular C'!$G$21/100 + GFE*M124*'Formular C'!$G$22/100","v":0},{"$f":"GFÖG*I124*('Formular C'!$E$18+'Formular C'!$F$18)/100 +\nGFF*J124*('Formular C'!$E$19+'Formular C'!$F$19)/100 +\nGFH*K124*('Formular C'!$E$20+'Formular C'!$F$20)/100 +\nGFW*L124*('Formular C'!$E$21+'Formular C'!$F$21)/100 +\nGFE*M124*('Formular C'!$E$22+'Formular C'!$F$22)/100","v":0},null,null,{"$f":"IF(Q124=INDEX(liste_bezugsgrössen,1),R124,0)","v":0},{"$f":"IF(Q124=INDEX(liste_bezugsgrössen,2),R124,0)","v":0},null,null,null,{"$f":"(F124*V124)+(H124*W124)","v":0},null,null,"","",{"$f":"IF(B124<>\"\",HYPERLINK($AF$8&AE124,\"Beschreibung \"&B124),\"\")","v":""},null,116,null,null,false,0,{"$f":"IF(AA124<Payback_Prozess,1,0)","v":0}]
[null,null,null,null,null,null,null,null,0,0,0,0,0,0,{"$f":"GFÖG*I125*'Formular C'!$G$18/100 + GFF*J125*'Formular C'!$G$19/100 + GFH*K125*'Formular C'!$G$20/100 + GFW*L125*'Formular C'!$G$21/100 + GFE*M125*'Formular C'!$G$22/100","v":0},{"$f":"GFÖG*I125*('Formular C'!$E$18+'Formular C'!$F$18)/100 +\nGFF*J125*('Formular C'!$E$19+'Formular C'!$F$19)/100 +\nGFH*K125*('Formular C'!$E$20+'Formular C'!$F$20)/100 +\nGFW*L125*('Formular C'!$E$21+'Formular C'!$F$21)/100 +\nGFE*M125*('Formular C'!$E$22+'Formular C'!$F$22)/100","v":0},null,null,0,0,null,null,null,0,null,null,"","",{"$f":"IF(B125<>\"\",HYPERLINK($AF$8&AE125,\"Beschreibung \"&B125),\"\")","v":""},null,117,null,null,false,0,0]
[null,null,null,null,null,null,null,null,0,0,0,0,0,0,{"$f":"GFÖG*I126*'Formular C'!$G$18/100 + GFF*J126*'Formular C'!$G$19/100 + GFH*K126*'Formular C'!$G$20/100 + GFW*L126*'Formular C'!$G$21/100 + GFE*M126*'Formular C'!$G$22/100","v":0},{"$f":"GFÖG*I126*('Formular C'!$E$18+'Formular C'!$F$18)/100 +\nGFF*J126*('Formular C'!$E$19+'Formular C'!$F$19)/100 +\nGFH*K126*('Formular C'!$E$20+'Formular C'!$F$20)/100 +\nGFW*L126*('Formular C'!$E$21+'Formular C'!$F$21)/100 +\nGFE*M126*('Formular C'!$E$22+'Formular C'!$F$22)/100","v":0},null,null,0,0,null,null,null,0,null,null,"","","",null,118,null,null,false,0,0]
[null,null,null,null,null,null,null,null,0,0,0,0,0,0,{"$f":"GFÖG*I127*'Formular C'!$G$18/100 + GFF*J127*'Formular C'!$G$19/100 + GFH*K127*'Formular C'!$G$20/100 + GFW*L127*'Formular C'!$G$21/100 + GFE*M127*'Formular C'!$G$22/100","v":0},{"$f":"GFÖG*I127*('Formular C'!$E$18+'Formular C'!$F$18)/100 +\nGFF*J127*('Formular C'!$E$19+'Formular C'!$F$19)/100 +\nGFH*K127*('Formular C'!$E$20+'Formular C'!$F$20)/100 +\nGFW*L127*('Formular C'!$E$21+'Formular C'!$F$21)/100 +\nGFE*M127*('Formular C'!$E$22+'Formular C'!$F$22)/100","v":0},null,null,0,0,null,null,null,0,null,null,"","","",null,119,null,null,false,0,0]
[null,null,null,null,null,null,null,null,0,0,0,0,0,0,{"$f":"GFÖG*I128*'Formular C'!$G$18/100 + GFF*J128*'Formular C'!$G$19/100 + GFH*K128*'Formular C'!$G$20/100 + GFW*L128*'Formular C'!$G$21/100 + GFE*M128*'Formular C'!$G$22/100","v":0},{"$f":"GFÖG*I128*('Formular C'!$E$18+'Formular C'!$F$18)/100 +\nGFF*J128*('Formular C'!$E$19+'Formular C'!$F$19)/100 +\nGFH*K128*('Formular C'!$E$20+'Formular C'!$F$20)/100 +\nGFW*L128*('Formular C'!$E$21+'Formular C'!$F$21)/100 +\nGFE*M128*('Formular C'!$E$22+'Formular C'!$F$22)/100","v":0},null,null,0,0,null,null,null,0,null,null,"","","",null,120,null,null,false,0,0]
[null,null,null,null,null,null,null,null,0,0,0,0,0,0,{"$f":"GFÖG*I129*'Formular C'!$G$18/100 + GFF*J129*'Formular C'!$G$19/100 + GFH*K129*'Formular C'!$G$20/100 + GFW*L129*'Formular C'!$G$21/100 + GFE*M129*'Formular C'!$G$22/100","v":0},{"$f":"GFÖG*I129*('Formular C'!$E$18+'Formular C'!$F$18)/100 +\nGFF*J129*('Formular C'!$E$19+'Formular C'!$F$19)/100 +\nGFH*K129*('Formular C'!$E$20+'Formular C'!$F$20)/100 +\nGFW*L129*('Formular C'!$E$21+'Formular C'!$F$21)/100 +\nGFE*M129*('Formular C'!$E$22+'Formular C'!$F$22)/100","v":0},null,null,0,0,null,null,null,0,null,null,"","","",null,121,null,null,false,0,0]
[null,null,null,null,null,null,null,null,0,0,0,0,0,0,{"$f":"GFÖG*I130*'Formular C'!$G$18/100 + GFF*J130*'Formular C'!$G$19/100 + GFH*K130*'Formular C'!$G$20/100 + GFW*L130*'Formular C'!$G$21/100 + GFE*M130*'Formular C'!$G$22/100","v":0},{"$f":"GFÖG*I130*('Formular C'!$E$18+'Formular C'!$F$18)/100 +\nGFF*J130*('Formular C'!$E$19+'Formular C'!$F$19)/100 +\nGFH*K130*('Formular C'!$E$20+'Formular C'!$F$20)/100 +\nGFW*L130*('Formular C'!$E$21+'Formular C'!$F$21)/100 +\nGFE*M130*('Formular C'!$E$22+'Formular C'!$F$22)/100","v":0},null,null,0,0,null,null,null,0,null,null,"","","",null,122,null,null,false,0,0]
[null,null,null,null,null,null,null,null,0,0,0,0,0,0,{"$f":"GFÖG*I131*'Formular C'!$G$18/100 + GFF*J131*'Formular C'!$G$19/100 + GFH*K131*'Formular C'!$G$20/100 + GFW*L131*'Formular C'!$G$21/100 + GFE*M131*'Formular C'!$G$22/100","v":0},{"$f":"GFÖG*I131*('Formular C'!$E$18+'Formular C'!$F$18)/100 +\nGFF*J131*('Formular C'!$E$19+'Formular C'!$F$19)/100 +\nGFH*K131*('Formular C'!$E$20+'Formular C'!$F$20)/100 +\nGFW*L131*('Formular C'!$E$21+'Formular C'!$F$21)/100 +\nGFE*M131*('Formular C'!$E$22+'Formular C'!$F$22)/100","v":0},null,null,0,0,null,null,null,0,null,null,"","","",null,123,null,null,false,0,0]
[null,null,null,null,null,null,null,null,0,0,0,0,0,0,{"$f":"GFÖG*I132*'Formular C'!$G$18/100 + GFF*J132*'Formular C'!$G$19/100 + GFH*K132*'Formular C'!$G$20/100 + GFW*L132*'Formular C'!$G$21/100 + GFE*M132*'Formular C'!$G$22/100","v":0},{"$f":"GFÖG*I132*('Formular C'!$E$18+'Formular C'!$F$18)/100 +\nGFF*J132*('Formular C'!$E$19+'Formular C'!$F$19)/100 +\nGFH*K132*('Formular C'!$E$20+'Formular C'!$F$20)/100 +\nGFW*L132*('Formular C'!$E$21+'Formular C'!$F$21)/100 +\nGFE*M132*('Formular C'!$E$22+'Formular C'!$F$22)/100","v":0},null,null,0,0,null,null,null,0,null,null,"","","",null,124,null,null,false,0,0]
[null,null,null,null,null,null,null,null,0,0,0,0,0,0,{"$f":"GFÖG*I133*'Formular C'!$G$18/100 + GFF*J133*'Formular C'!$G$19/100 + GFH*K133*'Formular C'!$G$20/100 + GFW*L133*'Formular C'!$G$21/100 + GFE*M133*'Formular C'!$G$22/100","v":0},{"$f":"GFÖG*I133*('Formular C'!$E$18+'Formular C'!$F$18)/100 +\nGFF*J133*('Formular C'!$E$19+'Formular C'!$F$19)/100 +\nGFH*K133*('Formular C'!$E$20+'Formular C'!$F$20)/100 +\nGFW*L133*('Formular C'!$E$21+'Formular C'!$F$21)/100 +\nGFE*M133*('Formular C'!$E$22+'Formular C'!$F$22)/100","v":0},null,null,0,0,null,null,null,0,null,null,"","","",null,125,null,null,false,0,0]
[null,null,null,null,null,null,null,null,0,0,0,0,0,0,{"$f":"GFÖG*I134*'Formular C'!$G$18/100 + GFF*J134*'Formular C'!$G$19/100 + GFH*K134*'Formular C'!$G$20/100 + GFW*L134*'Formular C'!$G$21/100 + GFE*M134*'Formular C'!$G$22/100","v":0},{"$f":"GFÖG*I134*('Formular C'!$E$18+'Formular C'!$F$18)/100 +\nGFF*J134*('Formular C'!$E$19+'Formular C'!$F$19)/100 +\nGFH*K134*('Formular C'!$E$20+'Formular C'!$F$20)/100 +\nGFW*L134*('Formular C'!$E$21+'Formular C'!$F$21)/100 +\nGFE*M134*('Formular C'!$E$22+'Formular C'!$F$22)/100","v":0},null,null,0,0,null,null,null,0,null,null,"","","",null,126,null,null,false,0,0]
[null,null,null,null,null,null,null,null,0,0,0,0,0,0,{"$f":"GFÖG*I135*'Formular C'!$G$18/100 + GFF*J135*'Formular C'!$G$19/100 + GFH*K135*'Formular C'!$G$20/100 + GFW*L135*'Formular C'!$G$21/100 + GFE*M135*'Formular C'!$G$22/100","v":0},{"$f":"GFÖG*I135*('Formular C'!$E$18+'Formular C'!$F$18)/100 +\nGFF*J135*('Formular C'!$E$19+'Formular C'!$F$19)/100 +\nGFH*K135*('Formular C'!$E$20+'Formular C'!$F$20)/100 +\nGFW*L135*('Formular C'!$E$21+'Formular C'!$F$21)/100 +\nGFE*M135*('Formular C'!$E$22+'Formular C'!$F$22)/100","v":0},null,null,0,0,null,null,null,0,null,null,"","","",null,127,null,null,false,0,0]
[null,null,null,null,null,null,null,null,0,0,0,0,0,0,{"$f":"GFÖG*I136*'Formular C'!$G$18/100 + GFF*J136*'Formular C'!$G$19/100 + GFH*K136*'Formular C'!$G$20/100 + GFW*L136*'Formular C'!$G$21/100 + GFE*M136*'Formular C'!$G$22/100","v":0},{"$f":"GFÖG*I136*('Formular C'!$E$18+'Formular C'!$F$18)/100 +\nGFF*J136*('Formular C'!$E$19+'Formular C'!$F$19)/100 +\nGFH*K136*('Formular C'!$E$20+'Formular C'!$F$20)/100 +\nGFW*L136*('Formular C'!$E$21+'Formular C'!$F$21)/100 +\nGFE*M136*('Formular C'!$E$22+'Formular C'!$F$22)/100","v":0},null,null,0,0,null,null,null,0,null,null,"","","",null,128,null,null,false,0,0]
[null,null,null,null,null,null,null,null,0,0,0,0,0,0,{"$f":"GFÖG*I137*'Formular C'!$G$18/100 + GFF*J137*'Formular C'!$G$19/100 + GFH*K137*'Formular C'!$G$20/100 + GFW*L137*'Formular C'!$G$21/100 + GFE*M137*'Formular C'!$G$22/100","v":0},{"$f":"GFÖG*I137*('Formular C'!$E$18+'Formular C'!$F$18)/100 +\nGFF*J137*('Formular C'!$E$19+'Formular C'!$F$19)/100 +\nGFH*K137*('Formular C'!$E$20+'Formular C'!$F$20)/100 +\nGFW*L137*('Formular C'!$E$21+'Formular C'!$F$21)/100 +\nGFE*M137*('Formular C'!$E$22+'Formular C'!$F$22)/100","v":0},null,null,0,0,null,null,null,0,null,null,"","","",null,129,null,null,false,0,0]
[null,null,null,null,null,null,null,null,0,0,0,0,0,0,{"$f":"GFÖG*I138*'Formular C'!$G$18/100 + GFF*J138*'Formular C'!$G$19/100 + GFH*K138*'Formular C'!$G$20/100 + GFW*L138*'Formular C'!$G$21/100 + GFE*M138*'Formular C'!$G$22/100","v":0},{"$f":"GFÖG*I138*('Formular C'!$E$18+'Formular C'!$F$18)/100 +\nGFF*J138*('Formular C'!$E$19+'Formular C'!$F$19)/100 +\nGFH*K138*('Formular C'!$E$20+'Formular C'!$F$20)/100 +\nGFW*L138*('Formular C'!$E$21+'Formular C'!$F$21)/100 +\nGFE*M138*('Formular C'!$E$22+'Formular C'!$F$22)/100","v":0},null,null,0,0,null,null,null,0,null,null,"","","",null,130,null,null,false,0,0]
[null,null,null,null,null,null,null,null,0,0,0,0,0,0,{"$f":"GFÖG*I139*'Formular C'!$G$18/100 + GFF*J139*'Formular C'!$G$19/100 + GFH*K139*'Formular C'!$G$20/100 + GFW*L139*'Formular C'!$G$21/100 + GFE*M139*'Formular C'!$G$22/100","v":0},{"$f":"GFÖG*I139*('Formular C'!$E$18+'Formular C'!$F$18)/100 +\nGFF*J139*('Formular C'!$E$19+'Formular C'!$F$19)/100 +\nGFH*K139*('Formular C'!$E$20+'Formular C'!$F$20)/100 +\nGFW*L139*('Formular C'!$E$21+'Formular C'!$F$21)/100 +\nGFE*M139*('Formular C'!$E$22+'Formular C'!$F$22)/100","v":0},null,null,0,0,null,null,null,0,null,null,"","","",null,131,null,null,false,0,0]
[null,null,null,null,null,null,null,null,0,0,0,0,0,0,{"$f":"GFÖG*I140*'Formular C'!$G$18/100 + GFF*J140*'Formular C'!$G$19/100 + GFH*K140*'Formular C'!$G$20/100 + GFW*L140*'Formular C'!$G$21/100 + GFE*M140*'Formular C'!$G$22/100","v":0},{"$f":"GFÖG*I140*('Formular C'!$E$18+'Formular C'!$F$18)/100 +\nGFF*J140*('Formular C'!$E$19+'Formular C'!$F$19)/100 +\nGFH*K140*('Formular C'!$E$20+'Formular C'!$F$20)/100 +\nGFW*L140*('Formular C'!$E$21+'Formular C'!$F$21)/100 +\nGFE*M140*('Formular C'!$E$22+'Formular C'!$F$22)/100","v":0},null,null,0,0,null,null,null,0,null,null,"","","",null,132,null,null,false,0,0]
[null,null,null,null,null,null,null,null,0,0,0,0,0,0,{"$f":"GFÖG*I141*'Formular C'!$G$18/100 + GFF*J141*'Formular C'!$G$19/100 + GFH*K141*'Formular C'!$G$20/100 + GFW*L141*'Formular C'!$G$21/100 + GFE*M141*'Formular C'!$G$22/100","v":0},{"$f":"GFÖG*I141*('Formular C'!$E$18+'Formular C'!$F$18)/100 +\nGFF*J141*('Formular C'!$E$19+'Formular C'!$F$19)/100 +\nGFH*K141*('Formular C'!$E$20+'Formular C'!$F$20)/100 +\nGFW*L141*('Formular C'!$E$21+'Formular C'!$F$21)/100 +\nGFE*M141*('Formular C'!$E$22+'Formular C'!$F$22)/100","v":0},null,null,0,0,null,null,null,0,null,null,"","","",null,133,null,null,false,0,0]
[null,null,null,null,null,null,null,null,0,0,0,0,0,0,{"$f":"GFÖG*I142*'Formular C'!$G$18/100 + GFF*J142*'Formular C'!$G$19/100 + GFH*K142*'Formular C'!$G$20/100 + GFW*L142*'Formular C'!$G$21/100 + GFE*M142*'Formular C'!$G$22/100","v":0},{"$f":"GFÖG*I142*('Formular C'!$E$18+'Formular C'!$F$18)/100 +\nGFF*J142*('Formular C'!$E$19+'Formular C'!$F$19)/100 +\nGFH*K142*('Formular C'!$E$20+'Formular C'!$F$20)/100 +\nGFW*L142*('Formular C'!$E$21+'Formular C'!$F$21)/100 +\nGFE*M142*('Formular C'!$E$22+'Formular C'!$F$22)/100","v":0},null,null,0,0,null,null,null,0,null,null,"","","",null,134,null,null,false,0,0]
[null,null,null,null,null,null,null,null,0,0,0,0,0,0,{"$f":"GFÖG*I143*'Formular C'!$G$18/100 + GFF*J143*'Formular C'!$G$19/100 + GFH*K143*'Formular C'!$G$20/100 + GFW*L143*'Formular C'!$G$21/100 + GFE*M143*'Formular C'!$G$22/100","v":0},{"$f":"GFÖG*I143*('Formular C'!$E$18+'Formular C'!$F$18)/100 +\nGFF*J143*('Formular C'!$E$19+'Formular C'!$F$19)/100 +\nGFH*K143*('Formular C'!$E$20+'Formular C'!$F$20)/100 +\nGFW*L143*('Formular C'!$E$21+'Formular C'!$F$21)/100 +\nGFE*M143*('Formular C'!$E$22+'Formular C'!$F$22)/100","v":0},null,null,0,0,null,null,null,0,null,null,"","","",null,135,null,null,false,0,0]
[null,null,null,null,null,null,null,null,0,0,0,0,0,0,{"$f":"GFÖG*I144*'Formular C'!$G$18/100 + GFF*J144*'Formular C'!$G$19/100 + GFH*K144*'Formular C'!$G$20/100 + GFW*L144*'Formular C'!$G$21/100 + GFE*M144*'Formular C'!$G$22/100","v":0},{"$f":"GFÖG*I144*('Formular C'!$E$18+'Formular C'!$F$18)/100 +\nGFF*J144*('Formular C'!$E$19+'Formular C'!$F$19)/100 +\nGFH*K144*('Formular C'!$E$20+'Formular C'!$F$20)/100 +\nGFW*L144*('Formular C'!$E$21+'Formular C'!$F$21)/100 +\nGFE*M144*('Formular C'!$E$22+'Formular C'!$F$22)/100","v":0},null,null,0,0,null,null,null,0,null,null,"","","",null,136,null,null,false,0,0]
[null,null,null,null,null,null,null,null,0,0,0,0,0,0,{"$f":"GFÖG*I145*'Formular C'!$G$18/100 + GFF*J145*'Formular C'!$G$19/100 + GFH*K145*'Formular C'!$G$20/100 + GFW*L145*'Formular C'!$G$21/100 + GFE*M145*'Formular C'!$G$22/100","v":0},{"$f":"GFÖG*I145*('Formular C'!$E$18+'Formular C'!$F$18)/100 +\nGFF*J145*('Formular C'!$E$19+'Formular C'!$F$19)/100 +\nGFH*K145*('Formular C'!$E$20+'Formular C'!$F$20)/100 +\nGFW*L145*('Formular C'!$E$21+'Formular C'!$F$21)/100 +\nGFE*M145*('Formular C'!$E$22+'Formular C'!$F$22)/100","v":0},null,null,0,0,null,null,null,0,null,null,"","","",null,137,null,null,false,0,0]
[null,null,null,null,null,null,null,null,0,0,0,0,0,0,{"$f":"GFÖG*I146*'Formular C'!$G$18/100 + GFF*J146*'Formular C'!$G$19/100 + GFH*K146*'Formular C'!$G$20/100 + GFW*L146*'Formular C'!$G$21/100 + GFE*M146*'Formular C'!$G$22/100","v":0},{"$f":"GFÖG*I146*('Formular C'!$E$18+'Formular C'!$F$18)/100 +\nGFF*J146*('Formular C'!$E$19+'Formular C'!$F$19)/100 +\nGFH*K146*('Formular C'!$E$20+'Formular C'!$F$20)/100 +\nGFW*L146*('Formular C'!$E$21+'Formular C'!$F$21)/100 +\nGFE*M146*('Formular C'!$E$22+'Formular C'!$F$22)/100","v":0},null,null,0,0,null,null,null,0,null,null,"","","",null,138,null,null,false,0,0]
[null,null,null,null,null,null,null,null,0,0,0,0,0,0,{"$f":"GFÖG*I147*'Formular C'!$G$18/100 + GFF*J147*'Formular C'!$G$19/100 + GFH*K147*'Formular C'!$G$20/100 + GFW*L147*'Formular C'!$G$21/100 + GFE*M147*'Formular C'!$G$22/100","v":0},{"$f":"GFÖG*I147*('Formular C'!$E$18+'Formular C'!$F$18)/100 +\nGFF*J147*('Formular C'!$E$19+'Formular C'!$F$19)/100 +\nGFH*K147*('Formular C'!$E$20+'Formular C'!$F$20)/100 +\nGFW*L147*('Formular C'!$E$21+'Formular C'!$F$21)/100 +\nGFE*M147*('Formular C'!$E$22+'Formular C'!$F$22)/100","v":0},null,null,0,0,null,null,null,0,null,null,"","","",null,139,null,null,false,0,0]
[null,null,null,null,null,null,null,null,0,0,0,0,0,0,{"$f":"GFÖG*I148*'Formular C'!$G$18/100 + GFF*J148*'Formular C'!$G$19/100 + GFH*K148*'Formular C'!$G$20/100 + GFW*L148*'Formular C'!$G$21/100 + GFE*M148*'Formular C'!$G$22/100","v":0},{"$f":"GFÖG*I148*('Formular C'!$E$18+'Formular C'!$F$18)/100 +\nGFF*J148*('Formular C'!$E$19+'Formular C'!$F$19)/100 +\nGFH*K148*('Formular C'!$E$20+'Formular C'!$F$20)/100 +\nGFW*L148*('Formular C'!$E$21+'Formular C'!$F$21)/100 +\nGFE*M148*('Formular C'!$E$22+'Formular C'!$F$22)/100","v":0},null,null,0,0,null,null,null,0,null,null,"","","",null,140,null,null,false,0,0]
[null,null,null,null,null,null,null,null,0,0,0,0,0,0,{"$f":"GFÖG*I149*'Formular C'!$G$18/100 + GFF*J149*'Formular C'!$G$19/100 + GFH*K149*'Formular C'!$G$20/100 + GFW*L149*'Formular C'!$G$21/100 + GFE*M149*'Formular C'!$G$22/100","v":0},{"$f":"GFÖG*I149*('Formular C'!$E$18+'Formular C'!$F$18)/100 +\nGFF*J149*('Formular C'!$E$19+'Formular C'!$F$19)/100 +\nGFH*K149*('Formular C'!$E$20+'Formular C'!$F$20)/100 +\nGFW*L149*('Formular C'!$E$21+'Formular C'!$F$21)/100 +\nGFE*M149*('Formular C'!$E$22+'Formular C'!$F$22)/100","v":0},null,null,0,0,null,null,null,0,null,null,"","","",null,141,null,null,false,0,0]
[null,null,null,null,null,null,null,null,0,0,0,0,0,0,{"$f":"GFÖG*I150*'Formular C'!$G$18/100 + GFF*J150*'Formular C'!$G$19/100 + GFH*K150*'Formular C'!$G$20/100 + GFW*L150*'Formular C'!$G$21/100 + GFE*M150*'Formular C'!$G$22/100","v":0},{"$f":"GFÖG*I150*('Formular C'!$E$18+'Formular C'!$F$18)/100 +\nGFF*J150*('Formular C'!$E$19+'Formular C'!$F$19)/100 +\nGFH*K150*('Formular C'!$E$20+'Formular C'!$F$20)/100 +\nGFW*L150*('Formular C'!$E$21+'Formular C'!$F$21)/100 +\nGFE*M150*('Formular C'!$E$22+'Formular C'!$F$22)/100","v":0},null,null,0,0,null,null,null,0,null,null,"","","",null,142,null,null,false,0,0]
[null,null,null,null,null,null,null,null,0,0,0,0,0,0,{"$f":"GFÖG*I151*'Formular C'!$G$18/100 + GFF*J151*'Formular C'!$G$19/100 + GFH*K151*'Formular C'!$G$20/100 + GFW*L151*'Formular C'!$G$21/100 + GFE*M151*'Formular C'!$G$22/100","v":0},{"$f":"GFÖG*I151*('Formular C'!$E$18+'Formular C'!$F$18)/100 +\nGFF*J151*('Formular C'!$E$19+'Formular C'!$F$19)/100 +\nGFH*K151*('Formular C'!$E$20+'Formular C'!$F$20)/100 +\nGFW*L151*('Formular C'!$E$21+'Formular C'!$F$21)/100 +\nGFE*M151*('Formular C'!$E$22+'Formular C'!$F$22)/100","v":0},null,null,0,0,null,null,null,0,null,null,{"$f":"IF(X151=0, \"\",Y151*Z151/X151)","v":""},{"$f":"IF(AJ151,\"X\",\"\")","v":""},"",null,143,null,null,{"$f":"ISNUMBER(U151)","v":false},{"$f":"IF(AB151=\"X\",1,0)","v":0},0]
[null,null,null,null,null,null,null,null,0,0,0,0,0,0,{"$f":"GFÖG*I152*'Formular C'!$G$18/100 + GFF*J152*'Formular C'!$G$19/100 + GFH*K152*'Formular C'!$G$20/100 + GFW*L152*'Formular C'!$G$21/100 + GFE*M152*'Formular C'!$G$22/100","v":0},{"$f":"GFÖG*I152*('Formular C'!$E$18+'Formular C'!$F$18)/100 +\nGFF*J152*('Formular C'!$E$19+'Formular C'!$F$19)/100 +\nGFH*K152*('Formular C'!$E$20+'Formular C'!$F$20)/100 +\nGFW*L152*('Formular C'!$E$21+'Formular C'!$F$21)/100 +\nGFE*M152*('Formular C'!$E$22+'Formular C'!$F$22)/100","v":0},null,null,0,0,null,null,null,0,null,null,"","","",null,{"$f":"AE151+1","v":144},null,null,false,0,0]
[null,null,null,null,null,null,null,null,0,0,0,0,0,0,{"$f":"GFÖG*I153*'Formular C'!$G$18/100 + GFF*J153*'Formular C'!$G$19/100 + GFH*K153*'Formular C'!$G$20/100 + GFW*L153*'Formular C'!$G$21/100 + GFE*M153*'Formular C'!$G$22/100","v":0},{"$f":"GFÖG*I153*('Formular C'!$E$18+'Formular C'!$F$18)/100 +\nGFF*J153*('Formular C'!$E$19+'Formular C'!$F$19)/100 +\nGFH*K153*('Formular C'!$E$20+'Formular C'!$F$20)/100 +\nGFW*L153*('Formular C'!$E$21+'Formular C'!$F$21)/100 +\nGFE*M153*('Formular C'!$E$22+'Formular C'!$F$22)/100","v":0},null,null,0,0,null,null,null,0,null,null,"","","",null,145,null,null,false,0,0]
[null,null,null,null,null,null,null,null,0,0,0,0,0,0,{"$f":"GFÖG*I154*'Formular C'!$G$18/100 + GFF*J154*'Formular C'!$G$19/100 + GFH*K154*'Formular C'!$G$20/100 + GFW*L154*'Formular C'!$G$21/100 + GFE*M154*'Formular C'!$G$22/100","v":0},{"$f":"GFÖG*I154*('Formular C'!$E$18+'Formular C'!$F$18)/100 +\nGFF*J154*('Formular C'!$E$19+'Formular C'!$F$19)/100 +\nGFH*K154*('Formular C'!$E$20+'Formular C'!$F$20)/100 +\nGFW*L154*('Formular C'!$E$21+'Formular C'!$F$21)/100 +\nGFE*M154*('Formular C'!$E$22+'Formular C'!$F$22)/100","v":0},null,null,0,0,null,null,null,0,null,null,"","","",null,146,null,null,false,0,0]
[null,null,null,null,null,null,null,null,0,0,0,0,0,0,{"$f":"GFÖG*I155*'Formular C'!$G$18/100 + GFF*J155*'Formular C'!$G$19/100 + GFH*K155*'Formular C'!$G$20/100 + GFW*L155*'Formular C'!$G$21/100 + GFE*M155*'Formular C'!$G$22/100","v":0},{"$f":"GFÖG*I155*('Formular C'!$E$18+'Formular C'!$F$18)/100 +\nGFF*J155*('Formular C'!$E$19+'Formular C'!$F$19)/100 +\nGFH*K155*('Formular C'!$E$20+'Formular C'!$F$20)/100 +\nGFW*L155*('Formular C'!$E$21+'Formular C'!$F$21)/100 +\nGFE*M155*('Formular C'!$E$22+'Formular C'!$F$22)/100","v":0},null,null,0,0,null,null,null,0,null,null,"","","",null,147,null,null,false,0,0]
[null,null,null,null,null,null,null,null,{"$f":"IF(OR(E156=INDEX(liste_energieträger,1),E156=INDEX(liste_energieträger,2)),F156,0)+IF(OR(G156=INDEX(liste_energieträger,1),G156=INDEX(liste_energieträger,2)),H156,0)","v":0},{"$f":"IF(E156=INDEX(liste_energieträger,3),F156,0)+IF(G156=INDEX(liste_energieträger,3),H156,0)","v":0},{"$f":"IF(E156=INDEX(liste_energieträger,4),F156,0)+IF(G156=INDEX(liste_energieträger,4),H156,0)","v":0},{"$f":"IF(E156=INDEX(liste_energieträger,5),F156,0)+IF(G156=INDEX(liste_energieträger,5),H156,0)","v":0},{"$f":"IF(E156=INDEX(liste_energieträger,6),F156,0)+IF(G156=INDEX(liste_energieträger,6),H156,0)","v":0},{"$f":"F156+H156","v":0},{"$f":"GFÖG*I156*'Formular C'!$G$18/100 + GFF*J156*'Formular C'!$G$19/100 + GFH*K156*'Formular C'!$G$20/100 + GFW*L156*'Formular C'!$G$21/100 + GFE*M156*'Formular C'!$G$22/100","v":0},{"$f":"GFÖG*I156*('Formular C'!$E$18+'Formular C'!$F$18)/100 +\nGFF*J156*('Formular C'!$E$19+'Formular C'!$F$19)/100 +\nGFH*K156*('Formular C'!$E$20+'Formular C'!$F$20)/100 +\nGFW*L156*('Formular C'!$E$21+'Formular C'!$F$21)/100 +\nGFE*M156*('Formular C'!$E$22+'Formular C'!$F$22)/100","v":0},null,null,{"$f":"IF(Q156=INDEX(liste_bezugsgrössen,1),R156,0)","v":0},{"$f":"IF(Q156=INDEX(liste_bezugsgrössen,2),R156,0)","v":0},null,null,null,{"$f":"(F156*V156)+(H156*W156)","v":0},null,null,"","","",null,148,null,null,false,0,{"$f":"IF(AA156<Payback_Prozess,1,0)","v":0}]
[null,null,null,null,null,null,null,null,0,0,0,0,0,0,{"$f":"GFÖG*I157*'Formular C'!$G$18/100 + GFF*J157*'Formular C'!$G$19/100 + GFH*K157*'Formular C'!$G$20/100 + GFW*L157*'Formular C'!$G$21/100 + GFE*M157*'Formular C'!$G$22/100","v":0},{"$f":"GFÖG*I157*('Formular C'!$E$18+'Formular C'!$F$18)/100 +\nGFF*J157*('Formular C'!$E$19+'Formular C'!$F$19)/100 +\nGFH*K157*('Formular C'!$E$20+'Formular C'!$F$20)/100 +\nGFW*L157*('Formular C'!$E$21+'Formular C'!$F$21)/100 +\nGFE*M157*('Formular C'!$E$22+'Formular C'!$F$22)/100","v":0},null,null,0,0,null,null,null,0,null,null,"","","",null,149,null,null,false,0,0]
[null,null,null,null,null,null,null,null,0,0,0,0,0,0,{"$f":"GFÖG*I158*'Formular C'!$G$18/100 + GFF*J158*'Formular C'!$G$19/100 + GFH*K158*'Formular C'!$G$20/100 + GFW*L158*'Formular C'!$G$21/100 + GFE*M158*'Formular C'!$G$22/100","v":0},{"$f":"GFÖG*I158*('Formular C'!$E$18+'Formular C'!$F$18)/100 +\nGFF*J158*('Formular C'!$E$19+'Formular C'!$F$19)/100 +\nGFH*K158*('Formular C'!$E$20+'Formular C'!$F$20)/100 +\nGFW*L158*('Formular C'!$E$21+'Formular C'!$F$21)/100 +\nGFE*M158*('Formular C'!$E$22+'Formular C'!$F$22)/100","v":0},null,null,0,0,null,null,null,0,null,null,"","","",null,150,null,null,false,0,0]
[null,null,null,null,null,null,null,null,0,0,0,0,0,0,{"$f":"GFÖG*I159*'Formular C'!$G$18/100 + GFF*J159*'Formular C'!$G$19/100 + GFH*K159*'Formular C'!$G$20/100 + GFW*L159*'Formular C'!$G$21/100 + GFE*M159*'Formular C'!$G$22/100","v":0},{"$f":"GFÖG*I159*('Formular C'!$E$18+'Formular C'!$F$18)/100 +\nGFF*J159*('Formular C'!$E$19+'Formular C'!$F$19)/100 +\nGFH*K159*('Formular C'!$E$20+'Formular C'!$F$20)/100 +\nGFW*L159*('Formular C'!$E$21+'Formular C'!$F$21)/100 +\nGFE*M159*('Formular C'!$E$22+'Formular C'!$F$22)/100","v":0},null,null,0,0,null,null,null,0,null,null,"","","",null,151,null,null,false,0,0]
[null,null,null,null,null,null,null,null,0,0,0,0,0,0,{"$f":"GFÖG*I160*'Formular C'!$G$18/100 + GFF*J160*'Formular C'!$G$19/100 + GFH*K160*'Formular C'!$G$20/100 + GFW*L160*'Formular C'!$G$21/100 + GFE*M160*'Formular C'!$G$22/100","v":0},{"$f":"GFÖG*I160*('Formular C'!$E$18+'Formular C'!$F$18)/100 +\nGFF*J160*('Formular C'!$E$19+'Formular C'!$F$19)/100 +\nGFH*K160*('Formular C'!$E$20+'Formular C'!$F$20)/100 +\nGFW*L160*('Formular C'!$E$21+'Formular C'!$F$21)/100 +\nGFE*M160*('Formular C'!$E$22+'Formular C'!$F$22)/100","v":0},null,null,0,0,null,null,null,0,null,null,"","","",null,152,null,null,false,0,0]
[null,null,null,null,null,null,null,null,0,0,0,0,0,0,{"$f":"GFÖG*I161*'Formular C'!$G$18/100 + GFF*J161*'Formular C'!$G$19/100 + GFH*K161*'Formular C'!$G$20/100 + GFW*L161*'Formular C'!$G$21/100 + GFE*M161*'Formular C'!$G$22/100","v":0},{"$f":"GFÖG*I161*('Formular C'!$E$18+'Formular C'!$F$18)/100 +\nGFF*J161*('Formular C'!$E$19+'Formular C'!$F$19)/100 +\nGFH*K161*('Formular C'!$E$20+'Formular C'!$F$20)/100 +\nGFW*L161*('Formular C'!$E$21+'Formular C'!$F$21)/100 +\nGFE*M161*('Formular C'!$E$22+'Formular C'!$F$22)/100","v":0},null,null,0,0,null,null,null,0,null,null,"","","",null,153,null,null,false,0,0]
[null,null,null,null,null,null,null,null,0,0,0,0,0,0,{"$f":"GFÖG*I162*'Formular C'!$G$18/100 + GFF*J162*'Formular C'!$G$19/100 + GFH*K162*'Formular C'!$G$20/100 + GFW*L162*'Formular C'!$G$21/100 + GFE*M162*'Formular C'!$G$22/100","v":0},{"$f":"GFÖG*I162*('Formular C'!$E$18+'Formular C'!$F$18)/100 +\nGFF*J162*('Formular C'!$E$19+'Formular C'!$F$19)/100 +\nGFH*K162*('Formular C'!$E$20+'Formular C'!$F$20)/100 +\nGFW*L162*('Formular C'!$E$21+'Formular C'!$F$21)/100 +\nGFE*M162*('Formular C'!$E$22+'Formular C'!$F$22)/100","v":0},null,null,0,0,null,null,null,0,null,null,"","","",null,154,null,null,false,0,0]
[null,null,null,null,null,null,null,null,0,0,0,0,0,0,{"$f":"GFÖG*I163*'Formular C'!$G$18/100 + GFF*J163*'Formular C'!$G$19/100 + GFH*K163*'Formular C'!$G$20/100 + GFW*L163*'Formular C'!$G$21/100 + GFE*M163*'Formular C'!$G$22/100","v":0},{"$f":"GFÖG*I163*('Formular C'!$E$18+'Formular C'!$F$18)/100 +\nGFF*J163*('Formular C'!$E$19+'Formular C'!$F$19)/100 +\nGFH*K163*('Formular C'!$E$20+'Formular C'!$F$20)/100 +\nGFW*L163*('Formular C'!$E$21+'Formular C'!$F$21)/100 +\nGFE*M163*('Formular C'!$E$22+'Formular C'!$F$22)/100","v":0},null,null,0,0,null,null,null,0,null,null,"","","",null,155,null,null,false,0,0]
[null,null,null,null,null,null,null,null,0,0,0,0,0,0,{"$f":"GFÖG*I164*'Formular C'!$G$18/100 + GFF*J164*'Formular C'!$G$19/100 + GFH*K164*'Formular C'!$G$20/100 + GFW*L164*'Formular C'!$G$21/100 + GFE*M164*'Formular C'!$G$22/100","v":0},{"$f":"GFÖG*I164*('Formular C'!$E$18+'Formular C'!$F$18)/100 +\nGFF*J164*('Formular C'!$E$19+'Formular C'!$F$19)/100 +\nGFH*K164*('Formular C'!$E$20+'Formular C'!$F$20)/100 +\nGFW*L164*('Formular C'!$E$21+'Formular C'!$F$21)/100 +\nGFE*M164*('Formular C'!$E$22+'Formular C'!$F$22)/100","v":0},null,null,0,0,null,null,null,0,null,null,"","","",null,156,null,null,false,0,0]
[null,null,null,null,null,null,null,null,0,0,0,0,0,0,{"$f":"GFÖG*I165*'Formular C'!$G$18/100 + GFF*J165*'Formular C'!$G$19/100 + GFH*K165*'Formular C'!$G$20/100 + GFW*L165*'Formular C'!$G$21/100 + GFE*M165*'Formular C'!$G$22/100","v":0},{"$f":"GFÖG*I165*('Formular C'!$E$18+'Formular C'!$F$18)/100 +\nGFF*J165*('Formular C'!$E$19+'Formular C'!$F$19)/100 +\nGFH*K165*('Formular C'!$E$20+'Formular C'!$F$20)/100 +\nGFW*L165*('Formular C'!$E$21+'Formular C'!$F$21)/100 +\nGFE*M165*('Formular C'!$E$22+'Formular C'!$F$22)/100","v":0},null,null,0,0,null,null,null,0,null,null,"","","",null,157,null,null,false,0,0]
[null,null,null,null,null,null,null,null,0,0,0,0,0,0,{"$f":"GFÖG*I166*'Formular C'!$G$18/100 + GFF*J166*'Formular C'!$G$19/100 + GFH*K166*'Formular C'!$G$20/100 + GFW*L166*'Formular C'!$G$21/100 + GFE*M166*'Formular C'!$G$22/100","v":0},{"$f":"GFÖG*I166*('Formular C'!$E$18+'Formular C'!$F$18)/100 +\nGFF*J166*('Formular C'!$E$19+'Formular C'!$F$19)/100 +\nGFH*K166*('Formular C'!$E$20+'Formular C'!$F$20)/100 +\nGFW*L166*('Formular C'!$E$21+'Formular C'!$F$21)/100 +\nGFE*M166*('Formular C'!$E$22+'Formular C'!$F$22)/100","v":0},null,null,0,0,null,null,null,0,null,null,"","","",null,158,null,null,false,0,0]
[null,null,null,null,null,null,null,null,0,0,0,0,0,0,{"$f":"GFÖG*I167*'Formular C'!$G$18/100 + GFF*J167*'Formular C'!$G$19/100 + GFH*K167*'Formular C'!$G$20/100 + GFW*L167*'Formular C'!$G$21/100 + GFE*M167*'Formular C'!$G$22/100","v":0},{"$f":"GFÖG*I167*('Formular C'!$E$18+'Formular C'!$F$18)/100 +\nGFF*J167*('Formular C'!$E$19+'Formular C'!$F$19)/100 +\nGFH*K167*('Formular C'!$E$20+'Formular C'!$F$20)/100 +\nGFW*L167*('Formular C'!$E$21+'Formular C'!$F$21)/100 +\nGFE*M167*('Formular C'!$E$22+'Formular C'!$F$22)/100","v":0},null,null,0,0,null,null,null,0,null,null,"","","",null,159,null,null,false,0,0]
[null,null,null,null,null,null,null,null,0,0,0,0,0,0,{"$f":"GFÖG*I168*'Formular C'!$G$18/100 + GFF*J168*'Formular C'!$G$19/100 + GFH*K168*'Formular C'!$G$20/100 + GFW*L168*'Formular C'!$G$21/100 + GFE*M168*'Formular C'!$G$22/100","v":0},{"$f":"GFÖG*I168*('Formular C'!$E$18+'Formular C'!$F$18)/100 +\nGFF*J168*('Formular C'!$E$19+'Formular C'!$F$19)/100 +\nGFH*K168*('Formular C'!$E$20+'Formular C'!$F$20)/100 +\nGFW*L168*('Formular C'!$E$21+'Formular C'!$F$21)/100 +\nGFE*M168*('Formular C'!$E$22+'Formular C'!$F$22)/100","v":0},null,null,0,0,null,null,null,0,null,null,"","","",null,160,null,null,false,0,0]
[null,null,null,null,null,null,null,null,0,0,0,0,0,0,{"$f":"GFÖG*I169*'Formular C'!$G$18/100 + GFF*J169*'Formular C'!$G$19/100 + GFH*K169*'Formular C'!$G$20/100 + GFW*L169*'Formular C'!$G$21/100 + GFE*M169*'Formular C'!$G$22/100","v":0},{"$f":"GFÖG*I169*('Formular C'!$E$18+'Formular C'!$F$18)/100 +\nGFF*J169*('Formular C'!$E$19+'Formular C'!$F$19)/100 +\nGFH*K169*('Formular C'!$E$20+'Formular C'!$F$20)/100 +\nGFW*L169*('Formular C'!$E$21+'Formular C'!$F$21)/100 +\nGFE*M169*('Formular C'!$E$22+'Formular C'!$F$22)/100","v":0},null,null,0,0,null,null,null,0,null,null,"","","",null,161,null,null,false,0,0]
[null,null,null,null,null,null,null,null,0,0,0,0,0,0,{"$f":"GFÖG*I170*'Formular C'!$G$18/100 + GFF*J170*'Formular C'!$G$19/100 + GFH*K170*'Formular C'!$G$20/100 + GFW*L170*'Formular C'!$G$21/100 + GFE*M170*'Formular C'!$G$22/100","v":0},{"$f":"GFÖG*I170*('Formular C'!$E$18+'Formular C'!$F$18)/100 +\nGFF*J170*('Formular C'!$E$19+'Formular C'!$F$19)/100 +\nGFH*K170*('Formular C'!$E$20+'Formular C'!$F$20)/100 +\nGFW*L170*('Formular C'!$E$21+'Formular C'!$F$21)/100 +\nGFE*M170*('Formular C'!$E$22+'Formular C'!$F$22)/100","v":0},null,null,0,0,null,null,null,0,null,null,"","","",null,162,null,null,false,0,0]
[null,null,null,null,null,null,null,null,0,0,0,0,0,0,{"$f":"GFÖG*I171*'Formular C'!$G$18/100 + GFF*J171*'Formular C'!$G$19/100 + GFH*K171*'Formular C'!$G$20/100 + GFW*L171*'Formular C'!$G$21/100 + GFE*M171*'Formular C'!$G$22/100","v":0},{"$f":"GFÖG*I171*('Formular C'!$E$18+'Formular C'!$F$18)/100 +\nGFF*J171*('Formular C'!$E$19+'Formular C'!$F$19)/100 +\nGFH*K171*('Formular C'!$E$20+'Formular C'!$F$20)/100 +\nGFW*L171*('Formular C'!$E$21+'Formular C'!$F$21)/100 +\nGFE*M171*('Formular C'!$E$22+'Formular C'!$F$22)/100","v":0},null,null,0,0,null,null,null,0,null,null,"","","",null,163,null,null,false,0,0]
[null,null,null,null,null,null,null,null,0,0,0,0,0,0,{"$f":"GFÖG*I172*'Formular C'!$G$18/100 + GFF*J172*'Formular C'!$G$19/100 + GFH*K172*'Formular C'!$G$20/100 + GFW*L172*'Formular C'!$G$21/100 + GFE*M172*'Formular C'!$G$22/100","v":0},{"$f":"GFÖG*I172*('Formular C'!$E$18+'Formular C'!$F$18)/100 +\nGFF*J172*('Formular C'!$E$19+'Formular C'!$F$19)/100 +\nGFH*K172*('Formular C'!$E$20+'Formular C'!$F$20)/100 +\nGFW*L172*('Formular C'!$E$21+'Formular C'!$F$21)/100 +\nGFE*M172*('Formular C'!$E$22+'Formular C'!$F$22)/100","v":0},null,null,0,0,null,null,null,0,null,null,"","","",null,164,null,null,false,0,0]
[null,null,null,null,null,null,null,null,0,0,0,0,0,0,{"$f":"GFÖG*I173*'Formular C'!$G$18/100 + GFF*J173*'Formular C'!$G$19/100 + GFH*K173*'Formular C'!$G$20/100 + GFW*L173*'Formular C'!$G$21/100 + GFE*M173*'Formular C'!$G$22/100","v":0},{"$f":"GFÖG*I173*('Formular C'!$E$18+'Formular C'!$F$18)/100 +\nGFF*J173*('Formular C'!$E$19+'Formular C'!$F$19)/100 +\nGFH*K173*('Formular C'!$E$20+'Formular C'!$F$20)/100 +\nGFW*L173*('Formular C'!$E$21+'Formular C'!$F$21)/100 +\nGFE*M173*('Formular C'!$E$22+'Formular C'!$F$22)/100","v":0},null,null,0,0,null,null,null,0,null,null,"","","",null,165,null,null,false,0,0]
[null,null,null,null,null,null,null,null,0,0,0,0,0,0,{"$f":"GFÖG*I174*'Formular C'!$G$18/100 + GFF*J174*'Formular C'!$G$19/100 + GFH*K174*'Formular C'!$G$20/100 + GFW*L174*'Formular C'!$G$21/100 + GFE*M174*'Formular C'!$G$22/100","v":0},{"$f":"GFÖG*I174*('Formular C'!$E$18+'Formular C'!$F$18)/100 +\nGFF*J174*('Formular C'!$E$19+'Formular C'!$F$19)/100 +\nGFH*K174*('Formular C'!$E$20+'Formular C'!$F$20)/100 +\nGFW*L174*('Formular C'!$E$21+'Formular C'!$F$21)/100 +\nGFE*M174*('Formular C'!$E$22+'Formular C'!$F$22)/100","v":0},null,null,0,0,null,null,null,0,null,null,"","","",null,166,null,null,false,0,0]
[null,null,null,null,null,null,null,null,0,0,0,0,0,0,{"$f":"GFÖG*I175*'Formular C'!$G$18/100 + GFF*J175*'Formular C'!$G$19/100 + GFH*K175*'Formular C'!$G$20/100 + GFW*L175*'Formular C'!$G$21/100 + GFE*M175*'Formular C'!$G$22/100","v":0},{"$f":"GFÖG*I175*('Formular C'!$E$18+'Formular C'!$F$18)/100 +\nGFF*J175*('Formular C'!$E$19+'Formular C'!$F$19)/100 +\nGFH*K175*('Formular C'!$E$20+'Formular C'!$F$20)/100 +\nGFW*L175*('Formular C'!$E$21+'Formular C'!$F$21)/100 +\nGFE*M175*('Formular C'!$E$22+'Formular C'!$F$22)/100","v":0},null,null,0,0,null,null,null,0,null,null,"","","",null,167,null,null,false,0,0]
[null,null,null,null,null,null,null,null,0,0,0,0,0,0,{"$f":"GFÖG*I176*'Formular C'!$G$18/100 + GFF*J176*'Formular C'!$G$19/100 + GFH*K176*'Formular C'!$G$20/100 + GFW*L176*'Formular C'!$G$21/100 + GFE*M176*'Formular C'!$G$22/100","v":0},{"$f":"GFÖG*I176*('Formular C'!$E$18+'Formular C'!$F$18)/100 +\nGFF*J176*('Formular C'!$E$19+'Formular C'!$F$19)/100 +\nGFH*K176*('Formular C'!$E$20+'Formular C'!$F$20)/100 +\nGFW*L176*('Formular C'!$E$21+'Formular C'!$F$21)/100 +\nGFE*M176*('Formular C'!$E$22+'Formular C'!$F$22)/100","v":0},null,null,0,0,null,null,null,0,null,null,"","","",null,168,null,null,false,0,0]
[null,null,null,null,null,null,null,null,0,0,0,0,0,0,{"$f":"GFÖG*I177*'Formular C'!$G$18/100 + GFF*J177*'Formular C'!$G$19/100 + GFH*K177*'Formular C'!$G$20/100 + GFW*L177*'Formular C'!$G$21/100 + GFE*M177*'Formular C'!$G$22/100","v":0},{"$f":"GFÖG*I177*('Formular C'!$E$18+'Formular C'!$F$18)/100 +\nGFF*J177*('Formular C'!$E$19+'Formular C'!$F$19)/100 +\nGFH*K177*('Formular C'!$E$20+'Formular C'!$F$20)/100 +\nGFW*L177*('Formular C'!$E$21+'Formular C'!$F$21)/100 +\nGFE*M177*('Formular C'!$E$22+'Formular C'!$F$22)/100","v":0},null,null,0,0,null,null,null,0,null,null,"","","",null,169,null,null,false,0,0]
[null,null,null,null,null,null,null,null,0,0,0,0,0,0,{"$f":"GFÖG*I178*'Formular C'!$G$18/100 + GFF*J178*'Formular C'!$G$19/100 + GFH*K178*'Formular C'!$G$20/100 + GFW*L178*'Formular C'!$G$21/100 + GFE*M178*'Formular C'!$G$22/100","v":0},{"$f":"GFÖG*I178*('Formular C'!$E$18+'Formular C'!$F$18)/100 +\nGFF*J178*('Formular C'!$E$19+'Formular C'!$F$19)/100 +\nGFH*K178*('Formular C'!$E$20+'Formular C'!$F$20)/100 +\nGFW*L178*('Formular C'!$E$21+'Formular C'!$F$21)/100 +\nGFE*M178*('Formular C'!$E$22+'Formular C'!$F$22)/100","v":0},null,null,0,0,null,null,null,0,null,null,"","","",null,170,null,null,false,0,0]
[null,null,null,null,null,null,null,null,0,0,0,0,0,0,{"$f":"GFÖG*I179*'Formular C'!$G$18/100 + GFF*J179*'Formular C'!$G$19/100 + GFH*K179*'Formular C'!$G$20/100 + GFW*L179*'Formular C'!$G$21/100 + GFE*M179*'Formular C'!$G$22/100","v":0},{"$f":"GFÖG*I179*('Formular C'!$E$18+'Formular C'!$F$18)/100 +\nGFF*J179*('Formular C'!$E$19+'Formular C'!$F$19)/100 +\nGFH*K179*('Formular C'!$E$20+'Formular C'!$F$20)/100 +\nGFW*L179*('Formular C'!$E$21+'Formular C'!$F$21)/100 +\nGFE*M179*('Formular C'!$E$22+'Formular C'!$F$22)/100","v":0},null,null,0,0,null,null,null,0,null,null,"","","",null,171,null,null,false,0,0]
[null,null,null,null,null,null,null,null,0,0,0,0,0,0,{"$f":"GFÖG*I180*'Formular C'!$G$18/100 + GFF*J180*'Formular C'!$G$19/100 + GFH*K180*'Formular C'!$G$20/100 + GFW*L180*'Formular C'!$G$21/100 + GFE*M180*'Formular C'!$G$22/100","v":0},{"$f":"GFÖG*I180*('Formular C'!$E$18+'Formular C'!$F$18)/100 +\nGFF*J180*('Formular C'!$E$19+'Formular C'!$F$19)/100 +\nGFH*K180*('Formular C'!$E$20+'Formular C'!$F$20)/100 +\nGFW*L180*('Formular C'!$E$21+'Formular C'!$F$21)/100 +\nGFE*M180*('Formular C'!$E$22+'Formular C'!$F$22)/100","v":0},null,null,0,0,null,null,null,0,null,null,"","","",null,172,null,null,false,0,0]
[null,null,null,null,null,null,null,null,0,0,0,0,0,0,{"$f":"GFÖG*I181*'Formular C'!$G$18/100 + GFF*J181*'Formular C'!$G$19/100 + GFH*K181*'Formular C'!$G$20/100 + GFW*L181*'Formular C'!$G$21/100 + GFE*M181*'Formular C'!$G$22/100","v":0},{"$f":"GFÖG*I181*('Formular C'!$E$18+'Formular C'!$F$18)/100 +\nGFF*J181*('Formular C'!$E$19+'Formular C'!$F$19)/100 +\nGFH*K181*('Formular C'!$E$20+'Formular C'!$F$20)/100 +\nGFW*L181*('Formular C'!$E$21+'Formular C'!$F$21)/100 +\nGFE*M181*('Formular C'!$E$22+'Formular C'!$F$22)/100","v":0},null,null,0,0,null,null,null,0,null,null,"","","",null,173,null,null,false,0,0]
[null,null,null,null,null,null,null,null,0,0,0,0,0,0,{"$f":"GFÖG*I182*'Formular C'!$G$18/100 + GFF*J182*'Formular C'!$G$19/100 + GFH*K182*'Formular C'!$G$20/100 + GFW*L182*'Formular C'!$G$21/100 + GFE*M182*'Formular C'!$G$22/100","v":0},{"$f":"GFÖG*I182*('Formular C'!$E$18+'Formular C'!$F$18)/100 +\nGFF*J182*('Formular C'!$E$19+'Formular C'!$F$19)/100 +\nGFH*K182*('Formular C'!$E$20+'Formular C'!$F$20)/100 +\nGFW*L182*('Formular C'!$E$21+'Formular C'!$F$21)/100 +\nGFE*M182*('Formular C'!$E$22+'Formular C'!$F$22)/100","v":0},null,null,0,0,null,null,null,0,null,null,"","","",null,174,null,null,false,0,0]
[null,null,null,null,null,null,null,null,0,0,0,0,0,0,{"$f":"GFÖG*I183*'Formular C'!$G$18/100 + GFF*J183*'Formular C'!$G$19/100 + GFH*K183*'Formular C'!$G$20/100 + GFW*L183*'Formular C'!$G$21/100 + GFE*M183*'Formular C'!$G$22/100","v":0},{"$f":"GFÖG*I183*('Formular C'!$E$18+'Formular C'!$F$18)/100 +\nGFF*J183*('Formular C'!$E$19+'Formular C'!$F$19)/100 +\nGFH*K183*('Formular C'!$E$20+'Formular C'!$F$20)/100 +\nGFW*L183*('Formular C'!$E$21+'Formular C'!$F$21)/100 +\nGFE*M183*('Formular C'!$E$22+'Formular C'!$F$22)/100","v":0},null,null,0,0,null,null,null,0,null,null,"","","",null,175,null,null,false,0,0]
[null,null,null,null,null,null,null,null,0,0,0,0,0,0,{"$f":"GFÖG*I184*'Formular C'!$G$18/100 + GFF*J184*'Formular C'!$G$19/100 + GFH*K184*'Formular C'!$G$20/100 + GFW*L184*'Formular C'!$G$21/100 + GFE*M184*'Formular C'!$G$22/100","v":0},{"$f":"GFÖG*I184*('Formular C'!$E$18+'Formular C'!$F$18)/100 +\nGFF*J184*('Formular C'!$E$19+'Formular C'!$F$19)/100 +\nGFH*K184*('Formular C'!$E$20+'Formular C'!$F$20)/100 +\nGFW*L184*('Formular C'!$E$21+'Formular C'!$F$21)/100 +\nGFE*M184*('Formular C'!$E$22+'Formular C'!$F$22)/100","v":0},null,null,0,0,null,null,null,0,null,null,"","","",null,176,null,null,false,0,0]
[null,null,null,null,null,null,null,null,0,0,0,0,0,0,{"$f":"GFÖG*I185*'Formular C'!$G$18/100 + GFF*J185*'Formular C'!$G$19/100 + GFH*K185*'Formular C'!$G$20/100 + GFW*L185*'Formular C'!$G$21/100 + GFE*M185*'Formular C'!$G$22/100","v":0},{"$f":"GFÖG*I185*('Formular C'!$E$18+'Formular C'!$F$18)/100 +\nGFF*J185*('Formular C'!$E$19+'Formular C'!$F$19)/100 +\nGFH*K185*('Formular C'!$E$20+'Formular C'!$F$20)/100 +\nGFW*L185*('Formular C'!$E$21+'Formular C'!$F$21)/100 +\nGFE*M185*('Formular C'!$E$22+'Formular C'!$F$22)/100","v":0},null,null,0,0,null,null,null,0,null,null,"","","",null,177,null,null,false,0,0]
[null,null,null,null,null,null,null,null,0,0,0,0,0,0,{"$f":"GFÖG*I186*'Formular C'!$G$18/100 + GFF*J186*'Formular C'!$G$19/100 + GFH*K186*'Formular C'!$G$20/100 + GFW*L186*'Formular C'!$G$21/100 + GFE*M186*'Formular C'!$G$22/100","v":0},{"$f":"GFÖG*I186*('Formular C'!$E$18+'Formular C'!$F$18)/100 +\nGFF*J186*('Formular C'!$E$19+'Formular C'!$F$19)/100 +\nGFH*K186*('Formular C'!$E$20+'Formular C'!$F$20)/100 +\nGFW*L186*('Formular C'!$E$21+'Formular C'!$F$21)/100 +\nGFE*M186*('Formular C'!$E$22+'Formular C'!$F$22)/100","v":0},null,null,0,0,null,null,null,0,null,null,"","","",null,178,null,null,false,0,0]
[null,null,null,null,null,null,null,null,0,0,0,0,0,0,{"$f":"GFÖG*I187*'Formular C'!$G$18/100 + GFF*J187*'Formular C'!$G$19/100 + GFH*K187*'Formular C'!$G$20/100 + GFW*L187*'Formular C'!$G$21/100 + GFE*M187*'Formular C'!$G$22/100","v":0},{"$f":"GFÖG*I187*('Formular C'!$E$18+'Formular C'!$F$18)/100 +\nGFF*J187*('Formular C'!$E$19+'Formular C'!$F$19)/100 +\nGFH*K187*('Formular C'!$E$20+'Formular C'!$F$20)/100 +\nGFW*L187*('Formular C'!$E$21+'Formular C'!$F$21)/100 +\nGFE*M187*('Formular C'!$E$22+'Formular C'!$F$22)/100","v":0},null,null,0,0,null,null,null,0,null,null,"","","",null,179,null,null,false,0,0]
[null,null,null,null,null,null,null,null,{"$f":"IF(OR(E188=INDEX(liste_energieträger,1),E188=INDEX(liste_energieträger,2)),F188,0)+IF(OR(G188=INDEX(liste_energieträger,1),G188=INDEX(liste_energieträger,2)),H188,0)","v":0},{"$f":"IF(E188=INDEX(liste_energieträger,3),F188,0)+IF(G188=INDEX(liste_energieträger,3),H188,0)","v":0},{"$f":"IF(E188=INDEX(liste_energieträger,4),F188,0)+IF(G188=INDEX(liste_energieträger,4),H188,0)","v":0},{"$f":"IF(E188=INDEX(liste_energieträger,5),F188,0)+IF(G188=INDEX(liste_energieträger,5),H188,0)","v":0},{"$f":"IF(E188=INDEX(liste_energieträger,6),F188,0)+IF(G188=INDEX(liste_energieträger,6),H188,0)","v":0},{"$f":"F188+H188","v":0},{"$f":"GFÖG*I188*'Formular C'!$G$18/100 + GFF*J188*'Formular C'!$G$19/100 + GFH*K188*'Formular C'!$G$20/100 + GFW*L188*'Formular C'!$G$21/100 + GFE*M188*'Formular C'!$G$22/100","v":0},{"$f":"GFÖG*I188*('Formular C'!$E$18+'Formular C'!$F$18)/100 +\nGFF*J188*('Formular C'!$E$19+'Formular C'!$F$19)/100 +\nGFH*K188*('Formular C'!$E$20+'Formular C'!$F$20)/100 +\nGFW*L188*('Formular C'!$E$21+'Formular C'!$F$21)/100 +\nGFE*M188*('Formular C'!$E$22+'Formular C'!$F$22)/100","v":0},null,null,{"$f":"IF(Q188=INDEX(liste_bezugsgrössen,1),R188,0)","v":0},{"$f":"IF(Q188=INDEX(liste_bezugsgrössen,2),R188,0)","v":0},null,null,null,{"$f":"(F188*V188)+(H188*W188)","v":0},null,null,"","","",null,180,null,null,false,0,{"$f":"IF(AA188<Payback_Prozess,1,0)","v":0}]
[null,null,null,null,null,null,null,null,0,0,0,0,0,0,{"$f":"GFÖG*I189*'Formular C'!$G$18/100 + GFF*J189*'Formular C'!$G$19/100 + GFH*K189*'Formular C'!$G$20/100 + GFW*L189*'Formular C'!$G$21/100 + GFE*M189*'Formular C'!$G$22/100","v":0},{"$f":"GFÖG*I189*('Formular C'!$E$18+'Formular C'!$F$18)/100 +\nGFF*J189*('Formular C'!$E$19+'Formular C'!$F$19)/100 +\nGFH*K189*('Formular C'!$E$20+'Formular C'!$F$20)/100 +\nGFW*L189*('Formular C'!$E$21+'Formular C'!$F$21)/100 +\nGFE*M189*('Formular C'!$E$22+'Formular C'!$F$22)/100","v":0},null,null,0,0,null,null,null,0,null,null,"","",{"$f":"IF(B189<>\"\",HYPERLINK($AF$8&AE189,\"Beschreibung \"&B189),\"\")","v":""},null,181,null,null,false,0,0]
[null,null,null,null,null,null,null,null,0,0,0,0,0,0,{"$f":"GFÖG*I190*'Formular C'!$G$18/100 + GFF*J190*'Formular C'!$G$19/100 + GFH*K190*'Formular C'!$G$20/100 + GFW*L190*'Formular C'!$G$21/100 + GFE*M190*'Formular C'!$G$22/100","v":0},{"$f":"GFÖG*I190*('Formular C'!$E$18+'Formular C'!$F$18)/100 +\nGFF*J190*('Formular C'!$E$19+'Formular C'!$F$19)/100 +\nGFH*K190*('Formular C'!$E$20+'Formular C'!$F$20)/100 +\nGFW*L190*('Formular C'!$E$21+'Formular C'!$F$21)/100 +\nGFE*M190*('Formular C'!$E$22+'Formular C'!$F$22)/100","v":0},null,null,0,0,null,null,null,0,null,null,"","","",null,182,null,null,false,0,0]
[null,null,null,null,null,null,null,null,0,0,0,0,0,0,{"$f":"GFÖG*I191*'Formular C'!$G$18/100 + GFF*J191*'Formular C'!$G$19/100 + GFH*K191*'Formular C'!$G$20/100 + GFW*L191*'Formular C'!$G$21/100 + GFE*M191*'Formular C'!$G$22/100","v":0},{"$f":"GFÖG*I191*('Formular C'!$E$18+'Formular C'!$F$18)/100 +\nGFF*J191*('Formular C'!$E$19+'Formular C'!$F$19)/100 +\nGFH*K191*('Formular C'!$E$20+'Formular C'!$F$20)/100 +\nGFW*L191*('Formular C'!$E$21+'Formular C'!$F$21)/100 +\nGFE*M191*('Formular C'!$E$22+'Formular C'!$F$22)/100","v":0},null,null,0,0,null,null,null,0,null,null,"","","",null,183,null,null,false,0,0]
[null,null,null,null,null,null,null,null,0,0,0,0,0,0,{"$f":"GFÖG*I192*'Formular C'!$G$18/100 + GFF*J192*'Formular C'!$G$19/100 + GFH*K192*'Formular C'!$G$20/100 + GFW*L192*'Formular C'!$G$21/100 + GFE*M192*'Formular C'!$G$22/100","v":0},{"$f":"GFÖG*I192*('Formular C'!$E$18+'Formular C'!$F$18)/100 +\nGFF*J192*('Formular C'!$E$19+'Formular C'!$F$19)/100 +\nGFH*K192*('Formular C'!$E$20+'Formular C'!$F$20)/100 +\nGFW*L192*('Formular C'!$E$21+'Formular C'!$F$21)/100 +\nGFE*M192*('Formular C'!$E$22+'Formular C'!$F$22)/100","v":0},null,null,0,0,null,null,null,0,null,null,"","","",null,184,null,null,false,0,0]
[null,null,null,null,null,null,null,null,0,0,0,0,0,0,{"$f":"GFÖG*I193*'Formular C'!$G$18/100 + GFF*J193*'Formular C'!$G$19/100 + GFH*K193*'Formular C'!$G$20/100 + GFW*L193*'Formular C'!$G$21/100 + GFE*M193*'Formular C'!$G$22/100","v":0},{"$f":"GFÖG*I193*('Formular C'!$E$18+'Formular C'!$F$18)/100 +\nGFF*J193*('Formular C'!$E$19+'Formular C'!$F$19)/100 +\nGFH*K193*('Formular C'!$E$20+'Formular C'!$F$20)/100 +\nGFW*L193*('Formular C'!$E$21+'Formular C'!$F$21)/100 +\nGFE*M193*('Formular C'!$E$22+'Formular C'!$F$22)/100","v":0},null,null,0,0,null,null,null,0,null,null,"","","",null,185,null,null,false,0,0]
[null,null,null,null,null,null,null,null,0,0,0,0,0,0,{"$f":"GFÖG*I194*'Formular C'!$G$18/100 + GFF*J194*'Formular C'!$G$19/100 + GFH*K194*'Formular C'!$G$20/100 + GFW*L194*'Formular C'!$G$21/100 + GFE*M194*'Formular C'!$G$22/100","v":0},{"$f":"GFÖG*I194*('Formular C'!$E$18+'Formular C'!$F$18)/100 +\nGFF*J194*('Formular C'!$E$19+'Formular C'!$F$19)/100 +\nGFH*K194*('Formular C'!$E$20+'Formular C'!$F$20)/100 +\nGFW*L194*('Formular C'!$E$21+'Formular C'!$F$21)/100 +\nGFE*M194*('Formular C'!$E$22+'Formular C'!$F$22)/100","v":0},null,null,0,0,null,null,null,0,null,null,"","","",null,186,null,null,false,0,0]
[null,null,null,null,null,null,null,null,0,0,0,0,0,0,{"$f":"GFÖG*I195*'Formular C'!$G$18/100 + GFF*J195*'Formular C'!$G$19/100 + GFH*K195*'Formular C'!$G$20/100 + GFW*L195*'Formular C'!$G$21/100 + GFE*M195*'Formular C'!$G$22/100","v":0},{"$f":"GFÖG*I195*('Formular C'!$E$18+'Formular C'!$F$18)/100 +\nGFF*J195*('Formular C'!$E$19+'Formular C'!$F$19)/100 +\nGFH*K195*('Formular C'!$E$20+'Formular C'!$F$20)/100 +\nGFW*L195*('Formular C'!$E$21+'Formular C'!$F$21)/100 +\nGFE*M195*('Formular C'!$E$22+'Formular C'!$F$22)/100","v":0},null,null,0,0,null,null,null,0,null,null,"","","",null,187,null,null,false,0,0]
[null,null,null,null,null,null,null,null,0,0,0,0,0,0,{"$f":"GFÖG*I196*'Formular C'!$G$18/100 + GFF*J196*'Formular C'!$G$19/100 + GFH*K196*'Formular C'!$G$20/100 + GFW*L196*'Formular C'!$G$21/100 + GFE*M196*'Formular C'!$G$22/100","v":0},{"$f":"GFÖG*I196*('Formular C'!$E$18+'Formular C'!$F$18)/100 +\nGFF*J196*('Formular C'!$E$19+'Formular C'!$F$19)/100 +\nGFH*K196*('Formular C'!$E$20+'Formular C'!$F$20)/100 +\nGFW*L196*('Formular C'!$E$21+'Formular C'!$F$21)/100 +\nGFE*M196*('Formular C'!$E$22+'Formular C'!$F$22)/100","v":0},null,null,0,0,null,null,null,0,null,null,"","","",null,188,null,null,false,0,0]
[null,null,null,null,null,null,null,null,0,0,0,0,0,0,{"$f":"GFÖG*I197*'Formular C'!$G$18/100 + GFF*J197*'Formular C'!$G$19/100 + GFH*K197*'Formular C'!$G$20/100 + GFW*L197*'Formular C'!$G$21/100 + GFE*M197*'Formular C'!$G$22/100","v":0},{"$f":"GFÖG*I197*('Formular C'!$E$18+'Formular C'!$F$18)/100 +\nGFF*J197*('Formular C'!$E$19+'Formular C'!$F$19)/100 +\nGFH*K197*('Formular C'!$E$20+'Formular C'!$F$20)/100 +\nGFW*L197*('Formular C'!$E$21+'Formular C'!$F$21)/100 +\nGFE*M197*('Formular C'!$E$22+'Formular C'!$F$22)/100","v":0},null,null,0,0,null,null,null,0,null,null,"","","",null,189,null,null,false,0,0]
[null,null,null,null,null,null,null,null,0,0,0,0,0,0,{"$f":"GFÖG*I198*'Formular C'!$G$18/100 + GFF*J198*'Formular C'!$G$19/100 + GFH*K198*'Formular C'!$G$20/100 + GFW*L198*'Formular C'!$G$21/100 + GFE*M198*'Formular C'!$G$22/100","v":0},{"$f":"GFÖG*I198*('Formular C'!$E$18+'Formular C'!$F$18)/100 +\nGFF*J198*('Formular C'!$E$19+'Formular C'!$F$19)/100 +\nGFH*K198*('Formular C'!$E$20+'Formular C'!$F$20)/100 +\nGFW*L198*('Formular C'!$E$21+'Formular C'!$F$21)/100 +\nGFE*M198*('Formular C'!$E$22+'Formular C'!$F$22)/100","v":0},null,null,0,0,null,null,null,0,null,null,"","","",null,190,null,null,false,0,0]
[null,null,null,null,null,null,null,null,0,0,0,0,0,0,{"$f":"GFÖG*I199*'Formular C'!$G$18/100 + GFF*J199*'Formular C'!$G$19/100 + GFH*K199*'Formular C'!$G$20/100 + GFW*L199*'Formular C'!$G$21/100 + GFE*M199*'Formular C'!$G$22/100","v":0},{"$f":"GFÖG*I199*('Formular C'!$E$18+'Formular C'!$F$18)/100 +\nGFF*J199*('Formular C'!$E$19+'Formular C'!$F$19)/100 +\nGFH*K199*('Formular C'!$E$20+'Formular C'!$F$20)/100 +\nGFW*L199*('Formular C'!$E$21+'Formular C'!$F$21)/100 +\nGFE*M199*('Formular C'!$E$22+'Formular C'!$F$22)/100","v":0},null,null,0,0,null,null,null,0,null,null,"","","",null,191,null,null,false,0,0]
[null,null,null,null,null,null,null,null,0,0,0,0,0,0,{"$f":"GFÖG*I200*'Formular C'!$G$18/100 + GFF*J200*'Formular C'!$G$19/100 + GFH*K200*'Formular C'!$G$20/100 + GFW*L200*'Formular C'!$G$21/100 + GFE*M200*'Formular C'!$G$22/100","v":0},{"$f":"GFÖG*I200*('Formular C'!$E$18+'Formular C'!$F$18)/100 +\nGFF*J200*('Formular C'!$E$19+'Formular C'!$F$19)/100 +\nGFH*K200*('Formular C'!$E$20+'Formular C'!$F$20)/100 +\nGFW*L200*('Formular C'!$E$21+'Formular C'!$F$21)/100 +\nGFE*M200*('Formular C'!$E$22+'Formular C'!$F$22)/100","v":0},null,null,0,0,null,null,null,0,null,null,"","","",null,192,null,null,false,0,0]
[null,null,null,null,null,null,null,null,0,0,0,0,0,0,{"$f":"GFÖG*I201*'Formular C'!$G$18/100 + GFF*J201*'Formular C'!$G$19/100 + GFH*K201*'Formular C'!$G$20/100 + GFW*L201*'Formular C'!$G$21/100 + GFE*M201*'Formular C'!$G$22/100","v":0},{"$f":"GFÖG*I201*('Formular C'!$E$18+'Formular C'!$F$18)/100 +\nGFF*J201*('Formular C'!$E$19+'Formular C'!$F$19)/100 +\nGFH*K201*('Formular C'!$E$20+'Formular C'!$F$20)/100 +\nGFW*L201*('Formular C'!$E$21+'Formular C'!$F$21)/100 +\nGFE*M201*('Formular C'!$E$22+'Formular C'!$F$22)/100","v":0},null,null,0,0,null,null,null,0,null,null,"","","",null,193,null,null,false,0,0]
[null,null,null,null,null,null,null,null,0,0,0,0,0,0,{"$f":"GFÖG*I202*'Formular C'!$G$18/100 + GFF*J202*'Formular C'!$G$19/100 + GFH*K202*'Formular C'!$G$20/100 + GFW*L202*'Formular C'!$G$21/100 + GFE*M202*'Formular C'!$G$22/100","v":0},{"$f":"GFÖG*I202*('Formular C'!$E$18+'Formular C'!$F$18)/100 +\nGFF*J202*('Formular C'!$E$19+'Formular C'!$F$19)/100 +\nGFH*K202*('Formular C'!$E$20+'Formular C'!$F$20)/100 +\nGFW*L202*('Formular C'!$E$21+'Formular C'!$F$21)/100 +\nGFE*M202*('Formular C'!$E$22+'Formular C'!$F$22)/100","v":0},null,null,0,0,null,null,null,0,null,null,"","","",null,194,null,null,false,0,0]
[null,null,null,null,null,null,null,null,0,0,0,0,0,0,{"$f":"GFÖG*I203*'Formular C'!$G$18/100 + GFF*J203*'Formular C'!$G$19/100 + GFH*K203*'Formular C'!$G$20/100 + GFW*L203*'Formular C'!$G$21/100 + GFE*M203*'Formular C'!$G$22/100","v":0},{"$f":"GFÖG*I203*('Formular C'!$E$18+'Formular C'!$F$18)/100 +\nGFF*J203*('Formular C'!$E$19+'Formular C'!$F$19)/100 +\nGFH*K203*('Formular C'!$E$20+'Formular C'!$F$20)/100 +\nGFW*L203*('Formular C'!$E$21+'Formular C'!$F$21)/100 +\nGFE*M203*('Formular C'!$E$22+'Formular C'!$F$22)/100","v":0},null,null,0,0,null,null,null,0,null,null,"","","",null,195,null,null,false,0,0]
[null,null,null,null,null,null,null,null,0,0,0,0,0,0,{"$f":"GFÖG*I204*'Formular C'!$G$18/100 + GFF*J204*'Formular C'!$G$19/100 + GFH*K204*'Formular C'!$G$20/100 + GFW*L204*'Formular C'!$G$21/100 + GFE*M204*'Formular C'!$G$22/100","v":0},{"$f":"GFÖG*I204*('Formular C'!$E$18+'Formular C'!$F$18)/100 +\nGFF*J204*('Formular C'!$E$19+'Formular C'!$F$19)/100 +\nGFH*K204*('Formular C'!$E$20+'Formular C'!$F$20)/100 +\nGFW*L204*('Formular C'!$E$21+'Formular C'!$F$21)/100 +\nGFE*M204*('Formular C'!$E$22+'Formular C'!$F$22)/100","v":0},null,null,0,0,null,null,null,0,null,null,"","","",null,196,null,null,false,0,0]
[null,null,null,null,null,null,null,null,0,0,0,0,0,0,{"$f":"GFÖG*I205*'Formular C'!$G$18/100 + GFF*J205*'Formular C'!$G$19/100 + GFH*K205*'Formular C'!$G$20/100 + GFW*L205*'Formular C'!$G$21/100 + GFE*M205*'Formular C'!$G$22/100","v":0},{"$f":"GFÖG*I205*('Formular C'!$E$18+'Formular C'!$F$18)/100 +\nGFF*J205*('Formular C'!$E$19+'Formular C'!$F$19)/100 +\nGFH*K205*('Formular C'!$E$20+'Formular C'!$F$20)/100 +\nGFW*L205*('Formular C'!$E$21+'Formular C'!$F$21)/100 +\nGFE*M205*('Formular C'!$E$22+'Formular C'!$F$22)/100","v":0},null,null,0,0,null,null,null,0,null,null,"","","",null,197,null,null,false,0,0]
[null,null,null,null,null,null,null,null,0,0,0,0,0,0,{"$f":"GFÖG*I206*'Formular C'!$G$18/100 + GFF*J206*'Formular C'!$G$19/100 + GFH*K206*'Formular C'!$G$20/100 + GFW*L206*'Formular C'!$G$21/100 + GFE*M206*'Formular C'!$G$22/100","v":0},{"$f":"GFÖG*I206*('Formular C'!$E$18+'Formular C'!$F$18)/100 +\nGFF*J206*('Formular C'!$E$19+'Formular C'!$F$19)/100 +\nGFH*K206*('Formular C'!$E$20+'Formular C'!$F$20)/100 +\nGFW*L206*('Formular C'!$E$21+'Formular C'!$F$21)/100 +\nGFE*M206*('Formular C'!$E$22+'Formular C'!$F$22)/100","v":0},null,null,0,0,null,null,null,0,null,null,"","","",null,198,null,null,false,0,0]
[null,null,null,null,null,null,null,null,0,0,0,0,0,0,{"$f":"GFÖG*I207*'Formular C'!$G$18/100 + GFF*J207*'Formular C'!$G$19/100 + GFH*K207*'Formular C'!$G$20/100 + GFW*L207*'Formular C'!$G$21/100 + GFE*M207*'Formular C'!$G$22/100","v":0},{"$f":"GFÖG*I207*('Formular C'!$E$18+'Formular C'!$F$18)/100 +\nGFF*J207*('Formular C'!$E$19+'Formular C'!$F$19)/100 +\nGFH*K207*('Formular C'!$E$20+'Formular C'!$F$20)/100 +\nGFW*L207*('Formular C'!$E$21+'Formular C'!$F$21)/100 +\nGFE*M207*('Formular C'!$E$22+'Formular C'!$F$22)/100","v":0},null,null,0,0,null,null,null,0,null,null,"","","",null,199,null,null,false,0,0]
[null,null,null,null,null,null,null,null,0,0,0,0,0,0,{"$f":"GFÖG*I208*'Formular C'!$G$18/100 + GFF*J208*'Formular C'!$G$19/100 + GFH*K208*'Formular C'!$G$20/100 + GFW*L208*'Formular C'!$G$21/100 + GFE*M208*'Formular C'!$G$22/100","v":0},{"$f":"GFÖG*I208*('Formular C'!$E$18+'Formular C'!$F$18)/100 +\nGFF*J208*('Formular C'!$E$19+'Formular C'!$F$19)/100 +\nGFH*K208*('Formular C'!$E$20+'Formular C'!$F$20)/100 +\nGFW*L208*('Formular C'!$E$21+'Formular C'!$F$21)/100 +\nGFE*M208*('Formular C'!$E$22+'Formular C'!$F$22)/100","v":0},null,null,0,0,null,null,null,0,null,null,"","","",null,200,null,null,false,0,0]
[null,null,null,null,null,null,null,null,0,0,0,0,0,0,{"$f":"GFÖG*I209*'Formular C'!$G$18/100 + GFF*J209*'Formular C'!$G$19/100 + GFH*K209*'Formular C'!$G$20/100 + GFW*L209*'Formular C'!$G$21/100 + GFE*M209*'Formular C'!$G$22/100","v":0},{"$f":"GFÖG*I209*('Formular C'!$E$18+'Formular C'!$F$18)/100 +\nGFF*J209*('Formular C'!$E$19+'Formular C'!$F$19)/100 +\nGFH*K209*('Formular C'!$E$20+'Formular C'!$F$20)/100 +\nGFW*L209*('Formular C'!$E$21+'Formular C'!$F$21)/100 +\nGFE*M209*('Formular C'!$E$22+'Formular C'!$F$22)/100","v":0},null,null,0,0,null,null,null,0,null,null,"","","",null,201,null,null,false,0,0]
[null,null,null,null,null,null,null,null,0,0,0,0,0,0,{"$f":"GFÖG*I210*'Formular C'!$G$18/100 + GFF*J210*'Formular C'!$G$19/100 + GFH*K210*'Formular C'!$G$20/100 + GFW*L210*'Formular C'!$G$21/100 + GFE*M210*'Formular C'!$G$22/100","v":0},{"$f":"GFÖG*I210*('Formular C'!$E$18+'Formular C'!$F$18)/100 +\nGFF*J210*('Formular C'!$E$19+'Formular C'!$F$19)/100 +\nGFH*K210*('Formular C'!$E$20+'Formular C'!$F$20)/100 +\nGFW*L210*('Formular C'!$E$21+'Formular C'!$F$21)/100 +\nGFE*M210*('Formular C'!$E$22+'Formular C'!$F$22)/100","v":0},null,null,0,0,null,null,null,0,null,null,"","","",null,202,null,null,false,0,0]
[null,null,null,null,null,null,null,null,0,0,0,0,0,0,{"$f":"GFÖG*I211*'Formular C'!$G$18/100 + GFF*J211*'Formular C'!$G$19/100 + GFH*K211*'Formular C'!$G$20/100 + GFW*L211*'Formular C'!$G$21/100 + GFE*M211*'Formular C'!$G$22/100","v":0},{"$f":"GFÖG*I211*('Formular C'!$E$18+'Formular C'!$F$18)/100 +\nGFF*J211*('Formular C'!$E$19+'Formular C'!$F$19)/100 +\nGFH*K211*('Formular C'!$E$20+'Formular C'!$F$20)/100 +\nGFW*L211*('Formular C'!$E$21+'Formular C'!$F$21)/100 +\nGFE*M211*('Formular C'!$E$22+'Formular C'!$F$22)/100","v":0},null,null,0,0,null,null,null,0,null,null,"","","",null,203,null,null,false,0,0]
[null,null,null,null,null,null,null,null,0,0,0,0,0,0,{"$f":"GFÖG*I212*'Formular C'!$G$18/100 + GFF*J212*'Formular C'!$G$19/100 + GFH*K212*'Formular C'!$G$20/100 + GFW*L212*'Formular C'!$G$21/100 + GFE*M212*'Formular C'!$G$22/100","v":0},{"$f":"GFÖG*I212*('Formular C'!$E$18+'Formular C'!$F$18)/100 +\nGFF*J212*('Formular C'!$E$19+'Formular C'!$F$19)/100 +\nGFH*K212*('Formular C'!$E$20+'Formular C'!$F$20)/100 +\nGFW*L212*('Formular C'!$E$21+'Formular C'!$F$21)/100 +\nGFE*M212*('Formular C'!$E$22+'Formular C'!$F$22)/100","v":0},null,null,0,0,null,null,null,0,null,null,"","","",null,204,null,null,false,0,0]
[null,null,null,null,null,null,null,null,0,0,0,0,0,0,{"$f":"GFÖG*I213*'Formular C'!$G$18/100 + GFF*J213*'Formular C'!$G$19/100 + GFH*K213*'Formular C'!$G$20/100 + GFW*L213*'Formular C'!$G$21/100 + GFE*M213*'Formular C'!$G$22/100","v":0},{"$f":"GFÖG*I213*('Formular C'!$E$18+'Formular C'!$F$18)/100 +\nGFF*J213*('Formular C'!$E$19+'Formular C'!$F$19)/100 +\nGFH*K213*('Formular C'!$E$20+'Formular C'!$F$20)/100 +\nGFW*L213*('Formular C'!$E$21+'Formular C'!$F$21)/100 +\nGFE*M213*('Formular C'!$E$22+'Formular C'!$F$22)/100","v":0},null,null,0,0,null,null,null,0,null,null,"","","",null,205,null,null,false,0,0]
[null,null,null,null,null,null,null,null,0,0,0,0,0,0,{"$f":"GFÖG*I214*'Formular C'!$G$18/100 + GFF*J214*'Formular C'!$G$19/100 + GFH*K214*'Formular C'!$G$20/100 + GFW*L214*'Formular C'!$G$21/100 + GFE*M214*'Formular C'!$G$22/100","v":0},{"$f":"GFÖG*I214*('Formular C'!$E$18+'Formular C'!$F$18)/100 +\nGFF*J214*('Formular C'!$E$19+'Formular C'!$F$19)/100 +\nGFH*K214*('Formular C'!$E$20+'Formular C'!$F$20)/100 +\nGFW*L214*('Formular C'!$E$21+'Formular C'!$F$21)/100 +\nGFE*M214*('Formular C'!$E$22+'Formular C'!$F$22)/100","v":0},null,null,0,0,null,null,null,0,null,null,"","","",null,206,null,null,false,0,0]
[null,null,null,null,null,null,null,null,0,0,0,0,0,0,{"$f":"GFÖG*I215*'Formular C'!$G$18/100 + GFF*J215*'Formular C'!$G$19/100 + GFH*K215*'Formular C'!$G$20/100 + GFW*L215*'Formular C'!$G$21/100 + GFE*M215*'Formular C'!$G$22/100","v":0},{"$f":"GFÖG*I215*('Formular C'!$E$18+'Formular C'!$F$18)/100 +\nGFF*J215*('Formular C'!$E$19+'Formular C'!$F$19)/100 +\nGFH*K215*('Formular C'!$E$20+'Formular C'!$F$20)/100 +\nGFW*L215*('Formular C'!$E$21+'Formular C'!$F$21)/100 +\nGFE*M215*('Formular C'!$E$22+'Formular C'!$F$22)/100","v":0},null,null,0,0,null,null,null,0,null,null,{"$f":"IF(X215=0, \"\",Y215*Z215/X215)","v":""},{"$f":"IF(AJ215,\"X\",\"\")","v":""},"",null,207,null,null,{"$f":"ISNUMBER(U215)","v":false},{"$f":"IF(AB215=\"X\",1,0)","v":0},0]
[null,null,null,null,null,null,null,null,0,0,0,0,0,0,{"$f":"GFÖG*I216*'Formular C'!$G$18/100 + GFF*J216*'Formular C'!$G$19/100 + GFH*K216*'Formular C'!$G$20/100 + GFW*L216*'Formular C'!$G$21/100 + GFE*M216*'Formular C'!$G$22/100","v":0},{"$f":"GFÖG*I216*('Formular C'!$E$18+'Formular C'!$F$18)/100 +\nGFF*J216*('Formular C'!$E$19+'Formular C'!$F$19)/100 +\nGFH*K216*('Formular C'!$E$20+'Formular C'!$F$20)/100 +\nGFW*L216*('Formular C'!$E$21+'Formular C'!$F$21)/100 +\nGFE*M216*('Formular C'!$E$22+'Formular C'!$F$22)/100","v":0},null,null,0,0,null,null,null,0,null,null,"","","",null,{"$f":"AE215+1","v":208},null,null,false,0,0]
[null,null,null,null,null,null,null,null,0,0,0,0,0,0,{"$f":"GFÖG*I217*'Formular C'!$G$18/100 + GFF*J217*'Formular C'!$G$19/100 + GFH*K217*'Formular C'!$G$20/100 + GFW*L217*'Formular C'!$G$21/100 + GFE*M217*'Formular C'!$G$22/100","v":0},{"$f":"GFÖG*I217*('Formular C'!$E$18+'Formular C'!$F$18)/100 +\nGFF*J217*('Formular C'!$E$19+'Formular C'!$F$19)/100 +\nGFH*K217*('Formular C'!$E$20+'Formular C'!$F$20)/100 +\nGFW*L217*('Formular C'!$E$21+'Formular C'!$F$21)/100 +\nGFE*M217*('Formular C'!$E$22+'Formular C'!$F$22)/100","v":0},null,null,0,0,null,null,null,0,null,null,"","","",null,209,null,null,false,0,0]
[null,null,null,null,null,null,null,null,0,0,0,0,0,0,{"$f":"GFÖG*I218*'Formular C'!$G$18/100 + GFF*J218*'Formular C'!$G$19/100 + GFH*K218*'Formular C'!$G$20/100 + GFW*L218*'Formular C'!$G$21/100 + GFE*M218*'Formular C'!$G$22/100","v":0},{"$f":"GFÖG*I218*('Formular C'!$E$18+'Formular C'!$F$18)/100 +\nGFF*J218*('Formular C'!$E$19+'Formular C'!$F$19)/100 +\nGFH*K218*('Formular C'!$E$20+'Formular C'!$F$20)/100 +\nGFW*L218*('Formular C'!$E$21+'Formular C'!$F$21)/100 +\nGFE*M218*('Formular C'!$E$22+'Formular C'!$F$22)/100","v":0},null,null,0,0,null,null,null,0,null,null,"","","",null,210,null,null,false,0,0]
[null,null,null,null,null,null,null,null,0,0,0,0,0,0,{"$f":"GFÖG*I219*'Formular C'!$G$18/100 + GFF*J219*'Formular C'!$G$19/100 + GFH*K219*'Formular C'!$G$20/100 + GFW*L219*'Formular C'!$G$21/100 + GFE*M219*'Formular C'!$G$22/100","v":0},{"$f":"GFÖG*I219*('Formular C'!$E$18+'Formular C'!$F$18)/100 +\nGFF*J219*('Formular C'!$E$19+'Formular C'!$F$19)/100 +\nGFH*K219*('Formular C'!$E$20+'Formular C'!$F$20)/100 +\nGFW*L219*('Formular C'!$E$21+'Formular C'!$F$21)/100 +\nGFE*M219*('Formular C'!$E$22+'Formular C'!$F$22)/100","v":0},null,null,0,0,null,null,null,0,null,null,"","","",null,211,null,null,false,0,0]
[null,null,null,null,null,null,null,null,{"$f":"IF(OR(E220=INDEX(liste_energieträger,1),E220=INDEX(liste_energieträger,2)),F220,0)+IF(OR(G220=INDEX(liste_energieträger,1),G220=INDEX(liste_energieträger,2)),H220,0)","v":0},0,0,0,0,0,{"$f":"GFÖG*I220*'Formular C'!$G$18/100 + GFF*J220*'Formular C'!$G$19/100 + GFH*K220*'Formular C'!$G$20/100 + GFW*L220*'Formular C'!$G$21/100 + GFE*M220*'Formular C'!$G$22/100","v":0},{"$f":"GFÖG*I220*('Formular C'!$E$18+'Formular C'!$F$18)/100 +\nGFF*J220*('Formular C'!$E$19+'Formular C'!$F$19)/100 +\nGFH*K220*('Formular C'!$E$20+'Formular C'!$F$20)/100 +\nGFW*L220*('Formular C'!$E$21+'Formular C'!$F$21)/100 +\nGFE*M220*('Formular C'!$E$22+'Formular C'!$F$22)/100","v":0},null,null,{"$f":"IF(Q220=INDEX(liste_bezugsgrössen,1),R220,0)","v":0},0,null,null,null,{"$f":"(F220*V220)+(H220*W220)","v":0},null,null,"","","",null,212,null,null,false,0,0]
[null,null,null,null,null,null,null,null,0,0,0,0,0,0,{"$f":"GFÖG*I221*'Formular C'!$G$18/100 + GFF*J221*'Formular C'!$G$19/100 + GFH*K221*'Formular C'!$G$20/100 + GFW*L221*'Formular C'!$G$21/100 + GFE*M221*'Formular C'!$G$22/100","v":0},{"$f":"GFÖG*I221*('Formular C'!$E$18+'Formular C'!$F$18)/100 +\nGFF*J221*('Formular C'!$E$19+'Formular C'!$F$19)/100 +\nGFH*K221*('Formular C'!$E$20+'Formular C'!$F$20)/100 +\nGFW*L221*('Formular C'!$E$21+'Formular C'!$F$21)/100 +\nGFE*M221*('Formular C'!$E$22+'Formular C'!$F$22)/100","v":0},null,null,0,0,null,null,null,0,null,null,"","","",null,213,null,null,false,0,0]
[null,null,null,null,null,null,null,null,0,0,0,0,0,0,{"$f":"GFÖG*I222*'Formular C'!$G$18/100 + GFF*J222*'Formular C'!$G$19/100 + GFH*K222*'Formular C'!$G$20/100 + GFW*L222*'Formular C'!$G$21/100 + GFE*M222*'Formular C'!$G$22/100","v":0},{"$f":"GFÖG*I222*('Formular C'!$E$18+'Formular C'!$F$18)/100 +\nGFF*J222*('Formular C'!$E$19+'Formular C'!$F$19)/100 +\nGFH*K222*('Formular C'!$E$20+'Formular C'!$F$20)/100 +\nGFW*L222*('Formular C'!$E$21+'Formular C'!$F$21)/100 +\nGFE*M222*('Formular C'!$E$22+'Formular C'!$F$22)/100","v":0},null,null,0,0,null,null,null,0,null,null,"","","",null,214,null,null,false,0,0]
[null,null,null,null,null,null,null,null,0,0,0,0,0,0,{"$f":"GFÖG*I223*'Formular C'!$G$18/100 + GFF*J223*'Formular C'!$G$19/100 + GFH*K223*'Formular C'!$G$20/100 + GFW*L223*'Formular C'!$G$21/100 + GFE*M223*'Formular C'!$G$22/100","v":0},{"$f":"GFÖG*I223*('Formular C'!$E$18+'Formular C'!$F$18)/100 +\nGFF*J223*('Formular C'!$E$19+'Formular C'!$F$19)/100 +\nGFH*K223*('Formular C'!$E$20+'Formular C'!$F$20)/100 +\nGFW*L223*('Formular C'!$E$21+'Formular C'!$F$21)/100 +\nGFE*M223*('Formular C'!$E$22+'Formular C'!$F$22)/100","v":0},null,null,0,0,null,null,null,0,null,null,"","","",null,215,null,null,false,0,0]
[null,null,null,null,null,null,null,null,0,0,0,0,0,0,{"$f":"GFÖG*I224*'Formular C'!$G$18/100 + GFF*J224*'Formular C'!$G$19/100 + GFH*K224*'Formular C'!$G$20/100 + GFW*L224*'Formular C'!$G$21/100 + GFE*M224*'Formular C'!$G$22/100","v":0},{"$f":"GFÖG*I224*('Formular C'!$E$18+'Formular C'!$F$18)/100 +\nGFF*J224*('Formular C'!$E$19+'Formular C'!$F$19)/100 +\nGFH*K224*('Formular C'!$E$20+'Formular C'!$F$20)/100 +\nGFW*L224*('Formular C'!$E$21+'Formular C'!$F$21)/100 +\nGFE*M224*('Formular C'!$E$22+'Formular C'!$F$22)/100","v":0},null,null,0,0,null,null,null,0,null,null,"","","",null,216,null,null,false,0,0]
[null,null,null,null,null,null,null,null,null,null,null,null,null,null,null,null,null,null,null,null,null,null,null,null,null,null,null,null,null,null,217]
[null,"Summe aller neuen möglichen Massnahmen ab Ausgangsjahr",null,null,null,null,null,null,{"$f":"SUM(I22:I122,I124:I224)","v":0},0,0,0,{"$f":"SUM(M22:M122,M124:M224)","v":0},0,0,0,null,null,null,null,null,null,null,null,null,null,null,null,null,null,null,null,"kein Jahr für eine Massnahme in ZV?",null,null,{"$f":"SUM((1=(AI22:AI225))*(FALSE=(AH22:AH225)))","v":0}]
[null,"Summe aller in der ZV berücksichtigten und geplanten Massnahmen",null,null,null,null,null,null,{"$f":"SUM(($AH$22:$AH$224)*($AI$22:$AI$224)*(I22:I224))","v":0},{"$f":"SUM(($AH$22:$AH$224)*($AI$22:$AI$224)*(J22:J224))","v":0},{"$f":"SUM(($AH$22:$AH$224)*($AI$22:$AI$224)*(K22:K224))","v":0},{"$f":"SUM(($AH$22:$AH$224)*($AI$22:$AI$224)*(L22:L224))","v":0},{"$f":"SUM(($AH$22:$AH$224)*($AI$22:$AI$224)*(M22:M224))","v":0},{"$f":"SUM(($AH$22:$AH$224)*($AI$22:$AI$224)*(N22:N224))","v":0},{"$f":"SUM(($AH$22:$AH$224)*($AI$22:$AI$224)*(O22:O224))","v":0},{"$f":"IFERROR(SUM(($AH$22:$AH$224)*($AI$22:$AI$224)*(P22:P224)),\"\")","v":0},null,null,null,null,null,null,null,null,null,null,null,null,null,null,null,null,"Eine wirtschaftlichen nicht in ZV?",null,null,{"$f":"SUM((1=(AJ22:AJ225))*(0=(AI22:AI225)))","v":0}]
[null,null,null,null,null,null,null,null,null,null,null,null,null,null,null,null,null,null,null,null,null,null,null,null,null,null,null,null,null,null,null,null,"Richtwert erreicht?",null,null,{"$f":"IFERROR(IF(ROUND((1+P227)*100,1)>=ZielEE,1,0),0)","v":1}]
[null,{"$f":"IF(AJ227=1,\"Begründung weshalb wirtschaftliche Massnahmen nicht umgesetzt werden können:\",\"Kommentar zur Deklaration auszuführender Massnahmen (fakultativ):\")","v":"Kommentar zur Deklaration auszuführender Massnahmen (fakultativ):"},null,null,null,null,null,null,null,null,null,null,null,null,null,null,null,null,null,null,null,null,null,null,null,null,null,null,null,null,null,null,"Alles ok und Richtwert erreicht?",null,null,{"$f":"AJ228","v":1}]
[]
[null,{"$f":"\"Kommentar zum Einsparziel (fakultativ):\"","v":"Kommentar zum Einsparziel (fakultativ):"}]

{"sheet":"Beschreibung Massnahmen","index":11,"n_rows":216,"n_cols":9,"rows_kept":216,"cut":false,"hidden":false,"merged":[[10,1,10,5],[6,1,6,5]]}
[null,"Fakultativ: KZV SE / Beschreibung Massnahmen",null,null,null,{"$f":"IF(Titelblatt!$F$6=\"\",\"\",Titelblatt!$F$6)","v":""}]
[null,null,null,null,null,{"$f":"IF(Titelblatt!$F$31=\"\",\"\",Titelblatt!$F$31)","v":""}]
[]
[]
[null,"Hinweise:"]
[null,"- Die im Formular C aufgeführten Massnahmen sollen in diesem Arbeitsblatt* detailliert und nachvollziehbar beschrieben werden.",null,null,null,null,null,null,"Pfad auf \"Massnahmenblatt\""]
[null,"- Unter dem Punkt \"Beschreibung der Kostenberechung\" soll unter anderem erklärt werden, wie der Kostenanteil Energie KE gewählt worden ist. Als Begründung kann z.B. der Jahrgang resp. das Alter der betroffenen Anlage angegeben werden."]
[null,"- Die Beschreibungsfelder werden erst angezeigt, wenn die Massnahmennummer in Formular C eingetragen wurde.",null,null,null,null,null,null,{"$f":"MID(CELL(\"filename\",A1),FIND(\"[\",CELL(\"filename\",A1)),FIND(\"]\",CELL(\"filename\",A1))-FIND(\"[\",CELL(\"filename\",A1))+1)&\"'\"&blattname_Massnahmenplanung&\"'!B\"","v":"[tb-kzv_zh_se_v3.1.xlsm]'Massnahmenplanung'!B"}]
[null,"- Wird für die Massnahmenbeschreibung mehr Platz benötigt, kann die Zeilenhöhe manuell angepasst werden."]
[null,"- Zeilenumbrüche können durch die Tastenkombination \"Alt\" + \"Enter\" eingefügt werden.",null,null,null,null,null,null,"Blattname:"]
[null,"* Alternativ können die Massnahmen auch in einer Beilage beschrieben werden. Auch dort sollen Einspar- und Kostenberechnungen nachvollziehbar aufzeigt werden.",null,null,null,null,null,null,{"$f":"MID(CELL(\"Dateiname\",A96),FIND(\"]\",CELL(\"Dateiname\",A96),1)+1,100)","v":"Beschreibung Massnahmen"}]
[]
[null,"Nr.","Kurzbeschreibung","Detaillierte Beschreibung der Massnahme:","Beschreibung der Einsparberechung:","Beschreibung der Kostenberechnung:",null,null,"Zeile für Link"]
["  \n \n \n \n \n ",{"$f":"IF(Massnahmenplanung!$B22<>\"\",Massnahmenplanung!B22,\"\")","v":""},{"$f":"IF(Massnahmenplanung!$B22<>\"\",Massnahmenplanung!C22,\"\")","v":""},null,null,null,{"$f":"IF(Massnahmenplanung!B22<>\"\",HYPERLINK($I$8&I14,\"zurück zu \"&blattname_Massnahmenplanung&\", \"&B14),\"\")","v":""},null,{"$f":"ROW(Massnahmenplanung_erste_zeile_massnahmen)","v":22}]
["  \n \n \n \n \n ",{"$f":"IF(Massnahmenplanung!$B23<>\"\",Massnahmenplanung!B23,\"\")","v":""},{"$f":"IF(Massnahmenplanung!$B23<>\"\",Massnahmenplanung!C23,\"\")","v":""},null,null,null,{"$f":"IF(Massnahmenplanung!B23<>\"\",HYPERLINK($I$8&I15,\"zurück zu \"&blattname_Massnahmenplanung&\", \"&B15),\"\")","v":""},null,{"$f":"I14+1","v":23}]
["  \n \n \n \n \n ",{"$f":"IF(Massnahmenplanung!$B24<>\"\",Massnahmenplanung!B24,\"\")","v":""},{"$f":"IF(Massnahmenplanung!$B24<>\"\",Massnahmenplanung!C24,\"\")","v":""},null,null,null,{"$f":"IF(Massnahmenplanung!B24<>\"\",HYPERLINK($I$8&I16,\"zurück zu \"&blattname_Massnahmenplanung&\", \"&B16),\"\")","v":""},null,{"$f":"I15+1","v":24}]
["  \n \n \n \n \n ",{"$f":"IF(Massnahmenplanung!$B25<>\"\",Massnahmenplanung!B25,\"\")","v":""},{"$f":"IF(Massnahmenplanung!$B25<>\"\",Massnahmenplanung!C25,\"\")","v":""},null,null,null,{"$f":"IF(Massnahmenplanung!B25<>\"\",HYPERLINK($I$8&I17,\"zurück zu \"&blattname_Massnahmenplanung&\", \"&B17),\"\")","v":""},null,25]
["  \n \n \n \n \n ",{"$f":"IF(Massnahmenplanung!$B26<>\"\",Massnahmenplanung!B26,\"\")","v":""},{"$f":"IF(Massnahmenplanung!$B26<>\"\",Massnahmenplanung!C26,\"\")","v":""},null,null,null,{"$f":"IF(Massnahmenplanung!B26<>\"\",HYPERLINK($I$8&I18,\"zurück zu \"&blattname_Massnahmenplanung&\", \"&B18),\"\")","v":""},null,26]
["  \n \n \n \n \n ",{"$f":"IF(Massnahmenplanung!$B27<>\"\",Massnahmenplanung!B27,\"\")","v":""},{"$f":"IF(Massnahmenplanung!$B27<>\"\",Massnahmenplanung!C27,\"\")","v":""},null,null,null,{"$f":"IF(Massnahmenplanung!B27<>\"\",HYPERLINK($I$8&I19,\"zurück zu \"&blattname_Massnahmenplanung&\", \"&B19),\"\")","v":""},null,27]
["  \n \n \n \n \n ",{"$f":"IF(Massnahmenplanung!$B28<>\"\",Massnahmenplanung!B28,\"\")","v":""},{"$f":"IF(Massnahmenplanung!$B28<>\"\",Massnahmenplanung!C28,\"\")","v":""},null,null,null,{"$f":"IF(Massnahmenplanung!B28<>\"\",HYPERLINK($I$8&I20,\"zurück zu \"&blattname_Massnahmenplanung&\", \"&B20),\"\")","v":""},null,28]
["  \n \n \n \n \n ",{"$f":"IF(Massnahmenplanung!$B29<>\"\",Massnahmenplanung!B29,\"\")","v":""},{"$f":"IF(Massnahmenplanung!$B29<>\"\",Massnahmenplanung!C29,\"\")","v":""},null,null,null,{"$f":"IF(Massnahmenplanung!B29<>\"\",HYPERLINK($I$8&I21,\"zurück zu \"&blattname_Massnahmenplanung&\", \"&B21),\"\")","v":""},null,29]
["  \n \n \n \n \n ",{"$f":"IF(Massnahmenplanung!$B30<>\"\",Massnahmenplanung!B30,\"\")","v":""},{"$f":"IF(Massnahmenplanung!$B30<>\"\",Massnahmenplanung!C30,\"\")","v":""},null,null,null,{"$f":"IF(Massnahmenplanung!B30<>\"\",HYPERLINK($I$8&I22,\"zurück zu \"&blattname_Massnahmenplanung&\", \"&B22),\"\")","v":""},null,30]
["  \n \n \n \n \n ",{"$f":"IF(Massnahmenplanung!$B31<>\"\",Massnahmenplanung!B31,\"\")","v":""},{"$f":"IF(Massnahmenplanung!$B31<>\"\",Massnahmenplanung!C31,\"\")","v":""},null,null,null,{"$f":"IF(Massnahmenplanung!B31<>\"\",HYPERLINK($I$8&I23,\"zurück zu \"&blattname_Massnahmenplanung&\", \"&B23),\"\")","v":""},null,31]
["  \n \n \n \n \n ",{"$f":"IF(Massnahmenplanung!$B32<>\"\",Massnahmenplanung!B32,\"\")","v":""},{"$f":"IF(Massnahmenplanung!$B32<>\"\",Massnahmenplanung!C32,\"\")","v":""},null,null,null,{"$f":"IF(Massnahmenplanung!B32<>\"\",HYPERLINK($I$8&I24,\"zurück zu \"&blattname_Massnahmenplanung&\", \"&B24),\"\")","v":""},null,32]
["  \n \n \n \n \n ",{"$f":"IF(Massnahmenplanung!$B33<>\"\",Massnahmenplanung!B33,\"\")","v":""},{"$f":"IF(Massnahmenplanung!$B33<>\"\",Massnahmenplanung!C33,\"\")","v":""},null,null,null,{"$f":"IF(Massnahmenplanung!B33<>\"\",HYPERLINK($I$8&I25,\"zurück zu \"&blattname_Massnahmenplanung&\", \"&B25),\"\")","v":""},null,33]
["  \n \n \n \n \n ",{"$f":"IF(Massnahmenplanung!$B34<>\"\",Massnahmenplanung!B34,\"\")","v":""},{"$f":"IF(Massnahmenplanung!$B34<>\"\",Massnahmenplanung!C34,\"\")","v":""},null,null,null,{"$f":"IF(Massnahmenplanung!B34<>\"\",HYPERLINK($I$8&I26,\"zurück zu \"&blattname_Massnahmenplanung&\", \"&B26),\"\")","v":""},null,34]
["  \n \n \n \n \n ",{"$f":"IF(Massnahmenplanung!$B35<>\"\",Massnahmenplanung!B35,\"\")","v":""},{"$f":"IF(Massnahmenplanung!$B35<>\"\",Massnahmenplanung!C35,\"\")","v":""},null,null,null,{"$f":"IF(Massnahmenplanung!B35<>\"\",HYPERLINK($I$8&I27,\"zurück zu \"&blattname_Massnahmenplanung&\", \"&B27),\"\")","v":""},null,35]
["  \n \n \n \n \n ",{"$f":"IF(Massnahmenplanung!$B36<>\"\",Massnahmenplanung!B36,\"\")","v":""},{"$f":"IF(Massnahmenplanung!$B36<>\"\",Massnahmenplanung!C36,\"\")","v":""},null,null,null,{"$f":"IF(Massnahmenplanung!B36<>\"\",HYPERLINK($I$8&I28,\"zurück zu \"&blattname_Massnahmenplanung&\", \"&B28),\"\")","v":""},null,36]
["  \n \n \n \n \n ",{"$f":"IF(Massnahmenplanung!$B37<>\"\",Massnahmenplanung!B37,\"\")","v":""},{"$f":"IF(Massnahmenplanung!$B37<>\"\",Massnahmenplanung!C37,\"\")","v":""},null,null,null,{"$f":"IF(Massnahmenplanung!B37<>\"\",HYPERLINK($I$8&I29,\"zurück zu \"&blattname_Massnahmenplanung&\", \"&B29),\"\")","v":""},null,37]
["  \n \n \n \n \n ",{"$f":"IF(Massnahmenplanung!$B38<>\"\",Massnahmenplanung!B38,\"\")","v":""},{"$f":"IF(Massnahmenplanung!$B38<>\"\",Massnahmenplanung!C38,\"\")","v":""},null,null,null,{"$f":"IF(Massnahmenplanung!B38<>\"\",HYPERLINK($I$8&I30,\"zurück zu \"&blattname_Massnahmenplanung&\", \"&B30),\"\")","v":""},null,38]
["  \n \n \n \n \n ",{"$f":"IF(Massnahmenplanung!$B39<>\"\",Massnahmenplanung!B39,\"\")","v":""},{"$f":"IF(Massnahmenplanung!$B39<>\"\",Massnahmenplanung!C39,\"\")","v":""},null,null,null,{"$f":"IF(Massnahmenplanung!B39<>\"\",HYPERLINK($I$8&I31,\"zurück zu \"&blattname_Massnahmenplanung&\", \"&B31),\"\")","v":""},null,39]
["  \n \n \n \n \n ",{"$f":"IF(Massnahmenplanung!$B40<>\"\",Massnahmenplanung!B40,\"\")","v":""},{"$f":"IF(Massnahmenplanung!$B40<>\"\",Massnahmenplanung!C40,\"\")","v":""},null,null,null,{"$f":"IF(Massnahmenplanung!B40<>\"\",HYPERLINK($I$8&I32,\"zurück zu \"&blattname_Massnahmenplanung&\", \"&B32),\"\")","v":""},null,40]
["  \n \n \n \n \n ",{"$f":"IF(Massnahmenplanung!$B41<>\"\",Massnahmenplanung!B41,\"\")","v":""},{"$f":"IF(Massnahmenplanung!$B41<>\"\",Massnahmenplanung!C41,\"\")","v":""},null,null,null,{"$f":"IF(Massnahmenplanung!B41<>\"\",HYPERLINK($I$8&I33,\"zurück zu \"&blattname_Massnahmenplanung&\", \"&B33),\"\")","v":""},null,41]
["  \n \n \n \n \n ",{"$f":"IF(Massnahmenplanung!$B42<>\"\",Massnahmenplanung!B42,\"\")","v":""},{"$f":"IF(Massnahmenplanung!$B42<>\"\",Massnahmenplanung!C42,\"\")","v":""},null,null,null,{"$f":"IF(Massnahmenplanung!B42<>\"\",HYPERLINK($I$8&I34,\"zurück zu \"&blattname_Massnahmenplanung&\", \"&B34),\"\")","v":""},null,42]
["  \n \n \n \n \n ",{"$f":"IF(Massnahmenplanung!$B43<>\"\",Massnahmenplanung!B43,\"\")","v":""},{"$f":"IF(Massnahmenplanung!$B43<>\"\",Massnahmenplanung!C43,\"\")","v":""},null,null,null,{"$f":"IF(Massnahmenplanung!B43<>\"\",HYPERLINK($I$8&I35,\"zurück zu \"&blattname_Massnahmenplanung&\", \"&B35),\"\")","v":""},null,43]
["  \n \n \n \n \n ",{"$f":"IF(Massnahmenplanung!$B44<>\"\",Massnahmenplanung!B44,\"\")","v":""},{"$f":"IF(Massnahmenplanung!$B44<>\"\",Massnahmenplanung!C44,\"\")","v":""},null,null,null,{"$f":"IF(Massnahmenplanung!B44<>\"\",HYPERLINK($I$8&I36,\"zurück zu \"&blattname_Massnahmenplanung&\", \"&B36),\"\")","v":""},null,44]
["  \n \n \n \n \n ",{"$f":"IF(Massnahmenplanung!$B45<>\"\",Massnahmenplanung!B45,\"\")","v":""},{"$f":"IF(Massnahmenplanung!$B45<>\"\",Massnahmenplanung!C45,\"\")","v":""},null,null,null,{"$f":"IF(Massnahmenplanung!B45<>\"\",HYPERLINK($I$8&I37,\"zurück zu \"&blattname_Massnahmenplanung&\", \"&B37),\"\")","v":""},null,45]
["  \n \n \n \n \n ",{"$f":"IF(Massnahmenplanung!$B46<>\"\",Massnahmenplanung!B46,\"\")","v":""},{"$f":"IF(Massnahmenplanung!$B46<>\"\",Massnahmenplanung!C46,\"\")","v":""},null,null,null,{"$f":"IF(Massnahmenplanung!B46<>\"\",HYPERLINK($I$8&I38,\"zurück zu \"&blattname_Massnahmenplanung&\", \"&B38),\"\")","v":""},null,46]
["  \n \n \n \n \n ",{"$f":"IF(Massnahmenplanung!$B47<>\"\",Massnahmenplanung!B47,\"\")","v":""},{"$f":"IF(Massnahmenplanung!$B47<>\"\",Massnahmenplanung!C47,\"\")","v":""},null,null,null,{"$f":"IF(Massnahmenplanung!B47<>\"\",HYPERLINK($I$8&I39,\"zurück zu \"&blattname_Massnahmenplanung&\", \"&B39),\"\")","v":""},null,47]
["  \n \n \n \n \n ",{"$f":"IF(Massnahmenplanung!$B48<>\"\",Massnahmenplanung!B48,\"\")","v":""},{"$f":"IF(Massnahmenplanung!$B48<>\"\",Massnahmenplanung!C48,\"\")","v":""},null,null,null,{"$f":"IF(Massnahmenplanung!B48<>\"\",HYPERLINK($I$8&I40,\"zurück zu \"&blattname_Massnahmenplanung&\", \"&B40),\"\")","v":""},null,48]
["  \n \n \n \n \n ",{"$f":"IF(Massnahmenplanung!$B49<>\"\",Massnahmenplanung!B49,\"\")","v":""},{"$f":"IF(Massnahmenplanung!$B49<>\"\",Massnahmenplanung!C49,\"\")","v":""},null,null,null,{"$f":"IF(Massnahmenplanung!B49<>\"\",HYPERLINK($I$8&I41,\"zurück zu \"&blattname_Massnahmenplanung&\", \"&B41),\"\")","v":""},null,49]
["  \n \n \n \n \n ",{"$f":"IF(Massnahmenplanung!$B50<>\"\",Massnahmenplanung!B50,\"\")","v":""},{"$f":"IF(Massnahmenplanung!$B50<>\"\",Massnahmenplanung!C50,\"\")","v":""},null,null,null,{"$f":"IF(Massnahmenplanung!B50<>\"\",HYPERLINK($I$8&I42,\"zurück zu \"&blattname_Massnahmenplanung&\", \"&B42),\"\")","v":""},null,50]
["  \n \n \n \n \n ",{"$f":"IF(Massnahmenplanung!$B51<>\"\",Massnahmenplanung!B51,\"\")","v":""},{"$f":"IF(Massnahmenplanung!$B51<>\"\",Massnahmenplanung!C51,\"\")","v":""},null,null,null,{"$f":"IF(Massnahmenplanung!B51<>\"\",HYPERLINK($I$8&I43,\"zurück zu \"&blattname_Massnahmenplanung&\", \"&B43),\"\")","v":""},null,51]
["  \n \n \n \n \n ",{"$f":"IF(Massnahmenplanung!$B52<>\"\",Massnahmenplanung!B52,\"\")","v":""},{"$f":"IF(Massnahmenplanung!$B52<>\"\",Massnahmenplanung!C52,\"\")","v":""},null,null,null,{"$f":"IF(Massnahmenplanung!B52<>\"\",HYPERLINK($I$8&I44,\"zurück zu \"&blattname_Massnahmenplanung&\", \"&B44),\"\")","v":""},null,52]
["  \n \n \n \n \n ",{"$f":"IF(Massnahmenplanung!$B53<>\"\",Massnahmenplanung!B53,\"\")","v":""},{"$f":"IF(Massnahmenplanung!$B53<>\"\",Massnahmenplanung!C53,\"\")","v":""},null,null,null,{"$f":"IF(Massnahmenplanung!B53<>\"\",HYPERLINK($I$8&I45,\"zurück zu \"&blattname_Massnahmenplanung&\", \"&B45),\"\")","v":""},null,53]
["  \n \n \n \n \n ",{"$f":"IF(Massnahmenplanung!$B54<>\"\",Massnahmenplanung!B54,\"\")","v":""},{"$f":"IF(Massnahmenplanung!$B54<>\"\",Massnahmenplanung!C54,\"\")","v":""},null,null,null,{"$f":"IF(Massnahmenplanung!B54<>\"\",HYPERLINK($I$8&I46,\"zurück zu \"&blattname_Massnahmenplanung&\", \"&B46),\"\")","v":""},null,54]
["  \n \n \n \n \n ",{"$f":"IF(Massnahmenplanung!$B55<>\"\",Massnahmenplanung!B55,\"\")","v":""},{"$f":"IF(Massnahmenplanung!$B55<>\"\",Massnahmenplanung!C55,\"\")","v":""},null,null,null,{"$f":"IF(Massnahmenplanung!B55<>\"\",HYPERLINK($I$8&I47,\"zurück zu \"&blattname_Massnahmenplanung&\", \"&B47),\"\")","v":""},null,55]
["  \n \n \n \n \n ",{"$f":"IF(Massnahmenplanung!$B56<>\"\",Massnahmenplanung!B56,\"\")","v":""},{"$f":"IF(Massnahmenplanung!$B56<>\"\",Massnahmenplanung!C56,\"\")","v":""},null,null,null,{"$f":"IF(Massnahmenplanung!B56<>\"\",HYPERLINK($I$8&I48,\"zurück zu \"&blattname_Massnahmenplanung&\", \"&B48),\"\")","v":""},null,56]
["  \n \n \n \n \n ",{"$f":"IF(Massnahmenplanung!$B57<>\"\",Massnahmenplanung!B57,\"\")","v":""},{"$f":"IF(Massnahmenplanung!$B57<>\"\",Massnahmenplanung!C57,\"\")","v":""},null,null,null,{"$f":"IF(Massnahmenplanung!B57<>\"\",HYPERLINK($I$8&I49,\"zurück zu \"&blattname_Massnahmenplanung&\", \"&B49),\"\")","v":""},null,57]
["  \n \n \n \n \n ",{"$f":"IF(Massnahmenplanung!$B58<>\"\",Massnahmenplanung!B58,\"\")","v":""},{"$f":"IF(Massnahmenplanung!$B58<>\"\",Massnahmenplanung!C58,\"\")","v":""},null,null,null,{"$f":"IF(Massnahmenplanung!B58<>\"\",HYPERLINK($I$8&I50,\"zurück zu \"&blattname_Massnahmenplanung&\", \"&B50),\"\")","v":""},null,58]
["  \n \n \n \n \n ",{"$f":"IF(Massnahmenplanung!$B59<>\"\",Massnahmenplanung!B59,\"\")","v":""},{"$f":"IF(Massnahmenplanung!$B59<>\"\",Massnahmenplanung!C59,\"\")","v":""},null,null,null,{"$f":"IF(Massnahmenplanung!B59<>\"\",HYPERLINK($I$8&I51,\"zurück zu \"&blattname_Massnahmenplanung&\", \"&B51),\"\")","v":""},null,59]
["  \n \n \n \n \n ",{"$f":"IF(Massnahmenplanung!$B60<>\"\",Massnahmenplanung!B60,\"\")","v":""},{"$f":"IF(Massnahmenplanung!$B60<>\"\",Massnahmenplanung!C60,\"\")","v":""},null,null,null,{"$f":"IF(Massnahmenplanung!B60<>\"\",HYPERLINK($I$8&I52,\"zurück zu \"&blattname_Massnahmenplanung&\", \"&B52),\"\")","v":""},null,60]
["  \n \n \n \n \n ",{"$f":"IF(Massnahmenplanung!$B61<>\"\",Massnahmenplanung!B61,\"\")","v":""},{"$f":"IF(Massnahmenplanung!$B61<>\"\",Massnahmenplanung!C61,\"\")","v":""},null,null,null,{"$f":"IF(Massnahmenplanung!B61<>\"\",HYPERLINK($I$8&I53,\"zurück zu \"&blattname_Massnahmenplanung&\", \"&B53),\"\")","v":""},null,61]
["  \n \n \n \n \n ",{"$f":"IF(Massnahmenplanung!$B62<>\"\",Massnahmenplanung!B62,\"\")","v":""},{"$f":"IF(Massnahmenplanung!$B62<>\"\",Massnahmenplanung!C62,\"\")","v":""},null,null,null,{"$f":"IF(Massnahmenplanung!B62<>\"\",HYPERLINK($I$8&I54,\"zurück zu \"&blattname_Massnahmenplanung&\", \"&B54),\"\")","v":""},null,62]
["  \n \n \n \n \n ",{"$f":"IF(Massnahmenplanung!$B63<>\"\",Massnahmenplanung!B63,\"\")","v":""},{"$f":"IF(Massnahmenplanung!$B63<>\"\",Massnahmenplanung!C63,\"\")","v":""},null,null,null,{"$f":"IF(Massnahmenplanung!B63<>\"\",HYPERLINK($I$8&I55,\"zurück zu \"&blattname_Massnahmenplanung&\", \"&B55),\"\")","v":""},null,63]
["  \n \n \n \n \n ",{"$f":"IF(Massnahmenplanung!$B64<>\"\",Massnahmenplanung!B64,\"\")","v":""},{"$f":"IF(Massnahmenplanung!$B64<>\"\",Massnahmenplanung!C64,\"\")","v":""},null,null,null,{"$f":"IF(Massnahmenplanung!B64<>\"\",HYPERLINK($I$8&I56,\"zurück zu \"&blattname_Massnahmenplanung&\", \"&B56),\"\")","v":""},null,64]
["  \n \n \n \n \n ",{"$f":"IF(Massnahmenplanung!$B65<>\"\",Massnahmenplanung!B65,\"\")","v":""},{"$f":"IF(Massnahmenplanung!$B65<>\"\",Massnahmenplanung!C65,\"\")","v":""},null,null,null,{"$f":"IF(Massnahmenplanung!B65<>\"\",HYPERLINK($I$8&I57,\"zurück zu \"&blattname_Massnahmenplanung&\", \"&B57),\"\")","v":""},null,65]
["  \n \n \n \n \n ",{"$f":"IF(Massnahmenplanung!$B66<>\"\",Massnahmenplanung!B66,\"\")","v":""},{"$f":"IF(Massnahmenplanung!$B66<>\"\",Massnahmenplanung!C66,\"\")","v":""},null,null,null,{"$f":"IF(Massnahmenplanung!B66<>\"\",HYPERLINK($I$8&I58,\"zurück zu \"&blattname_Massnahmenplanung&\", \"&B58),\"\")","v":""},null,66]
["  \n \n \n \n \n ",{"$f":"IF(Massnahmenplanung!$B67<>\"\",Massnahmenplanung!B67,\"\")","v":""},{"$f":"IF(Massnahmenplanung!$B67<>\"\",Massnahmenplanung!C67,\"\")","v":""},null,null,null,{"$f":"IF(Massnahmenplanung!B67<>\"\",HYPERLINK($I$8&I59,\"zurück zu \"&blattname_Massnahmenplanung&\", \"&B59),\"\")","v":""},null,67]
["  \n \n \n \n \n ",{"$f":"IF(Massnahmenplanung!$B68<>\"\",Massnahmenplanung!B68,\"\")","v":""},{"$f":"IF(Massnahmenplanung!$B68<>\"\",Massnahmenplanung!C68,\"\")","v":""},null,null,null,{"$f":"IF(Massnahmenplanung!B68<>\"\",HYPERLINK($I$8&I60,\"zurück zu \"&blattname_Massnahmenplanung&\", \"&B60),\"\")","v":""},null,68]
["  \n \n \n \n \n ",{"$f":"IF(Massnahmenplanung!$B69<>\"\",Massnahmenplanung!B69,\"\")","v":""},{"$f":"IF(Massnahmenplanung!$B69<>\"\",Massnahmenplanung!C69,\"\")","v":""},null,null,null,{"$f":"IF(Massnahmenplanung!B69<>\"\",HYPERLINK($I$8&I61,\"zurück zu \"&blattname_Massnahmenplanung&\", \"&B61),\"\")","v":""},null,69]
["  \n \n \n \n \n ",{"$f":"IF(Massnahmenplanung!$B70<>\"\",Massnahmenplanung!B70,\"\")","v":""},{"$f":"IF(Massnahmenplanung!$B70<>\"\",Massnahmenplanung!C70,\"\")","v":""},null,null,null,{"$f":"IF(Massnahmenplanung!B70<>\"\",HYPERLINK($I$8&I62,\"zurück zu \"&blattname_Massnahmenplanung&\", \"&B62),\"\")","v":""},null,70]
["  \n \n \n \n \n ",{"$f":"IF(Massnahmenplanung!$B71<>\"\",Massnahmenplanung!B71,\"\")","v":""},{"$f":"IF(Massnahmenplanung!$B71<>\"\",Massnahmenplanung!C71,\"\")","v":""},null,null,null,{"$f":"IF(Massnahmenplanung!B71<>\"\",HYPERLINK($I$8&I63,\"zurück zu \"&blattname_Massnahmenplanung&\", \"&B63),\"\")","v":""},null,71]
["  \n \n \n \n \n ",{"$f":"IF(Massnahmenplanung!$B72<>\"\",Massnahmenplanung!B72,\"\")","v":""},{"$f":"IF(Massnahmenplanung!$B72<>\"\",Massnahmenplanung!C72,\"\")","v":""},null,null,null,{"$f":"IF(Massnahmenplanung!B72<>\"\",HYPERLINK($I$8&I64,\"zurück zu \"&blattname_Massnahmenplanung&\", \"&B64),\"\")","v":""},null,72]
["  \n \n \n \n \n ",{"$f":"IF(Massnahmenplanung!$B73<>\"\",Massnahmenplanung!B73,\"\")","v":""},{"$f":"IF(Massnahmenplanung!$B73<>\"\",Massnahmenplanung!C73,\"\")","v":""},null,null,null,{"$f":"IF(Massnahmenplanung!B73<>\"\",HYPERLINK($I$8&I65,\"zurück zu \"&blattname_Massnahmenplanung&\", \"&B65),\"\")","v":""},null,73]
["  \n \n \n \n \n ",{"$f":"IF(Massnahmenplanung!$B74<>\"\",Massnahmenplanung!B74,\"\")","v":""},{"$f":"IF(Massnahmenplanung!$B74<>\"\",Massnahmenplanung!C74,\"\")","v":""},null,null,null,{"$f":"IF(Massnahmenplanung!B74<>\"\",HYPERLINK($I$8&I66,\"zurück zu \"&blattname_Massnahmenplanung&\", \"&B66),\"\")","v":""},null,74]
["  \n \n \n \n \n ",{"$f":"IF(Massnahmenplanung!$B75<>\"\",Massnahmenplanung!B75,\"\")","v":""},{"$f":"IF(Massnahmenplanung!$B75<>\"\",Massnahmenplanung!C75,\"\")","v":""},null,null,null,{"$f":"IF(Massnahmenplanung!B75<>\"\",HYPERLINK($I$8&I67,\"zurück zu \"&blattname_Massnahmenplanung&\", \"&B67),\"\")","v":""},null,75]
["  \n \n \n \n \n ",{"$f":"IF(Massnahmenplanung!$B76<>\"\",Massnahmenplanung!B76,\"\")","v":""},{"$f":"IF(Massnahmenplanung!$B76<>\"\",Massnahmenplanung!C76,\"\")","v":""},null,null,null,{"$f":"IF(Massnahmenplanung!B76<>\"\",HYPERLINK($I$8&I68,\"zurück zu \"&blattname_Massnahmenplanung&\", \"&B68),\"\")","v":""},null,76]
["  \n \n \n \n \n ",{"$f":"IF(Massnahmenplanung!$B77<>\"\",Massnahmenplanung!B77,\"\")","v":""},{"$f":"IF(Massnahmenplanung!$B77<>\"\",Massnahmenplanung!C77,\"\")","v":""},null,null,null,{"$f":"IF(Massnahmenplanung!B77<>\"\",HYPERLINK($I$8&I69,\"zurück zu \"&blattname_Massnahmenplanung&\", \"&B69),\"\")","v":""},null,77]
["  \n \n \n \n \n ",{"$f":"IF(Massnahmenplanung!$B78<>\"\",Massnahmenplanung!B78,\"\")","v":""},{"$f":"IF(Massnahmenplanung!$B78<>\"\",Massnahmenplanung!C78,\"\")","v":""},null,null,null,{"$f":"IF(Massnahmenplanung!B78<>\"\",HYPERLINK($I$8&I70,\"zurück zu \"&blattname_Massnahmenplanung&\", \"&B70),\"\")","v":""},null,78]
["  \n \n \n \n \n ",{"$f":"IF(Massnahmenplanung!$B79<>\"\",Massnahmenplanung!B79,\"\")","v":""},{"$f":"IF(Massnahmenplanung!$B79<>\"\",Massnahmenplanung!C79,\"\")","v":""},null,null,null,{"$f":"IF(Massnahmenplanung!B79<>\"\",HYPERLINK($I$8&I71,\"zurück zu \"&blattname_Massnahmenplanung&\", \"&B71),\"\")","v":""},null,79]
["  \n \n \n \n \n ",{"$f":"IF(Massnahmenplanung!$B80<>\"\",Massnahmenplanung!B80,\"\")","v":""},{"$f":"IF(Massnahmenplanung!$B80<>\"\",Massnahmenplanung!C80,\"\")","v":""},null,null,null,{"$f":"IF(Massnahmenplanung!B80<>\"\",HYPERLINK($I$8&I72,\"zurück zu \"&blattname_Massnahmenplanung&\", \"&B72),\"\")","v":""},null,80]
["  \n \n \n \n \n ",{"$f":"IF(Massnahmenplanung!$B81<>\"\",Massnahmenplanung!B81,\"\")","v":""},{"$f":"IF(Massnahmenplanung!$B81<>\"\",Massnahmenplanung!C81,\"\")","v":""},null,null,null,{"$f":"IF(Massnahmenplanung!B81<>\"\",HYPERLINK($I$8&I73,\"zurück zu \"&blattname_Massnahmenplanung&\", \"&B73),\"\")","v":""},null,81]
["  \n \n \n \n \n ",{"$f":"IF(Massnahmenplanung!$B82<>\"\",Massnahmenplanung!B82,\"\")","v":""},{"$f":"IF(Massnahmenplanung!$B82<>\"\",Massnahmenplanung!C82,\"\")","v":""},null,null,null,{"$f":"IF(Massnahmenplanung!B82<>\"\",HYPERLINK($I$8&I74,\"zurück zu \"&blattname_Massnahmenplanung&\", \"&B74),\"\")","v":""},null,82]
["  \n \n \n \n \n ",{"$f":"IF(Massnahmenplanung!$B83<>\"\",Massnahmenplanung!B83,\"\")","v":""},{"$f":"IF(Massnahmenplanung!$B83<>\"\",Massnahmenplanung!C83,\"\")","v":""},null,null,null,{"$f":"IF(Massnahmenplanung!B83<>\"\",HYPERLINK($I$8&I75,\"zurück zu \"&blattname_Massnahmenplanung&\", \"&B75),\"\")","v":""},null,83]
["  \n \n \n \n \n ",{"$f":"IF(Massnahmenplanung!$B84<>\"\",Massnahmenplanung!B84,\"\")","v":""},{"$f":"IF(Massnahmenplanung!$B84<>\"\",Massnahmenplanung!C84,\"\")","v":""},null,null,null,{"$f":"IF(Massnahmenplanung!B84<>\"\",HYPERLINK($I$8&I76,\"zurück zu \"&blattname_Massnahmenplanung&\", \"&B76),\"\")","v":""},null,84]
["  \n \n \n \n \n ",{"$f":"IF(Massnahmenplanung!$B85<>\"\",Massnahmenplanung!B85,\"\")","v":""},{"$f":"IF(Massnahmenplanung!$B85<>\"\",Massnahmenplanung!C85,\"\")","v":""},null,null,null,{"$f":"IF(Massnahmenplanung!B85<>\"\",HYPERLINK($I$8&I77,\"zurück zu \"&blattname_Massnahmenplanung&\", \"&B77),\"\")","v":""},null,85]
["  \n \n \n \n \n ",{"$f":"IF(Massnahmenplanung!$B86<>\"\",Massnahmenplanung!B86,\"\")","v":""},{"$f":"IF(Massnahmenplanung!$B86<>\"\",Massnahmenplanung!C86,\"\")","v":""},null,null,null,{"$f":"IF(Massnahmenplanung!B86<>\"\",HYPERLINK($I$8&I78,\"zurück zu \"&blattname_Massnahmenplanung&\", \"&B78),\"\")","v":""},null,86]
["  \n \n \n \n \n ",{"$f":"IF(Massnahmenplanung!$B87<>\"\",Massnahmenplanung!B87,\"\")","v":""},{"$f":"IF(Massnahmenplanung!$B87<>\"\",Massnahmenplanung!C87,\"\")","v":""},null,null,null,{"$f":"IF(Massnahmenplanung!B87<>\"\",HYPERLINK($I$8&I79,\"zurück zu \"&blattname_Massnahmenplanung&\", \"&B79),\"\")","v":""},null,87]
["  \n \n \n \n \n ",{"$f":"IF(Massnahmenplanung!$B88<>\"\",Massnahmenplanung!B88,\"\")","v":""},{"$f":"IF(Massnahmenplanung!$B88<>\"\",Massnahmenplanung!C88,\"\")","v":""},null,null,null,{"$f":"IF(Massnahmenplanung!B88<>\"\",HYPERLINK($I$8&I80,\"zurück zu \"&blattname_Massnahmenplanung&\", \"&B80),\"\")","v":""},null,{"$f":"I79+1","v":88}]
["  \n \n \n \n \n ",{"$f":"IF(Massnahmenplanung!$B89<>\"\",Massnahmenplanung!B89,\"\")","v":""},{"$f":"IF(Massnahmenplanung!$B89<>\"\",Massnahmenplanung!C89,\"\")","v":""},null,null,null,{"$f":"IF(Massnahmenplanung!B89<>\"\",HYPERLINK($I$8&I81,\"zurück zu \"&blattname_Massnahmenplanung&\", \"&B81),\"\")","v":""},null,89]
["  \n \n \n \n \n ",{"$f":"IF(Massnahmenplanung!$B90<>\"\",Massnahmenplanung!B90,\"\")","v":""},{"$f":"IF(Massnahmenplanung!$B90<>\"\",Massnahmenplanung!C90,\"\")","v":""},null,null,null,{"$f":"IF(Massnahmenplanung!B90<>\"\",HYPERLINK($I$8&I82,\"zurück zu \"&blattname_Massnahmenplanung&\", \"&B82),\"\")","v":""},null,90]
["  \n \n \n \n \n ",{"$f":"IF(Massnahmenplanung!$B91<>\"\",Massnahmenplanung!B91,\"\")","v":""},{"$f":"IF(Massnahmenplanung!$B91<>\"\",Massnahmenplanung!C91,\"\")","v":""},null,null,null,{"$f":"IF(Massnahmenplanung!B91<>\"\",HYPERLINK($I$8&I83,\"zurück zu \"&blattname_Massnahmenplanung&\", \"&B83),\"\")","v":""},null,91]
["  \n \n \n \n \n ",{"$f":"IF(Massnahmenplanung!$B92<>\"\",Massnahmenplanung!B92,\"\")","v":""},{"$f":"IF(Massnahmenplanung!$B92<>\"\",Massnahmenplanung!C92,\"\")","v":""},null,null,null,{"$f":"IF(Massnahmenplanung!B92<>\"\",HYPERLINK($I$8&I84,\"zurück zu \"&blattname_Massnahmenplanung&\", \"&B84),\"\")","v":""},null,92]
["  \n \n \n \n \n ",{"$f":"IF(Massnahmenplanung!$B93<>\"\",Massnahmenplanung!B93,\"\")","v":""},{"$f":"IF(Massnahmenplanung!$B93<>\"\",Massnahmenplanung!C93,\"\")","v":""},null,null,null,{"$f":"IF(Massnahmenplanung!B93<>\"\",HYPERLINK($I$8&I85,\"zurück zu \"&blattname_Massnahmenplanung&\", \"&B85),\"\")","v":""},null,93]
["  \n \n \n \n \n ",{"$f":"IF(Massnahmenplanung!$B94<>\"\",Massnahmenplanung!B94,\"\")","v":""},{"$f":"IF(Massnahmenplanung!$B94<>\"\",Massnahmenplanung!C94,\"\")","v":""},null,null,null,{"$f":"IF(Massnahmenplanung!B94<>\"\",HYPERLINK($I$8&I86,\"zurück zu \"&blattname_Massnahmenplanung&\", \"&B86),\"\")","v":""},null,94]
["  \n \n \n \n \n ",{"$f":"IF(Massnahmenplanung!$B95<>\"\",Massnahmenplanung!B95,\"\")","v":""},{"$f":"IF(Massnahmenplanung!$B95<>\"\",Massnahmenplanung!C95,\"\")","v":""},null,null,null,{"$f":"IF(Massnahmenplanung!B95<>\"\",HYPERLINK($I$8&I87,\"zurück zu \"&blattname_Massnahmenplanung&\", \"&B87),\"\")","v":""},null,95]
["  \n \n \n \n \n ",{"$f":"IF(Massnahmenplanung!$B96<>\"\",Massnahmenplanung!B96,\"\")","v":""},{"$f":"IF(Massnahmenplanung!$B96<>\"\",Massnahmenplanung!C96,\"\")","v":""},null,null,null,{"$f":"IF(Massnahmenplanung!B96<>\"\",HYPERLINK($I$8&I88,\"zurück zu \"&blattname_Massnahmenplanung&\", \"&B88),\"\")","v":""},null,96]
["  \n \n \n \n \n ",{"$f":"IF(Massnahmenplanung!$B97<>\"\",Massnahmenplanung!B97,\"\")","v":""},{"$f":"IF(Massnahmenplanung!$B97<>\"\",Massnahmenplanung!C97,\"\")","v":""},null,null,null,{"$f":"IF(Massnahmenplanung!B97<>\"\",HYPERLINK($I$8&I89,\"zurück zu \"&blattname_Massnahmenplanung&\", \"&B89),\"\")","v":""},null,97]
["  \n \n \n \n \n ",{"$f":"IF(Massnahmenplanung!$B98<>\"\",Massnahmenplanung!B98,\"\")","v":""},{"$f":"IF(Massnahmenplanung!$B98<>\"\",Massnahmenplanung!C98,\"\")","v":""},null,null,null,{"$f":"IF(Massnahmenplanung!B98<>\"\",HYPERLINK($I$8&I90,\"zurück zu \"&blattname_Massnahmenplanung&\", \"&B90),\"\")","v":""},null,98]
["  \n \n \n \n \n ",{"$f":"IF(Massnahmenplanung!$B99<>\"\",Massnahmenplanung!B99,\"\")","v":""},{"$f":"IF(Massnahmenplanung!$B99<>\"\",Massnahmenplanung!C99,\"\")","v":""},null,null,null,{"$f":"IF(Massnahmenplanung!B99<>\"\",HYPERLINK($I$8&I91,\"zurück zu \"&blattname_Massnahmenplanung&\", \"&B91),\"\")","v":""},null,99]
["  \n \n \n \n \n ",{"$f":"IF(Massnahmenplanung!$B100<>\"\",Massnahmenplanung!B100,\"\")","v":""},{"$f":"IF(Massnahmenplanung!$B100<>\"\",Massnahmenplanung!C100,\"\")","v":""},null,null,null,{"$f":"IF(Massnahmenplanung!B100<>\"\",HYPERLINK($I$8&I92,\"zurück zu \"&blattname_Massnahmenplanung&\", \"&B92),\"\")","v":""},null,100]
["  \n \n \n \n \n ",{"$f":"IF(Massnahmenplanung!$B101<>\"\",Massnahmenplanung!B101,\"\")","v":""},{"$f":"IF(Massnahmenplanung!$B101<>\"\",Massnahmenplanung!C101,\"\")","v":""},null,null,null,{"$f":"IF(Massnahmenplanung!B101<>\"\",HYPERLINK($I$8&I93,\"zurück zu \"&blattname_Massnahmenplanung&\", \"&B93),\"\")","v":""},null,101]
["  \n \n \n \n \n ",{"$f":"IF(Massnahmenplanung!$B102<>\"\",Massnahmenplanung!B102,\"\")","v":""},{"$f":"IF(Massnahmenplanung!$B102<>\"\",Massnahmenplanung!C102,\"\")","v":""},null,null,null,{"$f":"IF(Massnahmenplanung!B102<>\"\",HYPERLINK($I$8&I94,\"zurück zu \"&blattname_Massnahmenplanung&\", \"&B94),\"\")","v":""},null,102]
["  \n \n \n \n \n ",{"$f":"IF(Massnahmenplanung!$B103<>\"\",Massnahmenplanung!B103,\"\")","v":""},{"$f":"IF(Massnahmenplanung!$B103<>\"\",Massnahmenplanung!C103,\"\")","v":""},null,null,null,{"$f":"IF(Massnahmenplanung!B103<>\"\",HYPERLINK($I$8&I95,\"zurück zu \"&blattname_Massnahmenplanung&\", \"&B95),\"\")","v":""},null,103]
["  \n \n \n \n \n ",{"$f":"IF(Massnahmenplanung!$B104<>\"\",Massnahmenplanung!B104,\"\")","v":""},{"$f":"IF(Massnahmenplanung!$B104<>\"\",Massnahmenplanung!C104,\"\")","v":""},null,null,null,{"$f":"IF(Massnahmenplanung!B104<>\"\",HYPERLINK($I$8&I96,\"zurück zu \"&blattname_Massnahmenplanung&\", \"&B96),\"\")","v":""},null,104]
["  \n \n \n \n \n ",{"$f":"IF(Massnahmenplanung!$B105<>\"\",Massnahmenplanung!B105,\"\")","v":""},{"$f":"IF(Massnahmenplanung!$B105<>\"\",Massnahmenplanung!C105,\"\")","v":""},null,null,null,{"$f":"IF(Massnahmenplanung!B105<>\"\",HYPERLINK($I$8&I97,\"zurück zu \"&blattname_Massnahmenplanung&\", \"&B97),\"\")","v":""},null,105]
["  \n \n \n \n \n ",{"$f":"IF(Massnahmenplanung!$B106<>\"\",Massnahmenplanung!B106,\"\")","v":""},{"$f":"IF(Massnahmenplanung!$B106<>\"\",Massnahmenplanung!C106,\"\")","v":""},null,null,null,{"$f":"IF(Massnahmenplanung!B106<>\"\",HYPERLINK($I$8&I98,\"zurück zu \"&blattname_Massnahmenplanung&\", \"&B98),\"\")","v":""},null,106]
["  \n \n \n \n \n ",{"$f":"IF(Massnahmenplanung!$B107<>\"\",Massnahmenplanung!B107,\"\")","v":""},{"$f":"IF(Massnahmenplanung!$B107<>\"\",Massnahmenplanung!C107,\"\")","v":""},null,null,null,{"$f":"IF(Massnahmenplanung!B107<>\"\",HYPERLINK($I$8&I99,\"zurück zu \"&blattname_Massnahmenplanung&\", \"&B99),\"\")","v":""},null,107]
["  \n \n \n \n \n ",{"$f":"IF(Massnahmenplanung!$B108<>\"\",Massnahmenplanung!B108,\"\")","v":""},{"$f":"IF(Massnahmenplanung!$B108<>\"\",Massnahmenplanung!C108,\"\")","v":""},null,null,null,{"$f":"IF(Massnahmenplanung!B108<>\"\",HYPERLINK($I$8&I100,\"zurück zu \"&blattname_Massnahmenplanung&\", \"&B100),\"\")","v":""},null,108]
["  \n \n \n \n \n ",{"$f":"IF(Massnahmenplanung!$B109<>\"\",Massnahmenplanung!B109,\"\")","v":""},{"$f":"IF(Massnahmenplanung!$B109<>\"\",Massnahmenplanung!C109,\"\")","v":""},null,null,null,{"$f":"IF(Massnahmenplanung!B109<>\"\",HYPERLINK($I$8&I101,\"zurück zu \"&blattname_Massnahmenplanung&\", \"&B101),\"\")","v":""},null,109]
["  \n \n \n \n \n ",{"$f":"IF(Massnahmenplanung!$B110<>\"\",Massnahmenplanung!B110,\"\")","v":""},{"$f":"IF(Massnahmenplanung!$B110<>\"\",Massnahmenplanung!C110,\"\")","v":""},null,null,null,{"$f":"IF(Massnahmenplanung!B110<>\"\",HYPERLINK($I$8&I102,\"zurück zu \"&blattname_Massnahmenplanung&\", \"&B102),\"\")","v":""},null,110]
["  \n \n \n \n \n ",{"$f":"IF(Massnahmenplanung!$B111<>\"\",Massnahmenplanung!B111,\"\")","v":""},{"$f":"IF(Massnahmenplanung!$B111<>\"\",Massnahmenplanung!C111,\"\")","v":""},null,null,null,{"$f":"IF(Massnahmenplanung!B111<>\"\",HYPERLINK($I$8&I103,\"zurück zu \"&blattname_Massnahmenplanung&\", \"&B103),\"\")","v":""},null,111]
["  \n \n \n \n \n ",{"$f":"IF(Massnahmenplanung!$B112<>\"\",Massnahmenplanung!B112,\"\")","v":""},{"$f":"IF(Massnahmenplanung!$B112<>\"\",Massnahmenplanung!C112,\"\")","v":""},null,null,null,{"$f":"IF(Massnahmenplanung!B112<>\"\",HYPERLINK($I$8&I104,\"zurück zu \"&blattname_Massnahmenplanung&\", \"&B104),\"\")","v":""},null,112]
["  \n \n \n \n \n ",{"$f":"IF(Massnahmenplanung!$B113<>\"\",Massnahmenplanung!B113,\"\")","v":""},{"$f":"IF(Massnahmenplanung!$B113<>\"\",Massnahmenplanung!C113,\"\")","v":""},null,null,null,{"$f":"IF(Massnahmenplanung!B113<>\"\",HYPERLINK($I$8&I105,\"zurück zu \"&blattname_Massnahmenplanung&\", \"&B105),\"\")","v":""},null,113]
["  \n \n \n \n \n ",{"$f":"IF(Massnahmenplanung!$B114<>\"\",Massnahmenplanung!B114,\"\")","v":""},{"$f":"IF(Massnahmenplanung!$B114<>\"\",Massnahmenplanung!C114,\"\")","v":""},null,null,null,{"$f":"IF(Massnahmenplanung!B114<>\"\",HYPERLINK($I$8&I106,\"zurück zu \"&blattname_Massnahmenplanung&\", \"&B106),\"\")","v":""},null,114]
["  \n \n \n \n \n ",{"$f":"IF(Massnahmenplanung!$B115<>\"\",Massnahmenplanung!B115,\"\")","v":""},{"$f":"IF(Massnahmenplanung!$B115<>\"\",Massnahmenplanung!C115,\"\")","v":""},null,null,null,{"$f":"IF(Massnahmenplanung!B115<>\"\",HYPERLINK($I$8&I107,\"zurück zu \"&blattname_Massnahmenplanung&\", \"&B107),\"\")","v":""},null,115]
["  \n \n \n \n \n ",{"$f":"IF(Massnahmenplanung!$B116<>\"\",Massnahmenplanung!B116,\"\")","v":""},{"$f":"IF(Massnahmenplanung!$B116<>\"\",Massnahmenplanung!C116,\"\")","v":""},null,null,null,{"$f":"IF(Massnahmenplanung!B116<>\"\",HYPERLINK($I$8&I108,\"zurück zu \"&blattname_Massnahmenplanung&\", \"&B108),\"\")","v":""},null,116]
["  \n \n \n \n \n ",{"$f":"IF(Massnahmenplanung!$B117<>\"\",Massnahmenplanung!B117,\"\")","v":""},{"$f":"IF(Massnahmenplanung!$B117<>\"\",Massnahmenplanung!C117,\"\")","v":""},null,null,null,{"$f":"IF(Massnahmenplanung!B117<>\"\",HYPERLINK($I$8&I109,\"zurück zu \"&blattname_Massnahmenplanung&\", \"&B109),\"\")","v":""},null,117]
["  \n \n \n \n \n ",{"$f":"IF(Massnahmenplanung!$B118<>\"\",Massnahmenplanung!B118,\"\")","v":""},{"$f":"IF(Massnahmenplanung!$B118<>\"\",Massnahmenplanung!C118,\"\")","v":""},null,null,null,{"$f":"IF(Massnahmenplanung!B118<>\"\",HYPERLINK($I$8&I110,\"zurück zu \"&blattname_Massnahmenplanung&\", \"&B110),\"\")","v":""},null,118]
["  \n \n \n \n \n ",{"$f":"IF(Massnahmenplanung!$B119<>\"\",Massnahmenplanung!B119,\"\")","v":""},{"$f":"IF(Massnahmenplanung!$B119<>\"\",Massnahmenplanung!C119,\"\")","v":""},null,null,null,{"$f":"IF(Massnahmenplanung!B119<>\"\",HYPERLINK($I$8&I111,\"zurück zu \"&blattname_Massnahmenplanung&\", \"&B111),\"\")","v":""},null,119]
["  \n \n \n \n \n ",{"$f":"IF(Massnahmenplanung!$B120<>\"\",Massnahmenplanung!B120,\"\")","v":""},{"$f":"IF(Massnahmenplanung!$B120<>\"\",Massnahmenplanung!C120,\"\")","v":""},null,null,null,{"$f":"IF(Massnahmenplanung!B120<>\"\",HYPERLINK($I$8&I112,\"zurück zu \"&blattname_Massnahmenplanung&\", \"&B112),\"\")","v":""},null,120]
["  \n \n \n \n \n ",{"$f":"IF(Massnahmenplanung!$B121<>\"\",Massnahmenplanung!B121,\"\")","v":""},{"$f":"IF(Massnahmenplanung!$B121<>\"\",Massnahmenplanung!C121,\"\")","v":""},null,null,null,{"$f":"IF(Massnahmenplanung!B121<>\"\",HYPERLINK($I$8&I113,\"zurück zu \"&blattname_Massnahmenplanung&\", \"&B113),\"\")","v":""},null,121]
["  \n \n \n \n \n ",{"$f":"IF(Massnahmenplanung!$B122<>\"\",Massnahmenplanung!B122,\"\")","v":""},{"$f":"IF(Massnahmenplanung!$B122<>\"\",Massnahmenplanung!C122,\"\")","v":""},null,null,null,{"$f":"IF(Massnahmenplanung!B122<>\"\",HYPERLINK($I$8&I114,\"zurück zu \"&blattname_Massnahmenplanung&\", \"&B114),\"\")","v":""},null,122]
["  \n \n \n \n \n ",null,null,null,null,null,{"$f":"IF(Massnahmenplanung!B123<>\"\",HYPERLINK($I$8&I115,\"zurück zu \"&blattname_Massnahmenplanung&\", \"&B115),\"\")","v":"zurück zu Massnahmenplanung, "},null,123]
["  \n \n \n \n \n ",{"$f":"IF(Massnahmenplanung!$B124<>\"\",Massnahmenplanung!B124,\"\")","v":""},{"$f":"IF(Massnahmenplanung!$B124<>\"\",Massnahmenplanung!C124,\"\")","v":""},null,null,null,{"$f":"IF(Massnahmenplanung!B124<>\"\",HYPERLINK($I$8&I116,\"zurück zu \"&blattname_Massnahmenplanung&\", \"&B116),\"\")","v":""},null,124]
["  \n \n \n \n \n ",{"$f":"IF(Massnahmenplanung!$B125<>\"\",Massnahmenplanung!B125,\"\")","v":""},{"$f":"IF(Massnahmenplanung!$B125<>\"\",Massnahmenplanung!C125,\"\")","v":""},null,null,null,{"$f":"IF(Massnahmenplanung!B125<>\"\",HYPERLINK($I$8&I117,\"zurück zu \"&blattname_Massnahmenplanung&\", \"&B117),\"\")","v":""},null,125]
["  \n \n \n \n \n ",{"$f":"IF(Massnahmenplanung!$B126<>\"\",Massnahmenplanung!B126,\"\")","v":""},{"$f":"IF(Massnahmenplanung!$B126<>\"\",Massnahmenplanung!C126,\"\")","v":""},null,null,null,{"$f":"IF(Massnahmenplanung!B126<>\"\",HYPERLINK($I$8&I118,\"zurück zu \"&blattname_Massnahmenplanung&\", \"&B118),\"\")","v":""},null,126]
["  \n \n \n \n \n ",{"$f":"IF(Massnahmenplanung!$B127<>\"\",Massnahmenplanung!B127,\"\")","v":""},{"$f":"IF(Massnahmenplanung!$B127<>\"\",Massnahmenplanung!C127,\"\")","v":""},null,null,null,{"$f":"IF(Massnahmenplanung!B127<>\"\",HYPERLINK($I$8&I119,\"zurück zu \"&blattname_Massnahmenplanung&\", \"&B119),\"\")","v":""},null,127]
["  \n \n \n \n \n ",{"$f":"IF(Massnahmenplanung!$B128<>\"\",Massnahmenplanung!B128,\"\")","v":""},{"$f":"IF(Massnahmenplanung!$B128<>\"\",Massnahmenplanung!C128,\"\")","v":""},null,null,null,{"$f":"IF(Massnahmenplanung!B128<>\"\",HYPERLINK($I$8&I120,\"zurück zu \"&blattname_Massnahmenplanung&\", \"&B120),\"\")","v":""},null,128]
["  \n \n \n \n \n ",{"$f":"IF(Massnahmenplanung!$B129<>\"\",Massnahmenplanung!B129,\"\")","v":""},{"$f":"IF(Massnahmenplanung!$B129<>\"\",Massnahmenplanung!C129,\"\")","v":""},null,null,null,{"$f":"IF(Massnahmenplanung!B129<>\"\",HYPERLINK($I$8&I121,\"zurück zu \"&blattname_Massnahmenplanung&\", \"&B121),\"\")","v":""},null,129]
["  \n \n \n \n \n ",{"$f":"IF(Massnahmenplanung!$B130<>\"\",Massnahmenplanung!B130,\"\")","v":""},{"$f":"IF(Massnahmenplanung!$B130<>\"\",Massnahmenplanung!C130,\"\")","v":""},null,null,null,{"$f":"IF(Massnahmenplanung!B130<>\"\",HYPERLINK($I$8&I122,\"zurück zu \"&blattname_Massnahmenplanung&\", \"&B122),\"\")","v":""},null,130]
["  \n \n \n \n \n ",{"$f":"IF(Massnahmenplanung!$B131<>\"\",Massnahmenplanung!B131,\"\")","v":""},{"$f":"IF(Massnahmenplanung!$B131<>\"\",Massnahmenplanung!C131,\"\")","v":""},null,null,null,{"$f":"IF(Massnahmenplanung!B131<>\"\",HYPERLINK($I$8&I123,\"zurück zu \"&blattname_Massnahmenplanung&\", \"&B123),\"\")","v":""},null,131]
["  \n \n \n \n \n ",{"$f":"IF(Massnahmenplanung!$B132<>\"\",Massnahmenplanung!B132,\"\")","v":""},{"$f":"IF(Massnahmenplanung!$B132<>\"\",Massnahmenplanung!C132,\"\")","v":""},null,null,null,{"$f":"IF(Massnahmenplanung!B132<>\"\",HYPERLINK($I$8&I124,\"zurück zu \"&blattname_Massnahmenplanung&\", \"&B124),\"\")","v":""},null,132]
["  \n \n \n \n \n ",{"$f":"IF(Massnahmenplanung!$B133<>\"\",Massnahmenplanung!B133,\"\")","v":""},{"$f":"IF(Massnahmenplanung!$B133<>\"\",Massnahmenplanung!C133,\"\")","v":""},null,null,null,{"$f":"IF(Massnahmenplanung!B133<>\"\",HYPERLINK($I$8&I125,\"zurück zu \"&blattname_Massnahmenplanung&\", \"&B125),\"\")","v":""},null,133]
["  \n \n \n \n \n ",{"$f":"IF(Massnahmenplanung!$B134<>\"\",Massnahmenplanung!B134,\"\")","v":""},{"$f":"IF(Massnahmenplanung!$B134<>\"\",Massnahmenplanung!C134,\"\")","v":""},null,null,null,{"$f":"IF(Massnahmenplanung!B134<>\"\",HYPERLINK($I$8&I126,\"zurück zu \"&blattname_Massnahmenplanung&\", \"&B126),\"\")","v":""},null,134]
["  \n \n \n \n \n ",{"$f":"IF(Massnahmenplanung!$B135<>\"\",Massnahmenplanung!B135,\"\")","v":""},{"$f":"IF(Massnahmenplanung!$B135<>\"\",Massnahmenplanung!C135,\"\")","v":""},null,null,null,{"$f":"IF(Massnahmenplanung!B135<>\"\",HYPERLINK($I$8&I127,\"zurück zu \"&blattname_Massnahmenplanung&\", \"&B127),\"\")","v":""},null,135]
["  \n \n \n \n \n ",{"$f":"IF(Massnahmenplanung!$B136<>\"\",Massnahmenplanung!B136,\"\")","v":""},{"$f":"IF(Massnahmenplanung!$B136<>\"\",Massnahmenplanung!C136,\"\")","v":""},null,null,null,{"$f":"IF(Massnahmenplanung!B136<>\"\",HYPERLINK($I$8&I128,\"zurück zu \"&blattname_Massnahmenplanung&\", \"&B128),\"\")","v":""},null,136]
["  \n \n \n \n \n ",{"$f":"IF(Massnahmenplanung!$B137<>\"\",Massnahmenplanung!B137,\"\")","v":""},{"$f":"IF(Massnahmenplanung!$B137<>\"\",Massnahmenplanung!C137,\"\")","v":""},null,null,null,{"$f":"IF(Massnahmenplanung!B137<>\"\",HYPERLINK($I$8&I129,\"zurück zu \"&blattname_Massnahmenplanung&\", \"&B129),\"\")","v":""},null,137]
["  \n \n \n \n \n ",{"$f":"IF(Massnahmenplanung!$B138<>\"\",Massnahmenplanung!B138,\"\")","v":""},{"$f":"IF(Massnahmenplanung!$B138<>\"\",Massnahmenplanung!C138,\"\")","v":""},null,null,null,{"$f":"IF(Massnahmenplanung!B138<>\"\",HYPERLINK($I$8&I130,\"zurück zu \"&blattname_Massnahmenplanung&\", \"&B130),\"\")","v":""},null,138]
["  \n \n \n \n \n ",{"$f":"IF(Massnahmenplanung!$B139<>\"\",Massnahmenplanung!B139,\"\")","v":""},{"$f":"IF(Massnahmenplanung!$B139<>\"\",Massnahmenplanung!C139,\"\")","v":""},null,null,null,{"$f":"IF(Massnahmenplanung!B139<>\"\",HYPERLINK($I$8&I131,\"zurück zu \"&blattname_Massnahmenplanung&\", \"&B131),\"\")","v":""},null,139]
["  \n \n \n \n \n ",{"$f":"IF(Massnahmenplanung!$B140<>\"\",Massnahmenplanung!B140,\"\")","v":""},{"$f":"IF(Massnahmenplanung!$B140<>\"\",Massnahmenplanung!C140,\"\")","v":""},null,null,null,{"$f":"IF(Massnahmenplanung!B140<>\"\",HYPERLINK($I$8&I132,\"zurück zu \"&blattname_Massnahmenplanung&\", \"&B132),\"\")","v":""},null,140]
["  \n \n \n \n \n ",{"$f":"IF(Massnahmenplanung!$B141<>\"\",Massnahmenplanung!B141,\"\")","v":""},{"$f":"IF(Massnahmenplanung!$B141<>\"\",Massnahmenplanung!C141,\"\")","v":""},null,null,null,{"$f":"IF(Massnahmenplanung!B141<>\"\",HYPERLINK($I$8&I133,\"zurück zu \"&blattname_Massnahmenplanung&\", \"&B133),\"\")","v":""},null,141]
["  \n \n \n \n \n ",{"$f":"IF(Massnahmenplanung!$B142<>\"\",Massnahmenplanung!B142,\"\")","v":""},{"$f":"IF(Massnahmenplanung!$B142<>\"\",Massnahmenplanung!C142,\"\")","v":""},null,null,null,{"$f":"IF(Massnahmenplanung!B142<>\"\",HYPERLINK($I$8&I134,\"zurück zu \"&blattname_Massnahmenplanung&\", \"&B134),\"\")","v":""},null,142]
["  \n \n \n \n \n ",{"$f":"IF(Massnahmenplanung!$B143<>\"\",Massnahmenplanung!B143,\"\")","v":""},{"$f":"IF(Massnahmenplanung!$B143<>\"\",Massnahmenplanung!C143,\"\")","v":""},null,null,null,{"$f":"IF(Massnahmenplanung!B143<>\"\",HYPERLINK($I$8&I135,\"zurück zu \"&blattname_Massnahmenplanung&\", \"&B135),\"\")","v":""},null,143]
["  \n \n \n \n \n ",{"$f":"IF(Massnahmenplanung!$B144<>\"\",Massnahmenplanung!B144,\"\")","v":""},{"$f":"IF(Massnahmenplanung!$B144<>\"\",Massnahmenplanung!C144,\"\")","v":""},null,null,null,{"$f":"IF(Massnahmenplanung!B144<>\"\",HYPERLINK($I$8&I136,\"zurück zu \"&blattname_Massnahmenplanung&\", \"&B136),\"\")","v":""},null,144]
["  \n \n \n \n \n ",{"$f":"IF(Massnahmenplanung!$B145<>\"\",Massnahmenplanung!B145,\"\")","v":""},{"$f":"IF(Massnahmenplanung!$B145<>\"\",Massnahmenplanung!C145,\"\")","v":""},null,null,null,{"$f":"IF(Massnahmenplanung!B145<>\"\",HYPERLINK($I$8&I137,\"zurück zu \"&blattname_Massnahmenplanung&\", \"&B137),\"\")","v":""},null,145]
["  \n \n \n \n \n ",{"$f":"IF(Massnahmenplanung!$B146<>\"\",Massnahmenplanung!B146,\"\")","v":""},{"$f":"IF(Massnahmenplanung!$B146<>\"\",Massnahmenplanung!C146,\"\")","v":""},null,null,null,{"$f":"IF(Massnahmenplanung!B146<>\"\",HYPERLINK($I$8&I138,\"zurück zu \"&blattname_Massnahmenplanung&\", \"&B138),\"\")","v":""},null,146]
["  \n \n \n \n \n ",{"$f":"IF(Massnahmenplanung!$B147<>\"\",Massnahmenplanung!B147,\"\")","v":""},{"$f":"IF(Massnahmenplanung!$B147<>\"\",Massnahmenplanung!C147,\"\")","v":""},null,null,null,{"$f":"IF(Massnahmenplanung!B147<>\"\",HYPERLINK($I$8&I139,\"zurück zu \"&blattname_Massnahmenplanung&\", \"&B139),\"\")","v":""},null,147]
["  \n \n \n \n \n ",{"$f":"IF(Massnahmenplanung!$B148<>\"\",Massnahmenplanung!B148,\"\")","v":""},{"$f":"IF(Massnahmenplanung!$B148<>\"\",Massnahmenplanung!C148,\"\")","v":""},null,null,null,{"$f":"IF(Massnahmenplanung!B148<>\"\",HYPERLINK($I$8&I140,\"zurück zu \"&blattname_Massnahmenplanung&\", \"&B140),\"\")","v":""},null,148]
["  \n \n \n \n \n ",{"$f":"IF(Massnahmenplanung!$B149<>\"\",Massnahmenplanung!B149,\"\")","v":""},{"$f":"IF(Massnahmenplanung!$B149<>\"\",Massnahmenplanung!C149,\"\")","v":""},null,null,null,{"$f":"IF(Massnahmenplanung!B149<>\"\",HYPERLINK($I$8&I141,\"zurück zu \"&blattname_Massnahmenplanung&\", \"&B141),\"\")","v":""},null,149]
["  \n \n \n \n \n ",{"$f":"IF(Massnahmenplanung!$B150<>\"\",Massnahmenplanung!B150,\"\")","v":""},{"$f":"IF(Massnahmenplanung!$B150<>\"\",Massnahmenplanung!C150,\"\")","v":""},null,null,null,{"$f":"IF(Massnahmenplanung!B150<>\"\",HYPERLINK($I$8&I142,\"zurück zu \"&blattname_Massnahmenplanung&\", \"&B142),\"\")","v":""},null,150]
["  \n \n \n \n \n ",{"$f":"IF(Massnahmenplanung!$B151<>\"\",Massnahmenplanung!B151,\"\")","v":""},{"$f":"IF(Massnahmenplanung!$B151<>\"\",Massnahmenplanung!C151,\"\")","v":""},null,null,null,{"$f":"IF(Massnahmenplanung!B151<>\"\",HYPERLINK($I$8&I143,\"zurück zu \"&blattname_Massnahmenplanung&\", \"&B143),\"\")","v":""},null,151]
["  \n \n \n \n \n ",{"$f":"IF(Massnahmenplanung!$B152<>\"\",Massnahmenplanung!B152,\"\")","v":""},{"$f":"IF(Massnahmenplanung!$B152<>\"\",Massnahmenplanung!C152,\"\")","v":""},null,null,null,{"$f":"IF(Massnahmenplanung!B152<>\"\",HYPERLINK($I$8&I144,\"zurück zu \"&blattname_Massnahmenplanung&\", \"&B144),\"\")","v":""},null,{"$f":"I143+1","v":152}]
["  \n \n \n \n \n ",{"$f":"IF(Massnahmenplanung!$B153<>\"\",Massnahmenplanung!B153,\"\")","v":""},{"$f":"IF(Massnahmenplanung!$B153<>\"\",Massnahmenplanung!C153,\"\")","v":""},null,null,null,{"$f":"IF(Massnahmenplanung!B153<>\"\",HYPERLINK($I$8&I145,\"zurück zu \"&blattname_Massnahmenplanung&\", \"&B145),\"\")","v":""},null,153]
["  \n \n \n \n \n ",{"$f":"IF(Massnahmenplanung!$B154<>\"\",Massnahmenplanung!B154,\"\")","v":""},{"$f":"IF(Massnahmenplanung!$B154<>\"\",Massnahmenplanung!C154,\"\")","v":""},null,null,null,{"$f":"IF(Massnahmenplanung!B154<>\"\",HYPERLINK($I$8&I146,\"zurück zu \"&blattname_Massnahmenplanung&\", \"&B146),\"\")","v":""},null,154]
["  \n \n \n \n \n ",{"$f":"IF(Massnahmenplanung!$B155<>\"\",Massnahmenplanung!B155,\"\")","v":""},{"$f":"IF(Massnahmenplanung!$B155<>\"\",Massnahmenplanung!C155,\"\")","v":""},null,null,null,{"$f":"IF(Massnahmenplanung!B155<>\"\",HYPERLINK($I$8&I147,\"zurück zu \"&blattname_Massnahmenplanung&\", \"&B147),\"\")","v":""},null,155]
["  \n \n \n \n \n ",{"$f":"IF(Massnahmenplanung!$B156<>\"\",Massnahmenplanung!B156,\"\")","v":""},{"$f":"IF(Massnahmenplanung!$B156<>\"\",Massnahmenplanung!C156,\"\")","v":""},null,null,null,{"$f":"IF(Massnahmenplanung!B156<>\"\",HYPERLINK($I$8&I148,\"zurück zu \"&blattname_Massnahmenplanung&\", \"&B148),\"\")","v":""},null,156]
["  \n \n \n \n \n ",{"$f":"IF(Massnahmenplanung!$B157<>\"\",Massnahmenplanung!B157,\"\")","v":""},{"$f":"IF(Massnahmenplanung!$B157<>\"\",Massnahmenplanung!C157,\"\")","v":""},null,null,null,{"$f":"IF(Massnahmenplanung!B157<>\"\",HYPERLINK($I$8&I149,\"zurück zu \"&blattname_Massnahmenplanung&\", \"&B149),\"\")","v":""},null,157]
["  \n \n \n \n \n ",{"$f":"IF(Massnahmenplanung!$B158<>\"\",Massnahmenplanung!B158,\"\")","v":""},{"$f":"IF(Massnahmenplanung!$B158<>\"\",Massnahmenplanung!C158,\"\")","v":""},null,null,null,{"$f":"IF(Massnahmenplanung!B158<>\"\",HYPERLINK($I$8&I150,\"zurück zu \"&blattname_Massnahmenplanung&\", \"&B150),\"\")","v":""},null,158]
["  \n \n \n \n \n ",{"$f":"IF(Massnahmenplanung!$B159<>\"\",Massnahmenplanung!B159,\"\")","v":""},{"$f":"IF(Massnahmenplanung!$B159<>\"\",Massnahmenplanung!C159,\"\")","v":""},null,null,null,{"$f":"IF(Massnahmenplanung!B159<>\"\",HYPERLINK($I$8&I151,\"zurück zu \"&blattname_Massnahmenplanung&\", \"&B151),\"\")","v":""},null,159]
["  \n \n \n \n \n ",{"$f":"IF(Massnahmenplanung!$B160<>\"\",Massnahmenplanung!B160,\"\")","v":""},{"$f":"IF(Massnahmenplanung!$B160<>\"\",Massnahmenplanung!C160,\"\")","v":""},null,null,null,{"$f":"IF(Massnahmenplanung!B160<>\"\",HYPERLINK($I$8&I152,\"zurück zu \"&blattname_Massnahmenplanung&\", \"&B152),\"\")","v":""},null,160]
["  \n \n \n \n \n ",{"$f":"IF(Massnahmenplanung!$B161<>\"\",Massnahmenplanung!B161,\"\")","v":""},{"$f":"IF(Massnahmenplanung!$B161<>\"\",Massnahmenplanung!C161,\"\")","v":""},null,null,null,{"$f":"IF(Massnahmenplanung!B161<>\"\",HYPERLINK($I$8&I153,\"zurück zu \"&blattname_Massnahmenplanung&\", \"&B153),\"\")","v":""},null,161]
["  \n \n \n \n \n ",{"$f":"IF(Massnahmenplanung!$B162<>\"\",Massnahmenplanung!B162,\"\")","v":""},{"$f":"IF(Massnahmenplanung!$B162<>\"\",Massnahmenplanung!C162,\"\")","v":""},null,null,null,{"$f":"IF(Massnahmenplanung!B162<>\"\",HYPERLINK($I$8&I154,\"zurück zu \"&blattname_Massnahmenplanung&\", \"&B154),\"\")","v":""},null,162]
["  \n \n \n \n \n ",{"$f":"IF(Massnahmenplanung!$B163<>\"\",Massnahmenplanung!B163,\"\")","v":""},{"$f":"IF(Massnahmenplanung!$B163<>\"\",Massnahmenplanung!C163,\"\")","v":""},null,null,null,{"$f":"IF(Massnahmenplanung!B163<>\"\",HYPERLINK($I$8&I155,\"zurück zu \"&blattname_Massnahmenplanung&\", \"&B155),\"\")","v":""},null,163]
["  \n \n \n \n \n ",{"$f":"IF(Massnahmenplanung!$B164<>\"\",Massnahmenplanung!B164,\"\")","v":""},{"$f":"IF(Massnahmenplanung!$B164<>\"\",Massnahmenplanung!C164,\"\")","v":""},null,null,null,{"$f":"IF(Massnahmenplanung!B164<>\"\",HYPERLINK($I$8&I156,\"zurück zu \"&blattname_Massnahmenplanung&\", \"&B156),\"\")","v":""},null,164]
["  \n \n \n \n \n ",{"$f":"IF(Massnahmenplanung!$B165<>\"\",Massnahmenplanung!B165,\"\")","v":""},{"$f":"IF(Massnahmenplanung!$B165<>\"\",Massnahmenplanung!C165,\"\")","v":""},null,null,null,{"$f":"IF(Massnahmenplanung!B165<>\"\",HYPERLINK($I$8&I157,\"zurück zu \"&blattname_Massnahmenplanung&\", \"&B157),\"\")","v":""},null,165]
["  \n \n \n \n \n ",{"$f":"IF(Massnahmenplanung!$B166<>\"\",Massnahmenplanung!B166,\"\")","v":""},{"$f":"IF(Massnahmenplanung!$B166<>\"\",Massnahmenplanung!C166,\"\")","v":""},null,null,null,{"$f":"IF(Massnahmenplanung!B166<>\"\",HYPERLINK($I$8&I158,\"zurück zu \"&blattname_Massnahmenplanung&\", \"&B158),\"\")","v":""},null,166]
["  \n \n \n \n \n ",{"$f":"IF(Massnahmenplanung!$B167<>\"\",Massnahmenplanung!B167,\"\")","v":""},{"$f":"IF(Massnahmenplanung!$B167<>\"\",Massnahmenplanung!C167,\"\")","v":""},null,null,null,{"$f":"IF(Massnahmenplanung!B167<>\"\",HYPERLINK($I$8&I159,\"zurück zu \"&blattname_Massnahmenplanung&\", \"&B159),\"\")","v":""},null,167]
["  \n \n \n \n \n ",{"$f":"IF(Massnahmenplanung!$B168<>\"\",Massnahmenplanung!B168,\"\")","v":""},{"$f":"IF(Massnahmenplanung!$B168<>\"\",Massnahmenplanung!C168,\"\")","v":""},null,null,null,{"$f":"IF(Massnahmenplanung!B168<>\"\",HYPERLINK($I$8&I160,\"zurück zu \"&blattname_Massnahmenplanung&\", \"&B160),\"\")","v":""},null,168]
["  \n \n \n \n \n ",{"$f":"IF(Massnahmenplanung!$B169<>\"\",Massnahmenplanung!B169,\"\")","v":""},{"$f":"IF(Massnahmenplanung!$B169<>\"\",Massnahmenplanung!C169,\"\")","v":""},null,null,null,{"$f":"IF(Massnahmenplanung!B169<>\"\",HYPERLINK($I$8&I161,\"zurück zu \"&blattname_Massnahmenplanung&\", \"&B161),\"\")","v":""},null,169]
["  \n \n \n \n \n ",{"$f":"IF(Massnahmenplanung!$B170<>\"\",Massnahmenplanung!B170,\"\")","v":""},{"$f":"IF(Massnahmenplanung!$B170<>\"\",Massnahmenplanung!C170,\"\")","v":""},null,null,null,{"$f":"IF(Massnahmenplanung!B170<>\"\",HYPERLINK($I$8&I162,\"zurück zu \"&blattname_Massnahmenplanung&\", \"&B162),\"\")","v":""},null,170]
["  \n \n \n \n \n ",{"$f":"IF(Massnahmenplanung!$B171<>\"\",Massnahmenplanung!B171,\"\")","v":""},{"$f":"IF(Massnahmenplanung!$B171<>\"\",Massnahmenplanung!C171,\"\")","v":""},null,null,null,{"$f":"IF(Massnahmenplanung!B171<>\"\",HYPERLINK($I$8&I163,\"zurück zu \"&blattname_Massnahmenplanung&\", \"&B163),\"\")","v":""},null,171]
["  \n \n \n \n \n ",{"$f":"IF(Massnahmenplanung!$B172<>\"\",Massnahmenplanung!B172,\"\")","v":""},{"$f":"IF(Massnahmenplanung!$B172<>\"\",Massnahmenplanung!C172,\"\")","v":""},null,null,null,{"$f":"IF(Massnahmenplanung!B172<>\"\",HYPERLINK($I$8&I164,\"zurück zu \"&blattname_Massnahmenplanung&\", \"&B164),\"\")","v":""},null,172]
["  \n \n \n \n \n ",{"$f":"IF(Massnahmenplanung!$B173<>\"\",Massnahmenplanung!B173,\"\")","v":""},{"$f":"IF(Massnahmenplanung!$B173<>\"\",Massnahmenplanung!C173,\"\")","v":""},null,null,null,{"$f":"IF(Massnahmenplanung!B173<>\"\",HYPERLINK($I$8&I165,\"zurück zu \"&blattname_Massnahmenplanung&\", \"&B165),\"\")","v":""},null,173]
["  \n \n \n \n \n ",{"$f":"IF(Massnahmenplanung!$B174<>\"\",Massnahmenplanung!B174,\"\")","v":""},{"$f":"IF(Massnahmenplanung!$B174<>\"\",Massnahmenplanung!C174,\"\")","v":""},null,null,null,{"$f":"IF(Massnahmenplanung!B174<>\"\",HYPERLINK($I$8&I166,\"zurück zu \"&blattname_Massnahmenplanung&\", \"&B166),\"\")","v":""},null,174]
["  \n \n \n \n \n ",{"$f":"IF(Massnahmenplanung!$B175<>\"\",Massnahmenplanung!B175,\"\")","v":""},{"$f":"IF(Massnahmenplanung!$B175<>\"\",Massnahmenplanung!C175,\"\")","v":""},null,null,null,{"$f":"IF(Massnahmenplanung!B175<>\"\",HYPERLINK($I$8&I167,\"zurück zu \"&blattname_Massnahmenplanung&\", \"&B167),\"\")","v":""},null,175]
["  \n \n \n \n \n ",{"$f":"IF(Massnahmenplanung!$B176<>\"\",Massnahmenplanung!B176,\"\")","v":""},{"$f":"IF(Massnahmenplanung!$B176<>\"\",Massnahmenplanung!C176,\"\")","v":""},null,null,null,{"$f":"IF(Massnahmenplanung!B176<>\"\",HYPERLINK($I$8&I168,\"zurück zu \"&blattname_Massnahmenplanung&\", \"&B168),\"\")","v":""},null,176]
["  \n \n \n \n \n ",{"$f":"IF(Massnahmenplanung!$B177<>\"\",Massnahmenplanung!B177,\"\")","v":""},{"$f":"IF(Massnahmenplanung!$B177<>\"\",Massnahmenplanung!C177,\"\")","v":""},null,null,null,{"$f":"IF(Massnahmenplanung!B177<>\"\",HYPERLINK($I$8&I169,\"zurück zu \"&blattname_Massnahmenplanung&\", \"&B169),\"\")","v":""},null,177]
["  \n \n \n \n \n ",{"$f":"IF(Massnahmenplanung!$B178<>\"\",Massnahmenplanung!B178,\"\")","v":""},{"$f":"IF(Massnahmenplanung!$B178<>\"\",Massnahmenplanung!C178,\"\")","v":""},null,null,null,{"$f":"IF(Massnahmenplanung!B178<>\"\",HYPERLINK($I$8&I170,\"zurück zu \"&blattname_Massnahmenplanung&\", \"&B170),\"\")","v":""},null,178]
["  \n \n \n \n \n ",{"$f":"IF(Massnahmenplanung!$B179<>\"\",Massnahmenplanung!B179,\"\")","v":""},{"$f":"IF(Massnahmenplanung!$B179<>\"\",Massnahmenplanung!C179,\"\")","v":""},null,null,null,{"$f":"IF(Massnahmenplanung!B179<>\"\",HYPERLINK($I$8&I171,\"zurück zu \"&blattname_Massnahmenplanung&\", \"&B171),\"\")","v":""},null,179]
["  \n \n \n \n \n ",{"$f":"IF(Massnahmenplanung!$B180<>\"\",Massnahmenplanung!B180,\"\")","v":""},{"$f":"IF(Massnahmenplanung!$B180<>\"\",Massnahmenplanung!C180,\"\")","v":""},null,null,null,{"$f":"IF(Massnahmenplanung!B180<>\"\",HYPERLINK($I$8&I172,\"zurück zu \"&blattname_Massnahmenplanung&\", \"&B172),\"\")","v":""},null,180]
["  \n \n \n \n \n ",{"$f":"IF(Massnahmenplanung!$B181<>\"\",Massnahmenplanung!B181,\"\")","v":""},{"$f":"IF(Massnahmenplanung!$B181<>\"\",Massnahmenplanung!C181,\"\")","v":""},null,null,null,{"$f":"IF(Massnahmenplanung!B181<>\"\",HYPERLINK($I$8&I173,\"zurück zu \"&blattname_Massnahmenplanung&\", \"&B173),\"\")","v":""},null,181]
["  \n \n \n \n \n ",{"$f":"IF(Massnahmenplanung!$B182<>\"\",Massnahmenplanung!B182,\"\")","v":""},{"$f":"IF(Massnahmenplanung!$B182<>\"\",Massnahmenplanung!C182,\"\")","v":""},null,null,null,{"$f":"IF(Massnahmenplanung!B182<>\"\",HYPERLINK($I$8&I174,\"zurück zu \"&blattname_Massnahmenplanung&\", \"&B174),\"\")","v":""},null,182]
["  \n \n \n \n \n ",{"$f":"IF(Massnahmenplanung!$B183<>\"\",Massnahmenplanung!B183,\"\")","v":""},{"$f":"IF(Massnahmenplanung!$B183<>\"\",Massnahmenplanung!C183,\"\")","v":""},null,null,null,{"$f":"IF(Massnahmenplanung!B183<>\"\",HYPERLINK($I$8&I175,\"zurück zu \"&blattname_Massnahmenplanung&\", \"&B175),\"\")","v":""},null,183]
["  \n \n \n \n \n ",{"$f":"IF(Massnahmenplanung!$B184<>\"\",Massnahmenplanung!B184,\"\")","v":""},{"$f":"IF(Massnahmenplanung!$B184<>\"\",Massnahmenplanung!C184,\"\")","v":""},null,null,null,{"$f":"IF(Massnahmenplanung!B184<>\"\",HYPERLINK($I$8&I176,\"zurück zu \"&blattname_Massnahmenplanung&\", \"&B176),\"\")","v":""},null,184]
["  \n \n \n \n \n ",{"$f":"IF(Massnahmenplanung!$B185<>\"\",Massnahmenplanung!B185,\"\")","v":""},{"$f":"IF(Massnahmenplanung!$B185<>\"\",Massnahmenplanung!C185,\"\")","v":""},null,null,null,{"$f":"IF(Massnahmenplanung!B185<>\"\",HYPERLINK($I$8&I177,\"zurück zu \"&blattname_Massnahmenplanung&\", \"&B177),\"\")","v":""},null,185]
["  \n \n \n \n \n ",{"$f":"IF(Massnahmenplanung!$B186<>\"\",Massnahmenplanung!B186,\"\")","v":""},{"$f":"IF(Massnahmenplanung!$B186<>\"\",Massnahmenplanung!C186,\"\")","v":""},null,null,null,{"$f":"IF(Massnahmenplanung!B186<>\"\",HYPERLINK($I$8&I178,\"zurück zu \"&blattname_Massnahmenplanung&\", \"&B178),\"\")","v":""},null,186]
["  \n \n \n \n \n ",{"$f":"IF(Massnahmenplanung!$B187<>\"\",Massnahmenplanung!B187,\"\")","v":""},{"$f":"IF(Massnahmenplanung!$B187<>\"\",Massnahmenplanung!C187,\"\")","v":""},null,null,null,{"$f":"IF(Massnahmenplanung!B187<>\"\",HYPERLINK($I$8&I179,\"zurück zu \"&blattname_Massnahmenplanung&\", \"&B179),\"\")","v":""},null,187]
["  \n \n \n \n \n ",{"$f":"IF(Massnahmenplanung!$B188<>\"\",Massnahmenplanung!B188,\"\")","v":""},{"$f":"IF(Massnahmenplanung!$B188<>\"\",Massnahmenplanung!C188,\"\")","v":""},null,null,null,{"$f":"IF(Massnahmenplanung!B188<>\"\",HYPERLINK($I$8&I180,\"zurück zu \"&blattname_Massnahmenplanung&\", \"&B180),\"\")","v":""},null,188]
["  \n \n \n \n \n ",{"$f":"IF(Massnahmenplanung!$B189<>\"\",Massnahmenplanung!B189,\"\")","v":""},{"$f":"IF(Massnahmenplanung!$B189<>\"\",Massnahmenplanung!C189,\"\")","v":""},null,null,null,{"$f":"IF(Massnahmenplanung!B189<>\"\",HYPERLINK($I$8&I181,\"zurück zu \"&blattname_Massnahmenplanung&\", \"&B181),\"\")","v":""},null,189]
["  \n \n \n \n \n ",{"$f":"IF(Massnahmenplanung!$B190<>\"\",Massnahmenplanung!B190,\"\")","v":""},{"$f":"IF(Massnahmenplanung!$B190<>\"\",Massnahmenplanung!C190,\"\")","v":""},null,null,null,{"$f":"IF(Massnahmenplanung!B190<>\"\",HYPERLINK($I$8&I182,\"zurück zu \"&blattname_Massnahmenplanung&\", \"&B182),\"\")","v":""},null,190]
["  \n \n \n \n \n ",{"$f":"IF(Massnahmenplanung!$B191<>\"\",Massnahmenplanung!B191,\"\")","v":""},{"$f":"IF(Massnahmenplanung!$B191<>\"\",Massnahmenplanung!C191,\"\")","v":""},null,null,null,{"$f":"IF(Massnahmenplanung!B191<>\"\",HYPERLINK($I$8&I183,\"zurück zu \"&blattname_Massnahmenplanung&\", \"&B183),\"\")","v":""},null,191]
["  \n \n \n \n \n ",{"$f":"IF(Massnahmenplanung!$B192<>\"\",Massnahmenplanung!B192,\"\")","v":""},{"$f":"IF(Massnahmenplanung!$B192<>\"\",Massnahmenplanung!C192,\"\")","v":""},null,null,null,{"$f":"IF(Massnahmenplanung!B192<>\"\",HYPERLINK($I$8&I184,\"zurück zu \"&blattname_Massnahmenplanung&\", \"&B184),\"\")","v":""},null,192]
["  \n \n \n \n \n ",{"$f":"IF(Massnahmenplanung!$B193<>\"\",Massnahmenplanung!B193,\"\")","v":""},{"$f":"IF(Massnahmenplanung!$B193<>\"\",Massnahmenplanung!C193,\"\")","v":""},null,null,null,{"$f":"IF(Massnahmenplanung!B193<>\"\",HYPERLINK($I$8&I185,\"zurück zu \"&blattname_Massnahmenplanung&\", \"&B185),\"\")","v":""},null,193]
["  \n \n \n \n \n ",{"$f":"IF(Massnahmenplanung!$B194<>\"\",Massnahmenplanung!B194,\"\")","v":""},{"$f":"IF(Massnahmenplanung!$B194<>\"\",Massnahmenplanung!C194,\"\")","v":""},null,null,null,{"$f":"IF(Massnahmenplanung!B194<>\"\",HYPERLINK($I$8&I186,\"zurück zu \"&blattname_Massnahmenplanung&\", \"&B186),\"\")","v":""},null,194]
["  \n \n \n \n \n ",{"$f":"IF(Massnahmenplanung!$B195<>\"\",Massnahmenplanung!B195,\"\")","v":""},{"$f":"IF(Massnahmenplanung!$B195<>\"\",Massnahmenplanung!C195,\"\")","v":""},null,null,null,{"$f":"IF(Massnahmenplanung!B195<>\"\",HYPERLINK($I$8&I187,\"zurück zu \"&blattname_Massnahmenplanung&\", \"&B187),\"\")","v":""},null,195]
["  \n \n \n \n \n ",{"$f":"IF(Massnahmenplanung!$B196<>\"\",Massnahmenplanung!B196,\"\")","v":""},{"$f":"IF(Massnahmenplanung!$B196<>\"\",Massnahmenplanung!C196,\"\")","v":""},null,null,null,{"$f":"IF(Massnahmenplanung!B196<>\"\",HYPERLINK($I$8&I188,\"zurück zu \"&blattname_Massnahmenplanung&\", \"&B188),\"\")","v":""},null,196]
["  \n \n \n \n \n ",{"$f":"IF(Massnahmenplanung!$B197<>\"\",Massnahmenplanung!B197,\"\")","v":""},{"$f":"IF(Massnahmenplanung!$B197<>\"\",Massnahmenplanung!C197,\"\")","v":""},null,null,null,{"$f":"IF(Massnahmenplanung!B197<>\"\",HYPERLINK($I$8&I189,\"zurück zu \"&blattname_Massnahmenplanung&\", \"&B189),\"\")","v":""},null,197]
["  \n \n \n \n \n ",{"$f":"IF(Massnahmenplanung!$B198<>\"\",Massnahmenplanung!B198,\"\")","v":""},{"$f":"IF(Massnahmenplanung!$B198<>\"\",Massnahmenplanung!C198,\"\")","v":""},null,null,null,{"$f":"IF(Massnahmenplanung!B198<>\"\",HYPERLINK($I$8&I190,\"zurück zu \"&blattname_Massnahmenplanung&\", \"&B190),\"\")","v":""},null,198]
["  \n \n \n \n \n ",{"$f":"IF(Massnahmenplanung!$B199<>\"\",Massnahmenplanung!B199,\"\")","v":""},{"$f":"IF(Massnahmenplanung!$B199<>\"\",Massnahmenplanung!C199,\"\")","v":""},null,null,null,{"$f":"IF(Massnahmenplanung!B199<>\"\",HYPERLINK($I$8&I191,\"zurück zu \"&blattname_Massnahmenplanung&\", \"&B191),\"\")","v":""},null,199]
["  \n \n \n \n \n ",{"$f":"IF(Massnahmenplanung!$B200<>\"\",Massnahmenplanung!B200,\"\")","v":""},{"$f":"IF(Massnahmenplanung!$B200<>\"\",Massnahmenplanung!C200,\"\")","v":""},null,null,null,{"$f":"IF(Massnahmenplanung!B200<>\"\",HYPERLINK($I$8&I192,\"zurück zu \"&blattname_Massnahmenplanung&\", \"&B192),\"\")","v":""},null,200]
["  \n \n \n \n \n ",{"$f":"IF(Massnahmenplanung!$B201<>\"\",Massnahmenplanung!B201,\"\")","v":""},{"$f":"IF(Massnahmenplanung!$B201<>\"\",Massnahmenplanung!C201,\"\")","v":""},null,null,null,{"$f":"IF(Massnahmenplanung!B201<>\"\",HYPERLINK($I$8&I193,\"zurück zu \"&blattname_Massnahmenplanung&\", \"&B193),\"\")","v":""},null,201]
["  \n \n \n \n \n ",{"$f":"IF(Massnahmenplanung!$B202<>\"\",Massnahmenplanung!B202,\"\")","v":""},{"$f":"IF(Massnahmenplanung!$B202<>\"\",Massnahmenplanung!C202,\"\")","v":""},null,null,null,{"$f":"IF(Massnahmenplanung!B202<>\"\",HYPERLINK($I$8&I194,\"zurück zu \"&blattname_Massnahmenplanung&\", \"&B194),\"\")","v":""},null,202]
["  \n \n \n \n \n ",{"$f":"IF(Massnahmenplanung!$B203<>\"\",Massnahmenplanung!B203,\"\")","v":""},{"$f":"IF(Massnahmenplanung!$B203<>\"\",Massnahmenplanung!C203,\"\")","v":""},null,null,null,{"$f":"IF(Massnahmenplanung!B203<>\"\",HYPERLINK($I$8&I195,\"zurück zu \"&blattname_Massnahmenplanung&\", \"&B195),\"\")","v":""},null,203]
["  \n \n \n \n \n ",{"$f":"IF(Massnahmenplanung!$B204<>\"\",Massnahmenplanung!B204,\"\")","v":""},{"$f":"IF(Massnahmenplanung!$B204<>\"\",Massnahmenplanung!C204,\"\")","v":""},null,null,null,{"$f":"IF(Massnahmenplanung!B204<>\"\",HYPERLINK($I$8&I196,\"zurück zu \"&blattname_Massnahmenplanung&\", \"&B196),\"\")","v":""},null,204]
["  \n \n \n \n \n ",{"$f":"IF(Massnahmenplanung!$B205<>\"\",Massnahmenplanung!B205,\"\")","v":""},{"$f":"IF(Massnahmenplanung!$B205<>\"\",Massnahmenplanung!C205,\"\")","v":""},null,null,null,{"$f":"IF(Massnahmenplanung!B205<>\"\",HYPERLINK($I$8&I197,\"zurück zu \"&blattname_Massnahmenplanung&\", \"&B197),\"\")","v":""},null,205]
["  \n \n \n \n \n ",{"$f":"IF(Massnahmenplanung!$B206<>\"\",Massnahmenplanung!B206,\"\")","v":""},{"$f":"IF(Massnahmenplanung!$B206<>\"\",Massnahmenplanung!C206,\"\")","v":""},null,null,null,{"$f":"IF(Massnahmenplanung!B206<>\"\",HYPERLINK($I$8&I198,\"zurück zu \"&blattname_Massnahmenplanung&\", \"&B198),\"\")","v":""},null,206]
["  \n \n \n \n \n ",{"$f":"IF(Massnahmenplanung!$B207<>\"\",Massnahmenplanung!B207,\"\")","v":""},{"$f":"IF(Massnahmenplanung!$B207<>\"\",Massnahmenplanung!C207,\"\")","v":""},null,null,null,{"$f":"IF(Massnahmenplanung!B207<>\"\",HYPERLINK($I$8&I199,\"zurück zu \"&blattname_Massnahmenplanung&\", \"&B199),\"\")","v":""},null,207]
["  \n \n \n \n \n ",{"$f":"IF(Massnahmenplanung!$B208<>\"\",Massnahmenplanung!B208,\"\")","v":""},{"$f":"IF(Massnahmenplanung!$B208<>\"\",Massnahmenplanung!C208,\"\")","v":""},null,null,null,{"$f":"IF(Massnahmenplanung!B208<>\"\",HYPERLINK($I$8&I200,\"zurück zu \"&blattname_Massnahmenplanung&\", \"&B200),\"\")","v":""},null,208]
["  \n \n \n \n \n ",{"$f":"IF(Massnahmenplanung!$B209<>\"\",Massnahmenplanung!B209,\"\")","v":""},{"$f":"IF(Massnahmenplanung!$B209<>\"\",Massnahmenplanung!C209,\"\")","v":""},null,null,null,{"$f":"IF(Massnahmenplanung!B209<>\"\",HYPERLINK($I$8&I201,\"zurück zu \"&blattname_Massnahmenplanung&\", \"&B201),\"\")","v":""},null,209]
["  \n \n \n \n \n ",{"$f":"IF(Massnahmenplanung!$B210<>\"\",Massnahmenplanung!B210,\"\")","v":""},{"$f":"IF(Massnahmenplanung!$B210<>\"\",Massnahmenplanung!C210,\"\")","v":""},null,null,null,{"$f":"IF(Massnahmenplanung!B210<>\"\",HYPERLINK($I$8&I202,\"zurück zu \"&blattname_Massnahmenplanung&\", \"&B202),\"\")","v":""},null,210]
["  \n \n \n \n \n ",{"$f":"IF(Massnahmenplanung!$B211<>\"\",Massnahmenplanung!B211,\"\")","v":""},{"$f":"IF(Massnahmenplanung!$B211<>\"\",Massnahmenplanung!C211,\"\")","v":""},null,null,null,{"$f":"IF(Massnahmenplanung!B211<>\"\",HYPERLINK($I$8&I203,\"zurück zu \"&blattname_Massnahmenplanung&\", \"&B203),\"\")","v":""},null,211]
["  \n \n \n \n \n ",{"$f":"IF(Massnahmenplanung!$B212<>\"\",Massnahmenplanung!B212,\"\")","v":""},{"$f":"IF(Massnahmenplanung!$B212<>\"\",Massnahmenplanung!C212,\"\")","v":""},null,null,null,{"$f":"IF(Massnahmenplanung!B212<>\"\",HYPERLINK($I$8&I204,\"zurück zu \"&blattname_Massnahmenplanung&\", \"&B204),\"\")","v":""},null,212]
["  \n \n \n \n \n ",{"$f":"IF(Massnahmenplanung!$B213<>\"\",Massnahmenplanung!B213,\"\")","v":""},{"$f":"IF(Massnahmenplanung!$B213<>\"\",Massnahmenplanung!C213,\"\")","v":""},null,null,null,{"$f":"IF(Massnahmenplanung!B213<>\"\",HYPERLINK($I$8&I205,\"zurück zu \"&blattname_Massnahmenplanung&\", \"&B205),\"\")","v":""},null,213]
["  \n \n \n \n \n ",{"$f":"IF(Massnahmenplanung!$B214<>\"\",Massnahmenplanung!B214,\"\")","v":""},{"$f":"IF(Massnahmenplanung!$B214<>\"\",Massnahmenplanung!C214,\"\")","v":""},null,null,null,{"$f":"IF(Massnahmenplanung!B214<>\"\",HYPERLINK($I$8&I206,\"zurück zu \"&blattname_Massnahmenplanung&\", \"&B206),\"\")","v":""},null,214]
["  \n \n \n \n \n ",{"$f":"IF(Massnahmenplanung!$B215<>\"\",Massnahmenplanung!B215,\"\")","v":""},{"$f":"IF(Massnahmenplanung!$B215<>\"\",Massnahmenplanung!C215,\"\")","v":""},null,null,null,{"$f":"IF(Massnahmenplanung!B215<>\"\",HYPERLINK($I$8&I207,\"zurück zu \"&blattname_Massnahmenplanung&\", \"&B207),\"\")","v":""},null,215]
["  \n \n \n \n \n ",{"$f":"IF(Massnahmenplanung!$B216<>\"\",Massnahmenplanung!B216,\"\")","v":""},{"$f":"IF(Massnahmenplanung!$B216<>\"\",Massnahmenplanung!C216,\"\")","v":""},null,null,null,{"$f":"IF(Massnahmenplanung!B216<>\"\",HYPERLINK($I$8&I208,\"zurück zu \"&blattname_Massnahmenplanung&\", \"&B208),\"\")","v":""},null,{"$f":"I207+1","v":216}]
["  \n \n \n \n \n ",{"$f":"IF(Massnahmenplanung!$B217<>\"\",Massnahmenplanung!B217,\"\")","v":""},{"$f":"IF(Massnahmenplanung!$B217<>\"\",Massnahmenplanung!C217,\"\")","v":""},null,null,null,{"$f":"IF(Massnahmenplanung!B217<>\"\",HYPERLINK($I$8&I209,\"zurück zu \"&blattname_Massnahmenplanung&\", \"&B209),\"\")","v":""},null,217]
["  \n \n \n \n \n ",{"$f":"IF(Massnahmenplanung!$B218<>\"\",Massnahmenplanung!B218,\"\")","v":""},{"$f":"IF(Massnahmenplanung!$B218<>\"\",Massnahmenplanung!C218,\"\")","v":""},null,null,null,{"$f":"IF(Massnahmenplanung!B218<>\"\",HYPERLINK($I$8&I210,\"zurück zu \"&blattname_Massnahmenplanung&\", \"&B210),\"\")","v":""},null,218]
["  \n \n \n \n \n ",{"$f":"IF(Massnahmenplanung!$B219<>\"\",Massnahmenplanung!B219,\"\")","v":""},{"$f":"IF(Massnahmenplanung!$B219<>\"\",Massnahmenplanung!C219,\"\")","v":""},null,null,null,{"$f":"IF(Massnahmenplanung!B219<>\"\",HYPERLINK($I$8&I211,\"zurück zu \"&blattname_Massnahmenplanung&\", \"&B211),\"\")","v":""},null,219]
["  \n \n \n \n \n ",{"$f":"IF(Massnahmenplanung!$B220<>\"\",Massnahmenplanung!B220,\"\")","v":""},{"$f":"IF(Massnahmenplanung!$B220<>\"\",Massnahmenplanung!C220,\"\")","v":""},null,null,null,{"$f":"IF(Massnahmenplanung!B220<>\"\",HYPERLINK($I$8&I212,\"zurück zu \"&blattname_Massnahmenplanung&\", \"&B212),\"\")","v":""},null,220]
["  \n \n \n \n \n ",{"$f":"IF(Massnahmenplanung!$B221<>\"\",Massnahmenplanung!B221,\"\")","v":""},{"$f":"IF(Massnahmenplanung!$B221<>\"\",Massnahmenplanung!C221,\"\")","v":""},null,null,null,{"$f":"IF(Massnahmenplanung!B221<>\"\",HYPERLINK($I$8&I213,\"zurück zu \"&blattname_Massnahmenplanung&\", \"&B213),\"\")","v":""},null,221]
["  \n \n \n \n \n ",{"$f":"IF(Massnahmenplanung!$B222<>\"\",Massnahmenplanung!B222,\"\")","v":""},{"$f":"IF(Massnahmenplanung!$B222<>\"\",Massnahmenplanung!C222,\"\")","v":""},null,null,null,{"$f":"IF(Massnahmenplanung!B222<>\"\",HYPERLINK($I$8&I214,\"zurück zu \"&blattname_Massnahmenplanung&\", \"&B214),\"\")","v":""},null,222]
["  \n \n \n \n \n ",{"$f":"IF(Massnahmenplanung!$B223<>\"\",Massnahmenplanung!B223,\"\")","v":""},{"$f":"IF(Massnahmenplanung!$B223<>\"\",Massnahmenplanung!C223,\"\")","v":""},null,null,null,{"$f":"IF(Massnahmenplanung!B223<>\"\",HYPERLINK($I$8&I215,\"zurück zu \"&blattname_Massnahmenplanung&\", \"&B215),\"\")","v":""},null,223]
["  \n \n \n \n \n ",{"$f":"IF(Massnahmenplanung!$B224<>\"\",Massnahmenplanung!B224,\"\")","v":""},{"$f":"IF(Massnahmenplanung!$B224<>\"\",Massnahmenplanung!C224,\"\")","v":""},null,null,null,{"$f":"IF(Massnahmenplanung!B224<>\"\",HYPERLINK($I$8&I216,\"zurück zu \"&blattname_Massnahmenplanung&\", \"&B216),\"\")","v":""},null,224]

{"sheet":"Formular E","index":12,"n_rows":53,"n_cols":21,"rows_kept":53,"cut":false,"hidden":false,"merged":[[18,7,22,20],[51,0,51,15],[50,0,50,15],[52,0,52,15],[7,1,7,3],[9,1,9,3],[26,2,26,3],[26,4,26,5],[11,1,11,3],[13,1,13,3],[24,9,25,11],[24,12,25,14],[6,7,14,20]]}
["KZV SE, Formular E / Ziele",null,null,null,null,null,null,null,null,null,null,null,null,null,null,null,null,null,null,null,{"$f":"Titelblatt!F6","v":"00:00:00"}]
[null,null,null,null,null,null,null,null,null,null,null,null,null,null,null,null,null,null,null,null,{"$f":"Titelblatt!F31","v":"00:00:00"}]
[]
[]
["E.1  Zielwerte",null,null,null,null,null,null,"Begründung von Zielwerten"]
[]
[]
[null,"Jährliche Effizienzsteigerung E ¹⁾",null,null,"[%]"]
[]
[null,"Jährliche Effizienzsteigerung W",null,null,"[%]"]
[]
[null,"Ausgangsjahr",null,null,"Jahr",{"$f":"AJ","v":0}]
[]
[null,"Dauer der Zielvereinbarung",null,null,"[a]"]
[]
[]
["E.2  Zielgrösse der Zielvereinbarung",null,null,null,null,null,null,"Begründung für geknickten Zielpfad:"]
[]
[]
[null,"Zieljahr",null,null,"Jahr",{"$f":"F12+F14","v":0}]
[]
[null,"Zielvorgabe Energieeffizienz",null,null,"[%]",{"$f":"G49","v":100}]
[]
[]
["E.3  Verlauf Energieeffizienz",null,null,null,null,null,null,null,null,"Prognose Richtwert E",null,null,"Prognose Richtwert W"]
[]
[null,"Jahr","Richtwert E",null,"Richtwert W",null,"Zielpfad ¹⁾","Geknickter Zielpfad ²⁾",null,"Energieverbrauch korrigiert","Bezugsgrösse","prognostizierter Richtwert E","Energieverbrauch korrigiert","Energiebezugs-fläche","prognostizierter Richtwert W","prognostizierte Energieeffizienz ³⁾"]
[null,null,{"$f":"'Formular D'!F8","v":"[kWh/BG]"},"[%]",{"$f":"'Formular D'!F17","v":"[MJ/m²*a]"},"[%]","[%]","[%]","[%]","[kWh/a]","[BG/a]",{"$f":"'Formular D'!F8","v":"[kWh/BG]"},"[kWh/a]","[m²]",{"$f":"'Formular D'!F17","v":"[MJ/m²*a]"},"[%]"]
[null,{"$f":"AJ","v":0},{"$f":"RichtwertE*(D29/100)","v":{"$error":"#DIV/0!"}},100,{"$f":"RichtwertW*(F29/100)","v":{"$error":"#DIV/0!"}},100,100,null,{"$f":"IF(ISBLANK(H29),G29,H29)","v":100},{"$f":"'Formular D'!B9","v":0},{"$f":"'Formular D'!D9","v":0},{"$f":"RichtwertE","v":{"$error":"#DIV/0!"}},{"$f":"'Formular D'!B18","v":{"$error":"#DIV/0!"}},{"$f":"'Formular D'!D18","v":0},{"$f":"RichtwertW","v":{"$error":"#DIV/0!"}},{"$f":"FE_ChSourceAnchor","v":100}]
[null,{"$f":"B29+1","v":1},{"$f":"RichtwertE*(D30/100)","v":{"$error":"#DIV/0!"}},{"$f":"IF(AND(B30<=ZJ,B30>$F$12),((1-($F$8/100))^(B30-$F$12))*100,D29)","v":100},{"$error":"#DIV/0!"},{"$f":"IF(AND(B30<=ZJ,B30>$F$12),((1-($F$10/100))^(B30-$F$12))*100,F29)","v":100},{"$f":"IF(B30<=ZJ,(100/(GewE*D30+GewW*F30)/(GewE+GewW))*100,G29)","v":100},null,{"$f":"IF(ISBLANK(H30),G30,H30)","v":100},{"$f":"J29-SUMIFS(Massnahmenplanung!$O$22:$O$224,Massnahmenplanung!$U$22:$U$224,B30,Massnahmenplanung!$AB$22:$AB$224,\"X\")","v":0},{"$f":"K29+SUMIFS(Massnahmenplanung!$S$22:$S$224,Massnahmenplanung!$U$22:$U$224,B30,Massnahmenplanung!$AB$22:$AB$224,\"X\")","v":0},{"$f":"J30/K30","v":{"$error":"#DIV/0!"}},{"$f":"M29-SUMIFS(Massnahmenplanung!$P$22:$P$224,Massnahmenplanung!$U$22:$U$224,B30,Massnahmenplanung!$AB$22:$AB$224,\"X\")","v":{"$error":"#DIV/0!"}},{"$f":"N29+SUMIFS(Massnahmenplanung!$T$22:$T$224,Massnahmenplanung!$U$22:$U$224,B30,Massnahmenplanung!$AB$22:$AB$224,\"X\")","v":0},{"$f":"M30/N30*3.6","v":{"$error":"#DIV/0!"}},{"$f":"IF(B30<=ZJ,(100/(GewE*(FE_ChSourceAnchor/RichtwertE*L30)+GewW*(FE_ChSourceAnchor/RichtwertW*O30))/(GewE+GewW))*100,P29)","v":100}]
[null,{"$f":"B30+1","v":2},{"$error":"#DIV/0!"},100,{"$error":"#DIV/0!"},100,{"$f":"IF(B31<=ZJ,(100/(GewE*D31+GewW*F31)/(GewE+GewW))*100,G30)","v":100},null,100,{"$f":"J30-SUMIFS(Massnahmenplanung!$O$22:$O$224,Massnahmenplanung!$U$22:$U$224,B31,Massnahmenplanung!$AB$22:$AB$224,\"X\")","v":0},{"$f":"K30+SUMIFS(Massnahmenplanung!$S$22:$S$224,Massnahmenplanung!$U$22:$U$224,B31,Massnahmenplanung!$AB$22:$AB$224,\"X\")","v":0},{"$f":"J31/K31","v":{"$error":"#DIV/0!"}},{"$f":"M30-SUMIFS(Massnahmenplanung!$P$22:$P$224,Massnahmenplanung!$U$22:$U$224,B31,Massnahmenplanung!$AB$22:$AB$224,\"X\")","v":{"$error":"#DIV/0!"}},{"$f":"N30+SUMIFS(Massnahmenplanung!$T$22:$T$224,Massnahmenplanung!$U$22:$U$224,B31,Massnahmenplanung!$AB$22:$AB$224,\"X\")","v":0},{"$f":"M31/N31*3.6","v":{"$error":"#DIV/0!"}},100]
[null,3,{"$error":"#DIV/0!"},100,{"$error":"#DIV/0!"},100,100,null,100,{"$f":"J31-SUMIFS(Massnahmenplanung!$O$22:$O$224,Massnahmenplanung!$U$22:$U$224,B32,Massnahmenplanung!$AB$22:$AB$224,\"X\")","v":0},{"$f":"K31+SUMIFS(Massnahmenplanung!$S$22:$S$224,Massnahmenplanung!$U$22:$U$224,B32,Massnahmenplanung!$AB$22:$AB$224,\"X\")","v":0},{"$error":"#DIV/0!"},{"$f":"M31-SUMIFS(Massnahmenplanung!$P$22:$P$224,Massnahmenplanung!$U$22:$U$224,B32,Massnahmenplanung!$AB$22:$AB$224,\"X\")","v":{"$error":"#DIV/0!"}},{"$f":"N31+SUMIFS(Massnahmenplanung!$T$22:$T$224,Massnahmenplanung!$U$22:$U$224,B32,Massnahmenplanung!$AB$22:$AB$224,\"X\")","v":0},{"$error":"#DIV/0!"},100]
[null,4,{"$error":"#DIV/0!"},100,{"$error":"#DIV/0!"},100,100,null,100,{"$f":"J32-SUMIFS(Massnahmenplanung!$O$22:$O$224,Massnahmenplanung!$U$22:$U$224,B33,Massnahmenplanung!$AB$22:$AB$224,\"X\")","v":0},{"$f":"K32+SUMIFS(Massnahmenplanung!$S$22:$S$224,Massnahmenplanung!$U$22:$U$224,B33,Massnahmenplanung!$AB$22:$AB$224,\"X\")","v":0},{"$error":"#DIV/0!"},{"$f":"M32-SUMIFS(Massnahmenplanung!$P$22:$P$224,Massnahmenplanung!$U$22:$U$224,B33,Massnahmenplanung!$AB$22:$AB$224,\"X\")","v":{"$error":"#DIV/0!"}},{"$f":"N32+SUMIFS(Massnahmenplanung!$T$22:$T$224,Massnahmenplanung!$U$22:$U$224,B33,Massnahmenplanung!$AB$22:$AB$224,\"X\")","v":0},{"$error":"#DIV/0!"},100]
[null,5,{"$error":"#DIV/0!"},100,{"$error":"#DIV/0!"},100,100,null,100,{"$f":"J33-SUMIFS(Massnahmenplanung!$O$22:$O$224,Massnahmenplanung!$U$22:$U$224,B34,Massnahmenplanung!$AB$22:$AB$224,\"X\")","v":0},{"$f":"K33+SUMIFS(Massnahmenplanung!$S$22:$S$224,Massnahmenplanung!$U$22:$U$224,B34,Massnahmenplanung!$AB$22:$AB$224,\"X\")","v":0},{"$error":"#DIV/0!"},{"$f":"M33-SUMIFS(Massnahmenplanung!$P$22:$P$224,Massnahmenplanung!$U$22:$U$224,B34,Massnahmenplanung!$AB$22:$AB$224,\"X\")","v":{"$error":"#DIV/0!"}},{"$f":"N33+SUMIFS(Massnahmenplanung!$T$22:$T$224,Massnahmenplanung!$U$22:$U$224,B34,Massnahmenplanung!$AB$22:$AB$224,\"X\")","v":0},{"$error":"#DIV/0!"},100]
[null,6,{"$error":"#DIV/0!"},100,{"$error":"#DIV/0!"},100,100,null,100,{"$f":"J34-SUMIFS(Massnahmenplanung!$O$22:$O$224,Massnahmenplanung!$U$22:$U$224,B35,Massnahmenplanung!$AB$22:$AB$224,\"X\")","v":0},{"$f":"K34+SUMIFS(Massnahmenplanung!$S$22:$S$224,Massnahmenplanung!$U$22:$U$224,B35,Massnahmenplanung!$AB$22:$AB$224,\"X\")","v":0},{"$error":"#DIV/0!"},{"$f":"M34-SUMIFS(Massnahmenplanung!$P$22:$P$224,Massnahmenplanung!$U$22:$U$224,B35,Massnahmenplanung!$AB$22:$AB$224,\"X\")","v":{"$error":"#DIV/0!"}},{"$f":"N34+SUMIFS(Massnahmenplanung!$T$22:$T$224,Massnahmenplanung!$U$22:$U$224,B35,Massnahmenplanung!$AB$22:$AB$224,\"X\")","v":0},{"$error":"#DIV/0!"},100]
[null,7,{"$error":"#DIV/0!"},100,{"$error":"#DIV/0!"},100,100,null,100,{"$f":"J35-SUMIFS(Massnahmenplanung!$O$22:$O$224,Massnahmenplanung!$U$22:$U$224,B36,Massnahmenplanung!$AB$22:$AB$224,\"X\")","v":0},{"$f":"K35+SUMIFS(Massnahmenplanung!$S$22:$S$224,Massnahmenplanung!$U$22:$U$224,B36,Massnahmenplanung!$AB$22:$AB$224,\"X\")","v":0},{"$error":"#DIV/0!"},{"$f":"M35-SUMIFS(Massnahmenplanung!$P$22:$P$224,Massnahmenplanung!$U$22:$U$224,B36,Massnahmenplanung!$AB$22:$AB$224,\"X\")","v":{"$error":"#DIV/0!"}},{"$f":"N35+SUMIFS(Massnahmenplanung!$T$22:$T$224,Massnahmenplanung!$U$22:$U$224,B36,Massnahmenplanung!$AB$22:$AB$224,\"X\")","v":0},{"$error":"#DIV/0!"},100]
[null,8,{"$error":"#DIV/0!"},100,{"$error":"#DIV/0!"},100,100,null,100,{"$f":"J36-SUMIFS(Massnahmenplanung!$O$22:$O$224,Massnahmenplanung!$U$22:$U$224,B37,Massnahmenplanung!$AB$22:$AB$224,\"X\")","v":0},{"$f":"K36+SUMIFS(Massnahmenplanung!$S$22:$S$224,Massnahmenplanung!$U$22:$U$224,B37,Massnahmenplanung!$AB$22:$AB$224,\"X\")","v":0},{"$error":"#DIV/0!"},{"$f":"M36-SUMIFS(Massnahmenplanung!$P$22:$P$224,Massnahmenplanung!$U$22:$U$224,B37,Massnahmenplanung!$AB$22:$AB$224,\"X\")","v":{"$error":"#DIV/0!"}},{"$f":"N36+SUMIFS(Massnahmenplanung!$T$22:$T$224,Massnahmenplanung!$U$22:$U$224,B37,Massnahmenplanung!$AB$22:$AB$224,\"X\")","v":0},{"$error":"#DIV/0!"},100]
[null,9,{"$error":"#DIV/0!"},100,{"$error":"#DIV/0!"},100,100,null,100,{"$f":"J37-SUMIFS(Massnahmenplanung!$O$22:$O$224,Massnahmenplanung!$U$22:$U$224,B38,Massnahmenplanung!$AB$22:$AB$224,\"X\")","v":0},{"$f":"K37+SUMIFS(Massnahmenplanung!$S$22:$S$224,Massnahmenplanung!$U$22:$U$224,B38,Massnahmenplanung!$AB$22:$AB$224,\"X\")","v":0},{"$error":"#DIV/0!"},{"$f":"M37-SUMIFS(Massnahmenplanung!$P$22:$P$224,Massnahmenplanung!$U$22:$U$224,B38,Massnahmenplanung!$AB$22:$AB$224,\"X\")","v":{"$error":"#DIV/0!"}},{"$f":"N37+SUMIFS(Massnahmenplanung!$T$22:$T$224,Massnahmenplanung!$U$22:$U$224,B38,Massnahmenplanung!$AB$22:$AB$224,\"X\")","v":0},{"$error":"#DIV/0!"},100]
[null,10,{"$error":"#DIV/0!"},{"$f":"IF(AND(B39<=ZJ,B39>$F$12),((1-($F$8/100))^(B39-$F$12))*100,D38)","v":100},{"$error":"#DIV/0!"},{"$f":"IF(AND(B39<=ZJ,B39>$F$12),((1-($F$10/100))^(B39-$F$12))*100,F38)","v":100},{"$f":"IF(B39<=ZJ,(100/(GewE*D39+GewW*F39)/(GewE+GewW))*100,G38)","v":100},null,{"$f":"IF(ISBLANK(H39),G39,IF(ZJ<=$B39,G39,H39))","v":100},{"$f":"J38-SUMIFS(Massnahmenplanung!$O$22:$O$224,Massnahmenplanung!$U$22:$U$224,B39,Massnahmenplanung!$AB$22:$AB$224,\"X\")","v":0},{"$f":"K38+SUMIFS(Massnahmenplanung!$S$22:$S$224,Massnahmenplanung!$U$22:$U$224,B39,Massnahmenplanung!$AB$22:$AB$224,\"X\")","v":0},{"$error":"#DIV/0!"},{"$f":"M38-SUMIFS(Massnahmenplanung!$P$22:$P$224,Massnahmenplanung!$U$22:$U$224,B39,Massnahmenplanung!$AB$22:$AB$224,\"X\")","v":{"$error":"#DIV/0!"}},{"$f":"N38+SUMIFS(Massnahmenplanung!$T$22:$T$224,Massnahmenplanung!$U$22:$U$224,B39,Massnahmenplanung!$AB$22:$AB$224,\"X\")","v":0},{"$error":"#DIV/0!"},100]
[null,11,{"$error":"#DIV/0!"},100,{"$error":"#DIV/0!"},100,100,null,100,{"$f":"J39-SUMIFS(Massnahmenplanung!$O$22:$O$224,Massnahmenplanung!$U$22:$U$224,B40,Massnahmenplanung!$AB$22:$AB$224,\"X\")","v":0},{"$f":"K39+SUMIFS(Massnahmenplanung!$S$22:$S$224,Massnahmenplanung!$U$22:$U$224,B40,Massnahmenplanung!$AB$22:$AB$224,\"X\")","v":0},{"$error":"#DIV/0!"},{"$f":"M39-SUMIFS(Massnahmenplanung!$P$22:$P$224,Massnahmenplanung!$U$22:$U$224,B40,Massnahmenplanung!$AB$22:$AB$224,\"X\")","v":{"$error":"#DIV/0!"}},{"$f":"N39+SUMIFS(Massnahmenplanung!$T$22:$T$224,Massnahmenplanung!$U$22:$U$224,B40,Massnahmenplanung!$AB$22:$AB$224,\"X\")","v":0},{"$error":"#DIV/0!"},100]
[null,12,{"$error":"#DIV/0!"},100,{"$error":"#DIV/0!"},100,100,null,100,{"$f":"J40-SUMIFS(Massnahmenplanung!$O$22:$O$224,Massnahmenplanung!$U$22:$U$224,B41,Massnahmenplanung!$AB$22:$AB$224,\"X\")","v":0},{"$f":"K40+SUMIFS(Massnahmenplanung!$S$22:$S$224,Massnahmenplanung!$U$22:$U$224,B41,Massnahmenplanung!$AB$22:$AB$224,\"X\")","v":0},{"$error":"#DIV/0!"},{"$f":"M40-SUMIFS(Massnahmenplanung!$P$22:$P$224,Massnahmenplanung!$U$22:$U$224,B41,Massnahmenplanung!$AB$22:$AB$224,\"X\")","v":{"$error":"#DIV/0!"}},{"$f":"N40+SUMIFS(Massnahmenplanung!$T$22:$T$224,Massnahmenplanung!$U$22:$U$224,B41,Massnahmenplanung!$AB$22:$AB$224,\"X\")","v":0},{"$error":"#DIV/0!"},100]
[null,13,{"$error":"#DIV/0!"},100,{"$error":"#DIV/0!"},100,100,null,100,{"$f":"J41-SUMIFS(Massnahmenplanung!$O$22:$O$224,Massnahmenplanung!$U$22:$U$224,B42,Massnahmenplanung!$AB$22:$AB$224,\"X\")","v":0},{"$f":"K41+SUMIFS(Massnahmenplanung!$S$22:$S$224,Massnahmenplanung!$U$22:$U$224,B42,Massnahmenplanung!$AB$22:$AB$224,\"X\")","v":0},{"$error":"#DIV/0!"},{"$f":"M41-SUMIFS(Massnahmenplanung!$P$22:$P$224,Massnahmenplanung!$U$22:$U$224,B42,Massnahmenplanung!$AB$22:$AB$224,\"X\")","v":{"$error":"#DIV/0!"}},{"$f":"N41+SUMIFS(Massnahmenplanung!$T$22:$T$224,Massnahmenplanung!$U$22:$U$224,B42,Massnahmenplanung!$AB$22:$AB$224,\"X\")","v":0},{"$error":"#DIV/0!"},100]
[null,14,{"$error":"#DIV/0!"},100,{"$error":"#DIV/0!"},100,100,null,100,{"$f":"J42-SUMIFS(Massnahmenplanung!$O$22:$O$224,Massnahmenplanung!$U$22:$U$224,B43,Massnahmenplanung!$AB$22:$AB$224,\"X\")","v":0},{"$f":"K42+SUMIFS(Massnahmenplanung!$S$22:$S$224,Massnahmenplanung!$U$22:$U$224,B43,Massnahmenplanung!$AB$22:$AB$224,\"X\")","v":0},{"$error":"#DIV/0!"},{"$f":"M42-SUMIFS(Massnahmenplanung!$P$22:$P$224,Massnahmenplanung!$U$22:$U$224,B43,Massnahmenplanung!$AB$22:$AB$224,\"X\")","v":{"$error":"#DIV/0!"}},{"$f":"N42+SUMIFS(Massnahmenplanung!$T$22:$T$224,Massnahmenplanung!$U$22:$U$224,B43,Massnahmenplanung!$AB$22:$AB$224,\"X\")","v":0},{"$error":"#DIV/0!"},100]
[null,15,{"$error":"#DIV/0!"},100,{"$error":"#DIV/0!"},100,100,null,100,{"$f":"J43-SUMIFS(Massnahmenplanung!$O$22:$O$224,Massnahmenplanung!$U$22:$U$224,B44,Massnahmenplanung!$AB$22:$AB$224,\"X\")","v":0},{"$f":"K43+SUMIFS(Massnahmenplanung!$S$22:$S$224,Massnahmenplanung!$U$22:$U$224,B44,Massnahmenplanung!$AB$22:$AB$224,\"X\")","v":0},{"$error":"#DIV/0!"},{"$f":"M43-SUMIFS(Massnahmenplanung!$P$22:$P$224,Massnahmenplanung!$U$22:$U$224,B44,Massnahmenplanung!$AB$22:$AB$224,\"X\")","v":{"$error":"#DIV/0!"}},{"$f":"N43+SUMIFS(Massnahmenplanung!$T$22:$T$224,Massnahmenplanung!$U$22:$U$224,B44,Massnahmenplanung!$AB$22:$AB$224,\"X\")","v":0},{"$error":"#DIV/0!"},100]
[null,16,{"$error":"#DIV/0!"},100,{"$error":"#DIV/0!"},100,100,null,100,{"$f":"J44-SUMIFS(Massnahmenplanung!$O$22:$O$224,Massnahmenplanung!$U$22:$U$224,B45,Massnahmenplanung!$AB$22:$AB$224,\"X\")","v":0},{"$f":"K44+SUMIFS(Massnahmenplanung!$S$22:$S$224,Massnahmenplanung!$U$22:$U$224,B45,Massnahmenplanung!$AB$22:$AB$224,\"X\")","v":0},{"$error":"#DIV/0!"},{"$f":"M44-SUMIFS(Massnahmenplanung!$P$22:$P$224,Massnahmenplanung!$U$22:$U$224,B45,Massnahmenplanung!$AB$22:$AB$224,\"X\")","v":{"$error":"#DIV/0!"}},{"$f":"N44+SUMIFS(Massnahmenplanung!$T$22:$T$224,Massnahmenplanung!$U$22:$U$224,B45,Massnahmenplanung!$AB$22:$AB$224,\"X\")","v":0},{"$error":"#DIV/0!"},100]
[null,17,{"$error":"#DIV/0!"},100,{"$error":"#DIV/0!"},100,100,null,100,{"$f":"J45-SUMIFS(Massnahmenplanung!$O$22:$O$224,Massnahmenplanung!$U$22:$U$224,B46,Massnahmenplanung!$AB$22:$AB$224,\"X\")","v":0},{"$f":"K45+SUMIFS(Massnahmenplanung!$S$22:$S$224,Massnahmenplanung!$U$22:$U$224,B46,Massnahmenplanung!$AB$22:$AB$224,\"X\")","v":0},{"$error":"#DIV/0!"},{"$f":"M45-SUMIFS(Massnahmenplanung!$P$22:$P$224,Massnahmenplanung!$U$22:$U$224,B46,Massnahmenplanung!$AB$22:$AB$224,\"X\")","v":{"$error":"#DIV/0!"}},{"$f":"N45+SUMIFS(Massnahmenplanung!$T$22:$T$224,Massnahmenplanung!$U$22:$U$224,B46,Massnahmenplanung!$AB$22:$AB$224,\"X\")","v":0},{"$error":"#DIV/0!"},100]
[null,18,{"$error":"#DIV/0!"},100,{"$error":"#DIV/0!"},100,100,null,100,{"$f":"J46-SUMIFS(Massnahmenplanung!$O$22:$O$224,Massnahmenplanung!$U$22:$U$224,B47,Massnahmenplanung!$AB$22:$AB$224,\"X\")","v":0},{"$f":"K46+SUMIFS(Massnahmenplanung!$S$22:$S$224,Massnahmenplanung!$U$22:$U$224,B47,Massnahmenplanung!$AB$22:$AB$224,\"X\")","v":0},{"$error":"#DIV/0!"},{"$f":"M46-SUMIFS(Massnahmenplanung!$P$22:$P$224,Massnahmenplanung!$U$22:$U$224,B47,Massnahmenplanung!$AB$22:$AB$224,\"X\")","v":{"$error":"#DIV/0!"}},{"$f":"N46+SUMIFS(Massnahmenplanung!$T$22:$T$224,Massnahmenplanung!$U$22:$U$224,B47,Massnahmenplanung!$AB$22:$AB$224,\"X\")","v":0},{"$error":"#DIV/0!"},100]
[null,19,{"$error":"#DIV/0!"},100,{"$error":"#DIV/0!"},100,100,null,100,{"$f":"J47-SUMIFS(Massnahmenplanung!$O$22:$O$224,Massnahmenplanung!$U$22:$U$224,B48,Massnahmenplanung!$AB$22:$AB$224,\"X\")","v":0},{"$f":"K47+SUMIFS(Massnahmenplanung!$S$22:$S$224,Massnahmenplanung!$U$22:$U$224,B48,Massnahmenplanung!$AB$22:$AB$224,\"X\")","v":0},{"$error":"#DIV/0!"},{"$f":"M47-SUMIFS(Massnahmenplanung!$P$22:$P$224,Massnahmenplanung!$U$22:$U$224,B48,Massnahmenplanung!$AB$22:$AB$224,\"X\")","v":{"$error":"#DIV/0!"}},{"$f":"N47+SUMIFS(Massnahmenplanung!$T$22:$T$224,Massnahmenplanung!$U$22:$U$224,B48,Massnahmenplanung!$AB$22:$AB$224,\"X\")","v":0},{"$error":"#DIV/0!"},100]
[null,20,{"$error":"#DIV/0!"},100,{"$error":"#DIV/0!"},100,100,null,100,{"$f":"J48-SUMIFS(Massnahmenplanung!$O$22:$O$224,Massnahmenplanung!$U$22:$U$224,B49,Massnahmenplanung!$AB$22:$AB$224,\"X\")","v":0},{"$f":"K48+SUMIFS(Massnahmenplanung!$S$22:$S$224,Massnahmenplanung!$U$22:$U$224,B49,Massnahmenplanung!$AB$22:$AB$224,\"X\")","v":0},{"$error":"#DIV/0!"},{"$f":"M48-SUMIFS(Massnahmenplanung!$P$22:$P$224,Massnahmenplanung!$U$22:$U$224,B49,Massnahmenplanung!$AB$22:$AB$224,\"X\")","v":{"$error":"#DIV/0!"}},{"$f":"N48+SUMIFS(Massnahmenplanung!$T$22:$T$224,Massnahmenplanung!$U$22:$U$224,B49,Massnahmenplanung!$AB$22:$AB$224,\"X\")","v":0},{"$error":"#DIV/0!"},100]
[]
["1)  Die Richtwerte E und W werden entsprechend Formular D proportional gewichtet"]
["2)  Fakultativ, Zielpfad für die jährliche Effiziensteigerung kann manuell überschrieben (geknickt) werden. Dieses Vorgehen muss unten begründet werden."]
["3)  Fakultativ, Berechnung der Energieeffizienz anhand Umsetzungsjahre in Massnahmenplanung"]

{"sheet":"Vereinbarung","index":13,"n_rows":99,"n_cols":13,"rows_kept":99,"cut":false,"hidden":false,"merged":[[92,1,92,3],[87,1,87,3],[87,5,87,13],[88,1,88,3],[88,5,88,13],[100,1,100,3],[100,5,100,13],[95,1,95,3],[92,5,93,6],[95,5,96,6],[98,5,99,6],[92,12,92,13],[95,12,95,13],[98,12,98,13],[93,10,93,11],[93,12,93,13],[93,7,93,9],[96,7,96,9],[96,10,96,11],[96,12,96,13],[99,7,99,9],[99,10,99,11],[99,12,99,13],[84,1,84,3],[84,5,84,13],[85,1,85,3],[85,5,86,13],[77,5,78,13],[79,5,81,13],[82,1,82,3],[82,5,82,13],[91,1,91,3],[91,5,91,13],[66,1,66,3],[66,5,66,13],[61,1,61,3],[61,5,61,13],[62,1,62,3],[62,5,62,13],[74,1,74,3],[74,5,74,13],[75,1,75,3],[75,5,76,13],[67,1,67,3],[67,5,69,13],[70,5,71,13],[72,1,72,3],[72,5,72,13],[59,1,59,3],[59,5,59,13],[49,1,49,3],[49,5,49,13],[50,1,50,3],[50,5,51,13],[63,5,63,13],[64,1,64,3],[64,5,64,13],[47,1,47,3],[47,5,47,13],[41,5,41,13],[42,5,42,13],[44,1,44,3],[44,5,44,13],[52,5,56,13],[56,1,56,3],[57,5,58,13],[36,5,38,13],[39,5,40,13],[31,1,31,3],[31,5,31,13],[32,5,32,13],[33,5,33,13],[45,1,45,3],[45,5,46,13],[46,1,46,3],[28,1,28,3],[28,5,28,13],[29,1,29,3],[29,5,29,13],[26,1,26,3],[26,5,26,13],[27,1,27,3],[27,5,27,13],[35,1,35,3],[35,5,35,13],[24,1,24,3],[24,5,24,13],[25,1,25,3],[25,5,25,13],[22,5,22,7],[22,10,22,13],[23,5,23,7],[23,10,23,13],[21,5,21,7],[21,10,21,13],[0,12,1,13],[3,1,3,3],[3,5,3,13],[5,1,5,3],[5,5,5,13],[12,1,12,3],[12,5,12,13],[13,1,13,3],[13,5,13,13],[8,5,8,13],[9,5,9,13],[10,5,10,13],[11,1,11,3],[11,5,11,13],[6,1,6,3],[6,5,6,13],[7,1,7,3],[7,5,7,13],[16,1,16,3],[16,5,16,13],[17,1,17,3],[17,5,17,13],[14,1,14,3],[14,5,14,13],[15,1,15,3],[15,5,15,13],[20,5,20,7],[20,10,20,13],[18,1,18,3],[18,5,18,7],[18,10,18,13],[19,5,19,7],[19,10,19,13]]}
[null,null,null,null,null,null,null,null,null,null,null,"Kantonale Zielvereinbarung (KZV) für Grossverbraucher im Kanton Zürich","KZV SE"]
[null,null,null,null,null,null,null,null,null,null,null,"Reduktion des spezifischen Energieverbrauchs"]
[]
[]
[null,"Kantonale Zielvereinbarung"]
[]
[null,"Zwischen der",null,null,null,"Baudirektion des Kanton Zürich"]
[null,null,null,null,null,"vertreten durch das"]
[null,null,null,null,null,"Amt für Abfall, Wasser, Energie und Luft (AWEL)"]
[null,null,null,null,null,"Stampfenbachstrasse 12, 8090 Zürich"]
[]
[]
[]
[null,"und der Firma / Organisation:",null,null,null,{"$f":"Titelblatt!$F$6","v":0}]
[null,"Adresse:",null,null,null,{"$f":"Titelblatt!F7","v":0}]
[]
[null,"Kontaktperson:",null,null,null,{"$f":"Titelblatt!G9","v":0}]
[]
[null,"Verbrauchsstätten:",null,null,null,{"$f":"Titelblatt!F13","v":0},null,null,"Elektrozähler:",null,{"$f":"Titelblatt!$K$13","v":0}]
[null,"(Systemabgrenzung)",null,null,null,{"$f":"Titelblatt!F14","v":0},null,null,null,null,{"$f":"Titelblatt!$K$14","v":0}]
[null,null,null,null,null,{"$f":"Titelblatt!F15","v":0},null,null,null,null,{"$f":"Titelblatt!$K$15","v":0}]
[null,null,null,null,null,{"$f":"Titelblatt!F16","v":0},null,null,null,null,{"$f":"Titelblatt!$K$16","v":0}]
[null,null,null,null,null,{"$f":"Titelblatt!F17","v":0},null,null,null,null,{"$f":"Titelblatt!$K$17","v":0}]
[null,null,null,null,null,{"$f":"Titelblatt!F18","v":0}]
[]
[]
[]
[null,"Technische Begleitung:",null,null,null,{"$f":"Titelblatt!$F$22","v":0}]
[null,"Kontaktperson:",null,null,null,{"$f":"Titelblatt!$G$25","v":0}]
[]
[]
[]
[null,"Parteien:",null,null,null,"Zwischen den Parteien wird folgende kantonale Zielvereinbarung gemäss §13a EnerG Kanton Zürich abgeschlossen:"]
[]
[]
[]
[null,"1. Zielsetzung:",null,null,null,"Im Bestreben, den Verbrauch nicht erneuerbarer Energien und damit die Emissionen von Kohlendioxid (CO2) zu senken, will der Grossverbraucher in Befolgung der entsprechenden gesetzlichen Vorgaben die Energieeffizienz verbessern."]
[]
[]
[null,null,null,null,null,{"$f":"\"Damit die Vereinbarung mit der Baudirektion die erwünschte Wirkung hat und einen Schritt Richtung nachhaltige Entwicklung bedeutet, wird sie über \"&FE_DauerZV&\" Jahre abgeschlossen.\"","v":"Damit die Vereinbarung mit der Baudirektion die erwünschte Wirkung hat und einen Schritt Richtung nachhaltige Entwicklung bedeutet, wird sie über  Jahre abgeschlossen."}]
[]
[null,null,null,null,null,{"$f":"\"Das Ausgangsjahr der Zielvereinbarung ist \"&'Formular C'!$E$28&IF('Formular E'!F12<>'Formular C'!E28,\", der Vertragsbeginn \"&'Formular E'!F12+1&\".\",\".\")&\" Das Zieljahr der Zielvereinbarung ist \"&'Formular E'!$F$20&\".\"","v":"Das Ausgangsjahr der Zielvereinbarung ist . Das Zieljahr der Zielvereinbarung ist 0."}]
[]
[]
[]
[null,"2. Zielgrösse:",null,null,null,{"$f":"\"Die massgebende Zielgrösse ist die Energieeffizienz. Die zu erreichende Energieeffizienz im Zieljahr beträgt \"&ROUND('Formular E'!$F$22,1)&\" Prozent.\"","v":"Die massgebende Zielgrösse ist die Energieeffizienz. Die zu erreichende Energieeffizienz im Zieljahr beträgt 100 Prozent."}]
[]
[]
[]
[]
[null,"3. Erfolgskontrolle:",null,null,null,"Der Grossverbraucher erstattet dem AWEL jährlich bis Ende April Bericht über die Entwicklung des Energieverbrauchs (Periode vom 1. Januar bis 31. Dezember des Vorjahres)."]
[]
[null,null,null,null,null,"Der Bericht umfasst mindestens:\n• Die Entwicklung der Energieeffizienz und eine Beurteilung der Zielerreichung\n• Die Entwicklung der Energiebezugsfläche und der Bezugsgrösse Produktion / Dienstleistungen\n• Die Entwicklung des Energieverbrauchs (effektiv und HGT-bereinigt)\n• Hinweise auf getroffene Massnahmen und Gründe für wesentliche Abweichungen von der Zielvorgabe"]
[]
[]
[]
[]
[null,null,null,null,null,"Wird die Zielvereinbarung nicht eingehalten, oder bestehen berechtigte Zweifel an den ausgewiesenen Daten, kann für das folgende Kalenderjahr eine detaillierte Berichterstattung verlangt werden."]
[]
[]
[]
[]
[null,"4. Verhältnis zu bestehenden",null,null,null,"Für die Dauer der Vereinbarung ist der Grossverbraucher von den Detailvorschriften gemäss § 48b BBV I entbunden."]
[null,"    Vorschriften:"]
[]
[]
[]
[null,"5. Rechte und Pflichten des",null,null,null,"Der Grossverbraucher verpflichtet sich, aktive Beiträge zur Erreichung der Ziele zu leisten. Er steigert seine Energieeffizienz im Rahmen der Zielvorgabe, ist aber nicht verpflichtet, die Richtwerte E und W einzeln einzuhalten. Er prognostiziert seine Energieeffizienzentwicklung und die dafür vorgesehenen Massnahmen."]
[null,"    Grossverbrauchers:"]
[]
[null,null,null,null,null,"Der Grossverbraucher kann unter Einhaltung einer Kündigungsfrist von 6 Monaten jeweils auf Jahresende die Vereinbarung auflösen. Er unterliegt dann den Bestimmungen von § 13a Abs. 1 des Energiegesetzes."]
[]
[]
[]
[]
[null,"6. Dauer der Vereinbarung:",null,null,null,{"$f":"\"Die Vereinbarung gilt für \"&FE_DauerZV&\" Jahre, ab \"&IF('Formular C'!E28<>'Formular E'!F12,\"Vertragsbeginn \"&'Formular E'!F12+1,\"Ausgangsjahr \"&'Formular C'!E28)&\" bis 31. Dezember \"&'Formular E'!$F$20&\".\"","v":"Die Vereinbarung gilt für  Jahre, ab Ausgangsjahr  bis 31. Dezember 0."}]
[]
[null,null,null,null,null,"Sie wird stillschweigend einmal um 1 Jahr verlängert, wenn sie weder erneuert noch 6 Monate vor Ablauf gekündigt wird. Das neue Jahresziel wird in diesem Fall gemäss der unter Punkt 2 festgehaltenen Effizienzsteigerung errechnet."]
[]
[null,null,null,null,null,"Die Baudirektion kann die Vereinbarung unter Einhaltung einer Frist von 6 Monaten auf das folgende Kalenderjahr auflösen, wenn die Zielvorgaben gemäss Ziffer 2 nicht eingehalten werden. Der Grossverbraucher wird danach gemäss § 13a Abs. 1 des Energiegesetzes behandelt."]
[]
[]
[]
[]
[]
[null,"7. Ausfertigung:",null,null,null,"Die Vereinbarung wird 2-fach als Original ausgefertigt. Je ein Exemplar liegt bei der Baudirektion und bei dem Grossverbraucher. Eine Kopie der Vereinbarung erhält die Technische Begleitung."]
[]
[]
[]
[null,"Die Unterzeichnenden anerkennen mit ihrer rechtsgültigen Unterschrift diese Vereinbarung "]
[]
[]
[null,"Ort / Datum / Unterschrift:",null,null,null,"Die Baudirektion, vertreten durch das AWEL, Abt. Energie:",null,"Vorname / Name",null,null,"Ort / Datum",null,"Unterschrift"]
[]
[]
[null,null,null,null,null,"Firma / Organisation:",null,"Vorname / Name",null,null,"Ort / Datum",null,"Unterschrift"]
[]
[]
[null,null,null,null,null,"Technische Begleitung:",null,"Vorname / Name",null,null,"Ort / Datum",null,"Unterschrift"]

{"sheet":"Bemerkungen","index":14,"n_rows":5,"n_cols":13,"rows_kept":5,"cut":false,"hidden":false,"merged":[[6,0,37,12]]}
["KZV SE, Bemerkungen",null,null,null,null,null,null,null,null,null,null,null,{"$f":"Titelblatt!F6","v":"00:00:00"}]
[null,null,null,null,null,null,null,null,null,null,null,null,{"$f":"Titelblatt!F31","v":"00:00:00"}]
[]
[]
["Bemerkungen zur Zielvereinbarung"]